Workbook

Sheet YARIŞMA BİLGİLERİ
A2: Türkiye Atletizm Federasyonu Mersin Atletizm İl Temsilciliği
A14: =F19 -> Olimpik Baraj Yarışmaları
A18: Yarışma Bilgileri
A19: Yarışma Adı : | F19: Olimpik Baraj Yarışmaları
A20: Yarışmanın Yapıldığı İl : | F20: Mersin
A21: Kategori : | F21: Kadınlar
A22: Tarih : | F22: 8-9 AĞUSTOS 2015
A23: Katılan Sporcu Sayısı :

Sheet KAYIT LİSTESİ
A1: ='YARIŞMA BİLGİLERİ'!F19 -> Olimpik Baraj Yarışmaları
A2: ='YARIŞMA BİLGİLERİ'!F21 -> Kadınlar | G2: Kayıt Listesi | I2: =NOW() -> 42222.53664
A3: S.N. | B3: SERİ-KULVAR FORMÜLÜ | C3: GÖĞÜS NO | D3: TC NO | E3: DOĞUM TARİHİ | F3: ADI VE SOYADI | G3: İli-Okulu | H3: YARIŞACAĞI BRANŞ | I3: EN İYİ DERECESİ | J3: SERİ | K3: KULVAR | L3: ATMA-ATLAMA SIRASI
A4: 1 | B4: =CONCATENATE(H4,"-",J4,"-",K4) -> 100M-1-3 | C4: 600 | D4: 16595978976 | E4: 1987-03-30 | F4: SİBEL İPEK | G4: DİYARBAKIR | H4: 100M | I4: 12.50 | J4: 1 | K4: 3
A5: 2 | B5: 100M-1-6 | C5: 611 | D5: 18530018488 | E5: 1999-08-28 | F5: AYSEL YILMAZ | G5: GAZİANTEP | H5: 100M | J5: 1 | K5: 6
A6: 3 | B6: 100M-1-4 | C6: 618 | D6: 51883307960 | E6: 1994-08-25 | F6: Tuğba AYDIN | G6: MERSİN | H6: 100M | I6: 12.51 | J6: 1 | K6: 4
A7: 4 | B7: 100M-1-2 | C7: 626 | D7: 10050138424 | E7: 1999-02-02 | F7: ESRA KARAKAYA | G7: AKSARAY | H7: 100M | I7: 13.50 | J7: 1 | K7: 2
A8: 5 | B8: 100M-1-5 | C8: 627 | D8: 72268063486 | E8: 1999-05-13 | F8: BERIVAN KAYA | G8: AKSARAY | H8: 100M | I8: 13.76 | J8: 1 | K8: 5
A9: 1 | B9: 400M-1-2 | C9: 600 | D9: 16595978976 | E9: 1987-03-30 | F9: SİBEL İPEK | G9: DİYARBAKIR | H9: 400M | I9: 58.30 | J9: 1 | K9: 2
A10: 2 | B10: 400M-1-4 | C10: 604 | D10: 11933221608 | E10: 1997-03-15 | F10: RÜYA KAYA | G10: MERSİN | H10: 400M | I10: 57.00 | J10: 1 | K10: 4
A11: 3 | B11: 400M-1-3 | C11: 609 | D11: 20284514376 | E11: 1989-09-28 | F11: Nihan Karuk | G11: karaman | H11: 400M | I11: 56.12 | J11: 1 | K11: 3
A12: 4 | B12: 400M-1-7 | C12: 615 | D12: 18596098714 | E12: 1997-01-19 | F12: SEVNUR ALADAĞ | G12: HATAY | H12: 400M | I12: 59.80 | J12: 1 | K12: 7
A13: 5 | B13: 400M-1-5 | C13: 624 | D13: 37066040534 | E13: 1997-03-17 | F13: BAHAR ILDIRKAYA | G13: BURSA | H13: 400M | I13: 58.88 | J13: 1 | K13: 5
A14: 6 | B14: 400M-1-6 | C14: 625 | D14: 43531090522 | E14: 1999-11-01 | F14: KARDELEN YILDIRIM | G14: ERZİNCAN | H14: 400M | I14: 59.03 | J14: 1 | K14: 6
A15: 7 | B15: 400M-1-8 | C15: 628 | D15: 66493254368 | E15: 1997-08-04 | F15: HATICE DEDE | G15: AKSARAY | H15: 400M | I15: 63.22 | J15: 1 | K15: 8
H16: 400M
A17: 1 | B17: =CONCATENATE(H17,"-",J17,"-",K17) -> 1500M-1-2 | C17: 612 | D17: 17210896576 | E17: 1999-06-23 | F17: FADİME KOŞAR | G17: KONYA | H17: 1500M | I17: 4.36 | J17: 1 | K17: 2
A18: 2 | B18: 1500M-1-3 | C18: 614 | D18: 24583892708 | E18: 1999-08-15 | F18: SELENAY BATİ | G18: HATAY | H18: 1500M | I18: 4.40 | J18: 1 | K18: 3
A19: 3 | B19: 1500M-1-5 | C19: 617 | D19: 24460893972 | E19: 1999-06-03 | F19: SEÇİL AKPINAR | G19: HATAY | H19: 1500M | I19: 4.57 | J19: 1 | K19: 5
A20: 4 | B20: 1500M-1-1 | C20: 629 | D20: 38860092118 | E20: 1998-01-18 | F20: SEMRA KARASLAN | G20: KIRIKKALE | H20: 1500M | I20: 4,25 | J20: 1 | K20: 1
A21: 5 | B21: =CONCATENATE(H21,"-",J21,"-",K21) -> 1500M-1-4 | C21: 630 | D21: 64192315618 | E21: 1998-12-30 | F21: BELHUDE SALMANLI | G21: KIRIKKALE | H21: 1500M | I21: 4,50 | J21: 1 | K21: 4
A22: 1 | B22: 100M.ENG-1-3 | C22: 601 | D22: 23386015222 | E22: 15.11.1992 | F22: İLKAY AVCI | G22: ESKİŞEHİR | H22: 100M.ENG | I22: 14.17 | J22: 1 | K22: 3
A23: 2 | B23: 100M.ENG-1-4 | C23: 602 | D23: 11023959404 | E23: 1984-03-28 | F23: SERPİL KOÇAK | G23: İSTABUL | H23: 100M.ENG | I23: 13.99 | J23: 1 | K23: 4
A24: 3 | B24: 100M.ENG-1-2 | C24: 610 | D24: 301613 | E24: 1994-01-29 | F24: Zühre ACERMAN | G24: KKTC. MAGUSA | H24: 100M.ENG | I24: 15.40 | J24: 1 | K24: 2
A27: 21 | B27: 10000M-1-2 | C27: 616 | D27: 24466893754 | E27: 1995-12-06 | F27: SABAHAT AKPINAR | G27: HATAY | H27: 10000M | I27: 39.20 | J27: 1 | K27: 2
A28: 22 | B28: =CONCATENATE(H28,"-",L28) -> 10000M- | H28: 10000M
A29: 23 | B29: 10000M- | H29: 10000M
A30: 24 | B30: 10000M- | H30: 10000M
A31: 25 | B31: =CONCATENATE(H31,"-",L31) -> 10000M- | H31: 10000M
A32: 26 | B32: GÜLLE-1 | C32: 623 | D32: 37609758612 | E32: 1999-02-09 | F32: SİMGE ALTIOK | G32: KAYSERİ | H32: GÜLLE | L32: 1
A37: 1 | B37: ÇEKİÇ-1 | C37: 603 | D37: 31102691834 | E37: 1988-05-01 | F37: TUĞÇE ŞAHUTOĞLU | G37: MERSİN | H37: ÇEKİÇ | I37: 74.17 | L37: 1
B38: -
B39: -
B40: -
B41: -
A42: 1 | B42: =CONCATENATE(H42,"-",J42,"-",K42) -> 200M-1-4 | C42: 600 | D42: 16595978976 | E42: 1987-03-30 | F42: SİBEL İPEK | G42: DİYARBAKIR | H42: 200M | I42: 25.70 | J42: 1 | K42: 4
A43: 2 | B43: 200M-1-6 | C43: 611 | D43: 18530018488 | E43: 1999-08-28 | F43: AYSEL YILMAZ | G43: GAZİANTEP | H43: 200M | I43: 27.34 | J43: 1 | K43: 6
A44: 3 | B44: 200M-1-3 | C44: 602 | D44: 11023959404 | E44: 1984-03-28 | F44: Serpil Koçak | G44: istanbul | H44: 200M | I44: 25.00 | J44: 1 | K44: 3
A45: 4 | B45: 200M-1-5 | C45: 615 | D45: 18596098714 | E45: 1997-01-19 | F45: SEVNUR ALADAĞ | G45: HATAY | H45: 200M | I45: 26.50 | J45: 1 | K45: 5
A46: 5 | B46: 200M-1-2 | C46: 624 | D46: 37066040534 | E46: 1997-03-17 | F46: BAHAR ILDIRKAYA | G46: BURSA | H46: 200M | I46: 26.10 | J46: 1 | K46: 2
A47: 6 | B47: 200M-1-7 | C47: 627 | D47: 72268063486 | E47: 1999-05-13 | F47: BERIVAN KAYA | G47: AKSARAY | H47: 200M | I47: 28.33 | J47: 1 | K47: 7
A48: 7 | B48: 200M-1-8 | C48: 626 | D48: 10050138424 | E48: 1999-02-02 | F48: ESRA KARAKAYA | G48: AKSARAY | H48: 200M | I48: 27.88 | J48: 1 | K48: 8
A50: 1 | B50: 800M-2-3 | C50: 604 | D50: 11933221608 | E50: 1997-03-15 | F50: RÜYA KAYA | G50: MERSİN | H50: 800M | I50: 2.12.00 | J50: 2 | K50: 3
A51: 2 | B51: 800M-1-4 | C51: 612 | D51: 17210896576 | E51: 1999-06-23 | F51: FADİME KOŞAR | G51: KONYA | H51: 800M | I51: 2.13 | J51: 1 | K51: 4
A52: 3 | B52: 800M-1-5 | C52: 614 | D52: 24583892708 | E52: 1999-08-15 | F52: SELENAY BATİ | G52: HATAY | H52: 800M | I52: 2.20 | J52: 1 | K52: 5
A53: 4 | B53: 800M-2-6 | C53: 617 | D53: 24460893972 | E53: 1999-06-03 | F53: SEÇİL AKPINAR | G53: HATAY | H53: 800M | I53: 2.24 | J53: 2 | K53: 6
A54: 5 | B54: 800M-2-2 | C54: 620 | D54: 42958584904 | E54: 1995-01-05 | F54: SİNEM NUR ERARSLAN | G54: KAYSERİ | H54: 800M | I54: 2,17,05 | J54: 2 | K54: 2
A55: 6 | B55: 800M-1-2 | C55: 621 | D55: 21022259542 | E55: 1998-06-10 | F55: HATİCE TAŞÇI | G55: KAYSERİ | H55: 800M | I55: 2,17,01 | J55: 1 | K55: 2
A56: 7 | B56: 800M-2-4 | C56: 622 | D56: 23636469492 | E56: 1998-10-03 | F56: KEZİBAN DEMİRALP | G56: KAYSERİ | H56: 800M | I56: 2,13,04 | J56: 2 | K56: 4
A57: 8 | B57: 800M-2-5 | C57: 625 | D57: 43531090522 | E57: 1999-11-01 | F57: KARDELEN YILDIRIM | G57: ERZİNCAN | H57: 800M | I57: 2.21 | J57: 2 | K57: 5
A58: 9 | B58: 800M-2-7 | C58: 628 | D58: 66493254368 | E58: 1997-08-04 | F58: HATICE DEDE | G58: AKSARAY | H58: 800M | I58: 2.45 | J58: 2 | K58: 7
A59: 10 | B59: 800M-1-3 | C59: 629 | D59: 38860092118 | E59: 1998-01-18 | F59: SEMRA KARASLAN | G59: KIRIKKALE | H59: 800M | I59: 2,10 | J59: 1 | K59: 3
A60: 11 | B60: 800M-1-6 | C60: 630 | D60: 64192315618 | E60: 1998-12-30 | F60: BELHUDE SALMANLI | G60: KIRIKKALE | H60: 800M | I60: 2,21 | J60: 1 | K60: 6
A62: 46 | B62: =CONCATENATE(H62,"-",J62,"-",K62) -> 5000M-1-3 | C62: 613 | D62: 47083141176 | E62: 1995-12-07 | F62: EMİNE HATUN TUNA | G62: HATAY | H62: 5000M | I62: 16.29 | J62: 1 | K62: 3
A63: 47 | B63: 5000M-1-2 | C63: 616 | D63: 24466893754 | E63: 1995-12-06 | F63: SABAHAT AKPINAR | G63: HATAY | H63: 5000M | I63: 17.50 | J63: 1 | K63: 2
A64: 48 | B64: 5000M-- | H64: 5000M
A65: 49 | B65: 5000M-- | H65: 5000M
A66: 50 | B66: 5000M-- | H66: 5000M
B67: 3000M.ENG-1-2 | F67: KATILIM YOK. | H67: 3000M.ENG | J67: 1 | K67: 2
A72: 1 | B72: 400M.ENG-1-2 | C72: 631 | D72: 12265874050 | E72: 14.02.1990 | F72: ELİF YİLDİRİM | G72: BURSA | H72: 400M.ENG | I72: 56.56 | J72: 1 | K72: 2
A77: 1 | B77: =CONCATENATE(H77,"-",L77) -> DİSK-1 | C77: 607 | D77: 15026230010 | E77: 1997-10-01 | F77: MELİKE TAN | G77: MERSİN | H77: DİSK | L77: 1
A78: 2 | B78: DİSK-2 | C78: 611 | D78: 18530018488 | E78: 1999-08-28 | F78: AYSEL YILMAZ | G78: GAZİANTEP | H78: DİSK | L78: 2
A82: 1 | B82: =CONCATENATE(H82,"-",L82) -> CİRİT-3 | C82: 605 | D82: 17183855198 | E82: 1993-09-22 | F82: BERİVAN ŞAKIR | G82: MERSİN | H82: CİRİT | I82: 53,34 | L82: 3
A83: 2 | B83: CİRİT-2 | C83: 606 | D83: 20474048896 | E83: 1998-08-05 | F83: AYŞE SU KAŞ | G83: MERSİN | H83: CİRİT | I83: 42,00 | L83: 2
A84: 3 | B84: CİRİT-1 | C84: 608 | D84: 22066852898 | E84: 1998-04-03 | F84: RABİA KARAMAN | G84: MERSİN | H84: CİRİT | L84: 1
A85: 4 | B85: =CONCATENATE(H85,"-",L85) -> CİRİT-4 | C85: 619 | D85: 13801539358 | E85: 1997-03-27 | F85: Eda TUĞSUZ | G85: ANTALYA | H85: CİRİT | I85: 56.52 | L85: 4

Sheet 1.Gün Start Listesi (hidden)
A1: =('YARIŞMA BİLGİLERİ'!A2) -> Türkiye Atletizm Federasyonu Mersin Atletizm İl Temsilciliği
A2: ='YARIŞMA BİLGİLERİ'!F19 -> Olimpik Baraj Yarışmaları
A3: 1.GÜN GENÇ KIZLAR START LİSTELERİ
A4: 100 METRE | J4: 400 METRE
A5: 1. SERİ | I5: SIRA NO | J5: 1. SERİ
A6: Sıra No | B6: Formül | C6: Göğüs No | D6: Doğum Tarihi | E6: Adı ve Soyadı | F6: İli-Okulu | G6: Start Kontrol | J6: Sıra No | K6: Formül | L6: Göğüs No | M6: Doğum Tarihi | N6: Adı ve Soyadı | O6: İli-Okulu | P6: Start Kontrol
A7: 1 | B7: 100M-1-1 | C7: =IF(ISERROR(VLOOKUP(B7,'KAYIT LİSTESİ'!$B$4:$H$664,2,0)),"",(VLOOKUP(B7,'KAYIT LİSTESİ'!$B$4:$H$664,2,0))) ->  | D7: =IF(ISERROR(VLOOKUP(B7,'KAYIT LİSTESİ'!$B$4:$H$664,4,0)),"",(VLOOKUP(B7,'KAYIT LİSTESİ'!$B$4:$H$664,4,0))) ->  | E7: =IF(ISERROR(VLOOKUP(B7,'KAYIT LİSTESİ'!$B$4:$H$664,5,0)),"",(VLOOKUP(B7,'KAYIT LİSTESİ'!$B$4:$H$664,5,0))) ->  | F7: =IF(ISERROR(VLOOKUP(B7,'KAYIT LİSTESİ'!$B$4:$H$664,6,0)),"",(VLOOKUP(B7,'KAYIT LİSTESİ'!$B$4:$H$664,6,0))) ->  | I7: 1 | J7: 1 | K7: 400M-1-1 | L7: =IF(ISERROR(VLOOKUP(K7,'KAYIT LİSTESİ'!$B$4:$H$664,2,0)),"",(VLOOKUP(K7,'KAYIT LİSTESİ'!$B$4:$H$664,2,0))) ->  | M7: =IF(ISERROR(VLOOKUP(K7,'KAYIT LİSTESİ'!$B$4:$H$664,4,0)),"",(VLOOKUP(K7,'KAYIT LİSTESİ'!$B$4:$H$664,4,0))) ->  | N7: =IF(ISERROR(VLOOKUP(K7,'KAYIT LİSTESİ'!$B$4:$H$664,5,0)),"",(VLOOKUP(K7,'KAYIT LİSTESİ'!$B$4:$H$664,5,0))) ->  | O7: =IF(ISERROR(VLOOKUP(K7,'KAYIT LİSTESİ'!$B$4:$H$664,6,0)),"",(VLOOKUP(K7,'KAYIT LİSTESİ'!$B$4:$H$664,6,0))) -> 
A8: 2 | B8: 100M-1-2 | C8: =IF(ISERROR(VLOOKUP(B8,'KAYIT LİSTESİ'!$B$4:$H$664,2,0)),"",(VLOOKUP(B8,'KAYIT LİSTESİ'!$B$4:$H$664,2,0))) -> 626 | D8: =IF(ISERROR(VLOOKUP(B8,'KAYIT LİSTESİ'!$B$4:$H$664,4,0)),"",(VLOOKUP(B8,'KAYIT LİSTESİ'!$B$4:$H$664,4,0))) -> 1999-02-02 | E8: =IF(ISERROR(VLOOKUP(B8,'KAYIT LİSTESİ'!$B$4:$H$664,5,0)),"",(VLOOKUP(B8,'KAYIT LİSTESİ'!$B$4:$H$664,5,0))) -> ESRA KARAKAYA | F8: =IF(ISERROR(VLOOKUP(B8,'KAYIT LİSTESİ'!$B$4:$H$664,6,0)),"",(VLOOKUP(B8,'KAYIT LİSTESİ'!$B$4:$H$664,6,0))) -> AKSARAY | I8: 2 | J8: 2 | K8: 400M-1-2 | L8: =IF(ISERROR(VLOOKUP(K8,'KAYIT LİSTESİ'!$B$4:$H$664,2,0)),"",(VLOOKUP(K8,'KAYIT LİSTESİ'!$B$4:$H$664,2,0))) -> 600 | M8: =IF(ISERROR(VLOOKUP(K8,'KAYIT LİSTESİ'!$B$4:$H$664,4,0)),"",(VLOOKUP(K8,'KAYIT LİSTESİ'!$B$4:$H$664,4,0))) -> 1987-03-30 | N8: =IF(ISERROR(VLOOKUP(K8,'KAYIT LİSTESİ'!$B$4:$H$664,5,0)),"",(VLOOKUP(K8,'KAYIT LİSTESİ'!$B$4:$H$664,5,0))) -> SİBEL İPEK | O8: =IF(ISERROR(VLOOKUP(K8,'KAYIT LİSTESİ'!$B$4:$H$664,6,0)),"",(VLOOKUP(K8,'KAYIT LİSTESİ'!$B$4:$H$664,6,0))) -> DİYARBAKIR
A9: 3 | B9: 100M-1-3 | C9: =IF(ISERROR(VLOOKUP(B9,'KAYIT LİSTESİ'!$B$4:$H$664,2,0)),"",(VLOOKUP(B9,'KAYIT LİSTESİ'!$B$4:$H$664,2,0))) -> 600 | D9: =IF(ISERROR(VLOOKUP(B9,'KAYIT LİSTESİ'!$B$4:$H$664,4,0)),"",(VLOOKUP(B9,'KAYIT LİSTESİ'!$B$4:$H$664,4,0))) -> 1987-03-30 | E9: =IF(ISERROR(VLOOKUP(B9,'KAYIT LİSTESİ'!$B$4:$H$664,5,0)),"",(VLOOKUP(B9,'KAYIT LİSTESİ'!$B$4:$H$664,5,0))) -> SİBEL İPEK | F9: =IF(ISERROR(VLOOKUP(B9,'KAYIT LİSTESİ'!$B$4:$H$664,6,0)),"",(VLOOKUP(B9,'KAYIT LİSTESİ'!$B$4:$H$664,6,0))) -> DİYARBAKIR | I9: 3 | J9: 3 | K9: 400M-1-3 | L9: =IF(ISERROR(VLOOKUP(K9,'KAYIT LİSTESİ'!$B$4:$H$664,2,0)),"",(VLOOKUP(K9,'KAYIT LİSTESİ'!$B$4:$H$664,2,0))) -> 609 | M9: =IF(ISERROR(VLOOKUP(K9,'KAYIT LİSTESİ'!$B$4:$H$664,4,0)),"",(VLOOKUP(K9,'KAYIT LİSTESİ'!$B$4:$H$664,4,0))) -> 1989-09-28 | N9: =IF(ISERROR(VLOOKUP(K9,'KAYIT LİSTESİ'!$B$4:$H$664,5,0)),"",(VLOOKUP(K9,'KAYIT LİSTESİ'!$B$4:$H$664,5,0))) -> Nihan Karuk | O9: =IF(ISERROR(VLOOKUP(K9,'KAYIT LİSTESİ'!$B$4:$H$664,6,0)),"",(VLOOKUP(K9,'KAYIT LİSTESİ'!$B$4:$H$664,6,0))) -> karaman
A10: 4 | B10: 100M-1-4 | C10: =IF(ISERROR(VLOOKUP(B10,'KAYIT LİSTESİ'!$B$4:$H$664,2,0)),"",(VLOOKUP(B10,'KAYIT LİSTESİ'!$B$4:$H$664,2,0))) -> 618 | D10: =IF(ISERROR(VLOOKUP(B10,'KAYIT LİSTESİ'!$B$4:$H$664,4,0)),"",(VLOOKUP(B10,'KAYIT LİSTESİ'!$B$4:$H$664,4,0))) -> 1994-08-25 | E10: =IF(ISERROR(VLOOKUP(B10,'KAYIT LİSTESİ'!$B$4:$H$664,5,0)),"",(VLOOKUP(B10,'KAYIT LİSTESİ'!$B$4:$H$664,5,0))) -> Tuğba AYDIN | F10: =IF(ISERROR(VLOOKUP(B10,'KAYIT LİSTESİ'!$B$4:$H$664,6,0)),"",(VLOOKUP(B10,'KAYIT LİSTESİ'!$B$4:$H$664,6,0))) -> MERSİN | I10: 4 | J10: 4 | K10: 400M-1-4 | L10: =IF(ISERROR(VLOOKUP(K10,'KAYIT LİSTESİ'!$B$4:$H$664,2,0)),"",(VLOOKUP(K10,'KAYIT LİSTESİ'!$B$4:$H$664,2,0))) -> 604 | M10: =IF(ISERROR(VLOOKUP(K10,'KAYIT LİSTESİ'!$B$4:$H$664,4,0)),"",(VLOOKUP(K10,'KAYIT LİSTESİ'!$B$4:$H$664,4,0))) -> 1997-03-15 | N10: =IF(ISERROR(VLOOKUP(K10,'KAYIT LİSTESİ'!$B$4:$H$664,5,0)),"",(VLOOKUP(K10,'KAYIT LİSTESİ'!$B$4:$H$664,5,0))) -> RÜYA KAYA | O10: =IF(ISERROR(VLOOKUP(K10,'KAYIT LİSTESİ'!$B$4:$H$664,6,0)),"",(VLOOKUP(K10,'KAYIT LİSTESİ'!$B$4:$H$664,6,0))) -> MERSİN
A11: 5 | B11: 100M-1-5 | C11: =IF(ISERROR(VLOOKUP(B11,'KAYIT LİSTESİ'!$B$4:$H$664,2,0)),"",(VLOOKUP(B11,'KAYIT LİSTESİ'!$B$4:$H$664,2,0))) -> 627 | D11: =IF(ISERROR(VLOOKUP(B11,'KAYIT LİSTESİ'!$B$4:$H$664,4,0)),"",(VLOOKUP(B11,'KAYIT LİSTESİ'!$B$4:$H$664,4,0))) -> 1999-05-13 | E11: =IF(ISERROR(VLOOKUP(B11,'KAYIT LİSTESİ'!$B$4:$H$664,5,0)),"",(VLOOKUP(B11,'KAYIT LİSTESİ'!$B$4:$H$664,5,0))) -> BERIVAN KAYA | F11: =IF(ISERROR(VLOOKUP(B11,'KAYIT LİSTESİ'!$B$4:$H$664,6,0)),"",(VLOOKUP(B11,'KAYIT LİSTESİ'!$B$4:$H$664,6,0))) -> AKSARAY | I11: 5 | J11: 5 | K11: 400M-1-5 | L11: =IF(ISERROR(VLOOKUP(K11,'KAYIT LİSTESİ'!$B$4:$H$664,2,0)),"",(VLOOKUP(K11,'KAYIT LİSTESİ'!$B$4:$H$664,2,0))) -> 624 | M11: =IF(ISERROR(VLOOKUP(K11,'KAYIT LİSTESİ'!$B$4:$H$664,4,0)),"",(VLOOKUP(K11,'KAYIT LİSTESİ'!$B$4:$H$664,4,0))) -> 1997-03-17 | N11: =IF(ISERROR(VLOOKUP(K11,'KAYIT LİSTESİ'!$B$4:$H$664,5,0)),"",(VLOOKUP(K11,'KAYIT LİSTESİ'!$B$4:$H$664,5,0))) -> BAHAR ILDIRKAYA | O11: =IF(ISERROR(VLOOKUP(K11,'KAYIT LİSTESİ'!$B$4:$H$664,6,0)),"",(VLOOKUP(K11,'KAYIT LİSTESİ'!$B$4:$H$664,6,0))) -> BURSA
A12: 6 | B12: 100M-1-6 | C12: =IF(ISERROR(VLOOKUP(B12,'KAYIT LİSTESİ'!$B$4:$H$664,2,0)),"",(VLOOKUP(B12,'KAYIT LİSTESİ'!$B$4:$H$664,2,0))) -> 611 | D12: =IF(ISERROR(VLOOKUP(B12,'KAYIT LİSTESİ'!$B$4:$H$664,4,0)),"",(VLOOKUP(B12,'KAYIT LİSTESİ'!$B$4:$H$664,4,0))) -> 1999-08-28 | E12: =IF(ISERROR(VLOOKUP(B12,'KAYIT LİSTESİ'!$B$4:$H$664,5,0)),"",(VLOOKUP(B12,'KAYIT LİSTESİ'!$B$4:$H$664,5,0))) -> AYSEL YILMAZ | F12: =IF(ISERROR(VLOOKUP(B12,'KAYIT LİSTESİ'!$B$4:$H$664,6,0)),"",(VLOOKUP(B12,'KAYIT LİSTESİ'!$B$4:$H$664,6,0))) -> GAZİANTEP | I12: 6 | J12: 6 | K12: 400M-1-6 | L12: =IF(ISERROR(VLOOKUP(K12,'KAYIT LİSTESİ'!$B$4:$H$664,2,0)),"",(VLOOKUP(K12,'KAYIT LİSTESİ'!$B$4:$H$664,2,0))) -> 625 | M12: =IF(ISERROR(VLOOKUP(K12,'KAYIT LİSTESİ'!$B$4:$H$664,4,0)),"",(VLOOKUP(K12,'KAYIT LİSTESİ'!$B$4:$H$664,4,0))) -> 1999-11-01 | N12: =IF(ISERROR(VLOOKUP(K12,'KAYIT LİSTESİ'!$B$4:$H$664,5,0)),"",(VLOOKUP(K12,'KAYIT LİSTESİ'!$B$4:$H$664,5,0))) -> KARDELEN YILDIRIM | O12: =IF(ISERROR(VLOOKUP(K12,'KAYIT LİSTESİ'!$B$4:$H$664,6,0)),"",(VLOOKUP(K12,'KAYIT LİSTESİ'!$B$4:$H$664,6,0))) -> ERZİNCAN
A13: 7 | B13: 100M-1-7 | C13: =IF(ISERROR(VLOOKUP(B13,'KAYIT LİSTESİ'!$B$4:$H$664,2,0)),"",(VLOOKUP(B13,'KAYIT LİSTESİ'!$B$4:$H$664,2,0))) ->  | D13: =IF(ISERROR(VLOOKUP(B13,'KAYIT LİSTESİ'!$B$4:$H$664,4,0)),"",(VLOOKUP(B13,'KAYIT LİSTESİ'!$B$4:$H$664,4,0))) ->  | E13: =IF(ISERROR(VLOOKUP(B13,'KAYIT LİSTESİ'!$B$4:$H$664,5,0)),"",(VLOOKUP(B13,'KAYIT LİSTESİ'!$B$4:$H$664,5,0))) ->  | F13: =IF(ISERROR(VLOOKUP(B13,'KAYIT LİSTESİ'!$B$4:$H$664,6,0)),"",(VLOOKUP(B13,'KAYIT LİSTESİ'!$B$4:$H$664,6,0))) ->  | I13: 7 | J13: 7 | K13: 400M-1-7 | L13: =IF(ISERROR(VLOOKUP(K13,'KAYIT LİSTESİ'!$B$4:$H$664,2,0)),"",(VLOOKUP(K13,'KAYIT LİSTESİ'!$B$4:$H$664,2,0))) -> 615 | M13: =IF(ISERROR(VLOOKUP(K13,'KAYIT LİSTESİ'!$B$4:$H$664,4,0)),"",(VLOOKUP(K13,'KAYIT LİSTESİ'!$B$4:$H$664,4,0))) -> 1997-01-19 | N13: =IF(ISERROR(VLOOKUP(K13,'KAYIT LİSTESİ'!$B$4:$H$664,5,0)),"",(VLOOKUP(K13,'KAYIT LİSTESİ'!$B$4:$H$664,5,0))) -> SEVNUR ALADAĞ | O13: =IF(ISERROR(VLOOKUP(K13,'KAYIT LİSTESİ'!$B$4:$H$664,6,0)),"",(VLOOKUP(K13,'KAYIT LİSTESİ'!$B$4:$H$664,6,0))) -> HATAY
A14: 8 | B14: 100M-1-8 | C14: =IF(ISERROR(VLOOKUP(B14,'KAYIT LİSTESİ'!$B$4:$H$664,2,0)),"",(VLOOKUP(B14,'KAYIT LİSTESİ'!$B$4:$H$664,2,0))) ->  | D14: =IF(ISERROR(VLOOKUP(B14,'KAYIT LİSTESİ'!$B$4:$H$664,4,0)),"",(VLOOKUP(B14,'KAYIT LİSTESİ'!$B$4:$H$664,4,0))) ->  | E14: =IF(ISERROR(VLOOKUP(B14,'KAYIT LİSTESİ'!$B$4:$H$664,5,0)),"",(VLOOKUP(B14,'KAYIT LİSTESİ'!$B$4:$H$664,5,0))) ->  | F14: =IF(ISERROR(VLOOKUP(B14,'KAYIT LİSTESİ'!$B$4:$H$664,6,0)),"",(VLOOKUP(B14,'KAYIT LİSTESİ'!$B$4:$H$664,6,0))) ->  | I14: 8 | J14: 8 | K14: 400M-1-8 | L14: =IF(ISERROR(VLOOKUP(K14,'KAYIT LİSTESİ'!$B$4:$H$664,2,0)),"",(VLOOKUP(K14,'KAYIT LİSTESİ'!$B$4:$H$664,2,0))) -> 628 | M14: =IF(ISERROR(VLOOKUP(K14,'KAYIT LİSTESİ'!$B$4:$H$664,4,0)),"",(VLOOKUP(K14,'KAYIT LİSTESİ'!$B$4:$H$664,4,0))) -> 1997-08-04 | N14: =IF(ISERROR(VLOOKUP(K14,'KAYIT LİSTESİ'!$B$4:$H$664,5,0)),"",(VLOOKUP(K14,'KAYIT LİSTESİ'!$B$4:$H$664,5,0))) -> HATICE DEDE | O14: =IF(ISERROR(VLOOKUP(K14,'KAYIT LİSTESİ'!$B$4:$H$664,6,0)),"",(VLOOKUP(K14,'KAYIT LİSTESİ'!$B$4:$H$664,6,0))) -> AKSARAY
A15: 2. SERİ | I15: 9 | J15: 2. SERİ
A16: Sıra No | B16: Formül | C16: Göğüs No | D16: Doğum Tarihi | E16: Adı ve Soyadı | F16: İli-Okulu | G16: Start Kontrol | I16: 10 | J16: Sıra No | K16: Formül | L16: Göğüs No | M16: Doğum Tarihi | N16: Adı ve Soyadı | O16: İli-Okulu | P16: Start Kontrol
A17: 1 | B17: 100M-2-1 | C17: =IF(ISERROR(VLOOKUP(B17,'KAYIT LİSTESİ'!$B$4:$H$664,2,0)),"",(VLOOKUP(B17,'KAYIT LİSTESİ'!$B$4:$H$664,2,0))) ->  | D17: =IF(ISERROR(VLOOKUP(B17,'KAYIT LİSTESİ'!$B$4:$H$664,4,0)),"",(VLOOKUP(B17,'KAYIT LİSTESİ'!$B$4:$H$664,4,0))) ->  | E17: =IF(ISERROR(VLOOKUP(B17,'KAYIT LİSTESİ'!$B$4:$H$664,5,0)),"",(VLOOKUP(B17,'KAYIT LİSTESİ'!$B$4:$H$664,5,0))) ->  | F17: =IF(ISERROR(VLOOKUP(B17,'KAYIT LİSTESİ'!$B$4:$H$664,6,0)),"",(VLOOKUP(B17,'KAYIT LİSTESİ'!$B$4:$H$664,6,0))) ->  | I17: 11 | J17: 1 | K17: 400M-2-1 | L17: =IF(ISERROR(VLOOKUP(K17,'KAYIT LİSTESİ'!$B$4:$H$664,2,0)),"",(VLOOKUP(K17,'KAYIT LİSTESİ'!$B$4:$H$664,2,0))) ->  | M17: =IF(ISERROR(VLOOKUP(K17,'KAYIT LİSTESİ'!$B$4:$H$664,4,0)),"",(VLOOKUP(K17,'KAYIT LİSTESİ'!$B$4:$H$664,4,0))) ->  | N17: =IF(ISERROR(VLOOKUP(K17,'KAYIT LİSTESİ'!$B$4:$H$664,5,0)),"",(VLOOKUP(K17,'KAYIT LİSTESİ'!$B$4:$H$664,5,0))) ->  | O17: =IF(ISERROR(VLOOKUP(K17,'KAYIT LİSTESİ'!$B$4:$H$664,6,0)),"",(VLOOKUP(K17,'KAYIT LİSTESİ'!$B$4:$H$664,6,0))) -> 
A18: 2 | B18: 100M-2-2 | C18: =IF(ISERROR(VLOOKUP(B18,'KAYIT LİSTESİ'!$B$4:$H$664,2,0)),"",(VLOOKUP(B18,'KAYIT LİSTESİ'!$B$4:$H$664,2,0))) ->  | D18: =IF(ISERROR(VLOOKUP(B18,'KAYIT LİSTESİ'!$B$4:$H$664,4,0)),"",(VLOOKUP(B18,'KAYIT LİSTESİ'!$B$4:$H$664,4,0))) ->  | E18: =IF(ISERROR(VLOOKUP(B18,'KAYIT LİSTESİ'!$B$4:$H$664,5,0)),"",(VLOOKUP(B18,'KAYIT LİSTESİ'!$B$4:$H$664,5,0))) ->  | F18: =IF(ISERROR(VLOOKUP(B18,'KAYIT LİSTESİ'!$B$4:$H$664,6,0)),"",(VLOOKUP(B18,'KAYIT LİSTESİ'!$B$4:$H$664,6,0))) ->  | I18: 12 | J18: 2 | K18: 400M-2-2 | L18: =IF(ISERROR(VLOOKUP(K18,'KAYIT LİSTESİ'!$B$4:$H$664,2,0)),"",(VLOOKUP(K18,'KAYIT LİSTESİ'!$B$4:$H$664,2,0))) ->  | M18: =IF(ISERROR(VLOOKUP(K18,'KAYIT LİSTESİ'!$B$4:$H$664,4,0)),"",(VLOOKUP(K18,'KAYIT LİSTESİ'!$B$4:$H$664,4,0))) ->  | N18: =IF(ISERROR(VLOOKUP(K18,'KAYIT LİSTESİ'!$B$4:$H$664,5,0)),"",(VLOOKUP(K18,'KAYIT LİSTESİ'!$B$4:$H$664,5,0))) ->  | O18: =IF(ISERROR(VLOOKUP(K18,'KAYIT LİSTESİ'!$B$4:$H$664,6,0)),"",(VLOOKUP(K18,'KAYIT LİSTESİ'!$B$4:$H$664,6,0))) -> 
A19: 3 | B19: 100M-2-3 | C19: =IF(ISERROR(VLOOKUP(B19,'KAYIT LİSTESİ'!$B$4:$H$664,2,0)),"",(VLOOKUP(B19,'KAYIT LİSTESİ'!$B$4:$H$664,2,0))) ->  | D19: =IF(ISERROR(VLOOKUP(B19,'KAYIT LİSTESİ'!$B$4:$H$664,4,0)),"",(VLOOKUP(B19,'KAYIT LİSTESİ'!$B$4:$H$664,4,0))) ->  | E19: =IF(ISERROR(VLOOKUP(B19,'KAYIT LİSTESİ'!$B$4:$H$664,5,0)),"",(VLOOKUP(B19,'KAYIT LİSTESİ'!$B$4:$H$664,5,0))) ->  | F19: =IF(ISERROR(VLOOKUP(B19,'KAYIT LİSTESİ'!$B$4:$H$664,6,0)),"",(VLOOKUP(B19,'KAYIT LİSTESİ'!$B$4:$H$664,6,0))) ->  | I19: 13 | J19: 3 | K19: 400M-2-3 | L19: =IF(ISERROR(VLOOKUP(K19,'KAYIT LİSTESİ'!$B$4:$H$664,2,0)),"",(VLOOKUP(K19,'KAYIT LİSTESİ'!$B$4:$H$664,2,0))) ->  | M19: =IF(ISERROR(VLOOKUP(K19,'KAYIT LİSTESİ'!$B$4:$H$664,4,0)),"",(VLOOKUP(K19,'KAYIT LİSTESİ'!$B$4:$H$664,4,0))) ->  | N19: =IF(ISERROR(VLOOKUP(K19,'KAYIT LİSTESİ'!$B$4:$H$664,5,0)),"",(VLOOKUP(K19,'KAYIT LİSTESİ'!$B$4:$H$664,5,0))) ->  | O19: =IF(ISERROR(VLOOKUP(K19,'KAYIT LİSTESİ'!$B$4:$H$664,6,0)),"",(VLOOKUP(K19,'KAYIT LİSTESİ'!$B$4:$H$664,6,0))) -> 
A20: 4 | B20: 100M-2-4 | C20: =IF(ISERROR(VLOOKUP(B20,'KAYIT LİSTESİ'!$B$4:$H$664,2,0)),"",(VLOOKUP(B20,'KAYIT LİSTESİ'!$B$4:$H$664,2,0))) ->  | D20: =IF(ISERROR(VLOOKUP(B20,'KAYIT LİSTESİ'!$B$4:$H$664,4,0)),"",(VLOOKUP(B20,'KAYIT LİSTESİ'!$B$4:$H$664,4,0))) ->  | E20: =IF(ISERROR(VLOOKUP(B20,'KAYIT LİSTESİ'!$B$4:$H$664,5,0)),"",(VLOOKUP(B20,'KAYIT LİSTESİ'!$B$4:$H$664,5,0))) ->  | F20: =IF(ISERROR(VLOOKUP(B20,'KAYIT LİSTESİ'!$B$4:$H$664,6,0)),"",(VLOOKUP(B20,'KAYIT LİSTESİ'!$B$4:$H$664,6,0))) ->  | I20: 14 | J20: 4 | K20: 400M-2-4 | L20: =IF(ISERROR(VLOOKUP(K20,'KAYIT LİSTESİ'!$B$4:$H$664,2,0)),"",(VLOOKUP(K20,'KAYIT LİSTESİ'!$B$4:$H$664,2,0))) ->  | M20: =IF(ISERROR(VLOOKUP(K20,'KAYIT LİSTESİ'!$B$4:$H$664,4,0)),"",(VLOOKUP(K20,'KAYIT LİSTESİ'!$B$4:$H$664,4,0))) ->  | N20: =IF(ISERROR(VLOOKUP(K20,'KAYIT LİSTESİ'!$B$4:$H$664,5,0)),"",(VLOOKUP(K20,'KAYIT LİSTESİ'!$B$4:$H$664,5,0))) ->  | O20: =IF(ISERROR(VLOOKUP(K20,'KAYIT LİSTESİ'!$B$4:$H$664,6,0)),"",(VLOOKUP(K20,'KAYIT LİSTESİ'!$B$4:$H$664,6,0))) -> 
A21: 5 | B21: 100M-2-5 | C21: =IF(ISERROR(VLOOKUP(B21,'KAYIT LİSTESİ'!$B$4:$H$664,2,0)),"",(VLOOKUP(B21,'KAYIT LİSTESİ'!$B$4:$H$664,2,0))) ->  | D21: =IF(ISERROR(VLOOKUP(B21,'KAYIT LİSTESİ'!$B$4:$H$664,4,0)),"",(VLOOKUP(B21,'KAYIT LİSTESİ'!$B$4:$H$664,4,0))) ->  | E21: =IF(ISERROR(VLOOKUP(B21,'KAYIT LİSTESİ'!$B$4:$H$664,5,0)),"",(VLOOKUP(B21,'KAYIT LİSTESİ'!$B$4:$H$664,5,0))) ->  | F21: =IF(ISERROR(VLOOKUP(B21,'KAYIT LİSTESİ'!$B$4:$H$664,6,0)),"",(VLOOKUP(B21,'KAYIT LİSTESİ'!$B$4:$H$664,6,0))) ->  | I21: 15 | J21: 5 | K21: 400M-2-5 | L21: =IF(ISERROR(VLOOKUP(K21,'KAYIT LİSTESİ'!$B$4:$H$664,2,0)),"",(VLOOKUP(K21,'KAYIT LİSTESİ'!$B$4:$H$664,2,0))) ->  | M21: =IF(ISERROR(VLOOKUP(K21,'KAYIT LİSTESİ'!$B$4:$H$664,4,0)),"",(VLOOKUP(K21,'KAYIT LİSTESİ'!$B$4:$H$664,4,0))) ->  | N21: =IF(ISERROR(VLOOKUP(K21,'KAYIT LİSTESİ'!$B$4:$H$664,5,0)),"",(VLOOKUP(K21,'KAYIT LİSTESİ'!$B$4:$H$664,5,0))) ->  | O21: =IF(ISERROR(VLOOKUP(K21,'KAYIT LİSTESİ'!$B$4:$H$664,6,0)),"",(VLOOKUP(K21,'KAYIT LİSTESİ'!$B$4:$H$664,6,0))) -> 
A22: 6 | B22: 100M-2-6 | C22: =IF(ISERROR(VLOOKUP(B22,'KAYIT LİSTESİ'!$B$4:$H$664,2,0)),"",(VLOOKUP(B22,'KAYIT LİSTESİ'!$B$4:$H$664,2,0))) ->  | D22: =IF(ISERROR(VLOOKUP(B22,'KAYIT LİSTESİ'!$B$4:$H$664,4,0)),"",(VLOOKUP(B22,'KAYIT LİSTESİ'!$B$4:$H$664,4,0))) ->  | E22: =IF(ISERROR(VLOOKUP(B22,'KAYIT LİSTESİ'!$B$4:$H$664,5,0)),"",(VLOOKUP(B22,'KAYIT LİSTESİ'!$B$4:$H$664,5,0))) ->  | F22: =IF(ISERROR(VLOOKUP(B22,'KAYIT LİSTESİ'!$B$4:$H$664,6,0)),"",(VLOOKUP(B22,'KAYIT LİSTESİ'!$B$4:$H$664,6,0))) ->  | I22: 16 | J22: 6 | K22: 400M-2-6 | L22: =IF(ISERROR(VLOOKUP(K22,'KAYIT LİSTESİ'!$B$4:$H$664,2,0)),"",(VLOOKUP(K22,'KAYIT LİSTESİ'!$B$4:$H$664,2,0))) ->  | M22: =IF(ISERROR(VLOOKUP(K22,'KAYIT LİSTESİ'!$B$4:$H$664,4,0)),"",(VLOOKUP(K22,'KAYIT LİSTESİ'!$B$4:$H$664,4,0))) ->  | N22: =IF(ISERROR(VLOOKUP(K22,'KAYIT LİSTESİ'!$B$4:$H$664,5,0)),"",(VLOOKUP(K22,'KAYIT LİSTESİ'!$B$4:$H$664,5,0))) ->  | O22: =IF(ISERROR(VLOOKUP(K22,'KAYIT LİSTESİ'!$B$4:$H$664,6,0)),"",(VLOOKUP(K22,'KAYIT LİSTESİ'!$B$4:$H$664,6,0))) -> 
A23: 7 | B23: 100M-2-7 | C23: =IF(ISERROR(VLOOKUP(B23,'KAYIT LİSTESİ'!$B$4:$H$664,2,0)),"",(VLOOKUP(B23,'KAYIT LİSTESİ'!$B$4:$H$664,2,0))) ->  | D23: =IF(ISERROR(VLOOKUP(B23,'KAYIT LİSTESİ'!$B$4:$H$664,4,0)),"",(VLOOKUP(B23,'KAYIT LİSTESİ'!$B$4:$H$664,4,0))) ->  | E23: =IF(ISERROR(VLOOKUP(B23,'KAYIT LİSTESİ'!$B$4:$H$664,5,0)),"",(VLOOKUP(B23,'KAYIT LİSTESİ'!$B$4:$H$664,5,0))) ->  | F23: =IF(ISERROR(VLOOKUP(B23,'KAYIT LİSTESİ'!$B$4:$H$664,6,0)),"",(VLOOKUP(B23,'KAYIT LİSTESİ'!$B$4:$H$664,6,0))) ->  | I23: 17 | J23: 7 | K23: 400M-2-7 | L23: =IF(ISERROR(VLOOKUP(K23,'KAYIT LİSTESİ'!$B$4:$H$664,2,0)),"",(VLOOKUP(K23,'KAYIT LİSTESİ'!$B$4:$H$664,2,0))) ->  | M23: =IF(ISERROR(VLOOKUP(K23,'KAYIT LİSTESİ'!$B$4:$H$664,4,0)),"",(VLOOKUP(K23,'KAYIT LİSTESİ'!$B$4:$H$664,4,0))) ->  | N23: =IF(ISERROR(VLOOKUP(K23,'KAYIT LİSTESİ'!$B$4:$H$664,5,0)),"",(VLOOKUP(K23,'KAYIT LİSTESİ'!$B$4:$H$664,5,0))) ->  | O23: =IF(ISERROR(VLOOKUP(K23,'KAYIT LİSTESİ'!$B$4:$H$664,6,0)),"",(VLOOKUP(K23,'KAYIT LİSTESİ'!$B$4:$H$664,6,0))) -> 
A24: 8 | B24: 100M-2-8 | C24: =IF(ISERROR(VLOOKUP(B24,'KAYIT LİSTESİ'!$B$4:$H$664,2,0)),"",(VLOOKUP(B24,'KAYIT LİSTESİ'!$B$4:$H$664,2,0))) ->  | D24: =IF(ISERROR(VLOOKUP(B24,'KAYIT LİSTESİ'!$B$4:$H$664,4,0)),"",(VLOOKUP(B24,'KAYIT LİSTESİ'!$B$4:$H$664,4,0))) ->  | E24: =IF(ISERROR(VLOOKUP(B24,'KAYIT LİSTESİ'!$B$4:$H$664,5,0)),"",(VLOOKUP(B24,'KAYIT LİSTESİ'!$B$4:$H$664,5,0))) ->  | F24: =IF(ISERROR(VLOOKUP(B24,'KAYIT LİSTESİ'!$B$4:$H$664,6,0)),"",(VLOOKUP(B24,'KAYIT LİSTESİ'!$B$4:$H$664,6,0))) ->  | I24: 18 | J24: 8 | K24: 400M-2-8 | L24: =IF(ISERROR(VLOOKUP(K24,'KAYIT LİSTESİ'!$B$4:$H$664,2,0)),"",(VLOOKUP(K24,'KAYIT LİSTESİ'!$B$4:$H$664,2,0))) ->  | M24: =IF(ISERROR(VLOOKUP(K24,'KAYIT LİSTESİ'!$B$4:$H$664,4,0)),"",(VLOOKUP(K24,'KAYIT LİSTESİ'!$B$4:$H$664,4,0))) ->  | N24: =IF(ISERROR(VLOOKUP(K24,'KAYIT LİSTESİ'!$B$4:$H$664,5,0)),"",(VLOOKUP(K24,'KAYIT LİSTESİ'!$B$4:$H$664,5,0))) ->  | O24: =IF(ISERROR(VLOOKUP(K24,'KAYIT LİSTESİ'!$B$4:$H$664,6,0)),"",(VLOOKUP(K24,'KAYIT LİSTESİ'!$B$4:$H$664,6,0))) -> 
A25: 3. SERİ | I25: 19 | J25: 3. SERİ
A26: Sıra No | B26: Formül | C26: Göğüs No | D26: Doğum Tarihi | E26: Adı ve Soyadı | F26: İli-Okulu | G26: Start Kontrol | I26: 20 | J26: Sıra No | K26: Formül | L26: Göğüs No | M26: Doğum Tarihi | N26: Adı ve Soyadı | O26: İli-Okulu | P26: Start Kontrol
A27: 1 | B27: 100M-3-1 | C27: =IF(ISERROR(VLOOKUP(B27,'KAYIT LİSTESİ'!$B$4:$H$664,2,0)),"",(VLOOKUP(B27,'KAYIT LİSTESİ'!$B$4:$H$664,2,0))) ->  | D27: =IF(ISERROR(VLOOKUP(B27,'KAYIT LİSTESİ'!$B$4:$H$664,4,0)),"",(VLOOKUP(B27,'KAYIT LİSTESİ'!$B$4:$H$664,4,0))) ->  | E27: =IF(ISERROR(VLOOKUP(B27,'KAYIT LİSTESİ'!$B$4:$H$664,5,0)),"",(VLOOKUP(B27,'KAYIT LİSTESİ'!$B$4:$H$664,5,0))) ->  | F27: =IF(ISERROR(VLOOKUP(B27,'KAYIT LİSTESİ'!$B$4:$H$664,6,0)),"",(VLOOKUP(B27,'KAYIT LİSTESİ'!$B$4:$H$664,6,0))) ->  | I27: 21 | J27: 1 | K27: 400M-3-1 | L27: =IF(ISERROR(VLOOKUP(K27,'KAYIT LİSTESİ'!$B$4:$H$664,2,0)),"",(VLOOKUP(K27,'KAYIT LİSTESİ'!$B$4:$H$664,2,0))) ->  | M27: =IF(ISERROR(VLOOKUP(K27,'KAYIT LİSTESİ'!$B$4:$H$664,4,0)),"",(VLOOKUP(K27,'KAYIT LİSTESİ'!$B$4:$H$664,4,0))) ->  | N27: =IF(ISERROR(VLOOKUP(K27,'KAYIT LİSTESİ'!$B$4:$H$664,5,0)),"",(VLOOKUP(K27,'KAYIT LİSTESİ'!$B$4:$H$664,5,0))) ->  | O27: =IF(ISERROR(VLOOKUP(K27,'KAYIT LİSTESİ'!$B$4:$H$664,6,0)),"",(VLOOKUP(K27,'KAYIT LİSTESİ'!$B$4:$H$664,6,0))) -> 
A28: 2 | B28: 100M-3-2 | C28: =IF(ISERROR(VLOOKUP(B28,'KAYIT LİSTESİ'!$B$4:$H$664,2,0)),"",(VLOOKUP(B28,'KAYIT LİSTESİ'!$B$4:$H$664,2,0))) ->  | D28: =IF(ISERROR(VLOOKUP(B28,'KAYIT LİSTESİ'!$B$4:$H$664,4,0)),"",(VLOOKUP(B28,'KAYIT LİSTESİ'!$B$4:$H$664,4,0))) ->  | E28: =IF(ISERROR(VLOOKUP(B28,'KAYIT LİSTESİ'!$B$4:$H$664,5,0)),"",(VLOOKUP(B28,'KAYIT LİSTESİ'!$B$4:$H$664,5,0))) ->  | F28: =IF(ISERROR(VLOOKUP(B28,'KAYIT LİSTESİ'!$B$4:$H$664,6,0)),"",(VLOOKUP(B28,'KAYIT LİSTESİ'!$B$4:$H$664,6,0))) ->  | I28: 22 | J28: 2 | K28: 400M-3-2 | L28: =IF(ISERROR(VLOOKUP(K28,'KAYIT LİSTESİ'!$B$4:$H$664,2,0)),"",(VLOOKUP(K28,'KAYIT LİSTESİ'!$B$4:$H$664,2,0))) ->  | M28: =IF(ISERROR(VLOOKUP(K28,'KAYIT LİSTESİ'!$B$4:$H$664,4,0)),"",(VLOOKUP(K28,'KAYIT LİSTESİ'!$B$4:$H$664,4,0))) ->  | N28: =IF(ISERROR(VLOOKUP(K28,'KAYIT LİSTESİ'!$B$4:$H$664,5,0)),"",(VLOOKUP(K28,'KAYIT LİSTESİ'!$B$4:$H$664,5,0))) ->  | O28: =IF(ISERROR(VLOOKUP(K28,'KAYIT LİSTESİ'!$B$4:$H$664,6,0)),"",(VLOOKUP(K28,'KAYIT LİSTESİ'!$B$4:$H$664,6,0))) -> 
A29: 3 | B29: 100M-3-3 | C29: =IF(ISERROR(VLOOKUP(B29,'KAYIT LİSTESİ'!$B$4:$H$664,2,0)),"",(VLOOKUP(B29,'KAYIT LİSTESİ'!$B$4:$H$664,2,0))) ->  | D29: =IF(ISERROR(VLOOKUP(B29,'KAYIT LİSTESİ'!$B$4:$H$664,4,0)),"",(VLOOKUP(B29,'KAYIT LİSTESİ'!$B$4:$H$664,4,0))) ->  | E29: =IF(ISERROR(VLOOKUP(B29,'KAYIT LİSTESİ'!$B$4:$H$664,5,0)),"",(VLOOKUP(B29,'KAYIT LİSTESİ'!$B$4:$H$664,5,0))) ->  | F29: =IF(ISERROR(VLOOKUP(B29,'KAYIT LİSTESİ'!$B$4:$H$664,6,0)),"",(VLOOKUP(B29,'KAYIT LİSTESİ'!$B$4:$H$664,6,0))) ->  | I29: 23 | J29: 3 | K29: 400M-3-3 | L29: =IF(ISERROR(VLOOKUP(K29,'KAYIT LİSTESİ'!$B$4:$H$664,2,0)),"",(VLOOKUP(K29,'KAYIT LİSTESİ'!$B$4:$H$664,2,0))) ->  | M29: =IF(ISERROR(VLOOKUP(K29,'KAYIT LİSTESİ'!$B$4:$H$664,4,0)),"",(VLOOKUP(K29,'KAYIT LİSTESİ'!$B$4:$H$664,4,0))) ->  | N29: =IF(ISERROR(VLOOKUP(K29,'KAYIT LİSTESİ'!$B$4:$H$664,5,0)),"",(VLOOKUP(K29,'KAYIT LİSTESİ'!$B$4:$H$664,5,0))) ->  | O29: =IF(ISERROR(VLOOKUP(K29,'KAYIT LİSTESİ'!$B$4:$H$664,6,0)),"",(VLOOKUP(K29,'KAYIT LİSTESİ'!$B$4:$H$664,6,0))) -> 
A30: 4 | B30: 100M-3-4 | C30: =IF(ISERROR(VLOOKUP(B30,'KAYIT LİSTESİ'!$B$4:$H$664,2,0)),"",(VLOOKUP(B30,'KAYIT LİSTESİ'!$B$4:$H$664,2,0))) ->  | D30: =IF(ISERROR(VLOOKUP(B30,'KAYIT LİSTESİ'!$B$4:$H$664,4,0)),"",(VLOOKUP(B30,'KAYIT LİSTESİ'!$B$4:$H$664,4,0))) ->  | E30: =IF(ISERROR(VLOOKUP(B30,'KAYIT LİSTESİ'!$B$4:$H$664,5,0)),"",(VLOOKUP(B30,'KAYIT LİSTESİ'!$B$4:$H$664,5,0))) ->  | F30: =IF(ISERROR(VLOOKUP(B30,'KAYIT LİSTESİ'!$B$4:$H$664,6,0)),"",(VLOOKUP(B30,'KAYIT LİSTESİ'!$B$4:$H$664,6,0))) ->  | I30: 24 | J30: 4 | K30: 400M-3-4 | L30: =IF(ISERROR(VLOOKUP(K30,'KAYIT LİSTESİ'!$B$4:$H$664,2,0)),"",(VLOOKUP(K30,'KAYIT LİSTESİ'!$B$4:$H$664,2,0))) ->  | M30: =IF(ISERROR(VLOOKUP(K30,'KAYIT LİSTESİ'!$B$4:$H$664,4,0)),"",(VLOOKUP(K30,'KAYIT LİSTESİ'!$B$4:$H$664,4,0))) ->  | N30: =IF(ISERROR(VLOOKUP(K30,'KAYIT LİSTESİ'!$B$4:$H$664,5,0)),"",(VLOOKUP(K30,'KAYIT LİSTESİ'!$B$4:$H$664,5,0))) ->  | O30: =IF(ISERROR(VLOOKUP(K30,'KAYIT LİSTESİ'!$B$4:$H$664,6,0)),"",(VLOOKUP(K30,'KAYIT LİSTESİ'!$B$4:$H$664,6,0))) -> 
A31: 5 | B31: 100M-3-5 | C31: =IF(ISERROR(VLOOKUP(B31,'KAYIT LİSTESİ'!$B$4:$H$664,2,0)),"",(VLOOKUP(B31,'KAYIT LİSTESİ'!$B$4:$H$664,2,0))) ->  | D31: =IF(ISERROR(VLOOKUP(B31,'KAYIT LİSTESİ'!$B$4:$H$664,4,0)),"",(VLOOKUP(B31,'KAYIT LİSTESİ'!$B$4:$H$664,4,0))) ->  | E31: =IF(ISERROR(VLOOKUP(B31,'KAYIT LİSTESİ'!$B$4:$H$664,5,0)),"",(VLOOKUP(B31,'KAYIT LİSTESİ'!$B$4:$H$664,5,0))) ->  | F31: =IF(ISERROR(VLOOKUP(B31,'KAYIT LİSTESİ'!$B$4:$H$664,6,0)),"",(VLOOKUP(B31,'KAYIT LİSTESİ'!$B$4:$H$664,6,0))) ->  | I31: 25 | J31: 5 | K31: 400M-3-5 | L31: =IF(ISERROR(VLOOKUP(K31,'KAYIT LİSTESİ'!$B$4:$H$664,2,0)),"",(VLOOKUP(K31,'KAYIT LİSTESİ'!$B$4:$H$664,2,0))) ->  | M31: =IF(ISERROR(VLOOKUP(K31,'KAYIT LİSTESİ'!$B$4:$H$664,4,0)),"",(VLOOKUP(K31,'KAYIT LİSTESİ'!$B$4:$H$664,4,0))) ->  | N31: =IF(ISERROR(VLOOKUP(K31,'KAYIT LİSTESİ'!$B$4:$H$664,5,0)),"",(VLOOKUP(K31,'KAYIT LİSTESİ'!$B$4:$H$664,5,0))) ->  | O31: =IF(ISERROR(VLOOKUP(K31,'KAYIT LİSTESİ'!$B$4:$H$664,6,0)),"",(VLOOKUP(K31,'KAYIT LİSTESİ'!$B$4:$H$664,6,0))) -> 
A32: 6 | B32: 100M-3-6 | C32: =IF(ISERROR(VLOOKUP(B32,'KAYIT LİSTESİ'!$B$4:$H$664,2,0)),"",(VLOOKUP(B32,'KAYIT LİSTESİ'!$B$4:$H$664,2,0))) ->  | D32: =IF(ISERROR(VLOOKUP(B32,'KAYIT LİSTESİ'!$B$4:$H$664,4,0)),"",(VLOOKUP(B32,'KAYIT LİSTESİ'!$B$4:$H$664,4,0))) ->  | E32: =IF(ISERROR(VLOOKUP(B32,'KAYIT LİSTESİ'!$B$4:$H$664,5,0)),"",(VLOOKUP(B32,'KAYIT LİSTESİ'!$B$4:$H$664,5,0))) ->  | F32: =IF(ISERROR(VLOOKUP(B32,'KAYIT LİSTESİ'!$B$4:$H$664,6,0)),"",(VLOOKUP(B32,'KAYIT LİSTESİ'!$B$4:$H$664,6,0))) ->  | J32: 6 | K32: 400M-3-6 | L32: =IF(ISERROR(VLOOKUP(K32,'KAYIT LİSTESİ'!$B$4:$H$664,2,0)),"",(VLOOKUP(K32,'KAYIT LİSTESİ'!$B$4:$H$664,2,0))) ->  | M32: =IF(ISERROR(VLOOKUP(K32,'KAYIT LİSTESİ'!$B$4:$H$664,4,0)),"",(VLOOKUP(K32,'KAYIT LİSTESİ'!$B$4:$H$664,4,0))) ->  | N32: =IF(ISERROR(VLOOKUP(K32,'KAYIT LİSTESİ'!$B$4:$H$664,5,0)),"",(VLOOKUP(K32,'KAYIT LİSTESİ'!$B$4:$H$664,5,0))) ->  | O32: =IF(ISERROR(VLOOKUP(K32,'KAYIT LİSTESİ'!$B$4:$H$664,6,0)),"",(VLOOKUP(K32,'KAYIT LİSTESİ'!$B$4:$H$664,6,0))) -> 
A33: 7 | B33: 100M-3-7 | C33: =IF(ISERROR(VLOOKUP(B33,'KAYIT LİSTESİ'!$B$4:$H$664,2,0)),"",(VLOOKUP(B33,'KAYIT LİSTESİ'!$B$4:$H$664,2,0))) ->  | D33: =IF(ISERROR(VLOOKUP(B33,'KAYIT LİSTESİ'!$B$4:$H$664,4,0)),"",(VLOOKUP(B33,'KAYIT LİSTESİ'!$B$4:$H$664,4,0))) ->  | E33: =IF(ISERROR(VLOOKUP(B33,'KAYIT LİSTESİ'!$B$4:$H$664,5,0)),"",(VLOOKUP(B33,'KAYIT LİSTESİ'!$B$4:$H$664,5,0))) ->  | F33: =IF(ISERROR(VLOOKUP(B33,'KAYIT LİSTESİ'!$B$4:$H$664,6,0)),"",(VLOOKUP(B33,'KAYIT LİSTESİ'!$B$4:$H$664,6,0))) ->  | J33: 7 | K33: 400M-3-7 | L33: =IF(ISERROR(VLOOKUP(K33,'KAYIT LİSTESİ'!$B$4:$H$664,2,0)),"",(VLOOKUP(K33,'KAYIT LİSTESİ'!$B$4:$H$664,2,0))) ->  | M33: =IF(ISERROR(VLOOKUP(K33,'KAYIT LİSTESİ'!$B$4:$H$664,4,0)),"",(VLOOKUP(K33,'KAYIT LİSTESİ'!$B$4:$H$664,4,0))) ->  | N33: =IF(ISERROR(VLOOKUP(K33,'KAYIT LİSTESİ'!$B$4:$H$664,5,0)),"",(VLOOKUP(K33,'KAYIT LİSTESİ'!$B$4:$H$664,5,0))) ->  | O33: =IF(ISERROR(VLOOKUP(K33,'KAYIT LİSTESİ'!$B$4:$H$664,6,0)),"",(VLOOKUP(K33,'KAYIT LİSTESİ'!$B$4:$H$664,6,0))) -> 
A34: 8 | B34: 100M-3-8 | C34: =IF(ISERROR(VLOOKUP(B34,'KAYIT LİSTESİ'!$B$4:$H$664,2,0)),"",(VLOOKUP(B34,'KAYIT LİSTESİ'!$B$4:$H$664,2,0))) ->  | D34: =IF(ISERROR(VLOOKUP(B34,'KAYIT LİSTESİ'!$B$4:$H$664,4,0)),"",(VLOOKUP(B34,'KAYIT LİSTESİ'!$B$4:$H$664,4,0))) ->  | E34: =IF(ISERROR(VLOOKUP(B34,'KAYIT LİSTESİ'!$B$4:$H$664,5,0)),"",(VLOOKUP(B34,'KAYIT LİSTESİ'!$B$4:$H$664,5,0))) ->  | F34: =IF(ISERROR(VLOOKUP(B34,'KAYIT LİSTESİ'!$B$4:$H$664,6,0)),"",(VLOOKUP(B34,'KAYIT LİSTESİ'!$B$4:$H$664,6,0))) ->  | J34: 8 | K34: 400M-3-8 | L34: =IF(ISERROR(VLOOKUP(K34,'KAYIT LİSTESİ'!$B$4:$H$664,2,0)),"",(VLOOKUP(K34,'KAYIT LİSTESİ'!$B$4:$H$664,2,0))) ->  | M34: =IF(ISERROR(VLOOKUP(K34,'KAYIT LİSTESİ'!$B$4:$H$664,4,0)),"",(VLOOKUP(K34,'KAYIT LİSTESİ'!$B$4:$H$664,4,0))) ->  | N34: =IF(ISERROR(VLOOKUP(K34,'KAYIT LİSTESİ'!$B$4:$H$664,5,0)),"",(VLOOKUP(K34,'KAYIT LİSTESİ'!$B$4:$H$664,5,0))) ->  | O34: =IF(ISERROR(VLOOKUP(K34,'KAYIT LİSTESİ'!$B$4:$H$664,6,0)),"",(VLOOKUP(K34,'KAYIT LİSTESİ'!$B$4:$H$664,6,0))) -> 
A35: 4. SERİ | J35: 4. SERİ
A36: Sıra No | B36: Formül | C36: Göğüs No | D36: Doğum Tarihi | E36: Adı ve Soyadı | F36: İli-Okulu | G36: Start Kontrol | J36: Sıra No | K36: Formül | L36: Göğüs No | M36: Doğum Tarihi | N36: Adı ve Soyadı | O36: İli-Okulu | P36: Start Kontrol
A37: 1 | B37: 100M-4-1 | C37: =IF(ISERROR(VLOOKUP(B37,'KAYIT LİSTESİ'!$B$4:$H$664,2,0)),"",(VLOOKUP(B37,'KAYIT LİSTESİ'!$B$4:$H$664,2,0))) ->  | D37: =IF(ISERROR(VLOOKUP(B37,'KAYIT LİSTESİ'!$B$4:$H$664,4,0)),"",(VLOOKUP(B37,'KAYIT LİSTESİ'!$B$4:$H$664,4,0))) ->  | E37: =IF(ISERROR(VLOOKUP(B37,'KAYIT LİSTESİ'!$B$4:$H$664,5,0)),"",(VLOOKUP(B37,'KAYIT LİSTESİ'!$B$4:$H$664,5,0))) ->  | F37: =IF(ISERROR(VLOOKUP(B37,'KAYIT LİSTESİ'!$B$4:$H$664,6,0)),"",(VLOOKUP(B37,'KAYIT LİSTESİ'!$B$4:$H$664,6,0))) ->  | J37: 1 | K37: 400M-4-1 | L37: =IF(ISERROR(VLOOKUP(K37,'KAYIT LİSTESİ'!$B$4:$H$664,2,0)),"",(VLOOKUP(K37,'KAYIT LİSTESİ'!$B$4:$H$664,2,0))) ->  | M37: =IF(ISERROR(VLOOKUP(K37,'KAYIT LİSTESİ'!$B$4:$H$664,4,0)),"",(VLOOKUP(K37,'KAYIT LİSTESİ'!$B$4:$H$664,4,0))) ->  | N37: =IF(ISERROR(VLOOKUP(K37,'KAYIT LİSTESİ'!$B$4:$H$664,5,0)),"",(VLOOKUP(K37,'KAYIT LİSTESİ'!$B$4:$H$664,5,0))) ->  | O37: =IF(ISERROR(VLOOKUP(K37,'KAYIT LİSTESİ'!$B$4:$H$664,6,0)),"",(VLOOKUP(K37,'KAYIT LİSTESİ'!$B$4:$H$664,6,0))) -> 
A38: 2 | B38: 100M-4-2 | C38: =IF(ISERROR(VLOOKUP(B38,'KAYIT LİSTESİ'!$B$4:$H$664,2,0)),"",(VLOOKUP(B38,'KAYIT LİSTESİ'!$B$4:$H$664,2,0))) ->  | D38: =IF(ISERROR(VLOOKUP(B38,'KAYIT LİSTESİ'!$B$4:$H$664,4,0)),"",(VLOOKUP(B38,'KAYIT LİSTESİ'!$B$4:$H$664,4,0))) ->  | E38: =IF(ISERROR(VLOOKUP(B38,'KAYIT LİSTESİ'!$B$4:$H$664,5,0)),"",(VLOOKUP(B38,'KAYIT LİSTESİ'!$B$4:$H$664,5,0))) ->  | F38: =IF(ISERROR(VLOOKUP(B38,'KAYIT LİSTESİ'!$B$4:$H$664,6,0)),"",(VLOOKUP(B38,'KAYIT LİSTESİ'!$B$4:$H$664,6,0))) ->  | J38: 2 | K38: 400M-4-2 | L38: =IF(ISERROR(VLOOKUP(K38,'KAYIT LİSTESİ'!$B$4:$H$664,2,0)),"",(VLOOKUP(K38,'KAYIT LİSTESİ'!$B$4:$H$664,2,0))) ->  | M38: =IF(ISERROR(VLOOKUP(K38,'KAYIT LİSTESİ'!$B$4:$H$664,4,0)),"",(VLOOKUP(K38,'KAYIT LİSTESİ'!$B$4:$H$664,4,0))) ->  | N38: =IF(ISERROR(VLOOKUP(K38,'KAYIT LİSTESİ'!$B$4:$H$664,5,0)),"",(VLOOKUP(K38,'KAYIT LİSTESİ'!$B$4:$H$664,5,0))) ->  | O38: =IF(ISERROR(VLOOKUP(K38,'KAYIT LİSTESİ'!$B$4:$H$664,6,0)),"",(VLOOKUP(K38,'KAYIT LİSTESİ'!$B$4:$H$664,6,0))) -> 
A39: 3 | B39: 100M-4-3 | C39: =IF(ISERROR(VLOOKUP(B39,'KAYIT LİSTESİ'!$B$4:$H$664,2,0)),"",(VLOOKUP(B39,'KAYIT LİSTESİ'!$B$4:$H$664,2,0))) ->  | D39: =IF(ISERROR(VLOOKUP(B39,'KAYIT LİSTESİ'!$B$4:$H$664,4,0)),"",(VLOOKUP(B39,'KAYIT LİSTESİ'!$B$4:$H$664,4,0))) ->  | E39: =IF(ISERROR(VLOOKUP(B39,'KAYIT LİSTESİ'!$B$4:$H$664,5,0)),"",(VLOOKUP(B39,'KAYIT LİSTESİ'!$B$4:$H$664,5,0))) ->  | F39: =IF(ISERROR(VLOOKUP(B39,'KAYIT LİSTESİ'!$B$4:$H$664,6,0)),"",(VLOOKUP(B39,'KAYIT LİSTESİ'!$B$4:$H$664,6,0))) ->  | J39: 3 | K39: 400M-4-3 | L39: =IF(ISERROR(VLOOKUP(K39,'KAYIT LİSTESİ'!$B$4:$H$664,2,0)),"",(VLOOKUP(K39,'KAYIT LİSTESİ'!$B$4:$H$664,2,0))) ->  | M39: =IF(ISERROR(VLOOKUP(K39,'KAYIT LİSTESİ'!$B$4:$H$664,4,0)),"",(VLOOKUP(K39,'KAYIT LİSTESİ'!$B$4:$H$664,4,0))) ->  | N39: =IF(ISERROR(VLOOKUP(K39,'KAYIT LİSTESİ'!$B$4:$H$664,5,0)),"",(VLOOKUP(K39,'KAYIT LİSTESİ'!$B$4:$H$664,5,0))) ->  | O39: =IF(ISERROR(VLOOKUP(K39,'KAYIT LİSTESİ'!$B$4:$H$664,6,0)),"",(VLOOKUP(K39,'KAYIT LİSTESİ'!$B$4:$H$664,6,0))) -> 
A40: 4 | B40: 100M-4-4 | C40: =IF(ISERROR(VLOOKUP(B40,'KAYIT LİSTESİ'!$B$4:$H$664,2,0)),"",(VLOOKUP(B40,'KAYIT LİSTESİ'!$B$4:$H$664,2,0))) ->  | D40: =IF(ISERROR(VLOOKUP(B40,'KAYIT LİSTESİ'!$B$4:$H$664,4,0)),"",(VLOOKUP(B40,'KAYIT LİSTESİ'!$B$4:$H$664,4,0))) ->  | E40: =IF(ISERROR(VLOOKUP(B40,'KAYIT LİSTESİ'!$B$4:$H$664,5,0)),"",(VLOOKUP(B40,'KAYIT LİSTESİ'!$B$4:$H$664,5,0))) ->  | F40: =IF(ISERROR(VLOOKUP(B40,'KAYIT LİSTESİ'!$B$4:$H$664,6,0)),"",(VLOOKUP(B40,'KAYIT LİSTESİ'!$B$4:$H$664,6,0))) ->  | J40: 4 | K40: 400M-4-4 | L40: =IF(ISERROR(VLOOKUP(K40,'KAYIT LİSTESİ'!$B$4:$H$664,2,0)),"",(VLOOKUP(K40,'KAYIT LİSTESİ'!$B$4:$H$664,2,0))) ->  | M40: =IF(ISERROR(VLOOKUP(K40,'KAYIT LİSTESİ'!$B$4:$H$664,4,0)),"",(VLOOKUP(K40,'KAYIT LİSTESİ'!$B$4:$H$664,4,0))) ->  | N40: =IF(ISERROR(VLOOKUP(K40,'KAYIT LİSTESİ'!$B$4:$H$664,5,0)),"",(VLOOKUP(K40,'KAYIT LİSTESİ'!$B$4:$H$664,5,0))) ->  | O40: =IF(ISERROR(VLOOKUP(K40,'KAYIT LİSTESİ'!$B$4:$H$664,6,0)),"",(VLOOKUP(K40,'KAYIT LİSTESİ'!$B$4:$H$664,6,0))) -> 
A41: 5 | B41: 100M-4-5 | C41: =IF(ISERROR(VLOOKUP(B41,'KAYIT LİSTESİ'!$B$4:$H$664,2,0)),"",(VLOOKUP(B41,'KAYIT LİSTESİ'!$B$4:$H$664,2,0))) ->  | D41: =IF(ISERROR(VLOOKUP(B41,'KAYIT LİSTESİ'!$B$4:$H$664,4,0)),"",(VLOOKUP(B41,'KAYIT LİSTESİ'!$B$4:$H$664,4,0))) ->  | E41: =IF(ISERROR(VLOOKUP(B41,'KAYIT LİSTESİ'!$B$4:$H$664,5,0)),"",(VLOOKUP(B41,'KAYIT LİSTESİ'!$B$4:$H$664,5,0))) ->  | F41: =IF(ISERROR(VLOOKUP(B41,'KAYIT LİSTESİ'!$B$4:$H$664,6,0)),"",(VLOOKUP(B41,'KAYIT LİSTESİ'!$B$4:$H$664,6,0))) ->  | J41: 5 | K41: 400M-4-5 | L41: =IF(ISERROR(VLOOKUP(K41,'KAYIT LİSTESİ'!$B$4:$H$664,2,0)),"",(VLOOKUP(K41,'KAYIT LİSTESİ'!$B$4:$H$664,2,0))) ->  | M41: =IF(ISERROR(VLOOKUP(K41,'KAYIT LİSTESİ'!$B$4:$H$664,4,0)),"",(VLOOKUP(K41,'KAYIT LİSTESİ'!$B$4:$H$664,4,0))) ->  | N41: =IF(ISERROR(VLOOKUP(K41,'KAYIT LİSTESİ'!$B$4:$H$664,5,0)),"",(VLOOKUP(K41,'KAYIT LİSTESİ'!$B$4:$H$664,5,0))) ->  | O41: =IF(ISERROR(VLOOKUP(K41,'KAYIT LİSTESİ'!$B$4:$H$664,6,0)),"",(VLOOKUP(K41,'KAYIT LİSTESİ'!$B$4:$H$664,6,0))) -> 
A42: 6 | B42: 100M-4-6 | C42: =IF(ISERROR(VLOOKUP(B42,'KAYIT LİSTESİ'!$B$4:$H$664,2,0)),"",(VLOOKUP(B42,'KAYIT LİSTESİ'!$B$4:$H$664,2,0))) ->  | D42: =IF(ISERROR(VLOOKUP(B42,'KAYIT LİSTESİ'!$B$4:$H$664,4,0)),"",(VLOOKUP(B42,'KAYIT LİSTESİ'!$B$4:$H$664,4,0))) ->  | E42: =IF(ISERROR(VLOOKUP(B42,'KAYIT LİSTESİ'!$B$4:$H$664,5,0)),"",(VLOOKUP(B42,'KAYIT LİSTESİ'!$B$4:$H$664,5,0))) ->  | F42: =IF(ISERROR(VLOOKUP(B42,'KAYIT LİSTESİ'!$B$4:$H$664,6,0)),"",(VLOOKUP(B42,'KAYIT LİSTESİ'!$B$4:$H$664,6,0))) ->  | J42: 6 | K42: 400M-4-6 | L42: =IF(ISERROR(VLOOKUP(K42,'KAYIT LİSTESİ'!$B$4:$H$664,2,0)),"",(VLOOKUP(K42,'KAYIT LİSTESİ'!$B$4:$H$664,2,0))) ->  | M42: =IF(ISERROR(VLOOKUP(K42,'KAYIT LİSTESİ'!$B$4:$H$664,4,0)),"",(VLOOKUP(K42,'KAYIT LİSTESİ'!$B$4:$H$664,4,0))) ->  | N42: =IF(ISERROR(VLOOKUP(K42,'KAYIT LİSTESİ'!$B$4:$H$664,5,0)),"",(VLOOKUP(K42,'KAYIT LİSTESİ'!$B$4:$H$664,5,0))) ->  | O42: =IF(ISERROR(VLOOKUP(K42,'KAYIT LİSTESİ'!$B$4:$H$664,6,0)),"",(VLOOKUP(K42,'KAYIT LİSTESİ'!$B$4:$H$664,6,0))) -> 
A43: 7 | B43: 100M-4-7 | C43: =IF(ISERROR(VLOOKUP(B43,'KAYIT LİSTESİ'!$B$4:$H$664,2,0)),"",(VLOOKUP(B43,'KAYIT LİSTESİ'!$B$4:$H$664,2,0))) ->  | D43: =IF(ISERROR(VLOOKUP(B43,'KAYIT LİSTESİ'!$B$4:$H$664,4,0)),"",(VLOOKUP(B43,'KAYIT LİSTESİ'!$B$4:$H$664,4,0))) ->  | E43: =IF(ISERROR(VLOOKUP(B43,'KAYIT LİSTESİ'!$B$4:$H$664,5,0)),"",(VLOOKUP(B43,'KAYIT LİSTESİ'!$B$4:$H$664,5,0))) ->  | F43: =IF(ISERROR(VLOOKUP(B43,'KAYIT LİSTESİ'!$B$4:$H$664,6,0)),"",(VLOOKUP(B43,'KAYIT LİSTESİ'!$B$4:$H$664,6,0))) ->  | J43: 7 | K43: 400M-4-7 | L43: =IF(ISERROR(VLOOKUP(K43,'KAYIT LİSTESİ'!$B$4:$H$664,2,0)),"",(VLOOKUP(K43,'KAYIT LİSTESİ'!$B$4:$H$664,2,0))) ->  | M43: =IF(ISERROR(VLOOKUP(K43,'KAYIT LİSTESİ'!$B$4:$H$664,4,0)),"",(VLOOKUP(K43,'KAYIT LİSTESİ'!$B$4:$H$664,4,0))) ->  | N43: =IF(ISERROR(VLOOKUP(K43,'KAYIT LİSTESİ'!$B$4:$H$664,5,0)),"",(VLOOKUP(K43,'KAYIT LİSTESİ'!$B$4:$H$664,5,0))) ->  | O43: =IF(ISERROR(VLOOKUP(K43,'KAYIT LİSTESİ'!$B$4:$H$664,6,0)),"",(VLOOKUP(K43,'KAYIT LİSTESİ'!$B$4:$H$664,6,0))) -> 
A44: 8 | B44: 100M-4-8 | C44: =IF(ISERROR(VLOOKUP(B44,'KAYIT LİSTESİ'!$B$4:$H$664,2,0)),"",(VLOOKUP(B44,'KAYIT LİSTESİ'!$B$4:$H$664,2,0))) ->  | D44: =IF(ISERROR(VLOOKUP(B44,'KAYIT LİSTESİ'!$B$4:$H$664,4,0)),"",(VLOOKUP(B44,'KAYIT LİSTESİ'!$B$4:$H$664,4,0))) ->  | E44: =IF(ISERROR(VLOOKUP(B44,'KAYIT LİSTESİ'!$B$4:$H$664,5,0)),"",(VLOOKUP(B44,'KAYIT LİSTESİ'!$B$4:$H$664,5,0))) ->  | F44: =IF(ISERROR(VLOOKUP(B44,'KAYIT LİSTESİ'!$B$4:$H$664,6,0)),"",(VLOOKUP(B44,'KAYIT LİSTESİ'!$B$4:$H$664,6,0))) ->  | J44: 8 | K44: 400M-4-8 | L44: =IF(ISERROR(VLOOKUP(K44,'KAYIT LİSTESİ'!$B$4:$H$664,2,0)),"",(VLOOKUP(K44,'KAYIT LİSTESİ'!$B$4:$H$664,2,0))) ->  | M44: =IF(ISERROR(VLOOKUP(K44,'KAYIT LİSTESİ'!$B$4:$H$664,4,0)),"",(VLOOKUP(K44,'KAYIT LİSTESİ'!$B$4:$H$664,4,0))) ->  | N44: =IF(ISERROR(VLOOKUP(K44,'KAYIT LİSTESİ'!$B$4:$H$664,5,0)),"",(VLOOKUP(K44,'KAYIT LİSTESİ'!$B$4:$H$664,5,0))) ->  | O44: =IF(ISERROR(VLOOKUP(K44,'KAYIT LİSTESİ'!$B$4:$H$664,6,0)),"",(VLOOKUP(K44,'KAYIT LİSTESİ'!$B$4:$H$664,6,0))) -> 
A45: 100 METRE ENGELLİ | J45: SIRIKLA ATLAMA
A46: 1. SERİ | J46: SIRA NO | L46: GÖĞÜS NO | M46: DOĞUM TARİHİ | N46: ADI VE SOYADI | O46: İli-Okulu | P46: Start Kontrol
A47: Sıra No | B47: Formül | C47: Göğüs No | D47: Doğum Tarihi | E47: Adı ve Soyadı | F47: İli-Okulu | G47: Start Kontrol
A48: 1 | B48: 100M.ENG-1-1 | C48: =IF(ISERROR(VLOOKUP(B48,'KAYIT LİSTESİ'!$B$4:$H$664,2,0)),"",(VLOOKUP(B48,'KAYIT LİSTESİ'!$B$4:$H$664,2,0))) ->  | D48: =IF(ISERROR(VLOOKUP(B48,'KAYIT LİSTESİ'!$B$4:$H$664,4,0)),"",(VLOOKUP(B48,'KAYIT LİSTESİ'!$B$4:$H$664,4,0))) ->  | E48: =IF(ISERROR(VLOOKUP(B48,'KAYIT LİSTESİ'!$B$4:$H$664,5,0)),"",(VLOOKUP(B48,'KAYIT LİSTESİ'!$B$4:$H$664,5,0))) ->  | F48: =IF(ISERROR(VLOOKUP(B48,'KAYIT LİSTESİ'!$B$4:$H$664,6,0)),"",(VLOOKUP(B48,'KAYIT LİSTESİ'!$B$4:$H$664,6,0))) ->  | J48: 1 | K48: Sırık-1 | L48: =IF(ISERROR(VLOOKUP(K48,'KAYIT LİSTESİ'!$B$4:$H$664,2,0)),"",(VLOOKUP(K48,'KAYIT LİSTESİ'!$B$4:$H$664,2,0))) ->  | M48: =IF(ISERROR(VLOOKUP(K48,'KAYIT LİSTESİ'!$B$4:$H$664,4,0)),"",(VLOOKUP(K48,'KAYIT LİSTESİ'!$B$4:$H$664,4,0))) ->  | N48: =IF(ISERROR(VLOOKUP(K48,'KAYIT LİSTESİ'!$B$4:$H$664,5,0)),"",(VLOOKUP(K48,'KAYIT LİSTESİ'!$B$4:$H$664,5,0))) ->  | O48: =IF(ISERROR(VLOOKUP(K48,'KAYIT LİSTESİ'!$B$4:$H$664,6,0)),"",(VLOOKUP(K48,'KAYIT LİSTESİ'!$B$4:$H$664,6,0))) -> 
A49: 2 | B49: 100M.ENG-1-2 | C49: =IF(ISERROR(VLOOKUP(B49,'KAYIT LİSTESİ'!$B$4:$H$664,2,0)),"",(VLOOKUP(B49,'KAYIT LİSTESİ'!$B$4:$H$664,2,0))) -> 610 | D49: =IF(ISERROR(VLOOKUP(B49,'KAYIT LİSTESİ'!$B$4:$H$664,4,0)),"",(VLOOKUP(B49,'KAYIT LİSTESİ'!$B$4:$H$664,4,0))) -> 1994-01-29 | E49: =IF(ISERROR(VLOOKUP(B49,'KAYIT LİSTESİ'!$B$4:$H$664,5,0)),"",(VLOOKUP(B49,'KAYIT LİSTESİ'!$B$4:$H$664,5,0))) -> Zühre ACERMAN | F49: =IF(ISERROR(VLOOKUP(B49,'KAYIT LİSTESİ'!$B$4:$H$664,6,0)),"",(VLOOKUP(B49,'KAYIT LİSTESİ'!$B$4:$H$664,6,0))) -> KKTC. MAGUSA | J49: 2 | K49: Sırık-2 | L49: =IF(ISERROR(VLOOKUP(K49,'KAYIT LİSTESİ'!$B$4:$H$664,2,0)),"",(VLOOKUP(K49,'KAYIT LİSTESİ'!$B$4:$H$664,2,0))) ->  | M49: =IF(ISERROR(VLOOKUP(K49,'KAYIT LİSTESİ'!$B$4:$H$664,4,0)),"",(VLOOKUP(K49,'KAYIT LİSTESİ'!$B$4:$H$664,4,0))) ->  | N49: =IF(ISERROR(VLOOKUP(K49,'KAYIT LİSTESİ'!$B$4:$H$664,5,0)),"",(VLOOKUP(K49,'KAYIT LİSTESİ'!$B$4:$H$664,5,0))) ->  | O49: =IF(ISERROR(VLOOKUP(K49,'KAYIT LİSTESİ'!$B$4:$H$664,6,0)),"",(VLOOKUP(K49,'KAYIT LİSTESİ'!$B$4:$H$664,6,0))) -> 
A50: 3 | B50: 100M.ENG-1-3 | C50: =IF(ISERROR(VLOOKUP(B50,'KAYIT LİSTESİ'!$B$4:$H$664,2,0)),"",(VLOOKUP(B50,'KAYIT LİSTESİ'!$B$4:$H$664,2,0))) -> 601 | D50: =IF(ISERROR(VLOOKUP(B50,'KAYIT LİSTESİ'!$B$4:$H$664,4,0)),"",(VLOOKUP(B50,'KAYIT LİSTESİ'!$B$4:$H$664,4,0))) -> 15.11.1992 | E50: =IF(ISERROR(VLOOKUP(B50,'KAYIT LİSTESİ'!$B$4:$H$664,5,0)),"",(VLOOKUP(B50,'KAYIT LİSTESİ'!$B$4:$H$664,5,0))) -> İLKAY AVCI | F50: =IF(ISERROR(VLOOKUP(B50,'KAYIT LİSTESİ'!$B$4:$H$664,6,0)),"",(VLOOKUP(B50,'KAYIT LİSTESİ'!$B$4:$H$664,6,0))) -> ESKİŞEHİR | J50: 3 | K50: Sırık-3 | L50: =IF(ISERROR(VLOOKUP(K50,'KAYIT LİSTESİ'!$B$4:$H$664,2,0)),"",(VLOOKUP(K50,'KAYIT LİSTESİ'!$B$4:$H$664,2,0))) ->  | M50: =IF(ISERROR(VLOOKUP(K50,'KAYIT LİSTESİ'!$B$4:$H$664,4,0)),"",(VLOOKUP(K50,'KAYIT LİSTESİ'!$B$4:$H$664,4,0))) ->  | N50: =IF(ISERROR(VLOOKUP(K50,'KAYIT LİSTESİ'!$B$4:$H$664,5,0)),"",(VLOOKUP(K50,'KAYIT LİSTESİ'!$B$4:$H$664,5,0))) ->  | O50: =IF(ISERROR(VLOOKUP(K50,'KAYIT LİSTESİ'!$B$4:$H$664,6,0)),"",(VLOOKUP(K50,'KAYIT LİSTESİ'!$B$4:$H$664,6,0))) -> 
A51: 4 | B51: 100M.ENG-1-4 | C51: =IF(ISERROR(VLOOKUP(B51,'KAYIT LİSTESİ'!$B$4:$H$664,2,0)),"",(VLOOKUP(B51,'KAYIT LİSTESİ'!$B$4:$H$664,2,0))) -> 602 | D51: =IF(ISERROR(VLOOKUP(B51,'KAYIT LİSTESİ'!$B$4:$H$664,4,0)),"",(VLOOKUP(B51,'KAYIT LİSTESİ'!$B$4:$H$664,4,0))) -> 1984-03-28 | E51: =IF(ISERROR(VLOOKUP(B51,'KAYIT LİSTESİ'!$B$4:$H$664,5,0)),"",(VLOOKUP(B51,'KAYIT LİSTESİ'!$B$4:$H$664,5,0))) -> SERPİL KOÇAK | F51: =IF(ISERROR(VLOOKUP(B51,'KAYIT LİSTESİ'!$B$4:$H$664,6,0)),"",(VLOOKUP(B51,'KAYIT LİSTESİ'!$B$4:$H$664,6,0))) -> İSTABUL | J51: 4 | K51: Sırık-4 | L51: =IF(ISERROR(VLOOKUP(K51,'KAYIT LİSTESİ'!$B$4:$H$664,2,0)),"",(VLOOKUP(K51,'KAYIT LİSTESİ'!$B$4:$H$664,2,0))) ->  | M51: =IF(ISERROR(VLOOKUP(K51,'KAYIT LİSTESİ'!$B$4:$H$664,4,0)),"",(VLOOKUP(K51,'KAYIT LİSTESİ'!$B$4:$H$664,4,0))) ->  | N51: =IF(ISERROR(VLOOKUP(K51,'KAYIT LİSTESİ'!$B$4:$H$664,5,0)),"",(VLOOKUP(K51,'KAYIT LİSTESİ'!$B$4:$H$664,5,0))) ->  | O51: =IF(ISERROR(VLOOKUP(K51,'KAYIT LİSTESİ'!$B$4:$H$664,6,0)),"",(VLOOKUP(K51,'KAYIT LİSTESİ'!$B$4:$H$664,6,0))) -> 
A52: 5 | B52: 100M.ENG-1-5 | C52: =IF(ISERROR(VLOOKUP(B52,'KAYIT LİSTESİ'!$B$4:$H$664,2,0)),"",(VLOOKUP(B52,'KAYIT LİSTESİ'!$B$4:$H$664,2,0))) ->  | D52: =IF(ISERROR(VLOOKUP(B52,'KAYIT LİSTESİ'!$B$4:$H$664,4,0)),"",(VLOOKUP(B52,'KAYIT LİSTESİ'!$B$4:$H$664,4,0))) ->  | E52: =IF(ISERROR(VLOOKUP(B52,'KAYIT LİSTESİ'!$B$4:$H$664,5,0)),"",(VLOOKUP(B52,'KAYIT LİSTESİ'!$B$4:$H$664,5,0))) ->  | F52: =IF(ISERROR(VLOOKUP(B52,'KAYIT LİSTESİ'!$B$4:$H$664,6,0)),"",(VLOOKUP(B52,'KAYIT LİSTESİ'!$B$4:$H$664,6,0))) ->  | J52: 5 | K52: Sırık-5 | L52: =IF(ISERROR(VLOOKUP(K52,'KAYIT LİSTESİ'!$B$4:$H$664,2,0)),"",(VLOOKUP(K52,'KAYIT LİSTESİ'!$B$4:$H$664,2,0))) ->  | M52: =IF(ISERROR(VLOOKUP(K52,'KAYIT LİSTESİ'!$B$4:$H$664,4,0)),"",(VLOOKUP(K52,'KAYIT LİSTESİ'!$B$4:$H$664,4,0))) ->  | N52: =IF(ISERROR(VLOOKUP(K52,'KAYIT LİSTESİ'!$B$4:$H$664,5,0)),"",(VLOOKUP(K52,'KAYIT LİSTESİ'!$B$4:$H$664,5,0))) ->  | O52: =IF(ISERROR(VLOOKUP(K52,'KAYIT LİSTESİ'!$B$4:$H$664,6,0)),"",(VLOOKUP(K52,'KAYIT LİSTESİ'!$B$4:$H$664,6,0))) -> 
A53: 6 | B53: 100M.ENG-1-6 | C53: =IF(ISERROR(VLOOKUP(B53,'KAYIT LİSTESİ'!$B$4:$H$664,2,0)),"",(VLOOKUP(B53,'KAYIT LİSTESİ'!$B$4:$H$664,2,0))) ->  | D53: =IF(ISERROR(VLOOKUP(B53,'KAYIT LİSTESİ'!$B$4:$H$664,4,0)),"",(VLOOKUP(B53,'KAYIT LİSTESİ'!$B$4:$H$664,4,0))) ->  | E53: =IF(ISERROR(VLOOKUP(B53,'KAYIT LİSTESİ'!$B$4:$H$664,5,0)),"",(VLOOKUP(B53,'KAYIT LİSTESİ'!$B$4:$H$664,5,0))) ->  | F53: =IF(ISERROR(VLOOKUP(B53,'KAYIT LİSTESİ'!$B$4:$H$664,6,0)),"",(VLOOKUP(B53,'KAYIT LİSTESİ'!$B$4:$H$664,6,0))) ->  | J53: 6 | K53: Sırık-6 | L53: =IF(ISERROR(VLOOKUP(K53,'KAYIT LİSTESİ'!$B$4:$H$664,2,0)),"",(VLOOKUP(K53,'KAYIT LİSTESİ'!$B$4:$H$664,2,0))) ->  | M53: =IF(ISERROR(VLOOKUP(K53,'KAYIT LİSTESİ'!$B$4:$H$664,4,0)),"",(VLOOKUP(K53,'KAYIT LİSTESİ'!$B$4:$H$664,4,0))) ->  | N53: =IF(ISERROR(VLOOKUP(K53,'KAYIT LİSTESİ'!$B$4:$H$664,5,0)),"",(VLOOKUP(K53,'KAYIT LİSTESİ'!$B$4:$H$664,5,0))) ->  | O53: =IF(ISERROR(VLOOKUP(K53,'KAYIT LİSTESİ'!$B$4:$H$664,6,0)),"",(VLOOKUP(K53,'KAYIT LİSTESİ'!$B$4:$H$664,6,0))) -> 
A54: 7 | B54: 100M.ENG-1-7 | C54: =IF(ISERROR(VLOOKUP(B54,'KAYIT LİSTESİ'!$B$4:$H$664,2,0)),"",(VLOOKUP(B54,'KAYIT LİSTESİ'!$B$4:$H$664,2,0))) ->  | D54: =IF(ISERROR(VLOOKUP(B54,'KAYIT LİSTESİ'!$B$4:$H$664,4,0)),"",(VLOOKUP(B54,'KAYIT LİSTESİ'!$B$4:$H$664,4,0))) ->  | E54: =IF(ISERROR(VLOOKUP(B54,'KAYIT LİSTESİ'!$B$4:$H$664,5,0)),"",(VLOOKUP(B54,'KAYIT LİSTESİ'!$B$4:$H$664,5,0))) ->  | F54: =IF(ISERROR(VLOOKUP(B54,'KAYIT LİSTESİ'!$B$4:$H$664,6,0)),"",(VLOOKUP(B54,'KAYIT LİSTESİ'!$B$4:$H$664,6,0))) ->  | J54: 7 | K54: Sırık-7 | L54: =IF(ISERROR(VLOOKUP(K54,'KAYIT LİSTESİ'!$B$4:$H$664,2,0)),"",(VLOOKUP(K54,'KAYIT LİSTESİ'!$B$4:$H$664,2,0))) ->  | M54: =IF(ISERROR(VLOOKUP(K54,'KAYIT LİSTESİ'!$B$4:$H$664,4,0)),"",(VLOOKUP(K54,'KAYIT LİSTESİ'!$B$4:$H$664,4,0))) ->  | N54: =IF(ISERROR(VLOOKUP(K54,'KAYIT LİSTESİ'!$B$4:$H$664,5,0)),"",(VLOOKUP(K54,'KAYIT LİSTESİ'!$B$4:$H$664,5,0))) ->  | O54: =IF(ISERROR(VLOOKUP(K54,'KAYIT LİSTESİ'!$B$4:$H$664,6,0)),"",(VLOOKUP(K54,'KAYIT LİSTESİ'!$B$4:$H$664,6,0))) -> 
A55: 8 | B55: 100M.ENG-1-8 | C55: =IF(ISERROR(VLOOKUP(B55,'KAYIT LİSTESİ'!$B$4:$H$664,2,0)),"",(VLOOKUP(B55,'KAYIT LİSTESİ'!$B$4:$H$664,2,0))) ->  | D55: =IF(ISERROR(VLOOKUP(B55,'KAYIT LİSTESİ'!$B$4:$H$664,4,0)),"",(VLOOKUP(B55,'KAYIT LİSTESİ'!$B$4:$H$664,4,0))) ->  | E55: =IF(ISERROR(VLOOKUP(B55,'KAYIT LİSTESİ'!$B$4:$H$664,5,0)),"",(VLOOKUP(B55,'KAYIT LİSTESİ'!$B$4:$H$664,5,0))) ->  | F55: =IF(ISERROR(VLOOKUP(B55,'KAYIT LİSTESİ'!$B$4:$H$664,6,0)),"",(VLOOKUP(B55,'KAYIT LİSTESİ'!$B$4:$H$664,6,0))) ->  | J55: 8 | K55: Sırık-8 | L55: =IF(ISERROR(VLOOKUP(K55,'KAYIT LİSTESİ'!$B$4:$H$664,2,0)),"",(VLOOKUP(K55,'KAYIT LİSTESİ'!$B$4:$H$664,2,0))) ->  | M55: =IF(ISERROR(VLOOKUP(K55,'KAYIT LİSTESİ'!$B$4:$H$664,4,0)),"",(VLOOKUP(K55,'KAYIT LİSTESİ'!$B$4:$H$664,4,0))) ->  | N55: =IF(ISERROR(VLOOKUP(K55,'KAYIT LİSTESİ'!$B$4:$H$664,5,0)),"",(VLOOKUP(K55,'KAYIT LİSTESİ'!$B$4:$H$664,5,0))) ->  | O55: =IF(ISERROR(VLOOKUP(K55,'KAYIT LİSTESİ'!$B$4:$H$664,6,0)),"",(VLOOKUP(K55,'KAYIT LİSTESİ'!$B$4:$H$664,6,0))) -> 
A56: 2. SERİ | J56: 9 | K56: Sırık-9 | L56: =IF(ISERROR(VLOOKUP(K56,'KAYIT LİSTESİ'!$B$4:$H$664,2,0)),"",(VLOOKUP(K56,'KAYIT LİSTESİ'!$B$4:$H$664,2,0))) ->  | M56: =IF(ISERROR(VLOOKUP(K56,'KAYIT LİSTESİ'!$B$4:$H$664,4,0)),"",(VLOOKUP(K56,'KAYIT LİSTESİ'!$B$4:$H$664,4,0))) ->  | N56: =IF(ISERROR(VLOOKUP(K56,'KAYIT LİSTESİ'!$B$4:$H$664,5,0)),"",(VLOOKUP(K56,'KAYIT LİSTESİ'!$B$4:$H$664,5,0))) ->  | O56: =IF(ISERROR(VLOOKUP(K56,'KAYIT LİSTESİ'!$B$4:$H$664,6,0)),"",(VLOOKUP(K56,'KAYIT LİSTESİ'!$B$4:$H$664,6,0))) -> 
A57: Sıra No | B57: Formül | C57: Göğüs No | D57: Doğum Tarihi | E57: Adı ve Soyadı | F57: İli-Okulu | G57: Start Kontrol | J57: 10 | K57: Sırık-10 | L57: =IF(ISERROR(VLOOKUP(K57,'KAYIT LİSTESİ'!$B$4:$H$664,2,0)),"",(VLOOKUP(K57,'KAYIT LİSTESİ'!$B$4:$H$664,2,0))) ->  | M57: =IF(ISERROR(VLOOKUP(K57,'KAYIT LİSTESİ'!$B$4:$H$664,4,0)),"",(VLOOKUP(K57,'KAYIT LİSTESİ'!$B$4:$H$664,4,0))) ->  | N57: =IF(ISERROR(VLOOKUP(K57,'KAYIT LİSTESİ'!$B$4:$H$664,5,0)),"",(VLOOKUP(K57,'KAYIT LİSTESİ'!$B$4:$H$664,5,0))) ->  | O57: =IF(ISERROR(VLOOKUP(K57,'KAYIT LİSTESİ'!$B$4:$H$664,6,0)),"",(VLOOKUP(K57,'KAYIT LİSTESİ'!$B$4:$H$664,6,0))) -> 
A58: 1 | B58: 100M.ENG-2-1 | C58: =IF(ISERROR(VLOOKUP(B58,'KAYIT LİSTESİ'!$B$4:$H$664,2,0)),"",(VLOOKUP(B58,'KAYIT LİSTESİ'!$B$4:$H$664,2,0))) ->  | D58: =IF(ISERROR(VLOOKUP(B58,'KAYIT LİSTESİ'!$B$4:$H$664,4,0)),"",(VLOOKUP(B58,'KAYIT LİSTESİ'!$B$4:$H$664,4,0))) ->  | E58: =IF(ISERROR(VLOOKUP(B58,'KAYIT LİSTESİ'!$B$4:$H$664,5,0)),"",(VLOOKUP(B58,'KAYIT LİSTESİ'!$B$4:$H$664,5,0))) ->  | F58: =IF(ISERROR(VLOOKUP(B58,'KAYIT LİSTESİ'!$B$4:$H$664,6,0)),"",(VLOOKUP(B58,'KAYIT LİSTESİ'!$B$4:$H$664,6,0))) ->  | J58: 11 | K58: Sırık-11 | L58: =IF(ISERROR(VLOOKUP(K58,'KAYIT LİSTESİ'!$B$4:$H$664,2,0)),"",(VLOOKUP(K58,'KAYIT LİSTESİ'!$B$4:$H$664,2,0))) ->  | M58: =IF(ISERROR(VLOOKUP(K58,'KAYIT LİSTESİ'!$B$4:$H$664,4,0)),"",(VLOOKUP(K58,'KAYIT LİSTESİ'!$B$4:$H$664,4,0))) ->  | N58: =IF(ISERROR(VLOOKUP(K58,'KAYIT LİSTESİ'!$B$4:$H$664,5,0)),"",(VLOOKUP(K58,'KAYIT LİSTESİ'!$B$4:$H$664,5,0))) ->  | O58: =IF(ISERROR(VLOOKUP(K58,'KAYIT LİSTESİ'!$B$4:$H$664,6,0)),"",(VLOOKUP(K58,'KAYIT LİSTESİ'!$B$4:$H$664,6,0))) -> 
A59: 2 | B59: 100M.ENG-2-2 | C59: =IF(ISERROR(VLOOKUP(B59,'KAYIT LİSTESİ'!$B$4:$H$664,2,0)),"",(VLOOKUP(B59,'KAYIT LİSTESİ'!$B$4:$H$664,2,0))) ->  | D59: =IF(ISERROR(VLOOKUP(B59,'KAYIT LİSTESİ'!$B$4:$H$664,4,0)),"",(VLOOKUP(B59,'KAYIT LİSTESİ'!$B$4:$H$664,4,0))) ->  | E59: =IF(ISERROR(VLOOKUP(B59,'KAYIT LİSTESİ'!$B$4:$H$664,5,0)),"",(VLOOKUP(B59,'KAYIT LİSTESİ'!$B$4:$H$664,5,0))) ->  | F59: =IF(ISERROR(VLOOKUP(B59,'KAYIT LİSTESİ'!$B$4:$H$664,6,0)),"",(VLOOKUP(B59,'KAYIT LİSTESİ'!$B$4:$H$664,6,0))) ->  | J59: 12 | K59: Sırık-12 | L59: =IF(ISERROR(VLOOKUP(K59,'KAYIT LİSTESİ'!$B$4:$H$664,2,0)),"",(VLOOKUP(K59,'KAYIT LİSTESİ'!$B$4:$H$664,2,0))) ->  | M59: =IF(ISERROR(VLOOKUP(K59,'KAYIT LİSTESİ'!$B$4:$H$664,4,0)),"",(VLOOKUP(K59,'KAYIT LİSTESİ'!$B$4:$H$664,4,0))) ->  | N59: =IF(ISERROR(VLOOKUP(K59,'KAYIT LİSTESİ'!$B$4:$H$664,5,0)),"",(VLOOKUP(K59,'KAYIT LİSTESİ'!$B$4:$H$664,5,0))) ->  | O59: =IF(ISERROR(VLOOKUP(K59,'KAYIT LİSTESİ'!$B$4:$H$664,6,0)),"",(VLOOKUP(K59,'KAYIT LİSTESİ'!$B$4:$H$664,6,0))) -> 
A60: 3 | B60: 100M.ENG-2-3 | C60: =IF(ISERROR(VLOOKUP(B60,'KAYIT LİSTESİ'!$B$4:$H$664,2,0)),"",(VLOOKUP(B60,'KAYIT LİSTESİ'!$B$4:$H$664,2,0))) ->  | D60: =IF(ISERROR(VLOOKUP(B60,'KAYIT LİSTESİ'!$B$4:$H$664,4,0)),"",(VLOOKUP(B60,'KAYIT LİSTESİ'!$B$4:$H$664,4,0))) ->  | E60: =IF(ISERROR(VLOOKUP(B60,'KAYIT LİSTESİ'!$B$4:$H$664,5,0)),"",(VLOOKUP(B60,'KAYIT LİSTESİ'!$B$4:$H$664,5,0))) ->  | F60: =IF(ISERROR(VLOOKUP(B60,'KAYIT LİSTESİ'!$B$4:$H$664,6,0)),"",(VLOOKUP(B60,'KAYIT LİSTESİ'!$B$4:$H$664,6,0))) ->  | J60: 13 | K60: Sırık-13 | L60: =IF(ISERROR(VLOOKUP(K60,'KAYIT LİSTESİ'!$B$4:$H$664,2,0)),"",(VLOOKUP(K60,'KAYIT LİSTESİ'!$B$4:$H$664,2,0))) ->  | M60: =IF(ISERROR(VLOOKUP(K60,'KAYIT LİSTESİ'!$B$4:$H$664,4,0)),"",(VLOOKUP(K60,'KAYIT LİSTESİ'!$B$4:$H$664,4,0))) ->  | N60: =IF(ISERROR(VLOOKUP(K60,'KAYIT LİSTESİ'!$B$4:$H$664,5,0)),"",(VLOOKUP(K60,'KAYIT LİSTESİ'!$B$4:$H$664,5,0))) ->  | O60: =IF(ISERROR(VLOOKUP(K60,'KAYIT LİSTESİ'!$B$4:$H$664,6,0)),"",(VLOOKUP(K60,'KAYIT LİSTESİ'!$B$4:$H$664,6,0))) -> 
A61: 4 | B61: 100M.ENG-2-4 | C61: =IF(ISERROR(VLOOKUP(B61,'KAYIT LİSTESİ'!$B$4:$H$664,2,0)),"",(VLOOKUP(B61,'KAYIT LİSTESİ'!$B$4:$H$664,2,0))) ->  | D61: =IF(ISERROR(VLOOKUP(B61,'KAYIT LİSTESİ'!$B$4:$H$664,4,0)),"",(VLOOKUP(B61,'KAYIT LİSTESİ'!$B$4:$H$664,4,0))) ->  | E61: =IF(ISERROR(VLOOKUP(B61,'KAYIT LİSTESİ'!$B$4:$H$664,5,0)),"",(VLOOKUP(B61,'KAYIT LİSTESİ'!$B$4:$H$664,5,0))) ->  | F61: =IF(ISERROR(VLOOKUP(B61,'KAYIT LİSTESİ'!$B$4:$H$664,6,0)),"",(VLOOKUP(B61,'KAYIT LİSTESİ'!$B$4:$H$664,6,0))) ->  | J61: 14 | K61: Sırık-14 | L61: =IF(ISERROR(VLOOKUP(K61,'KAYIT LİSTESİ'!$B$4:$H$664,2,0)),"",(VLOOKUP(K61,'KAYIT LİSTESİ'!$B$4:$H$664,2,0))) ->  | M61: =IF(ISERROR(VLOOKUP(K61,'KAYIT LİSTESİ'!$B$4:$H$664,4,0)),"",(VLOOKUP(K61,'KAYIT LİSTESİ'!$B$4:$H$664,4,0))) ->  | N61: =IF(ISERROR(VLOOKUP(K61,'KAYIT LİSTESİ'!$B$4:$H$664,5,0)),"",(VLOOKUP(K61,'KAYIT LİSTESİ'!$B$4:$H$664,5,0))) ->  | O61: =IF(ISERROR(VLOOKUP(K61,'KAYIT LİSTESİ'!$B$4:$H$664,6,0)),"",(VLOOKUP(K61,'KAYIT LİSTESİ'!$B$4:$H$664,6,0))) -> 
A62: 5 | B62: 100M.ENG-2-5 | C62: =IF(ISERROR(VLOOKUP(B62,'KAYIT LİSTESİ'!$B$4:$H$664,2,0)),"",(VLOOKUP(B62,'KAYIT LİSTESİ'!$B$4:$H$664,2,0))) ->  | D62: =IF(ISERROR(VLOOKUP(B62,'KAYIT LİSTESİ'!$B$4:$H$664,4,0)),"",(VLOOKUP(B62,'KAYIT LİSTESİ'!$B$4:$H$664,4,0))) ->  | E62: =IF(ISERROR(VLOOKUP(B62,'KAYIT LİSTESİ'!$B$4:$H$664,5,0)),"",(VLOOKUP(B62,'KAYIT LİSTESİ'!$B$4:$H$664,5,0))) ->  | F62: =IF(ISERROR(VLOOKUP(B62,'KAYIT LİSTESİ'!$B$4:$H$664,6,0)),"",(VLOOKUP(B62,'KAYIT LİSTESİ'!$B$4:$H$664,6,0))) ->  | J62: 15 | K62: Sırık-15 | L62: =IF(ISERROR(VLOOKUP(K62,'KAYIT LİSTESİ'!$B$4:$H$664,2,0)),"",(VLOOKUP(K62,'KAYIT LİSTESİ'!$B$4:$H$664,2,0))) ->  | M62: =IF(ISERROR(VLOOKUP(K62,'KAYIT LİSTESİ'!$B$4:$H$664,4,0)),"",(VLOOKUP(K62,'KAYIT LİSTESİ'!$B$4:$H$664,4,0))) ->  | N62: =IF(ISERROR(VLOOKUP(K62,'KAYIT LİSTESİ'!$B$4:$H$664,5,0)),"",(VLOOKUP(K62,'KAYIT LİSTESİ'!$B$4:$H$664,5,0))) ->  | O62: =IF(ISERROR(VLOOKUP(K62,'KAYIT LİSTESİ'!$B$4:$H$664,6,0)),"",(VLOOKUP(K62,'KAYIT LİSTESİ'!$B$4:$H$664,6,0))) -> 
A63: 6 | B63: 100M.ENG-2-6 | C63: =IF(ISERROR(VLOOKUP(B63,'KAYIT LİSTESİ'!$B$4:$H$664,2,0)),"",(VLOOKUP(B63,'KAYIT LİSTESİ'!$B$4:$H$664,2,0))) ->  | D63: =IF(ISERROR(VLOOKUP(B63,'KAYIT LİSTESİ'!$B$4:$H$664,4,0)),"",(VLOOKUP(B63,'KAYIT LİSTESİ'!$B$4:$H$664,4,0))) ->  | E63: =IF(ISERROR(VLOOKUP(B63,'KAYIT LİSTESİ'!$B$4:$H$664,5,0)),"",(VLOOKUP(B63,'KAYIT LİSTESİ'!$B$4:$H$664,5,0))) ->  | F63: =IF(ISERROR(VLOOKUP(B63,'KAYIT LİSTESİ'!$B$4:$H$664,6,0)),"",(VLOOKUP(B63,'KAYIT LİSTESİ'!$B$4:$H$664,6,0))) ->  | J63: 16 | K63: Sırık-16 | L63: =IF(ISERROR(VLOOKUP(K63,'KAYIT LİSTESİ'!$B$4:$H$664,2,0)),"",(VLOOKUP(K63,'KAYIT LİSTESİ'!$B$4:$H$664,2,0))) ->  | M63: =IF(ISERROR(VLOOKUP(K63,'KAYIT LİSTESİ'!$B$4:$H$664,4,0)),"",(VLOOKUP(K63,'KAYIT LİSTESİ'!$B$4:$H$664,4,0))) ->  | N63: =IF(ISERROR(VLOOKUP(K63,'KAYIT LİSTESİ'!$B$4:$H$664,5,0)),"",(VLOOKUP(K63,'KAYIT LİSTESİ'!$B$4:$H$664,5,0))) ->  | O63: =IF(ISERROR(VLOOKUP(K63,'KAYIT LİSTESİ'!$B$4:$H$664,6,0)),"",(VLOOKUP(K63,'KAYIT LİSTESİ'!$B$4:$H$664,6,0))) -> 
A64: 7 | B64: 100M.ENG-2-7 | C64: =IF(ISERROR(VLOOKUP(B64,'KAYIT LİSTESİ'!$B$4:$H$664,2,0)),"",(VLOOKUP(B64,'KAYIT LİSTESİ'!$B$4:$H$664,2,0))) ->  | D64: =IF(ISERROR(VLOOKUP(B64,'KAYIT LİSTESİ'!$B$4:$H$664,4,0)),"",(VLOOKUP(B64,'KAYIT LİSTESİ'!$B$4:$H$664,4,0))) ->  | E64: =IF(ISERROR(VLOOKUP(B64,'KAYIT LİSTESİ'!$B$4:$H$664,5,0)),"",(VLOOKUP(B64,'KAYIT LİSTESİ'!$B$4:$H$664,5,0))) ->  | F64: =IF(ISERROR(VLOOKUP(B64,'KAYIT LİSTESİ'!$B$4:$H$664,6,0)),"",(VLOOKUP(B64,'KAYIT LİSTESİ'!$B$4:$H$664,6,0))) ->  | J64: 17 | K64: Sırık-17 | L64: =IF(ISERROR(VLOOKUP(K64,'KAYIT LİSTESİ'!$B$4:$H$664,2,0)),"",(VLOOKUP(K64,'KAYIT LİSTESİ'!$B$4:$H$664,2,0))) ->  | M64: =IF(ISERROR(VLOOKUP(K64,'KAYIT LİSTESİ'!$B$4:$H$664,4,0)),"",(VLOOKUP(K64,'KAYIT LİSTESİ'!$B$4:$H$664,4,0))) ->  | N64: =IF(ISERROR(VLOOKUP(K64,'KAYIT LİSTESİ'!$B$4:$H$664,5,0)),"",(VLOOKUP(K64,'KAYIT LİSTESİ'!$B$4:$H$664,5,0))) ->  | O64: =IF(ISERROR(VLOOKUP(K64,'KAYIT LİSTESİ'!$B$4:$H$664,6,0)),"",(VLOOKUP(K64,'KAYIT LİSTESİ'!$B$4:$H$664,6,0))) -> 
A65: 8 | B65: 100M.ENG-2-8 | C65: =IF(ISERROR(VLOOKUP(B65,'KAYIT LİSTESİ'!$B$4:$H$664,2,0)),"",(VLOOKUP(B65,'KAYIT LİSTESİ'!$B$4:$H$664,2,0))) ->  | D65: =IF(ISERROR(VLOOKUP(B65,'KAYIT LİSTESİ'!$B$4:$H$664,4,0)),"",(VLOOKUP(B65,'KAYIT LİSTESİ'!$B$4:$H$664,4,0))) ->  | E65: =IF(ISERROR(VLOOKUP(B65,'KAYIT LİSTESİ'!$B$4:$H$664,5,0)),"",(VLOOKUP(B65,'KAYIT LİSTESİ'!$B$4:$H$664,5,0))) ->  | F65: =IF(ISERROR(VLOOKUP(B65,'KAYIT LİSTESİ'!$B$4:$H$664,6,0)),"",(VLOOKUP(B65,'KAYIT LİSTESİ'!$B$4:$H$664,6,0))) ->  | J65: 18 | K65: Sırık-18 | L65: =IF(ISERROR(VLOOKUP(K65,'KAYIT LİSTESİ'!$B$4:$H$664,2,0)),"",(VLOOKUP(K65,'KAYIT LİSTESİ'!$B$4:$H$664,2,0))) ->  | M65: =IF(ISERROR(VLOOKUP(K65,'KAYIT LİSTESİ'!$B$4:$H$664,4,0)),"",(VLOOKUP(K65,'KAYIT LİSTESİ'!$B$4:$H$664,4,0))) ->  | N65: =IF(ISERROR(VLOOKUP(K65,'KAYIT LİSTESİ'!$B$4:$H$664,5,0)),"",(VLOOKUP(K65,'KAYIT LİSTESİ'!$B$4:$H$664,5,0))) ->  | O65: =IF(ISERROR(VLOOKUP(K65,'KAYIT LİSTESİ'!$B$4:$H$664,6,0)),"",(VLOOKUP(K65,'KAYIT LİSTESİ'!$B$4:$H$664,6,0))) -> 
A66: 3. SERİ | J66: 19 | K66: Sırık-19 | L66: =IF(ISERROR(VLOOKUP(K66,'KAYIT LİSTESİ'!$B$4:$H$664,2,0)),"",(VLOOKUP(K66,'KAYIT LİSTESİ'!$B$4:$H$664,2,0))) ->  | M66: =IF(ISERROR(VLOOKUP(K66,'KAYIT LİSTESİ'!$B$4:$H$664,4,0)),"",(VLOOKUP(K66,'KAYIT LİSTESİ'!$B$4:$H$664,4,0))) ->  | N66: =IF(ISERROR(VLOOKUP(K66,'KAYIT LİSTESİ'!$B$4:$H$664,5,0)),"",(VLOOKUP(K66,'KAYIT LİSTESİ'!$B$4:$H$664,5,0))) ->  | O66: =IF(ISERROR(VLOOKUP(K66,'KAYIT LİSTESİ'!$B$4:$H$664,6,0)),"",(VLOOKUP(K66,'KAYIT LİSTESİ'!$B$4:$H$664,6,0))) -> 
A67: Sıra No | B67: Formül | C67: Göğüs No | D67: Doğum Tarihi | E67: Adı ve Soyadı | F67: İli-Okulu | G67: Start Kontrol | J67: 20 | K67: Sırık-20 | L67: =IF(ISERROR(VLOOKUP(K67,'KAYIT LİSTESİ'!$B$4:$H$664,2,0)),"",(VLOOKUP(K67,'KAYIT LİSTESİ'!$B$4:$H$664,2,0))) ->  | M67: =IF(ISERROR(VLOOKUP(K67,'KAYIT LİSTESİ'!$B$4:$H$664,4,0)),"",(VLOOKUP(K67,'KAYIT LİSTESİ'!$B$4:$H$664,4,0))) ->  | N67: =IF(ISERROR(VLOOKUP(K67,'KAYIT LİSTESİ'!$B$4:$H$664,5,0)),"",(VLOOKUP(K67,'KAYIT LİSTESİ'!$B$4:$H$664,5,0))) ->  | O67: =IF(ISERROR(VLOOKUP(K67,'KAYIT LİSTESİ'!$B$4:$H$664,6,0)),"",(VLOOKUP(K67,'KAYIT LİSTESİ'!$B$4:$H$664,6,0))) -> 
A68: 1 | B68: 100M.ENG-3-1 | C68: =IF(ISERROR(VLOOKUP(B68,'KAYIT LİSTESİ'!$B$4:$H$664,2,0)),"",(VLOOKUP(B68,'KAYIT LİSTESİ'!$B$4:$H$664,2,0))) ->  | D68: =IF(ISERROR(VLOOKUP(B68,'KAYIT LİSTESİ'!$B$4:$H$664,4,0)),"",(VLOOKUP(B68,'KAYIT LİSTESİ'!$B$4:$H$664,4,0))) ->  | E68: =IF(ISERROR(VLOOKUP(B68,'KAYIT LİSTESİ'!$B$4:$H$664,5,0)),"",(VLOOKUP(B68,'KAYIT LİSTESİ'!$B$4:$H$664,5,0))) ->  | F68: =IF(ISERROR(VLOOKUP(B68,'KAYIT LİSTESİ'!$B$4:$H$664,6,0)),"",(VLOOKUP(B68,'KAYIT LİSTESİ'!$B$4:$H$664,6,0))) ->  | J68: 21 | K68: Sırık-21 | L68: =IF(ISERROR(VLOOKUP(K68,'KAYIT LİSTESİ'!$B$4:$H$664,2,0)),"",(VLOOKUP(K68,'KAYIT LİSTESİ'!$B$4:$H$664,2,0))) ->  | M68: =IF(ISERROR(VLOOKUP(K68,'KAYIT LİSTESİ'!$B$4:$H$664,4,0)),"",(VLOOKUP(K68,'KAYIT LİSTESİ'!$B$4:$H$664,4,0))) ->  | N68: =IF(ISERROR(VLOOKUP(K68,'KAYIT LİSTESİ'!$B$4:$H$664,5,0)),"",(VLOOKUP(K68,'KAYIT LİSTESİ'!$B$4:$H$664,5,0))) ->  | O68: =IF(ISERROR(VLOOKUP(K68,'KAYIT LİSTESİ'!$B$4:$H$664,6,0)),"",(VLOOKUP(K68,'KAYIT LİSTESİ'!$B$4:$H$664,6,0))) -> 
A69: 2 | B69: 100M.ENG-3-2 | C69: =IF(ISERROR(VLOOKUP(B69,'KAYIT LİSTESİ'!$B$4:$H$664,2,0)),"",(VLOOKUP(B69,'KAYIT LİSTESİ'!$B$4:$H$664,2,0))) ->  | D69: =IF(ISERROR(VLOOKUP(B69,'KAYIT LİSTESİ'!$B$4:$H$664,4,0)),"",(VLOOKUP(B69,'KAYIT LİSTESİ'!$B$4:$H$664,4,0))) ->  | E69: =IF(ISERROR(VLOOKUP(B69,'KAYIT LİSTESİ'!$B$4:$H$664,5,0)),"",(VLOOKUP(B69,'KAYIT LİSTESİ'!$B$4:$H$664,5,0))) ->  | F69: =IF(ISERROR(VLOOKUP(B69,'KAYIT LİSTESİ'!$B$4:$H$664,6,0)),"",(VLOOKUP(B69,'KAYIT LİSTESİ'!$B$4:$H$664,6,0))) ->  | J69: 22 | K69: Sırık-22 | L69: =IF(ISERROR(VLOOKUP(K69,'KAYIT LİSTESİ'!$B$4:$H$664,2,0)),"",(VLOOKUP(K69,'KAYIT LİSTESİ'!$B$4:$H$664,2,0))) ->  | M69: =IF(ISERROR(VLOOKUP(K69,'KAYIT LİSTESİ'!$B$4:$H$664,4,0)),"",(VLOOKUP(K69,'KAYIT LİSTESİ'!$B$4:$H$664,4,0))) ->  | N69: =IF(ISERROR(VLOOKUP(K69,'KAYIT LİSTESİ'!$B$4:$H$664,5,0)),"",(VLOOKUP(K69,'KAYIT LİSTESİ'!$B$4:$H$664,5,0))) ->  | O69: =IF(ISERROR(VLOOKUP(K69,'KAYIT LİSTESİ'!$B$4:$H$664,6,0)),"",(VLOOKUP(K69,'KAYIT LİSTESİ'!$B$4:$H$664,6,0))) -> 
A70: 3 | B70: 100M.ENG-3-3 | C70: =IF(ISERROR(VLOOKUP(B70,'KAYIT LİSTESİ'!$B$4:$H$664,2,0)),"",(VLOOKUP(B70,'KAYIT LİSTESİ'!$B$4:$H$664,2,0))) ->  | D70: =IF(ISERROR(VLOOKUP(B70,'KAYIT LİSTESİ'!$B$4:$H$664,4,0)),"",(VLOOKUP(B70,'KAYIT LİSTESİ'!$B$4:$H$664,4,0))) ->  | E70: =IF(ISERROR(VLOOKUP(B70,'KAYIT LİSTESİ'!$B$4:$H$664,5,0)),"",(VLOOKUP(B70,'KAYIT LİSTESİ'!$B$4:$H$664,5,0))) ->  | F70: =IF(ISERROR(VLOOKUP(B70,'KAYIT LİSTESİ'!$B$4:$H$664,6,0)),"",(VLOOKUP(B70,'KAYIT LİSTESİ'!$B$4:$H$664,6,0))) ->  | J70: 23 | K70: Sırık-23 | L70: =IF(ISERROR(VLOOKUP(K70,'KAYIT LİSTESİ'!$B$4:$H$664,2,0)),"",(VLOOKUP(K70,'KAYIT LİSTESİ'!$B$4:$H$664,2,0))) ->  | M70: =IF(ISERROR(VLOOKUP(K70,'KAYIT LİSTESİ'!$B$4:$H$664,4,0)),"",(VLOOKUP(K70,'KAYIT LİSTESİ'!$B$4:$H$664,4,0))) ->  | N70: =IF(ISERROR(VLOOKUP(K70,'KAYIT LİSTESİ'!$B$4:$H$664,5,0)),"",(VLOOKUP(K70,'KAYIT LİSTESİ'!$B$4:$H$664,5,0))) ->  | O70: =IF(ISERROR(VLOOKUP(K70,'KAYIT LİSTESİ'!$B$4:$H$664,6,0)),"",(VLOOKUP(K70,'KAYIT LİSTESİ'!$B$4:$H$664,6,0))) -> 
A71: 4 | B71: 100M.ENG-3-4 | C71: =IF(ISERROR(VLOOKUP(B71,'KAYIT LİSTESİ'!$B$4:$H$664,2,0)),"",(VLOOKUP(B71,'KAYIT LİSTESİ'!$B$4:$H$664,2,0))) ->  | D71: =IF(ISERROR(VLOOKUP(B71,'KAYIT LİSTESİ'!$B$4:$H$664,4,0)),"",(VLOOKUP(B71,'KAYIT LİSTESİ'!$B$4:$H$664,4,0))) ->  | E71: =IF(ISERROR(VLOOKUP(B71,'KAYIT LİSTESİ'!$B$4:$H$664,5,0)),"",(VLOOKUP(B71,'KAYIT LİSTESİ'!$B$4:$H$664,5,0))) ->  | F71: =IF(ISERROR(VLOOKUP(B71,'KAYIT LİSTESİ'!$B$4:$H$664,6,0)),"",(VLOOKUP(B71,'KAYIT LİSTESİ'!$B$4:$H$664,6,0))) ->  | J71: 24 | K71: Sırık-24 | L71: =IF(ISERROR(VLOOKUP(K71,'KAYIT LİSTESİ'!$B$4:$H$664,2,0)),"",(VLOOKUP(K71,'KAYIT LİSTESİ'!$B$4:$H$664,2,0))) ->  | M71: =IF(ISERROR(VLOOKUP(K71,'KAYIT LİSTESİ'!$B$4:$H$664,4,0)),"",(VLOOKUP(K71,'KAYIT LİSTESİ'!$B$4:$H$664,4,0))) ->  | N71: =IF(ISERROR(VLOOKUP(K71,'KAYIT LİSTESİ'!$B$4:$H$664,5,0)),"",(VLOOKUP(K71,'KAYIT LİSTESİ'!$B$4:$H$664,5,0))) ->  | O71: =IF(ISERROR(VLOOKUP(K71,'KAYIT LİSTESİ'!$B$4:$H$664,6,0)),"",(VLOOKUP(K71,'KAYIT LİSTESİ'!$B$4:$H$664,6,0))) -> 
A72: 5 | B72: 100M.ENG-3-5 | C72: =IF(ISERROR(VLOOKUP(B72,'KAYIT LİSTESİ'!$B$4:$H$664,2,0)),"",(VLOOKUP(B72,'KAYIT LİSTESİ'!$B$4:$H$664,2,0))) ->  | D72: =IF(ISERROR(VLOOKUP(B72,'KAYIT LİSTESİ'!$B$4:$H$664,4,0)),"",(VLOOKUP(B72,'KAYIT LİSTESİ'!$B$4:$H$664,4,0))) ->  | E72: =IF(ISERROR(VLOOKUP(B72,'KAYIT LİSTESİ'!$B$4:$H$664,5,0)),"",(VLOOKUP(B72,'KAYIT LİSTESİ'!$B$4:$H$664,5,0))) ->  | F72: =IF(ISERROR(VLOOKUP(B72,'KAYIT LİSTESİ'!$B$4:$H$664,6,0)),"",(VLOOKUP(B72,'KAYIT LİSTESİ'!$B$4:$H$664,6,0))) ->  | J72: 25 | K72: Sırık-25 | L72: =IF(ISERROR(VLOOKUP(K72,'KAYIT LİSTESİ'!$B$4:$H$664,2,0)),"",(VLOOKUP(K72,'KAYIT LİSTESİ'!$B$4:$H$664,2,0))) ->  | M72: =IF(ISERROR(VLOOKUP(K72,'KAYIT LİSTESİ'!$B$4:$H$664,4,0)),"",(VLOOKUP(K72,'KAYIT LİSTESİ'!$B$4:$H$664,4,0))) ->  | N72: =IF(ISERROR(VLOOKUP(K72,'KAYIT LİSTESİ'!$B$4:$H$664,5,0)),"",(VLOOKUP(K72,'KAYIT LİSTESİ'!$B$4:$H$664,5,0))) ->  | O72: =IF(ISERROR(VLOOKUP(K72,'KAYIT LİSTESİ'!$B$4:$H$664,6,0)),"",(VLOOKUP(K72,'KAYIT LİSTESİ'!$B$4:$H$664,6,0))) -> 
A73: 6 | B73: 100M.ENG-3-6 | C73: =IF(ISERROR(VLOOKUP(B73,'KAYIT LİSTESİ'!$B$4:$H$664,2,0)),"",(VLOOKUP(B73,'KAYIT LİSTESİ'!$B$4:$H$664,2,0))) ->  | D73: =IF(ISERROR(VLOOKUP(B73,'KAYIT LİSTESİ'!$B$4:$H$664,4,0)),"",(VLOOKUP(B73,'KAYIT LİSTESİ'!$B$4:$H$664,4,0))) ->  | E73: =IF(ISERROR(VLOOKUP(B73,'KAYIT LİSTESİ'!$B$4:$H$664,5,0)),"",(VLOOKUP(B73,'KAYIT LİSTESİ'!$B$4:$H$664,5,0))) ->  | F73: =IF(ISERROR(VLOOKUP(B73,'KAYIT LİSTESİ'!$B$4:$H$664,6,0)),"",(VLOOKUP(B73,'KAYIT LİSTESİ'!$B$4:$H$664,6,0))) ->  | J73: GÜLLE ATMA
A74: 7 | B74: 100M.ENG-3-7 | C74: =IF(ISERROR(VLOOKUP(B74,'KAYIT LİSTESİ'!$B$4:$H$664,2,0)),"",(VLOOKUP(B74,'KAYIT LİSTESİ'!$B$4:$H$664,2,0))) ->  | D74: =IF(ISERROR(VLOOKUP(B74,'KAYIT LİSTESİ'!$B$4:$H$664,4,0)),"",(VLOOKUP(B74,'KAYIT LİSTESİ'!$B$4:$H$664,4,0))) ->  | E74: =IF(ISERROR(VLOOKUP(B74,'KAYIT LİSTESİ'!$B$4:$H$664,5,0)),"",(VLOOKUP(B74,'KAYIT LİSTESİ'!$B$4:$H$664,5,0))) ->  | F74: =IF(ISERROR(VLOOKUP(B74,'KAYIT LİSTESİ'!$B$4:$H$664,6,0)),"",(VLOOKUP(B74,'KAYIT LİSTESİ'!$B$4:$H$664,6,0))) ->  | J74: SIRA NO | L74: GÖĞÜS NO | M74: DOĞUM TARİHİ | N74: ADI VE SOYADI | O74: İli-Okulu | P74: Start Kontrol
A75: 8 | B75: 100M.ENG-3-8 | C75: =IF(ISERROR(VLOOKUP(B75,'KAYIT LİSTESİ'!$B$4:$H$664,2,0)),"",(VLOOKUP(B75,'KAYIT LİSTESİ'!$B$4:$H$664,2,0))) ->  | D75: =IF(ISERROR(VLOOKUP(B75,'KAYIT LİSTESİ'!$B$4:$H$664,4,0)),"",(VLOOKUP(B75,'KAYIT LİSTESİ'!$B$4:$H$664,4,0))) ->  | E75: =IF(ISERROR(VLOOKUP(B75,'KAYIT LİSTESİ'!$B$4:$H$664,5,0)),"",(VLOOKUP(B75,'KAYIT LİSTESİ'!$B$4:$H$664,5,0))) ->  | F75: =IF(ISERROR(VLOOKUP(B75,'KAYIT LİSTESİ'!$B$4:$H$664,6,0)),"",(VLOOKUP(B75,'KAYIT LİSTESİ'!$B$4:$H$664,6,0))) -> 
A76: 4. SERİ | J76: 1 | K76: GÜLLE-1 | L76: =IF(ISERROR(VLOOKUP(K76,'KAYIT LİSTESİ'!$B$4:$H$664,2,0)),"",(VLOOKUP(K76,'KAYIT LİSTESİ'!$B$4:$H$664,2,0))) -> 623 | M76: =IF(ISERROR(VLOOKUP(K76,'KAYIT LİSTESİ'!$B$4:$H$664,4,0)),"",(VLOOKUP(K76,'KAYIT LİSTESİ'!$B$4:$H$664,4,0))) -> 1999-02-09 | N76: =IF(ISERROR(VLOOKUP(K76,'KAYIT LİSTESİ'!$B$4:$H$664,5,0)),"",(VLOOKUP(K76,'KAYIT LİSTESİ'!$B$4:$H$664,5,0))) -> SİMGE ALTIOK | O76: =IF(ISERROR(VLOOKUP(K76,'KAYIT LİSTESİ'!$B$4:$H$664,6,0)),"",(VLOOKUP(K76,'KAYIT LİSTESİ'!$B$4:$H$664,6,0))) -> KAYSERİ
A77: Sıra No | B77: Formül | C77: Göğüs No | D77: Doğum Tarihi | E77: Adı ve Soyadı | F77: İli-Okulu | G77: Start Kontrol | J77: 2 | K77: GÜLLE-2 | L77: =IF(ISERROR(VLOOKUP(K77,'KAYIT LİSTESİ'!$B$4:$H$664,2,0)),"",(VLOOKUP(K77,'KAYIT LİSTESİ'!$B$4:$H$664,2,0))) ->  | M77: =IF(ISERROR(VLOOKUP(K77,'KAYIT LİSTESİ'!$B$4:$H$664,4,0)),"",(VLOOKUP(K77,'KAYIT LİSTESİ'!$B$4:$H$664,4,0))) ->  | N77: =IF(ISERROR(VLOOKUP(K77,'KAYIT LİSTESİ'!$B$4:$H$664,5,0)),"",(VLOOKUP(K77,'KAYIT LİSTESİ'!$B$4:$H$664,5,0))) ->  | O77: =IF(ISERROR(VLOOKUP(K77,'KAYIT LİSTESİ'!$B$4:$H$664,6,0)),"",(VLOOKUP(K77,'KAYIT LİSTESİ'!$B$4:$H$664,6,0))) -> 
A78: 1 | B78: 100M.ENG-4-1 | C78: =IF(ISERROR(VLOOKUP(B78,'KAYIT LİSTESİ'!$B$4:$H$664,2,0)),"",(VLOOKUP(B78,'KAYIT LİSTESİ'!$B$4:$H$664,2,0))) ->  | D78: =IF(ISERROR(VLOOKUP(B78,'KAYIT LİSTESİ'!$B$4:$H$664,4,0)),"",(VLOOKUP(B78,'KAYIT LİSTESİ'!$B$4:$H$664,4,0))) ->  | E78: =IF(ISERROR(VLOOKUP(B78,'KAYIT LİSTESİ'!$B$4:$H$664,5,0)),"",(VLOOKUP(B78,'KAYIT LİSTESİ'!$B$4:$H$664,5,0))) ->  | F78: =IF(ISERROR(VLOOKUP(B78,'KAYIT LİSTESİ'!$B$4:$H$664,6,0)),"",(VLOOKUP(B78,'KAYIT LİSTESİ'!$B$4:$H$664,6,0))) ->  | J78: 3 | K78: GÜLLE-3 | L78: =IF(ISERROR(VLOOKUP(K78,'KAYIT LİSTESİ'!$B$4:$H$664,2,0)),"",(VLOOKUP(K78,'KAYIT LİSTESİ'!$B$4:$H$664,2,0))) ->  | M78: =IF(ISERROR(VLOOKUP(K78,'KAYIT LİSTESİ'!$B$4:$H$664,4,0)),"",(VLOOKUP(K78,'KAYIT LİSTESİ'!$B$4:$H$664,4,0))) ->  | N78: =IF(ISERROR(VLOOKUP(K78,'KAYIT LİSTESİ'!$B$4:$H$664,5,0)),"",(VLOOKUP(K78,'KAYIT LİSTESİ'!$B$4:$H$664,5,0))) ->  | O78: =IF(ISERROR(VLOOKUP(K78,'KAYIT LİSTESİ'!$B$4:$H$664,6,0)),"",(VLOOKUP(K78,'KAYIT LİSTESİ'!$B$4:$H$664,6,0))) -> 
A79: 2 | B79: 100M.ENG-4-2 | C79: =IF(ISERROR(VLOOKUP(B79,'KAYIT LİSTESİ'!$B$4:$H$664,2,0)),"",(VLOOKUP(B79,'KAYIT LİSTESİ'!$B$4:$H$664,2,0))) ->  | D79: =IF(ISERROR(VLOOKUP(B79,'KAYIT LİSTESİ'!$B$4:$H$664,4,0)),"",(VLOOKUP(B79,'KAYIT LİSTESİ'!$B$4:$H$664,4,0))) ->  | E79: =IF(ISERROR(VLOOKUP(B79,'KAYIT LİSTESİ'!$B$4:$H$664,5,0)),"",(VLOOKUP(B79,'KAYIT LİSTESİ'!$B$4:$H$664,5,0))) ->  | F79: =IF(ISERROR(VLOOKUP(B79,'KAYIT LİSTESİ'!$B$4:$H$664,6,0)),"",(VLOOKUP(B79,'KAYIT LİSTESİ'!$B$4:$H$664,6,0))) ->  | J79: 4 | K79: GÜLLE-4 | L79: =IF(ISERROR(VLOOKUP(K79,'KAYIT LİSTESİ'!$B$4:$H$664,2,0)),"",(VLOOKUP(K79,'KAYIT LİSTESİ'!$B$4:$H$664,2,0))) ->  | M79: =IF(ISERROR(VLOOKUP(K79,'KAYIT LİSTESİ'!$B$4:$H$664,4,0)),"",(VLOOKUP(K79,'KAYIT LİSTESİ'!$B$4:$H$664,4,0))) ->  | N79: =IF(ISERROR(VLOOKUP(K79,'KAYIT LİSTESİ'!$B$4:$H$664,5,0)),"",(VLOOKUP(K79,'KAYIT LİSTESİ'!$B$4:$H$664,5,0))) ->  | O79: =IF(ISERROR(VLOOKUP(K79,'KAYIT LİSTESİ'!$B$4:$H$664,6,0)),"",(VLOOKUP(K79,'KAYIT LİSTESİ'!$B$4:$H$664,6,0))) -> 
A80: 3 | B80: 100M.ENG-4-3 | C80: =IF(ISERROR(VLOOKUP(B80,'KAYIT LİSTESİ'!$B$4:$H$664,2,0)),"",(VLOOKUP(B80,'KAYIT LİSTESİ'!$B$4:$H$664,2,0))) ->  | D80: =IF(ISERROR(VLOOKUP(B80,'KAYIT LİSTESİ'!$B$4:$H$664,4,0)),"",(VLOOKUP(B80,'KAYIT LİSTESİ'!$B$4:$H$664,4,0))) ->  | E80: =IF(ISERROR(VLOOKUP(B80,'KAYIT LİSTESİ'!$B$4:$H$664,5,0)),"",(VLOOKUP(B80,'KAYIT LİSTESİ'!$B$4:$H$664,5,0))) ->  | F80: =IF(ISERROR(VLOOKUP(B80,'KAYIT LİSTESİ'!$B$4:$H$664,6,0)),"",(VLOOKUP(B80,'KAYIT LİSTESİ'!$B$4:$H$664,6,0))) ->  | J80: 5 | K80: GÜLLE-5 | L80: =IF(ISERROR(VLOOKUP(K80,'KAYIT LİSTESİ'!$B$4:$H$664,2,0)),"",(VLOOKUP(K80,'KAYIT LİSTESİ'!$B$4:$H$664,2,0))) ->  | M80: =IF(ISERROR(VLOOKUP(K80,'KAYIT LİSTESİ'!$B$4:$H$664,4,0)),"",(VLOOKUP(K80,'KAYIT LİSTESİ'!$B$4:$H$664,4,0))) ->  | N80: =IF(ISERROR(VLOOKUP(K80,'KAYIT LİSTESİ'!$B$4:$H$664,5,0)),"",(VLOOKUP(K80,'KAYIT LİSTESİ'!$B$4:$H$664,5,0))) ->  | O80: =IF(ISERROR(VLOOKUP(K80,'KAYIT LİSTESİ'!$B$4:$H$664,6,0)),"",(VLOOKUP(K80,'KAYIT LİSTESİ'!$B$4:$H$664,6,0))) -> 
A81: 4 | B81: 100M.ENG-4-4 | C81: =IF(ISERROR(VLOOKUP(B81,'KAYIT LİSTESİ'!$B$4:$H$664,2,0)),"",(VLOOKUP(B81,'KAYIT LİSTESİ'!$B$4:$H$664,2,0))) ->  | D81: =IF(ISERROR(VLOOKUP(B81,'KAYIT LİSTESİ'!$B$4:$H$664,4,0)),"",(VLOOKUP(B81,'KAYIT LİSTESİ'!$B$4:$H$664,4,0))) ->  | E81: =IF(ISERROR(VLOOKUP(B81,'KAYIT LİSTESİ'!$B$4:$H$664,5,0)),"",(VLOOKUP(B81,'KAYIT LİSTESİ'!$B$4:$H$664,5,0))) ->  | F81: =IF(ISERROR(VLOOKUP(B81,'KAYIT LİSTESİ'!$B$4:$H$664,6,0)),"",(VLOOKUP(B81,'KAYIT LİSTESİ'!$B$4:$H$664,6,0))) ->  | J81: 6 | K81: GÜLLE-6 | L81: =IF(ISERROR(VLOOKUP(K81,'KAYIT LİSTESİ'!$B$4:$H$664,2,0)),"",(VLOOKUP(K81,'KAYIT LİSTESİ'!$B$4:$H$664,2,0))) ->  | M81: =IF(ISERROR(VLOOKUP(K81,'KAYIT LİSTESİ'!$B$4:$H$664,4,0)),"",(VLOOKUP(K81,'KAYIT LİSTESİ'!$B$4:$H$664,4,0))) ->  | N81: =IF(ISERROR(VLOOKUP(K81,'KAYIT LİSTESİ'!$B$4:$H$664,5,0)),"",(VLOOKUP(K81,'KAYIT LİSTESİ'!$B$4:$H$664,5,0))) ->  | O81: =IF(ISERROR(VLOOKUP(K81,'KAYIT LİSTESİ'!$B$4:$H$664,6,0)),"",(VLOOKUP(K81,'KAYIT LİSTESİ'!$B$4:$H$664,6,0))) -> 
A82: 5 | B82: 100M.ENG-4-5 | C82: =IF(ISERROR(VLOOKUP(B82,'KAYIT LİSTESİ'!$B$4:$H$664,2,0)),"",(VLOOKUP(B82,'KAYIT LİSTESİ'!$B$4:$H$664,2,0))) ->  | D82: =IF(ISERROR(VLOOKUP(B82,'KAYIT LİSTESİ'!$B$4:$H$664,4,0)),"",(VLOOKUP(B82,'KAYIT LİSTESİ'!$B$4:$H$664,4,0))) ->  | E82: =IF(ISERROR(VLOOKUP(B82,'KAYIT LİSTESİ'!$B$4:$H$664,5,0)),"",(VLOOKUP(B82,'KAYIT LİSTESİ'!$B$4:$H$664,5,0))) ->  | F82: =IF(ISERROR(VLOOKUP(B82,'KAYIT LİSTESİ'!$B$4:$H$664,6,0)),"",(VLOOKUP(B82,'KAYIT LİSTESİ'!$B$4:$H$664,6,0))) ->  | J82: 7 | K82: GÜLLE-7 | L82: =IF(ISERROR(VLOOKUP(K82,'KAYIT LİSTESİ'!$B$4:$H$664,2,0)),"",(VLOOKUP(K82,'KAYIT LİSTESİ'!$B$4:$H$664,2,0))) ->  | M82: =IF(ISERROR(VLOOKUP(K82,'KAYIT LİSTESİ'!$B$4:$H$664,4,0)),"",(VLOOKUP(K82,'KAYIT LİSTESİ'!$B$4:$H$664,4,0))) ->  | N82: =IF(ISERROR(VLOOKUP(K82,'KAYIT LİSTESİ'!$B$4:$H$664,5,0)),"",(VLOOKUP(K82,'KAYIT LİSTESİ'!$B$4:$H$664,5,0))) ->  | O82: =IF(ISERROR(VLOOKUP(K82,'KAYIT LİSTESİ'!$B$4:$H$664,6,0)),"",(VLOOKUP(K82,'KAYIT LİSTESİ'!$B$4:$H$664,6,0))) -> 
A83: 6 | B83: 100M.ENG-4-6 | C83: =IF(ISERROR(VLOOKUP(B83,'KAYIT LİSTESİ'!$B$4:$H$664,2,0)),"",(VLOOKUP(B83,'KAYIT LİSTESİ'!$B$4:$H$664,2,0))) ->  | D83: =IF(ISERROR(VLOOKUP(B83,'KAYIT LİSTESİ'!$B$4:$H$664,4,0)),"",(VLOOKUP(B83,'KAYIT LİSTESİ'!$B$4:$H$664,4,0))) ->  | E83: =IF(ISERROR(VLOOKUP(B83,'KAYIT LİSTESİ'!$B$4:$H$664,5,0)),"",(VLOOKUP(B83,'KAYIT LİSTESİ'!$B$4:$H$664,5,0))) ->  | F83: =IF(ISERROR(VLOOKUP(B83,'KAYIT LİSTESİ'!$B$4:$H$664,6,0)),"",(VLOOKUP(B83,'KAYIT LİSTESİ'!$B$4:$H$664,6,0))) ->  | J83: 8 | K83: GÜLLE-8 | L83: =IF(ISERROR(VLOOKUP(K83,'KAYIT LİSTESİ'!$B$4:$H$664,2,0)),"",(VLOOKUP(K83,'KAYIT LİSTESİ'!$B$4:$H$664,2,0))) ->  | M83: =IF(ISERROR(VLOOKUP(K83,'KAYIT LİSTESİ'!$B$4:$H$664,4,0)),"",(VLOOKUP(K83,'KAYIT LİSTESİ'!$B$4:$H$664,4,0))) ->  | N83: =IF(ISERROR(VLOOKUP(K83,'KAYIT LİSTESİ'!$B$4:$H$664,5,0)),"",(VLOOKUP(K83,'KAYIT LİSTESİ'!$B$4:$H$664,5,0))) ->  | O83: =IF(ISERROR(VLOOKUP(K83,'KAYIT LİSTESİ'!$B$4:$H$664,6,0)),"",(VLOOKUP(K83,'KAYIT LİSTESİ'!$B$4:$H$664,6,0))) -> 
A84: 7 | B84: 100M.ENG-4-7 | C84: =IF(ISERROR(VLOOKUP(B84,'KAYIT LİSTESİ'!$B$4:$H$664,2,0)),"",(VLOOKUP(B84,'KAYIT LİSTESİ'!$B$4:$H$664,2,0))) ->  | D84: =IF(ISERROR(VLOOKUP(B84,'KAYIT LİSTESİ'!$B$4:$H$664,4,0)),"",(VLOOKUP(B84,'KAYIT LİSTESİ'!$B$4:$H$664,4,0))) ->  | E84: =IF(ISERROR(VLOOKUP(B84,'KAYIT LİSTESİ'!$B$4:$H$664,5,0)),"",(VLOOKUP(B84,'KAYIT LİSTESİ'!$B$4:$H$664,5,0))) ->  | F84: =IF(ISERROR(VLOOKUP(B84,'KAYIT LİSTESİ'!$B$4:$H$664,6,0)),"",(VLOOKUP(B84,'KAYIT LİSTESİ'!$B$4:$H$664,6,0))) ->  | J84: 9 | K84: GÜLLE-9 | L84: =IF(ISERROR(VLOOKUP(K84,'KAYIT LİSTESİ'!$B$4:$H$664,2,0)),"",(VLOOKUP(K84,'KAYIT LİSTESİ'!$B$4:$H$664,2,0))) ->  | M84: =IF(ISERROR(VLOOKUP(K84,'KAYIT LİSTESİ'!$B$4:$H$664,4,0)),"",(VLOOKUP(K84,'KAYIT LİSTESİ'!$B$4:$H$664,4,0))) ->  | N84: =IF(ISERROR(VLOOKUP(K84,'KAYIT LİSTESİ'!$B$4:$H$664,5,0)),"",(VLOOKUP(K84,'KAYIT LİSTESİ'!$B$4:$H$664,5,0))) ->  | O84: =IF(ISERROR(VLOOKUP(K84,'KAYIT LİSTESİ'!$B$4:$H$664,6,0)),"",(VLOOKUP(K84,'KAYIT LİSTESİ'!$B$4:$H$664,6,0))) -> 
A85: 8 | B85: 100M.ENG-4-8 | C85: =IF(ISERROR(VLOOKUP(B85,'KAYIT LİSTESİ'!$B$4:$H$664,2,0)),"",(VLOOKUP(B85,'KAYIT LİSTESİ'!$B$4:$H$664,2,0))) ->  | D85: =IF(ISERROR(VLOOKUP(B85,'KAYIT LİSTESİ'!$B$4:$H$664,4,0)),"",(VLOOKUP(B85,'KAYIT LİSTESİ'!$B$4:$H$664,4,0))) ->  | E85: =IF(ISERROR(VLOOKUP(B85,'KAYIT LİSTESİ'!$B$4:$H$664,5,0)),"",(VLOOKUP(B85,'KAYIT LİSTESİ'!$B$4:$H$664,5,0))) ->  | F85: =IF(ISERROR(VLOOKUP(B85,'KAYIT LİSTESİ'!$B$4:$H$664,6,0)),"",(VLOOKUP(B85,'KAYIT LİSTESİ'!$B$4:$H$664,6,0))) ->  | J85: 10 | K85: GÜLLE-10 | L85: =IF(ISERROR(VLOOKUP(K85,'KAYIT LİSTESİ'!$B$4:$H$664,2,0)),"",(VLOOKUP(K85,'KAYIT LİSTESİ'!$B$4:$H$664,2,0))) ->  | M85: =IF(ISERROR(VLOOKUP(K85,'KAYIT LİSTESİ'!$B$4:$H$664,4,0)),"",(VLOOKUP(K85,'KAYIT LİSTESİ'!$B$4:$H$664,4,0))) ->  | N85: =IF(ISERROR(VLOOKUP(K85,'KAYIT LİSTESİ'!$B$4:$H$664,5,0)),"",(VLOOKUP(K85,'KAYIT LİSTESİ'!$B$4:$H$664,5,0))) ->  | O85: =IF(ISERROR(VLOOKUP(K85,'KAYIT LİSTESİ'!$B$4:$H$664,6,0)),"",(VLOOKUP(K85,'KAYIT LİSTESİ'!$B$4:$H$664,6,0))) -> 
A86: 1500 METRE | J86: 11 | K86: GÜLLE-11 | L86: =IF(ISERROR(VLOOKUP(K86,'KAYIT LİSTESİ'!$B$4:$H$664,2,0)),"",(VLOOKUP(K86,'KAYIT LİSTESİ'!$B$4:$H$664,2,0))) ->  | M86: =IF(ISERROR(VLOOKUP(K86,'KAYIT LİSTESİ'!$B$4:$H$664,4,0)),"",(VLOOKUP(K86,'KAYIT LİSTESİ'!$B$4:$H$664,4,0))) ->  | N86: =IF(ISERROR(VLOOKUP(K86,'KAYIT LİSTESİ'!$B$4:$H$664,5,0)),"",(VLOOKUP(K86,'KAYIT LİSTESİ'!$B$4:$H$664,5,0))) ->  | O86: =IF(ISERROR(VLOOKUP(K86,'KAYIT LİSTESİ'!$B$4:$H$664,6,0)),"",(VLOOKUP(K86,'KAYIT LİSTESİ'!$B$4:$H$664,6,0))) -> 
A87: 1. SERİ | J87: 12 | K87: GÜLLE-12 | L87: =IF(ISERROR(VLOOKUP(K87,'KAYIT LİSTESİ'!$B$4:$H$664,2,0)),"",(VLOOKUP(K87,'KAYIT LİSTESİ'!$B$4:$H$664,2,0))) ->  | M87: =IF(ISERROR(VLOOKUP(K87,'KAYIT LİSTESİ'!$B$4:$H$664,4,0)),"",(VLOOKUP(K87,'KAYIT LİSTESİ'!$B$4:$H$664,4,0))) ->  | N87: =IF(ISERROR(VLOOKUP(K87,'KAYIT LİSTESİ'!$B$4:$H$664,5,0)),"",(VLOOKUP(K87,'KAYIT LİSTESİ'!$B$4:$H$664,5,0))) ->  | O87: =IF(ISERROR(VLOOKUP(K87,'KAYIT LİSTESİ'!$B$4:$H$664,6,0)),"",(VLOOKUP(K87,'KAYIT LİSTESİ'!$B$4:$H$664,6,0))) -> 
A88: Sıra No | B88: Formül | C88: Göğüs No | D88: Doğum Tarihi | E88: Adı ve Soyadı | F88: İli-Okulu | G88: Start Kontrol | J88: 13 | K88: GÜLLE-13 | L88: =IF(ISERROR(VLOOKUP(K88,'KAYIT LİSTESİ'!$B$4:$H$664,2,0)),"",(VLOOKUP(K88,'KAYIT LİSTESİ'!$B$4:$H$664,2,0))) ->  | M88: =IF(ISERROR(VLOOKUP(K88,'KAYIT LİSTESİ'!$B$4:$H$664,4,0)),"",(VLOOKUP(K88,'KAYIT LİSTESİ'!$B$4:$H$664,4,0))) ->  | N88: =IF(ISERROR(VLOOKUP(K88,'KAYIT LİSTESİ'!$B$4:$H$664,5,0)),"",(VLOOKUP(K88,'KAYIT LİSTESİ'!$B$4:$H$664,5,0))) ->  | O88: =IF(ISERROR(VLOOKUP(K88,'KAYIT LİSTESİ'!$B$4:$H$664,6,0)),"",(VLOOKUP(K88,'KAYIT LİSTESİ'!$B$4:$H$664,6,0))) -> 
A89: 1 | B89: 1500M-1-1 | C89: =IF(ISERROR(VLOOKUP(B89,'KAYIT LİSTESİ'!$B$4:$H$664,2,0)),"",(VLOOKUP(B89,'KAYIT LİSTESİ'!$B$4:$H$664,2,0))) -> 629 | D89: =IF(ISERROR(VLOOKUP(B89,'KAYIT LİSTESİ'!$B$4:$H$664,4,0)),"",(VLOOKUP(B89,'KAYIT LİSTESİ'!$B$4:$H$664,4,0))) -> 1998-01-18 | E89: =IF(ISERROR(VLOOKUP(B89,'KAYIT LİSTESİ'!$B$4:$H$664,5,0)),"",(VLOOKUP(B89,'KAYIT LİSTESİ'!$B$4:$H$664,5,0))) -> SEMRA KARASLAN | F89: =IF(ISERROR(VLOOKUP(B89,'KAYIT LİSTESİ'!$B$4:$H$664,6,0)),"",(VLOOKUP(B89,'KAYIT LİSTESİ'!$B$4:$H$664,6,0))) -> KIRIKKALE | J89: 14 | K89: GÜLLE-14 | L89: =IF(ISERROR(VLOOKUP(K89,'KAYIT LİSTESİ'!$B$4:$H$664,2,0)),"",(VLOOKUP(K89,'KAYIT LİSTESİ'!$B$4:$H$664,2,0))) ->  | M89: =IF(ISERROR(VLOOKUP(K89,'KAYIT LİSTESİ'!$B$4:$H$664,4,0)),"",(VLOOKUP(K89,'KAYIT LİSTESİ'!$B$4:$H$664,4,0))) ->  | N89: =IF(ISERROR(VLOOKUP(K89,'KAYIT LİSTESİ'!$B$4:$H$664,5,0)),"",(VLOOKUP(K89,'KAYIT LİSTESİ'!$B$4:$H$664,5,0))) ->  | O89: =IF(ISERROR(VLOOKUP(K89,'KAYIT LİSTESİ'!$B$4:$H$664,6,0)),"",(VLOOKUP(K89,'KAYIT LİSTESİ'!$B$4:$H$664,6,0))) -> 
A90: 2 | B90: 1500M-1-2 | C90: =IF(ISERROR(VLOOKUP(B90,'KAYIT LİSTESİ'!$B$4:$H$664,2,0)),"",(VLOOKUP(B90,'KAYIT LİSTESİ'!$B$4:$H$664,2,0))) -> 612 | D90: =IF(ISERROR(VLOOKUP(B90,'KAYIT LİSTESİ'!$B$4:$H$664,4,0)),"",(VLOOKUP(B90,'KAYIT LİSTESİ'!$B$4:$H$664,4,0))) -> 1999-06-23 | E90: =IF(ISERROR(VLOOKUP(B90,'KAYIT LİSTESİ'!$B$4:$H$664,5,0)),"",(VLOOKUP(B90,'KAYIT LİSTESİ'!$B$4:$H$664,5,0))) -> FADİME KOŞAR | F90: =IF(ISERROR(VLOOKUP(B90,'KAYIT LİSTESİ'!$B$4:$H$664,6,0)),"",(VLOOKUP(B90,'KAYIT LİSTESİ'!$B$4:$H$664,6,0))) -> KONYA | J90: 15 | K90: GÜLLE-15 | L90: =IF(ISERROR(VLOOKUP(K90,'KAYIT LİSTESİ'!$B$4:$H$664,2,0)),"",(VLOOKUP(K90,'KAYIT LİSTESİ'!$B$4:$H$664,2,0))) ->  | M90: =IF(ISERROR(VLOOKUP(K90,'KAYIT LİSTESİ'!$B$4:$H$664,4,0)),"",(VLOOKUP(K90,'KAYIT LİSTESİ'!$B$4:$H$664,4,0))) ->  | N90: =IF(ISERROR(VLOOKUP(K90,'KAYIT LİSTESİ'!$B$4:$H$664,5,0)),"",(VLOOKUP(K90,'KAYIT LİSTESİ'!$B$4:$H$664,5,0))) ->  | O90: =IF(ISERROR(VLOOKUP(K90,'KAYIT LİSTESİ'!$B$4:$H$664,6,0)),"",(VLOOKUP(K90,'KAYIT LİSTESİ'!$B$4:$H$664,6,0))) -> 
A91: 3 | B91: 1500M-1-3 | C91: =IF(ISERROR(VLOOKUP(B91,'KAYIT LİSTESİ'!$B$4:$H$664,2,0)),"",(VLOOKUP(B91,'KAYIT LİSTESİ'!$B$4:$H$664,2,0))) -> 614 | D91: =IF(ISERROR(VLOOKUP(B91,'KAYIT LİSTESİ'!$B$4:$H$664,4,0)),"",(VLOOKUP(B91,'KAYIT LİSTESİ'!$B$4:$H$664,4,0))) -> 1999-08-15 | E91: =IF(ISERROR(VLOOKUP(B91,'KAYIT LİSTESİ'!$B$4:$H$664,5,0)),"",(VLOOKUP(B91,'KAYIT LİSTESİ'!$B$4:$H$664,5,0))) -> SELENAY BATİ | F91: =IF(ISERROR(VLOOKUP(B91,'KAYIT LİSTESİ'!$B$4:$H$664,6,0)),"",(VLOOKUP(B91,'KAYIT LİSTESİ'!$B$4:$H$664,6,0))) -> HATAY | J91: 16 | K91: GÜLLE-16 | L91: =IF(ISERROR(VLOOKUP(K91,'KAYIT LİSTESİ'!$B$4:$H$664,2,0)),"",(VLOOKUP(K91,'KAYIT LİSTESİ'!$B$4:$H$664,2,0))) ->  | M91: =IF(ISERROR(VLOOKUP(K91,'KAYIT LİSTESİ'!$B$4:$H$664,4,0)),"",(VLOOKUP(K91,'KAYIT LİSTESİ'!$B$4:$H$664,4,0))) ->  | N91: =IF(ISERROR(VLOOKUP(K91,'KAYIT LİSTESİ'!$B$4:$H$664,5,0)),"",(VLOOKUP(K91,'KAYIT LİSTESİ'!$B$4:$H$664,5,0))) ->  | O91: =IF(ISERROR(VLOOKUP(K91,'KAYIT LİSTESİ'!$B$4:$H$664,6,0)),"",(VLOOKUP(K91,'KAYIT LİSTESİ'!$B$4:$H$664,6,0))) -> 
A92: 4 | B92: 1500M-1-4 | C92: =IF(ISERROR(VLOOKUP(B92,'KAYIT LİSTESİ'!$B$4:$H$664,2,0)),"",(VLOOKUP(B92,'KAYIT LİSTESİ'!$B$4:$H$664,2,0))) -> 630 | D92: =IF(ISERROR(VLOOKUP(B92,'KAYIT LİSTESİ'!$B$4:$H$664,4,0)),"",(VLOOKUP(B92,'KAYIT LİSTESİ'!$B$4:$H$664,4,0))) -> 1998-12-30 | E92: =IF(ISERROR(VLOOKUP(B92,'KAYIT LİSTESİ'!$B$4:$H$664,5,0)),"",(VLOOKUP(B92,'KAYIT LİSTESİ'!$B$4:$H$664,5,0))) -> BELHUDE SALMANLI | F92: =IF(ISERROR(VLOOKUP(B92,'KAYIT LİSTESİ'!$B$4:$H$664,6,0)),"",(VLOOKUP(B92,'KAYIT LİSTESİ'!$B$4:$H$664,6,0))) -> KIRIKKALE | J92: 17 | K92: GÜLLE-17 | L92: =IF(ISERROR(VLOOKUP(K92,'KAYIT LİSTESİ'!$B$4:$H$664,2,0)),"",(VLOOKUP(K92,'KAYIT LİSTESİ'!$B$4:$H$664,2,0))) ->  | M92: =IF(ISERROR(VLOOKUP(K92,'KAYIT LİSTESİ'!$B$4:$H$664,4,0)),"",(VLOOKUP(K92,'KAYIT LİSTESİ'!$B$4:$H$664,4,0))) ->  | N92: =IF(ISERROR(VLOOKUP(K92,'KAYIT LİSTESİ'!$B$4:$H$664,5,0)),"",(VLOOKUP(K92,'KAYIT LİSTESİ'!$B$4:$H$664,5,0))) ->  | O92: =IF(ISERROR(VLOOKUP(K92,'KAYIT LİSTESİ'!$B$4:$H$664,6,0)),"",(VLOOKUP(K92,'KAYIT LİSTESİ'!$B$4:$H$664,6,0))) -> 
A93: 5 | B93: 1500M-1-5 | C93: =IF(ISERROR(VLOOKUP(B93,'KAYIT LİSTESİ'!$B$4:$H$664,2,0)),"",(VLOOKUP(B93,'KAYIT LİSTESİ'!$B$4:$H$664,2,0))) -> 617 | D93: =IF(ISERROR(VLOOKUP(B93,'KAYIT LİSTESİ'!$B$4:$H$664,4,0)),"",(VLOOKUP(B93,'KAYIT LİSTESİ'!$B$4:$H$664,4,0))) -> 1999-06-03 | E93: =IF(ISERROR(VLOOKUP(B93,'KAYIT LİSTESİ'!$B$4:$H$664,5,0)),"",(VLOOKUP(B93,'KAYIT LİSTESİ'!$B$4:$H$664,5,0))) -> SEÇİL AKPINAR | F93: =IF(ISERROR(VLOOKUP(B93,'KAYIT LİSTESİ'!$B$4:$H$664,6,0)),"",(VLOOKUP(B93,'KAYIT LİSTESİ'!$B$4:$H$664,6,0))) -> HATAY | J93: 18 | K93: GÜLLE-18 | L93: =IF(ISERROR(VLOOKUP(K93,'KAYIT LİSTESİ'!$B$4:$H$664,2,0)),"",(VLOOKUP(K93,'KAYIT LİSTESİ'!$B$4:$H$664,2,0))) ->  | M93: =IF(ISERROR(VLOOKUP(K93,'KAYIT LİSTESİ'!$B$4:$H$664,4,0)),"",(VLOOKUP(K93,'KAYIT LİSTESİ'!$B$4:$H$664,4,0))) ->  | N93: =IF(ISERROR(VLOOKUP(K93,'KAYIT LİSTESİ'!$B$4:$H$664,5,0)),"",(VLOOKUP(K93,'KAYIT LİSTESİ'!$B$4:$H$664,5,0))) ->  | O93: =IF(ISERROR(VLOOKUP(K93,'KAYIT LİSTESİ'!$B$4:$H$664,6,0)),"",(VLOOKUP(K93,'KAYIT LİSTESİ'!$B$4:$H$664,6,0))) -> 
A94: 6 | B94: 1500M-1-6 | C94: =IF(ISERROR(VLOOKUP(B94,'KAYIT LİSTESİ'!$B$4:$H$664,2,0)),"",(VLOOKUP(B94,'KAYIT LİSTESİ'!$B$4:$H$664,2,0))) ->  | D94: =IF(ISERROR(VLOOKUP(B94,'KAYIT LİSTESİ'!$B$4:$H$664,4,0)),"",(VLOOKUP(B94,'KAYIT LİSTESİ'!$B$4:$H$664,4,0))) ->  | E94: =IF(ISERROR(VLOOKUP(B94,'KAYIT LİSTESİ'!$B$4:$H$664,5,0)),"",(VLOOKUP(B94,'KAYIT LİSTESİ'!$B$4:$H$664,5,0))) ->  | F94: =IF(ISERROR(VLOOKUP(B94,'KAYIT LİSTESİ'!$B$4:$H$664,6,0)),"",(VLOOKUP(B94,'KAYIT LİSTESİ'!$B$4:$H$664,6,0))) ->  | J94: 19 | K94: GÜLLE-19 | L94: =IF(ISERROR(VLOOKUP(K94,'KAYIT LİSTESİ'!$B$4:$H$664,2,0)),"",(VLOOKUP(K94,'KAYIT LİSTESİ'!$B$4:$H$664,2,0))) ->  | M94: =IF(ISERROR(VLOOKUP(K94,'KAYIT LİSTESİ'!$B$4:$H$664,4,0)),"",(VLOOKUP(K94,'KAYIT LİSTESİ'!$B$4:$H$664,4,0))) ->  | N94: =IF(ISERROR(VLOOKUP(K94,'KAYIT LİSTESİ'!$B$4:$H$664,5,0)),"",(VLOOKUP(K94,'KAYIT LİSTESİ'!$B$4:$H$664,5,0))) ->  | O94: =IF(ISERROR(VLOOKUP(K94,'KAYIT LİSTESİ'!$B$4:$H$664,6,0)),"",(VLOOKUP(K94,'KAYIT LİSTESİ'!$B$4:$H$664,6,0))) -> 
A95: 7 | B95: 1500M-1-7 | C95: =IF(ISERROR(VLOOKUP(B95,'KAYIT LİSTESİ'!$B$4:$H$664,2,0)),"",(VLOOKUP(B95,'KAYIT LİSTESİ'!$B$4:$H$664,2,0))) ->  | D95: =IF(ISERROR(VLOOKUP(B95,'KAYIT LİSTESİ'!$B$4:$H$664,4,0)),"",(VLOOKUP(B95,'KAYIT LİSTESİ'!$B$4:$H$664,4,0))) ->  | E95: =IF(ISERROR(VLOOKUP(B95,'KAYIT LİSTESİ'!$B$4:$H$664,5,0)),"",(VLOOKUP(B95,'KAYIT LİSTESİ'!$B$4:$H$664,5,0))) ->  | F95: =IF(ISERROR(VLOOKUP(B95,'KAYIT LİSTESİ'!$B$4:$H$664,6,0)),"",(VLOOKUP(B95,'KAYIT LİSTESİ'!$B$4:$H$664,6,0))) ->  | J95: 20 | K95: GÜLLE-20 | L95: =IF(ISERROR(VLOOKUP(K95,'KAYIT LİSTESİ'!$B$4:$H$664,2,0)),"",(VLOOKUP(K95,'KAYIT LİSTESİ'!$B$4:$H$664,2,0))) ->  | M95: =IF(ISERROR(VLOOKUP(K95,'KAYIT LİSTESİ'!$B$4:$H$664,4,0)),"",(VLOOKUP(K95,'KAYIT LİSTESİ'!$B$4:$H$664,4,0))) ->  | N95: =IF(ISERROR(VLOOKUP(K95,'KAYIT LİSTESİ'!$B$4:$H$664,5,0)),"",(VLOOKUP(K95,'KAYIT LİSTESİ'!$B$4:$H$664,5,0))) ->  | O95: =IF(ISERROR(VLOOKUP(K95,'KAYIT LİSTESİ'!$B$4:$H$664,6,0)),"",(VLOOKUP(K95,'KAYIT LİSTESİ'!$B$4:$H$664,6,0))) -> 
A96: 8 | B96: 1500M-1-8 | C96: =IF(ISERROR(VLOOKUP(B96,'KAYIT LİSTESİ'!$B$4:$H$664,2,0)),"",(VLOOKUP(B96,'KAYIT LİSTESİ'!$B$4:$H$664,2,0))) ->  | D96: =IF(ISERROR(VLOOKUP(B96,'KAYIT LİSTESİ'!$B$4:$H$664,4,0)),"",(VLOOKUP(B96,'KAYIT LİSTESİ'!$B$4:$H$664,4,0))) ->  | E96: =IF(ISERROR(VLOOKUP(B96,'KAYIT LİSTESİ'!$B$4:$H$664,5,0)),"",(VLOOKUP(B96,'KAYIT LİSTESİ'!$B$4:$H$664,5,0))) ->  | F96: =IF(ISERROR(VLOOKUP(B96,'KAYIT LİSTESİ'!$B$4:$H$664,6,0)),"",(VLOOKUP(B96,'KAYIT LİSTESİ'!$B$4:$H$664,6,0))) ->  | J96: 21 | K96: GÜLLE-21 | L96: =IF(ISERROR(VLOOKUP(K96,'KAYIT LİSTESİ'!$B$4:$H$664,2,0)),"",(VLOOKUP(K96,'KAYIT LİSTESİ'!$B$4:$H$664,2,0))) ->  | M96: =IF(ISERROR(VLOOKUP(K96,'KAYIT LİSTESİ'!$B$4:$H$664,4,0)),"",(VLOOKUP(K96,'KAYIT LİSTESİ'!$B$4:$H$664,4,0))) ->  | N96: =IF(ISERROR(VLOOKUP(K96,'KAYIT LİSTESİ'!$B$4:$H$664,5,0)),"",(VLOOKUP(K96,'KAYIT LİSTESİ'!$B$4:$H$664,5,0))) ->  | O96: =IF(ISERROR(VLOOKUP(K96,'KAYIT LİSTESİ'!$B$4:$H$664,6,0)),"",(VLOOKUP(K96,'KAYIT LİSTESİ'!$B$4:$H$664,6,0))) -> 
A97: 9 | B97: 1500M-1-9 | C97: =IF(ISERROR(VLOOKUP(B97,'KAYIT LİSTESİ'!$B$4:$H$664,2,0)),"",(VLOOKUP(B97,'KAYIT LİSTESİ'!$B$4:$H$664,2,0))) ->  | D97: =IF(ISERROR(VLOOKUP(B97,'KAYIT LİSTESİ'!$B$4:$H$664,4,0)),"",(VLOOKUP(B97,'KAYIT LİSTESİ'!$B$4:$H$664,4,0))) ->  | E97: =IF(ISERROR(VLOOKUP(B97,'KAYIT LİSTESİ'!$B$4:$H$664,5,0)),"",(VLOOKUP(B97,'KAYIT LİSTESİ'!$B$4:$H$664,5,0))) ->  | F97: =IF(ISERROR(VLOOKUP(B97,'KAYIT LİSTESİ'!$B$4:$H$664,6,0)),"",(VLOOKUP(B97,'KAYIT LİSTESİ'!$B$4:$H$664,6,0))) ->  | J97: 22 | K97: GÜLLE-22 | L97: =IF(ISERROR(VLOOKUP(K97,'KAYIT LİSTESİ'!$B$4:$H$664,2,0)),"",(VLOOKUP(K97,'KAYIT LİSTESİ'!$B$4:$H$664,2,0))) ->  | M97: =IF(ISERROR(VLOOKUP(K97,'KAYIT LİSTESİ'!$B$4:$H$664,4,0)),"",(VLOOKUP(K97,'KAYIT LİSTESİ'!$B$4:$H$664,4,0))) ->  | N97: =IF(ISERROR(VLOOKUP(K97,'KAYIT LİSTESİ'!$B$4:$H$664,5,0)),"",(VLOOKUP(K97,'KAYIT LİSTESİ'!$B$4:$H$664,5,0))) ->  | O97: =IF(ISERROR(VLOOKUP(K97,'KAYIT LİSTESİ'!$B$4:$H$664,6,0)),"",(VLOOKUP(K97,'KAYIT LİSTESİ'!$B$4:$H$664,6,0))) -> 
A98: 10 | B98: 1500M-1-10 | C98: =IF(ISERROR(VLOOKUP(B98,'KAYIT LİSTESİ'!$B$4:$H$664,2,0)),"",(VLOOKUP(B98,'KAYIT LİSTESİ'!$B$4:$H$664,2,0))) ->  | D98: =IF(ISERROR(VLOOKUP(B98,'KAYIT LİSTESİ'!$B$4:$H$664,4,0)),"",(VLOOKUP(B98,'KAYIT LİSTESİ'!$B$4:$H$664,4,0))) ->  | E98: =IF(ISERROR(VLOOKUP(B98,'KAYIT LİSTESİ'!$B$4:$H$664,5,0)),"",(VLOOKUP(B98,'KAYIT LİSTESİ'!$B$4:$H$664,5,0))) ->  | F98: =IF(ISERROR(VLOOKUP(B98,'KAYIT LİSTESİ'!$B$4:$H$664,6,0)),"",(VLOOKUP(B98,'KAYIT LİSTESİ'!$B$4:$H$664,6,0))) ->  | J98: 23 | K98: GÜLLE-23 | L98: =IF(ISERROR(VLOOKUP(K98,'KAYIT LİSTESİ'!$B$4:$H$664,2,0)),"",(VLOOKUP(K98,'KAYIT LİSTESİ'!$B$4:$H$664,2,0))) ->  | M98: =IF(ISERROR(VLOOKUP(K98,'KAYIT LİSTESİ'!$B$4:$H$664,4,0)),"",(VLOOKUP(K98,'KAYIT LİSTESİ'!$B$4:$H$664,4,0))) ->  | N98: =IF(ISERROR(VLOOKUP(K98,'KAYIT LİSTESİ'!$B$4:$H$664,5,0)),"",(VLOOKUP(K98,'KAYIT LİSTESİ'!$B$4:$H$664,5,0))) ->  | O98: =IF(ISERROR(VLOOKUP(K98,'KAYIT LİSTESİ'!$B$4:$H$664,6,0)),"",(VLOOKUP(K98,'KAYIT LİSTESİ'!$B$4:$H$664,6,0))) -> 
A99: 11 | B99: 1500M-1-11 | C99: =IF(ISERROR(VLOOKUP(B99,'KAYIT LİSTESİ'!$B$4:$H$664,2,0)),"",(VLOOKUP(B99,'KAYIT LİSTESİ'!$B$4:$H$664,2,0))) ->  | D99: =IF(ISERROR(VLOOKUP(B99,'KAYIT LİSTESİ'!$B$4:$H$664,4,0)),"",(VLOOKUP(B99,'KAYIT LİSTESİ'!$B$4:$H$664,4,0))) ->  | E99: =IF(ISERROR(VLOOKUP(B99,'KAYIT LİSTESİ'!$B$4:$H$664,5,0)),"",(VLOOKUP(B99,'KAYIT LİSTESİ'!$B$4:$H$664,5,0))) ->  | F99: =IF(ISERROR(VLOOKUP(B99,'KAYIT LİSTESİ'!$B$4:$H$664,6,0)),"",(VLOOKUP(B99,'KAYIT LİSTESİ'!$B$4:$H$664,6,0))) ->  | J99: 24 | K99: GÜLLE-24 | L99: =IF(ISERROR(VLOOKUP(K99,'KAYIT LİSTESİ'!$B$4:$H$664,2,0)),"",(VLOOKUP(K99,'KAYIT LİSTESİ'!$B$4:$H$664,2,0))) ->  | M99: =IF(ISERROR(VLOOKUP(K99,'KAYIT LİSTESİ'!$B$4:$H$664,4,0)),"",(VLOOKUP(K99,'KAYIT LİSTESİ'!$B$4:$H$664,4,0))) ->  | N99: =IF(ISERROR(VLOOKUP(K99,'KAYIT LİSTESİ'!$B$4:$H$664,5,0)),"",(VLOOKUP(K99,'KAYIT LİSTESİ'!$B$4:$H$664,5,0))) ->  | O99: =IF(ISERROR(VLOOKUP(K99,'KAYIT LİSTESİ'!$B$4:$H$664,6,0)),"",(VLOOKUP(K99,'KAYIT LİSTESİ'!$B$4:$H$664,6,0))) -> 
A100: 12 | B100: 1500M-1-12 | C100: =IF(ISERROR(VLOOKUP(B100,'KAYIT LİSTESİ'!$B$4:$H$664,2,0)),"",(VLOOKUP(B100,'KAYIT LİSTESİ'!$B$4:$H$664,2,0))) ->  | D100: =IF(ISERROR(VLOOKUP(B100,'KAYIT LİSTESİ'!$B$4:$H$664,4,0)),"",(VLOOKUP(B100,'KAYIT LİSTESİ'!$B$4:$H$664,4,0))) ->  | E100: =IF(ISERROR(VLOOKUP(B100,'KAYIT LİSTESİ'!$B$4:$H$664,5,0)),"",(VLOOKUP(B100,'KAYIT LİSTESİ'!$B$4:$H$664,5,0))) ->  | F100: =IF(ISERROR(VLOOKUP(B100,'KAYIT LİSTESİ'!$B$4:$H$664,6,0)),"",(VLOOKUP(B100,'KAYIT LİSTESİ'!$B$4:$H$664,6,0))) ->  | J100: 25 | K100: GÜLLE-25 | L100: =IF(ISERROR(VLOOKUP(K100,'KAYIT LİSTESİ'!$B$4:$H$664,2,0)),"",(VLOOKUP(K100,'KAYIT LİSTESİ'!$B$4:$H$664,2,0))) ->  | M100: =IF(ISERROR(VLOOKUP(K100,'KAYIT LİSTESİ'!$B$4:$H$664,4,0)),"",(VLOOKUP(K100,'KAYIT LİSTESİ'!$B$4:$H$664,4,0))) ->  | N100: =IF(ISERROR(VLOOKUP(K100,'KAYIT LİSTESİ'!$B$4:$H$664,5,0)),"",(VLOOKUP(K100,'KAYIT LİSTESİ'!$B$4:$H$664,5,0))) ->  | O100: =IF(ISERROR(VLOOKUP(K100,'KAYIT LİSTESİ'!$B$4:$H$664,6,0)),"",(VLOOKUP(K100,'KAYIT LİSTESİ'!$B$4:$H$664,6,0))) -> 
A101: 2. SERİ | J101: 26 | K101: GÜLLE-26 | L101: =IF(ISERROR(VLOOKUP(K101,'KAYIT LİSTESİ'!$B$4:$H$664,2,0)),"",(VLOOKUP(K101,'KAYIT LİSTESİ'!$B$4:$H$664,2,0))) ->  | M101: =IF(ISERROR(VLOOKUP(K101,'KAYIT LİSTESİ'!$B$4:$H$664,4,0)),"",(VLOOKUP(K101,'KAYIT LİSTESİ'!$B$4:$H$664,4,0))) ->  | N101: =IF(ISERROR(VLOOKUP(K101,'KAYIT LİSTESİ'!$B$4:$H$664,5,0)),"",(VLOOKUP(K101,'KAYIT LİSTESİ'!$B$4:$H$664,5,0))) ->  | O101: =IF(ISERROR(VLOOKUP(K101,'KAYIT LİSTESİ'!$B$4:$H$664,6,0)),"",(VLOOKUP(K101,'KAYIT LİSTESİ'!$B$4:$H$664,6,0))) -> 
A102: Sıra No | B102: Formül | C102: Göğüs No | D102: Doğum Tarihi | E102: Adı ve Soyadı | F102: İli-Okulu | G102: Start Kontrol | J102: 27 | K102: GÜLLE-27 | L102: =IF(ISERROR(VLOOKUP(K102,'KAYIT LİSTESİ'!$B$4:$H$664,2,0)),"",(VLOOKUP(K102,'KAYIT LİSTESİ'!$B$4:$H$664,2,0))) ->  | M102: =IF(ISERROR(VLOOKUP(K102,'KAYIT LİSTESİ'!$B$4:$H$664,4,0)),"",(VLOOKUP(K102,'KAYIT LİSTESİ'!$B$4:$H$664,4,0))) ->  | N102: =IF(ISERROR(VLOOKUP(K102,'KAYIT LİSTESİ'!$B$4:$H$664,5,0)),"",(VLOOKUP(K102,'KAYIT LİSTESİ'!$B$4:$H$664,5,0))) ->  | O102: =IF(ISERROR(VLOOKUP(K102,'KAYIT LİSTESİ'!$B$4:$H$664,6,0)),"",(VLOOKUP(K102,'KAYIT LİSTESİ'!$B$4:$H$664,6,0))) -> 
A103: 1 | B103: 1500M-2-1 | C103: =IF(ISERROR(VLOOKUP(B103,'KAYIT LİSTESİ'!$B$4:$H$664,2,0)),"",(VLOOKUP(B103,'KAYIT LİSTESİ'!$B$4:$H$664,2,0))) ->  | D103: =IF(ISERROR(VLOOKUP(B103,'KAYIT LİSTESİ'!$B$4:$H$664,4,0)),"",(VLOOKUP(B103,'KAYIT LİSTESİ'!$B$4:$H$664,4,0))) ->  | E103: =IF(ISERROR(VLOOKUP(B103,'KAYIT LİSTESİ'!$B$4:$H$664,5,0)),"",(VLOOKUP(B103,'KAYIT LİSTESİ'!$B$4:$H$664,5,0))) ->  | F103: =IF(ISERROR(VLOOKUP(B103,'KAYIT LİSTESİ'!$B$4:$H$664,6,0)),"",(VLOOKUP(B103,'KAYIT LİSTESİ'!$B$4:$H$664,6,0))) ->  | J103: 28 | K103: GÜLLE-28 | L103: =IF(ISERROR(VLOOKUP(K103,'KAYIT LİSTESİ'!$B$4:$H$664,2,0)),"",(VLOOKUP(K103,'KAYIT LİSTESİ'!$B$4:$H$664,2,0))) ->  | M103: =IF(ISERROR(VLOOKUP(K103,'KAYIT LİSTESİ'!$B$4:$H$664,4,0)),"",(VLOOKUP(K103,'KAYIT LİSTESİ'!$B$4:$H$664,4,0))) ->  | N103: =IF(ISERROR(VLOOKUP(K103,'KAYIT LİSTESİ'!$B$4:$H$664,5,0)),"",(VLOOKUP(K103,'KAYIT LİSTESİ'!$B$4:$H$664,5,0))) ->  | O103: =IF(ISERROR(VLOOKUP(K103,'KAYIT LİSTESİ'!$B$4:$H$664,6,0)),"",(VLOOKUP(K103,'KAYIT LİSTESİ'!$B$4:$H$664,6,0))) -> 
A104: 2 | B104: 1500M-2-2 | C104: =IF(ISERROR(VLOOKUP(B104,'KAYIT LİSTESİ'!$B$4:$H$664,2,0)),"",(VLOOKUP(B104,'KAYIT LİSTESİ'!$B$4:$H$664,2,0))) ->  | D104: =IF(ISERROR(VLOOKUP(B104,'KAYIT LİSTESİ'!$B$4:$H$664,4,0)),"",(VLOOKUP(B104,'KAYIT LİSTESİ'!$B$4:$H$664,4,0))) ->  | E104: =IF(ISERROR(VLOOKUP(B104,'KAYIT LİSTESİ'!$B$4:$H$664,5,0)),"",(VLOOKUP(B104,'KAYIT LİSTESİ'!$B$4:$H$664,5,0))) ->  | F104: =IF(ISERROR(VLOOKUP(B104,'KAYIT LİSTESİ'!$B$4:$H$664,6,0)),"",(VLOOKUP(B104,'KAYIT LİSTESİ'!$B$4:$H$664,6,0))) ->  | J104: 29 | K104: GÜLLE-29 | L104: =IF(ISERROR(VLOOKUP(K104,'KAYIT LİSTESİ'!$B$4:$H$664,2,0)),"",(VLOOKUP(K104,'KAYIT LİSTESİ'!$B$4:$H$664,2,0))) ->  | M104: =IF(ISERROR(VLOOKUP(K104,'KAYIT LİSTESİ'!$B$4:$H$664,4,0)),"",(VLOOKUP(K104,'KAYIT LİSTESİ'!$B$4:$H$664,4,0))) ->  | N104: =IF(ISERROR(VLOOKUP(K104,'KAYIT LİSTESİ'!$B$4:$H$664,5,0)),"",(VLOOKUP(K104,'KAYIT LİSTESİ'!$B$4:$H$664,5,0))) ->  | O104: =IF(ISERROR(VLOOKUP(K104,'KAYIT LİSTESİ'!$B$4:$H$664,6,0)),"",(VLOOKUP(K104,'KAYIT LİSTESİ'!$B$4:$H$664,6,0))) -> 
A105: 3 | B105: 1500M-2-3 | C105: =IF(ISERROR(VLOOKUP(B105,'KAYIT LİSTESİ'!$B$4:$H$664,2,0)),"",(VLOOKUP(B105,'KAYIT LİSTESİ'!$B$4:$H$664,2,0))) ->  | D105: =IF(ISERROR(VLOOKUP(B105,'KAYIT LİSTESİ'!$B$4:$H$664,4,0)),"",(VLOOKUP(B105,'KAYIT LİSTESİ'!$B$4:$H$664,4,0))) ->  | E105: =IF(ISERROR(VLOOKUP(B105,'KAYIT LİSTESİ'!$B$4:$H$664,5,0)),"",(VLOOKUP(B105,'KAYIT LİSTESİ'!$B$4:$H$664,5,0))) ->  | F105: =IF(ISERROR(VLOOKUP(B105,'KAYIT LİSTESİ'!$B$4:$H$664,6,0)),"",(VLOOKUP(B105,'KAYIT LİSTESİ'!$B$4:$H$664,6,0))) ->  | J105: 30 | K105: GÜLLE-30 | L105: =IF(ISERROR(VLOOKUP(K105,'KAYIT LİSTESİ'!$B$4:$H$664,2,0)),"",(VLOOKUP(K105,'KAYIT LİSTESİ'!$B$4:$H$664,2,0))) ->  | M105: =IF(ISERROR(VLOOKUP(K105,'KAYIT LİSTESİ'!$B$4:$H$664,4,0)),"",(VLOOKUP(K105,'KAYIT LİSTESİ'!$B$4:$H$664,4,0))) ->  | N105: =IF(ISERROR(VLOOKUP(K105,'KAYIT LİSTESİ'!$B$4:$H$664,5,0)),"",(VLOOKUP(K105,'KAYIT LİSTESİ'!$B$4:$H$664,5,0))) ->  | O105: =IF(ISERROR(VLOOKUP(K105,'KAYIT LİSTESİ'!$B$4:$H$664,6,0)),"",(VLOOKUP(K105,'KAYIT LİSTESİ'!$B$4:$H$664,6,0))) -> 
A106: 4 | B106: 1500M-2-4 | C106: =IF(ISERROR(VLOOKUP(B106,'KAYIT LİSTESİ'!$B$4:$H$664,2,0)),"",(VLOOKUP(B106,'KAYIT LİSTESİ'!$B$4:$H$664,2,0))) ->  | D106: =IF(ISERROR(VLOOKUP(B106,'KAYIT LİSTESİ'!$B$4:$H$664,4,0)),"",(VLOOKUP(B106,'KAYIT LİSTESİ'!$B$4:$H$664,4,0))) ->  | E106: =IF(ISERROR(VLOOKUP(B106,'KAYIT LİSTESİ'!$B$4:$H$664,5,0)),"",(VLOOKUP(B106,'KAYIT LİSTESİ'!$B$4:$H$664,5,0))) ->  | F106: =IF(ISERROR(VLOOKUP(B106,'KAYIT LİSTESİ'!$B$4:$H$664,6,0)),"",(VLOOKUP(B106,'KAYIT LİSTESİ'!$B$4:$H$664,6,0))) ->  | J106: 31 | K106: GÜLLE-31 | L106: =IF(ISERROR(VLOOKUP(K106,'KAYIT LİSTESİ'!$B$4:$H$664,2,0)),"",(VLOOKUP(K106,'KAYIT LİSTESİ'!$B$4:$H$664,2,0))) ->  | M106: =IF(ISERROR(VLOOKUP(K106,'KAYIT LİSTESİ'!$B$4:$H$664,4,0)),"",(VLOOKUP(K106,'KAYIT LİSTESİ'!$B$4:$H$664,4,0))) ->  | N106: =IF(ISERROR(VLOOKUP(K106,'KAYIT LİSTESİ'!$B$4:$H$664,5,0)),"",(VLOOKUP(K106,'KAYIT LİSTESİ'!$B$4:$H$664,5,0))) ->  | O106: =IF(ISERROR(VLOOKUP(K106,'KAYIT LİSTESİ'!$B$4:$H$664,6,0)),"",(VLOOKUP(K106,'KAYIT LİSTESİ'!$B$4:$H$664,6,0))) -> 
A107: 5 | B107: 1500M-2-5 | C107: =IF(ISERROR(VLOOKUP(B107,'KAYIT LİSTESİ'!$B$4:$H$664,2,0)),"",(VLOOKUP(B107,'KAYIT LİSTESİ'!$B$4:$H$664,2,0))) ->  | D107: =IF(ISERROR(VLOOKUP(B107,'KAYIT LİSTESİ'!$B$4:$H$664,4,0)),"",(VLOOKUP(B107,'KAYIT LİSTESİ'!$B$4:$H$664,4,0))) ->  | E107: =IF(ISERROR(VLOOKUP(B107,'KAYIT LİSTESİ'!$B$4:$H$664,5,0)),"",(VLOOKUP(B107,'KAYIT LİSTESİ'!$B$4:$H$664,5,0))) ->  | F107: =IF(ISERROR(VLOOKUP(B107,'KAYIT LİSTESİ'!$B$4:$H$664,6,0)),"",(VLOOKUP(B107,'KAYIT LİSTESİ'!$B$4:$H$664,6,0))) ->  | J107: 32 | K107: GÜLLE-32 | L107: =IF(ISERROR(VLOOKUP(K107,'KAYIT LİSTESİ'!$B$4:$H$664,2,0)),"",(VLOOKUP(K107,'KAYIT LİSTESİ'!$B$4:$H$664,2,0))) ->  | M107: =IF(ISERROR(VLOOKUP(K107,'KAYIT LİSTESİ'!$B$4:$H$664,4,0)),"",(VLOOKUP(K107,'KAYIT LİSTESİ'!$B$4:$H$664,4,0))) ->  | N107: =IF(ISERROR(VLOOKUP(K107,'KAYIT LİSTESİ'!$B$4:$H$664,5,0)),"",(VLOOKUP(K107,'KAYIT LİSTESİ'!$B$4:$H$664,5,0))) ->  | O107: =IF(ISERROR(VLOOKUP(K107,'KAYIT LİSTESİ'!$B$4:$H$664,6,0)),"",(VLOOKUP(K107,'KAYIT LİSTESİ'!$B$4:$H$664,6,0))) -> 
A108: 6 | B108: 1500M-2-6 | C108: =IF(ISERROR(VLOOKUP(B108,'KAYIT LİSTESİ'!$B$4:$H$664,2,0)),"",(VLOOKUP(B108,'KAYIT LİSTESİ'!$B$4:$H$664,2,0))) ->  | D108: =IF(ISERROR(VLOOKUP(B108,'KAYIT LİSTESİ'!$B$4:$H$664,4,0)),"",(VLOOKUP(B108,'KAYIT LİSTESİ'!$B$4:$H$664,4,0))) ->  | E108: =IF(ISERROR(VLOOKUP(B108,'KAYIT LİSTESİ'!$B$4:$H$664,5,0)),"",(VLOOKUP(B108,'KAYIT LİSTESİ'!$B$4:$H$664,5,0))) ->  | F108: =IF(ISERROR(VLOOKUP(B108,'KAYIT LİSTESİ'!$B$4:$H$664,6,0)),"",(VLOOKUP(B108,'KAYIT LİSTESİ'!$B$4:$H$664,6,0))) ->  | J108: 33 | K108: GÜLLE-33 | L108: =IF(ISERROR(VLOOKUP(K108,'KAYIT LİSTESİ'!$B$4:$H$664,2,0)),"",(VLOOKUP(K108,'KAYIT LİSTESİ'!$B$4:$H$664,2,0))) ->  | M108: =IF(ISERROR(VLOOKUP(K108,'KAYIT LİSTESİ'!$B$4:$H$664,4,0)),"",(VLOOKUP(K108,'KAYIT LİSTESİ'!$B$4:$H$664,4,0))) ->  | N108: =IF(ISERROR(VLOOKUP(K108,'KAYIT LİSTESİ'!$B$4:$H$664,5,0)),"",(VLOOKUP(K108,'KAYIT LİSTESİ'!$B$4:$H$664,5,0))) ->  | O108: =IF(ISERROR(VLOOKUP(K108,'KAYIT LİSTESİ'!$B$4:$H$664,6,0)),"",(VLOOKUP(K108,'KAYIT LİSTESİ'!$B$4:$H$664,6,0))) -> 
A109: 7 | B109: 1500M-2-7 | C109: =IF(ISERROR(VLOOKUP(B109,'KAYIT LİSTESİ'!$B$4:$H$664,2,0)),"",(VLOOKUP(B109,'KAYIT LİSTESİ'!$B$4:$H$664,2,0))) ->  | D109: =IF(ISERROR(VLOOKUP(B109,'KAYIT LİSTESİ'!$B$4:$H$664,4,0)),"",(VLOOKUP(B109,'KAYIT LİSTESİ'!$B$4:$H$664,4,0))) ->  | E109: =IF(ISERROR(VLOOKUP(B109,'KAYIT LİSTESİ'!$B$4:$H$664,5,0)),"",(VLOOKUP(B109,'KAYIT LİSTESİ'!$B$4:$H$664,5,0))) ->  | F109: =IF(ISERROR(VLOOKUP(B109,'KAYIT LİSTESİ'!$B$4:$H$664,6,0)),"",(VLOOKUP(B109,'KAYIT LİSTESİ'!$B$4:$H$664,6,0))) ->  | J109: 34 | K109: GÜLLE-34 | L109: =IF(ISERROR(VLOOKUP(K109,'KAYIT LİSTESİ'!$B$4:$H$664,2,0)),"",(VLOOKUP(K109,'KAYIT LİSTESİ'!$B$4:$H$664,2,0))) ->  | M109: =IF(ISERROR(VLOOKUP(K109,'KAYIT LİSTESİ'!$B$4:$H$664,4,0)),"",(VLOOKUP(K109,'KAYIT LİSTESİ'!$B$4:$H$664,4,0))) ->  | N109: =IF(ISERROR(VLOOKUP(K109,'KAYIT LİSTESİ'!$B$4:$H$664,5,0)),"",(VLOOKUP(K109,'KAYIT LİSTESİ'!$B$4:$H$664,5,0))) ->  | O109: =IF(ISERROR(VLOOKUP(K109,'KAYIT LİSTESİ'!$B$4:$H$664,6,0)),"",(VLOOKUP(K109,'KAYIT LİSTESİ'!$B$4:$H$664,6,0))) -> 
A110: 8 | B110: 1500M-2-8 | C110: =IF(ISERROR(VLOOKUP(B110,'KAYIT LİSTESİ'!$B$4:$H$664,2,0)),"",(VLOOKUP(B110,'KAYIT LİSTESİ'!$B$4:$H$664,2,0))) ->  | D110: =IF(ISERROR(VLOOKUP(B110,'KAYIT LİSTESİ'!$B$4:$H$664,4,0)),"",(VLOOKUP(B110,'KAYIT LİSTESİ'!$B$4:$H$664,4,0))) ->  | E110: =IF(ISERROR(VLOOKUP(B110,'KAYIT LİSTESİ'!$B$4:$H$664,5,0)),"",(VLOOKUP(B110,'KAYIT LİSTESİ'!$B$4:$H$664,5,0))) ->  | F110: =IF(ISERROR(VLOOKUP(B110,'KAYIT LİSTESİ'!$B$4:$H$664,6,0)),"",(VLOOKUP(B110,'KAYIT LİSTESİ'!$B$4:$H$664,6,0))) ->  | J110: 35 | K110: GÜLLE-35 | L110: =IF(ISERROR(VLOOKUP(K110,'KAYIT LİSTESİ'!$B$4:$H$664,2,0)),"",(VLOOKUP(K110,'KAYIT LİSTESİ'!$B$4:$H$664,2,0))) ->  | M110: =IF(ISERROR(VLOOKUP(K110,'KAYIT LİSTESİ'!$B$4:$H$664,4,0)),"",(VLOOKUP(K110,'KAYIT LİSTESİ'!$B$4:$H$664,4,0))) ->  | N110: =IF(ISERROR(VLOOKUP(K110,'KAYIT LİSTESİ'!$B$4:$H$664,5,0)),"",(VLOOKUP(K110,'KAYIT LİSTESİ'!$B$4:$H$664,5,0))) ->  | O110: =IF(ISERROR(VLOOKUP(K110,'KAYIT LİSTESİ'!$B$4:$H$664,6,0)),"",(VLOOKUP(K110,'KAYIT LİSTESİ'!$B$4:$H$664,6,0))) -> 
A111: 9 | B111: 1500M-2-9 | C111: =IF(ISERROR(VLOOKUP(B111,'KAYIT LİSTESİ'!$B$4:$H$664,2,0)),"",(VLOOKUP(B111,'KAYIT LİSTESİ'!$B$4:$H$664,2,0))) ->  | D111: =IF(ISERROR(VLOOKUP(B111,'KAYIT LİSTESİ'!$B$4:$H$664,4,0)),"",(VLOOKUP(B111,'KAYIT LİSTESİ'!$B$4:$H$664,4,0))) ->  | E111: =IF(ISERROR(VLOOKUP(B111,'KAYIT LİSTESİ'!$B$4:$H$664,5,0)),"",(VLOOKUP(B111,'KAYIT LİSTESİ'!$B$4:$H$664,5,0))) ->  | F111: =IF(ISERROR(VLOOKUP(B111,'KAYIT LİSTESİ'!$B$4:$H$664,6,0)),"",(VLOOKUP(B111,'KAYIT LİSTESİ'!$B$4:$H$664,6,0))) ->  | J111: 36 | K111: GÜLLE-36 | L111: =IF(ISERROR(VLOOKUP(K111,'KAYIT LİSTESİ'!$B$4:$H$664,2,0)),"",(VLOOKUP(K111,'KAYIT LİSTESİ'!$B$4:$H$664,2,0))) ->  | M111: =IF(ISERROR(VLOOKUP(K111,'KAYIT LİSTESİ'!$B$4:$H$664,4,0)),"",(VLOOKUP(K111,'KAYIT LİSTESİ'!$B$4:$H$664,4,0))) ->  | N111: =IF(ISERROR(VLOOKUP(K111,'KAYIT LİSTESİ'!$B$4:$H$664,5,0)),"",(VLOOKUP(K111,'KAYIT LİSTESİ'!$B$4:$H$664,5,0))) ->  | O111: =IF(ISERROR(VLOOKUP(K111,'KAYIT LİSTESİ'!$B$4:$H$664,6,0)),"",(VLOOKUP(K111,'KAYIT LİSTESİ'!$B$4:$H$664,6,0))) -> 
A112: 10 | B112: 1500M-2-10 | C112: =IF(ISERROR(VLOOKUP(B112,'KAYIT LİSTESİ'!$B$4:$H$664,2,0)),"",(VLOOKUP(B112,'KAYIT LİSTESİ'!$B$4:$H$664,2,0))) ->  | D112: =IF(ISERROR(VLOOKUP(B112,'KAYIT LİSTESİ'!$B$4:$H$664,4,0)),"",(VLOOKUP(B112,'KAYIT LİSTESİ'!$B$4:$H$664,4,0))) ->  | E112: =IF(ISERROR(VLOOKUP(B112,'KAYIT LİSTESİ'!$B$4:$H$664,5,0)),"",(VLOOKUP(B112,'KAYIT LİSTESİ'!$B$4:$H$664,5,0))) ->  | F112: =IF(ISERROR(VLOOKUP(B112,'KAYIT LİSTESİ'!$B$4:$H$664,6,0)),"",(VLOOKUP(B112,'KAYIT LİSTESİ'!$B$4:$H$664,6,0))) ->  | J112: 37 | K112: GÜLLE-37 | L112: =IF(ISERROR(VLOOKUP(K112,'KAYIT LİSTESİ'!$B$4:$H$664,2,0)),"",(VLOOKUP(K112,'KAYIT LİSTESİ'!$B$4:$H$664,2,0))) ->  | M112: =IF(ISERROR(VLOOKUP(K112,'KAYIT LİSTESİ'!$B$4:$H$664,4,0)),"",(VLOOKUP(K112,'KAYIT LİSTESİ'!$B$4:$H$664,4,0))) ->  | N112: =IF(ISERROR(VLOOKUP(K112,'KAYIT LİSTESİ'!$B$4:$H$664,5,0)),"",(VLOOKUP(K112,'KAYIT LİSTESİ'!$B$4:$H$664,5,0))) ->  | O112: =IF(ISERROR(VLOOKUP(K112,'KAYIT LİSTESİ'!$B$4:$H$664,6,0)),"",(VLOOKUP(K112,'KAYIT LİSTESİ'!$B$4:$H$664,6,0))) -> 
A113: 11 | B113: 1500M-2-11 | C113: =IF(ISERROR(VLOOKUP(B113,'KAYIT LİSTESİ'!$B$4:$H$664,2,0)),"",(VLOOKUP(B113,'KAYIT LİSTESİ'!$B$4:$H$664,2,0))) ->  | D113: =IF(ISERROR(VLOOKUP(B113,'KAYIT LİSTESİ'!$B$4:$H$664,4,0)),"",(VLOOKUP(B113,'KAYIT LİSTESİ'!$B$4:$H$664,4,0))) ->  | E113: =IF(ISERROR(VLOOKUP(B113,'KAYIT LİSTESİ'!$B$4:$H$664,5,0)),"",(VLOOKUP(B113,'KAYIT LİSTESİ'!$B$4:$H$664,5,0))) ->  | F113: =IF(ISERROR(VLOOKUP(B113,'KAYIT LİSTESİ'!$B$4:$H$664,6,0)),"",(VLOOKUP(B113,'KAYIT LİSTESİ'!$B$4:$H$664,6,0))) ->  | J113: 38 | K113: GÜLLE-38 | L113: =IF(ISERROR(VLOOKUP(K113,'KAYIT LİSTESİ'!$B$4:$H$664,2,0)),"",(VLOOKUP(K113,'KAYIT LİSTESİ'!$B$4:$H$664,2,0))) ->  | M113: =IF(ISERROR(VLOOKUP(K113,'KAYIT LİSTESİ'!$B$4:$H$664,4,0)),"",(VLOOKUP(K113,'KAYIT LİSTESİ'!$B$4:$H$664,4,0))) ->  | N113: =IF(ISERROR(VLOOKUP(K113,'KAYIT LİSTESİ'!$B$4:$H$664,5,0)),"",(VLOOKUP(K113,'KAYIT LİSTESİ'!$B$4:$H$664,5,0))) ->  | O113: =IF(ISERROR(VLOOKUP(K113,'KAYIT LİSTESİ'!$B$4:$H$664,6,0)),"",(VLOOKUP(K113,'KAYIT LİSTESİ'!$B$4:$H$664,6,0))) -> 
A114: 12 | B114: 1500M-2-12 | C114: =IF(ISERROR(VLOOKUP(B114,'KAYIT LİSTESİ'!$B$4:$H$664,2,0)),"",(VLOOKUP(B114,'KAYIT LİSTESİ'!$B$4:$H$664,2,0))) ->  | D114: =IF(ISERROR(VLOOKUP(B114,'KAYIT LİSTESİ'!$B$4:$H$664,4,0)),"",(VLOOKUP(B114,'KAYIT LİSTESİ'!$B$4:$H$664,4,0))) ->  | E114: =IF(ISERROR(VLOOKUP(B114,'KAYIT LİSTESİ'!$B$4:$H$664,5,0)),"",(VLOOKUP(B114,'KAYIT LİSTESİ'!$B$4:$H$664,5,0))) ->  | F114: =IF(ISERROR(VLOOKUP(B114,'KAYIT LİSTESİ'!$B$4:$H$664,6,0)),"",(VLOOKUP(B114,'KAYIT LİSTESİ'!$B$4:$H$664,6,0))) ->  | J114: 39 | K114: GÜLLE-39 | L114: =IF(ISERROR(VLOOKUP(K114,'KAYIT LİSTESİ'!$B$4:$H$664,2,0)),"",(VLOOKUP(K114,'KAYIT LİSTESİ'!$B$4:$H$664,2,0))) ->  | M114: =IF(ISERROR(VLOOKUP(K114,'KAYIT LİSTESİ'!$B$4:$H$664,4,0)),"",(VLOOKUP(K114,'KAYIT LİSTESİ'!$B$4:$H$664,4,0))) ->  | N114: =IF(ISERROR(VLOOKUP(K114,'KAYIT LİSTESİ'!$B$4:$H$664,5,0)),"",(VLOOKUP(K114,'KAYIT LİSTESİ'!$B$4:$H$664,5,0))) ->  | O114: =IF(ISERROR(VLOOKUP(K114,'KAYIT LİSTESİ'!$B$4:$H$664,6,0)),"",(VLOOKUP(K114,'KAYIT LİSTESİ'!$B$4:$H$664,6,0))) -> 
A115: 3. SERİ | J115: 40 | K115: GÜLLE-40 | L115: =IF(ISERROR(VLOOKUP(K115,'KAYIT LİSTESİ'!$B$4:$H$664,2,0)),"",(VLOOKUP(K115,'KAYIT LİSTESİ'!$B$4:$H$664,2,0))) ->  | M115: =IF(ISERROR(VLOOKUP(K115,'KAYIT LİSTESİ'!$B$4:$H$664,4,0)),"",(VLOOKUP(K115,'KAYIT LİSTESİ'!$B$4:$H$664,4,0))) ->  | N115: =IF(ISERROR(VLOOKUP(K115,'KAYIT LİSTESİ'!$B$4:$H$664,5,0)),"",(VLOOKUP(K115,'KAYIT LİSTESİ'!$B$4:$H$664,5,0))) ->  | O115: =IF(ISERROR(VLOOKUP(K115,'KAYIT LİSTESİ'!$B$4:$H$664,6,0)),"",(VLOOKUP(K115,'KAYIT LİSTESİ'!$B$4:$H$664,6,0))) -> 
A116: Sıra No | B116: Formül | C116: Göğüs No | D116: Doğum Tarihi | E116: Adı ve Soyadı | F116: İli-Okulu | G116: Start Kontrol | J116: ÜÇ ADIM ATLAMA
A117: 1 | B117: 1500M-3-1 | C117: =IF(ISERROR(VLOOKUP(B117,'KAYIT LİSTESİ'!$B$4:$H$664,2,0)),"",(VLOOKUP(B117,'KAYIT LİSTESİ'!$B$4:$H$664,2,0))) ->  | D117: =IF(ISERROR(VLOOKUP(B117,'KAYIT LİSTESİ'!$B$4:$H$664,4,0)),"",(VLOOKUP(B117,'KAYIT LİSTESİ'!$B$4:$H$664,4,0))) ->  | E117: =IF(ISERROR(VLOOKUP(B117,'KAYIT LİSTESİ'!$B$4:$H$664,5,0)),"",(VLOOKUP(B117,'KAYIT LİSTESİ'!$B$4:$H$664,5,0))) ->  | F117: =IF(ISERROR(VLOOKUP(B117,'KAYIT LİSTESİ'!$B$4:$H$664,6,0)),"",(VLOOKUP(B117,'KAYIT LİSTESİ'!$B$4:$H$664,6,0))) ->  | J117: SIRA NO | L117: GÖĞÜS NO | M117: DOĞUM TARİHİ | N117: ADI VE SOYADI | O117: İli-Okulu | P117: Start Kontrol
A118: 2 | B118: 1500M-3-2 | C118: =IF(ISERROR(VLOOKUP(B118,'KAYIT LİSTESİ'!$B$4:$H$664,2,0)),"",(VLOOKUP(B118,'KAYIT LİSTESİ'!$B$4:$H$664,2,0))) ->  | D118: =IF(ISERROR(VLOOKUP(B118,'KAYIT LİSTESİ'!$B$4:$H$664,4,0)),"",(VLOOKUP(B118,'KAYIT LİSTESİ'!$B$4:$H$664,4,0))) ->  | E118: =IF(ISERROR(VLOOKUP(B118,'KAYIT LİSTESİ'!$B$4:$H$664,5,0)),"",(VLOOKUP(B118,'KAYIT LİSTESİ'!$B$4:$H$664,5,0))) ->  | F118: =IF(ISERROR(VLOOKUP(B118,'KAYIT LİSTESİ'!$B$4:$H$664,6,0)),"",(VLOOKUP(B118,'KAYIT LİSTESİ'!$B$4:$H$664,6,0))) -> 
A119: 3 | B119: 1500M-3-3 | C119: =IF(ISERROR(VLOOKUP(B119,'KAYIT LİSTESİ'!$B$4:$H$664,2,0)),"",(VLOOKUP(B119,'KAYIT LİSTESİ'!$B$4:$H$664,2,0))) ->  | D119: =IF(ISERROR(VLOOKUP(B119,'KAYIT LİSTESİ'!$B$4:$H$664,4,0)),"",(VLOOKUP(B119,'KAYIT LİSTESİ'!$B$4:$H$664,4,0))) ->  | E119: =IF(ISERROR(VLOOKUP(B119,'KAYIT LİSTESİ'!$B$4:$H$664,5,0)),"",(VLOOKUP(B119,'KAYIT LİSTESİ'!$B$4:$H$664,5,0))) ->  | F119: =IF(ISERROR(VLOOKUP(B119,'KAYIT LİSTESİ'!$B$4:$H$664,6,0)),"",(VLOOKUP(B119,'KAYIT LİSTESİ'!$B$4:$H$664,6,0))) ->  | J119: 1 | K119: Üçadım-1 | L119: =IF(ISERROR(VLOOKUP(K119,'KAYIT LİSTESİ'!$B$4:$H$664,2,0)),"",(VLOOKUP(K119,'KAYIT LİSTESİ'!$B$4:$H$664,2,0))) ->  | M119: =IF(ISERROR(VLOOKUP(K119,'KAYIT LİSTESİ'!$B$4:$H$664,4,0)),"",(VLOOKUP(K119,'KAYIT LİSTESİ'!$B$4:$H$664,4,0))) ->  | N119: =IF(ISERROR(VLOOKUP(K119,'KAYIT LİSTESİ'!$B$4:$H$664,5,0)),"",(VLOOKUP(K119,'KAYIT LİSTESİ'!$B$4:$H$664,5,0))) ->  | O119: =IF(ISERROR(VLOOKUP(K119,'KAYIT LİSTESİ'!$B$4:$H$664,6,0)),"",(VLOOKUP(K119,'KAYIT LİSTESİ'!$B$4:$H$664,6,0))) -> 
A120: 4 | B120: 1500M-3-4 | C120: =IF(ISERROR(VLOOKUP(B120,'KAYIT LİSTESİ'!$B$4:$H$664,2,0)),"",(VLOOKUP(B120,'KAYIT LİSTESİ'!$B$4:$H$664,2,0))) ->  | D120: =IF(ISERROR(VLOOKUP(B120,'KAYIT LİSTESİ'!$B$4:$H$664,4,0)),"",(VLOOKUP(B120,'KAYIT LİSTESİ'!$B$4:$H$664,4,0))) ->  | E120: =IF(ISERROR(VLOOKUP(B120,'KAYIT LİSTESİ'!$B$4:$H$664,5,0)),"",(VLOOKUP(B120,'KAYIT LİSTESİ'!$B$4:$H$664,5,0))) ->  | F120: =IF(ISERROR(VLOOKUP(B120,'KAYIT LİSTESİ'!$B$4:$H$664,6,0)),"",(VLOOKUP(B120,'KAYIT LİSTESİ'!$B$4:$H$664,6,0))) ->  | J120: 2 | K120: Üçadım-2 | L120: =IF(ISERROR(VLOOKUP(K120,'KAYIT LİSTESİ'!$B$4:$H$664,2,0)),"",(VLOOKUP(K120,'KAYIT LİSTESİ'!$B$4:$H$664,2,0))) ->  | M120: =IF(ISERROR(VLOOKUP(K120,'KAYIT LİSTESİ'!$B$4:$H$664,4,0)),"",(VLOOKUP(K120,'KAYIT LİSTESİ'!$B$4:$H$664,4,0))) ->  | N120: =IF(ISERROR(VLOOKUP(K120,'KAYIT LİSTESİ'!$B$4:$H$664,5,0)),"",(VLOOKUP(K120,'KAYIT LİSTESİ'!$B$4:$H$664,5,0))) ->  | O120: =IF(ISERROR(VLOOKUP(K120,'KAYIT LİSTESİ'!$B$4:$H$664,6,0)),"",(VLOOKUP(K120,'KAYIT LİSTESİ'!$B$4:$H$664,6,0))) -> 
A121: 5 | B121: 1500M-3-5 | C121: =IF(ISERROR(VLOOKUP(B121,'KAYIT LİSTESİ'!$B$4:$H$664,2,0)),"",(VLOOKUP(B121,'KAYIT LİSTESİ'!$B$4:$H$664,2,0))) ->  | D121: =IF(ISERROR(VLOOKUP(B121,'KAYIT LİSTESİ'!$B$4:$H$664,4,0)),"",(VLOOKUP(B121,'KAYIT LİSTESİ'!$B$4:$H$664,4,0))) ->  | E121: =IF(ISERROR(VLOOKUP(B121,'KAYIT LİSTESİ'!$B$4:$H$664,5,0)),"",(VLOOKUP(B121,'KAYIT LİSTESİ'!$B$4:$H$664,5,0))) ->  | F121: =IF(ISERROR(VLOOKUP(B121,'KAYIT LİSTESİ'!$B$4:$H$664,6,0)),"",(VLOOKUP(B121,'KAYIT LİSTESİ'!$B$4:$H$664,6,0))) ->  | J121: 3 | K121: Üçadım-3 | L121: =IF(ISERROR(VLOOKUP(K121,'KAYIT LİSTESİ'!$B$4:$H$664,2,0)),"",(VLOOKUP(K121,'KAYIT LİSTESİ'!$B$4:$H$664,2,0))) ->  | M121: =IF(ISERROR(VLOOKUP(K121,'KAYIT LİSTESİ'!$B$4:$H$664,4,0)),"",(VLOOKUP(K121,'KAYIT LİSTESİ'!$B$4:$H$664,4,0))) ->  | N121: =IF(ISERROR(VLOOKUP(K121,'KAYIT LİSTESİ'!$B$4:$H$664,5,0)),"",(VLOOKUP(K121,'KAYIT LİSTESİ'!$B$4:$H$664,5,0))) ->  | O121: =IF(ISERROR(VLOOKUP(K121,'KAYIT LİSTESİ'!$B$4:$H$664,6,0)),"",(VLOOKUP(K121,'KAYIT LİSTESİ'!$B$4:$H$664,6,0))) -> 
A122: 6 | B122: 1500M-3-6 | C122: =IF(ISERROR(VLOOKUP(B122,'KAYIT LİSTESİ'!$B$4:$H$664,2,0)),"",(VLOOKUP(B122,'KAYIT LİSTESİ'!$B$4:$H$664,2,0))) ->  | D122: =IF(ISERROR(VLOOKUP(B122,'KAYIT LİSTESİ'!$B$4:$H$664,4,0)),"",(VLOOKUP(B122,'KAYIT LİSTESİ'!$B$4:$H$664,4,0))) ->  | E122: =IF(ISERROR(VLOOKUP(B122,'KAYIT LİSTESİ'!$B$4:$H$664,5,0)),"",(VLOOKUP(B122,'KAYIT LİSTESİ'!$B$4:$H$664,5,0))) ->  | F122: =IF(ISERROR(VLOOKUP(B122,'KAYIT LİSTESİ'!$B$4:$H$664,6,0)),"",(VLOOKUP(B122,'KAYIT LİSTESİ'!$B$4:$H$664,6,0))) ->  | J122: 4 | K122: Üçadım-4 | L122: =IF(ISERROR(VLOOKUP(K122,'KAYIT LİSTESİ'!$B$4:$H$664,2,0)),"",(VLOOKUP(K122,'KAYIT LİSTESİ'!$B$4:$H$664,2,0))) ->  | M122: =IF(ISERROR(VLOOKUP(K122,'KAYIT LİSTESİ'!$B$4:$H$664,4,0)),"",(VLOOKUP(K122,'KAYIT LİSTESİ'!$B$4:$H$664,4,0))) ->  | N122: =IF(ISERROR(VLOOKUP(K122,'KAYIT LİSTESİ'!$B$4:$H$664,5,0)),"",(VLOOKUP(K122,'KAYIT LİSTESİ'!$B$4:$H$664,5,0))) ->  | O122: =IF(ISERROR(VLOOKUP(K122,'KAYIT LİSTESİ'!$B$4:$H$664,6,0)),"",(VLOOKUP(K122,'KAYIT LİSTESİ'!$B$4:$H$664,6,0))) -> 
A123: 7 | B123: 1500M-3-7 | C123: =IF(ISERROR(VLOOKUP(B123,'KAYIT LİSTESİ'!$B$4:$H$664,2,0)),"",(VLOOKUP(B123,'KAYIT LİSTESİ'!$B$4:$H$664,2,0))) ->  | D123: =IF(ISERROR(VLOOKUP(B123,'KAYIT LİSTESİ'!$B$4:$H$664,4,0)),"",(VLOOKUP(B123,'KAYIT LİSTESİ'!$B$4:$H$664,4,0))) ->  | E123: =IF(ISERROR(VLOOKUP(B123,'KAYIT LİSTESİ'!$B$4:$H$664,5,0)),"",(VLOOKUP(B123,'KAYIT LİSTESİ'!$B$4:$H$664,5,0))) ->  | F123: =IF(ISERROR(VLOOKUP(B123,'KAYIT LİSTESİ'!$B$4:$H$664,6,0)),"",(VLOOKUP(B123,'KAYIT LİSTESİ'!$B$4:$H$664,6,0))) ->  | J123: 5 | K123: Üçadım-5 | L123: =IF(ISERROR(VLOOKUP(K123,'KAYIT LİSTESİ'!$B$4:$H$664,2,0)),"",(VLOOKUP(K123,'KAYIT LİSTESİ'!$B$4:$H$664,2,0))) ->  | M123: =IF(ISERROR(VLOOKUP(K123,'KAYIT LİSTESİ'!$B$4:$H$664,4,0)),"",(VLOOKUP(K123,'KAYIT LİSTESİ'!$B$4:$H$664,4,0))) ->  | N123: =IF(ISERROR(VLOOKUP(K123,'KAYIT LİSTESİ'!$B$4:$H$664,5,0)),"",(VLOOKUP(K123,'KAYIT LİSTESİ'!$B$4:$H$664,5,0))) ->  | O123: =IF(ISERROR(VLOOKUP(K123,'KAYIT LİSTESİ'!$B$4:$H$664,6,0)),"",(VLOOKUP(K123,'KAYIT LİSTESİ'!$B$4:$H$664,6,0))) -> 
A124: 8 | B124: 1500M-3-8 | C124: =IF(ISERROR(VLOOKUP(B124,'KAYIT LİSTESİ'!$B$4:$H$664,2,0)),"",(VLOOKUP(B124,'KAYIT LİSTESİ'!$B$4:$H$664,2,0))) ->  | D124: =IF(ISERROR(VLOOKUP(B124,'KAYIT LİSTESİ'!$B$4:$H$664,4,0)),"",(VLOOKUP(B124,'KAYIT LİSTESİ'!$B$4:$H$664,4,0))) ->  | E124: =IF(ISERROR(VLOOKUP(B124,'KAYIT LİSTESİ'!$B$4:$H$664,5,0)),"",(VLOOKUP(B124,'KAYIT LİSTESİ'!$B$4:$H$664,5,0))) ->  | F124: =IF(ISERROR(VLOOKUP(B124,'KAYIT LİSTESİ'!$B$4:$H$664,6,0)),"",(VLOOKUP(B124,'KAYIT LİSTESİ'!$B$4:$H$664,6,0))) ->  | J124: 6 | K124: Üçadım-6 | L124: =IF(ISERROR(VLOOKUP(K124,'KAYIT LİSTESİ'!$B$4:$H$664,2,0)),"",(VLOOKUP(K124,'KAYIT LİSTESİ'!$B$4:$H$664,2,0))) ->  | M124: =IF(ISERROR(VLOOKUP(K124,'KAYIT LİSTESİ'!$B$4:$H$664,4,0)),"",(VLOOKUP(K124,'KAYIT LİSTESİ'!$B$4:$H$664,4,0))) ->  | N124: =IF(ISERROR(VLOOKUP(K124,'KAYIT LİSTESİ'!$B$4:$H$664,5,0)),"",(VLOOKUP(K124,'KAYIT LİSTESİ'!$B$4:$H$664,5,0))) ->  | O124: =IF(ISERROR(VLOOKUP(K124,'KAYIT LİSTESİ'!$B$4:$H$664,6,0)),"",(VLOOKUP(K124,'KAYIT LİSTESİ'!$B$4:$H$664,6,0))) -> 
A125: 9 | B125: 1500M-3-9 | C125: =IF(ISERROR(VLOOKUP(B125,'KAYIT LİSTESİ'!$B$4:$H$664,2,0)),"",(VLOOKUP(B125,'KAYIT LİSTESİ'!$B$4:$H$664,2,0))) ->  | D125: =IF(ISERROR(VLOOKUP(B125,'KAYIT LİSTESİ'!$B$4:$H$664,4,0)),"",(VLOOKUP(B125,'KAYIT LİSTESİ'!$B$4:$H$664,4,0))) ->  | E125: =IF(ISERROR(VLOOKUP(B125,'KAYIT LİSTESİ'!$B$4:$H$664,5,0)),"",(VLOOKUP(B125,'KAYIT LİSTESİ'!$B$4:$H$664,5,0))) ->  | F125: =IF(ISERROR(VLOOKUP(B125,'KAYIT LİSTESİ'!$B$4:$H$664,6,0)),"",(VLOOKUP(B125,'KAYIT LİSTESİ'!$B$4:$H$664,6,0))) ->  | J125: 7 | K125: Üçadım-7 | L125: =IF(ISERROR(VLOOKUP(K125,'KAYIT LİSTESİ'!$B$4:$H$664,2,0)),"",(VLOOKUP(K125,'KAYIT LİSTESİ'!$B$4:$H$664,2,0))) ->  | M125: =IF(ISERROR(VLOOKUP(K125,'KAYIT LİSTESİ'!$B$4:$H$664,4,0)),"",(VLOOKUP(K125,'KAYIT LİSTESİ'!$B$4:$H$664,4,0))) ->  | N125: =IF(ISERROR(VLOOKUP(K125,'KAYIT LİSTESİ'!$B$4:$H$664,5,0)),"",(VLOOKUP(K125,'KAYIT LİSTESİ'!$B$4:$H$664,5,0))) ->  | O125: =IF(ISERROR(VLOOKUP(K125,'KAYIT LİSTESİ'!$B$4:$H$664,6,0)),"",(VLOOKUP(K125,'KAYIT LİSTESİ'!$B$4:$H$664,6,0))) -> 
A126: 10 | B126: 1500M-3-10 | C126: =IF(ISERROR(VLOOKUP(B126,'KAYIT LİSTESİ'!$B$4:$H$664,2,0)),"",(VLOOKUP(B126,'KAYIT LİSTESİ'!$B$4:$H$664,2,0))) ->  | D126: =IF(ISERROR(VLOOKUP(B126,'KAYIT LİSTESİ'!$B$4:$H$664,4,0)),"",(VLOOKUP(B126,'KAYIT LİSTESİ'!$B$4:$H$664,4,0))) ->  | E126: =IF(ISERROR(VLOOKUP(B126,'KAYIT LİSTESİ'!$B$4:$H$664,5,0)),"",(VLOOKUP(B126,'KAYIT LİSTESİ'!$B$4:$H$664,5,0))) ->  | F126: =IF(ISERROR(VLOOKUP(B126,'KAYIT LİSTESİ'!$B$4:$H$664,6,0)),"",(VLOOKUP(B126,'KAYIT LİSTESİ'!$B$4:$H$664,6,0))) ->  | J126: 8 | K126: Üçadım-8 | L126: =IF(ISERROR(VLOOKUP(K126,'KAYIT LİSTESİ'!$B$4:$H$664,2,0)),"",(VLOOKUP(K126,'KAYIT LİSTESİ'!$B$4:$H$664,2,0))) ->  | M126: =IF(ISERROR(VLOOKUP(K126,'KAYIT LİSTESİ'!$B$4:$H$664,4,0)),"",(VLOOKUP(K126,'KAYIT LİSTESİ'!$B$4:$H$664,4,0))) ->  | N126: =IF(ISERROR(VLOOKUP(K126,'KAYIT LİSTESİ'!$B$4:$H$664,5,0)),"",(VLOOKUP(K126,'KAYIT LİSTESİ'!$B$4:$H$664,5,0))) ->  | O126: =IF(ISERROR(VLOOKUP(K126,'KAYIT LİSTESİ'!$B$4:$H$664,6,0)),"",(VLOOKUP(K126,'KAYIT LİSTESİ'!$B$4:$H$664,6,0))) -> 
A127: 11 | B127: 1500M-3-11 | C127: =IF(ISERROR(VLOOKUP(B127,'KAYIT LİSTESİ'!$B$4:$H$664,2,0)),"",(VLOOKUP(B127,'KAYIT LİSTESİ'!$B$4:$H$664,2,0))) ->  | D127: =IF(ISERROR(VLOOKUP(B127,'KAYIT LİSTESİ'!$B$4:$H$664,4,0)),"",(VLOOKUP(B127,'KAYIT LİSTESİ'!$B$4:$H$664,4,0))) ->  | E127: =IF(ISERROR(VLOOKUP(B127,'KAYIT LİSTESİ'!$B$4:$H$664,5,0)),"",(VLOOKUP(B127,'KAYIT LİSTESİ'!$B$4:$H$664,5,0))) ->  | F127: =IF(ISERROR(VLOOKUP(B127,'KAYIT LİSTESİ'!$B$4:$H$664,6,0)),"",(VLOOKUP(B127,'KAYIT LİSTESİ'!$B$4:$H$664,6,0))) ->  | J127: 9 | K127: Üçadım-9 | L127: =IF(ISERROR(VLOOKUP(K127,'KAYIT LİSTESİ'!$B$4:$H$664,2,0)),"",(VLOOKUP(K127,'KAYIT LİSTESİ'!$B$4:$H$664,2,0))) ->  | M127: =IF(ISERROR(VLOOKUP(K127,'KAYIT LİSTESİ'!$B$4:$H$664,4,0)),"",(VLOOKUP(K127,'KAYIT LİSTESİ'!$B$4:$H$664,4,0))) ->  | N127: =IF(ISERROR(VLOOKUP(K127,'KAYIT LİSTESİ'!$B$4:$H$664,5,0)),"",(VLOOKUP(K127,'KAYIT LİSTESİ'!$B$4:$H$664,5,0))) ->  | O127: =IF(ISERROR(VLOOKUP(K127,'KAYIT LİSTESİ'!$B$4:$H$664,6,0)),"",(VLOOKUP(K127,'KAYIT LİSTESİ'!$B$4:$H$664,6,0))) -> 
A128: 12 | B128: 1500M-3-12 | C128: =IF(ISERROR(VLOOKUP(B128,'KAYIT LİSTESİ'!$B$4:$H$664,2,0)),"",(VLOOKUP(B128,'KAYIT LİSTESİ'!$B$4:$H$664,2,0))) ->  | D128: =IF(ISERROR(VLOOKUP(B128,'KAYIT LİSTESİ'!$B$4:$H$664,4,0)),"",(VLOOKUP(B128,'KAYIT LİSTESİ'!$B$4:$H$664,4,0))) ->  | E128: =IF(ISERROR(VLOOKUP(B128,'KAYIT LİSTESİ'!$B$4:$H$664,5,0)),"",(VLOOKUP(B128,'KAYIT LİSTESİ'!$B$4:$H$664,5,0))) ->  | F128: =IF(ISERROR(VLOOKUP(B128,'KAYIT LİSTESİ'!$B$4:$H$664,6,0)),"",(VLOOKUP(B128,'KAYIT LİSTESİ'!$B$4:$H$664,6,0))) ->  | J128: 10 | K128: Üçadım-10 | L128: =IF(ISERROR(VLOOKUP(K128,'KAYIT LİSTESİ'!$B$4:$H$664,2,0)),"",(VLOOKUP(K128,'KAYIT LİSTESİ'!$B$4:$H$664,2,0))) ->  | M128: =IF(ISERROR(VLOOKUP(K128,'KAYIT LİSTESİ'!$B$4:$H$664,4,0)),"",(VLOOKUP(K128,'KAYIT LİSTESİ'!$B$4:$H$664,4,0))) ->  | N128: =IF(ISERROR(VLOOKUP(K128,'KAYIT LİSTESİ'!$B$4:$H$664,5,0)),"",(VLOOKUP(K128,'KAYIT LİSTESİ'!$B$4:$H$664,5,0))) ->  | O128: =IF(ISERROR(VLOOKUP(K128,'KAYIT LİSTESİ'!$B$4:$H$664,6,0)),"",(VLOOKUP(K128,'KAYIT LİSTESİ'!$B$4:$H$664,6,0))) -> 
A129: 4. SERİ | J129: 11 | K129: Üçadım-11 | L129: =IF(ISERROR(VLOOKUP(K129,'KAYIT LİSTESİ'!$B$4:$H$664,2,0)),"",(VLOOKUP(K129,'KAYIT LİSTESİ'!$B$4:$H$664,2,0))) ->  | M129: =IF(ISERROR(VLOOKUP(K129,'KAYIT LİSTESİ'!$B$4:$H$664,4,0)),"",(VLOOKUP(K129,'KAYIT LİSTESİ'!$B$4:$H$664,4,0))) ->  | N129: =IF(ISERROR(VLOOKUP(K129,'KAYIT LİSTESİ'!$B$4:$H$664,5,0)),"",(VLOOKUP(K129,'KAYIT LİSTESİ'!$B$4:$H$664,5,0))) ->  | O129: =IF(ISERROR(VLOOKUP(K129,'KAYIT LİSTESİ'!$B$4:$H$664,6,0)),"",(VLOOKUP(K129,'KAYIT LİSTESİ'!$B$4:$H$664,6,0))) -> 
A130: Sıra No | B130: Formül | C130: Göğüs No | D130: Doğum Tarihi | E130: Adı ve Soyadı | F130: İli-Okulu | G130: Start Kontrol | J130: 12 | K130: Üçadım-12 | L130: =IF(ISERROR(VLOOKUP(K130,'KAYIT LİSTESİ'!$B$4:$H$664,2,0)),"",(VLOOKUP(K130,'KAYIT LİSTESİ'!$B$4:$H$664,2,0))) ->  | M130: =IF(ISERROR(VLOOKUP(K130,'KAYIT LİSTESİ'!$B$4:$H$664,4,0)),"",(VLOOKUP(K130,'KAYIT LİSTESİ'!$B$4:$H$664,4,0))) ->  | N130: =IF(ISERROR(VLOOKUP(K130,'KAYIT LİSTESİ'!$B$4:$H$664,5,0)),"",(VLOOKUP(K130,'KAYIT LİSTESİ'!$B$4:$H$664,5,0))) ->  | O130: =IF(ISERROR(VLOOKUP(K130,'KAYIT LİSTESİ'!$B$4:$H$664,6,0)),"",(VLOOKUP(K130,'KAYIT LİSTESİ'!$B$4:$H$664,6,0))) -> 
A131: 1 | B131: 1500M-4-1 | C131: =IF(ISERROR(VLOOKUP(B131,'KAYIT LİSTESİ'!$B$4:$H$664,2,0)),"",(VLOOKUP(B131,'KAYIT LİSTESİ'!$B$4:$H$664,2,0))) ->  | D131: =IF(ISERROR(VLOOKUP(B131,'KAYIT LİSTESİ'!$B$4:$H$664,4,0)),"",(VLOOKUP(B131,'KAYIT LİSTESİ'!$B$4:$H$664,4,0))) ->  | E131: =IF(ISERROR(VLOOKUP(B131,'KAYIT LİSTESİ'!$B$4:$H$664,5,0)),"",(VLOOKUP(B131,'KAYIT LİSTESİ'!$B$4:$H$664,5,0))) ->  | F131: =IF(ISERROR(VLOOKUP(B131,'KAYIT LİSTESİ'!$B$4:$H$664,6,0)),"",(VLOOKUP(B131,'KAYIT LİSTESİ'!$B$4:$H$664,6,0))) ->  | J131: 13 | K131: Üçadım-13 | L131: =IF(ISERROR(VLOOKUP(K131,'KAYIT LİSTESİ'!$B$4:$H$664,2,0)),"",(VLOOKUP(K131,'KAYIT LİSTESİ'!$B$4:$H$664,2,0))) ->  | M131: =IF(ISERROR(VLOOKUP(K131,'KAYIT LİSTESİ'!$B$4:$H$664,4,0)),"",(VLOOKUP(K131,'KAYIT LİSTESİ'!$B$4:$H$664,4,0))) ->  | N131: =IF(ISERROR(VLOOKUP(K131,'KAYIT LİSTESİ'!$B$4:$H$664,5,0)),"",(VLOOKUP(K131,'KAYIT LİSTESİ'!$B$4:$H$664,5,0))) ->  | O131: =IF(ISERROR(VLOOKUP(K131,'KAYIT LİSTESİ'!$B$4:$H$664,6,0)),"",(VLOOKUP(K131,'KAYIT LİSTESİ'!$B$4:$H$664,6,0))) -> 
A132: 2 | B132: 1500M-4-2 | C132: =IF(ISERROR(VLOOKUP(B132,'KAYIT LİSTESİ'!$B$4:$H$664,2,0)),"",(VLOOKUP(B132,'KAYIT LİSTESİ'!$B$4:$H$664,2,0))) ->  | D132: =IF(ISERROR(VLOOKUP(B132,'KAYIT LİSTESİ'!$B$4:$H$664,4,0)),"",(VLOOKUP(B132,'KAYIT LİSTESİ'!$B$4:$H$664,4,0))) ->  | E132: =IF(ISERROR(VLOOKUP(B132,'KAYIT LİSTESİ'!$B$4:$H$664,5,0)),"",(VLOOKUP(B132,'KAYIT LİSTESİ'!$B$4:$H$664,5,0))) ->  | F132: =IF(ISERROR(VLOOKUP(B132,'KAYIT LİSTESİ'!$B$4:$H$664,6,0)),"",(VLOOKUP(B132,'KAYIT LİSTESİ'!$B$4:$H$664,6,0))) ->  | J132: 14 | K132: Üçadım-14 | L132: =IF(ISERROR(VLOOKUP(K132,'KAYIT LİSTESİ'!$B$4:$H$664,2,0)),"",(VLOOKUP(K132,'KAYIT LİSTESİ'!$B$4:$H$664,2,0))) ->  | M132: =IF(ISERROR(VLOOKUP(K132,'KAYIT LİSTESİ'!$B$4:$H$664,4,0)),"",(VLOOKUP(K132,'KAYIT LİSTESİ'!$B$4:$H$664,4,0))) ->  | N132: =IF(ISERROR(VLOOKUP(K132,'KAYIT LİSTESİ'!$B$4:$H$664,5,0)),"",(VLOOKUP(K132,'KAYIT LİSTESİ'!$B$4:$H$664,5,0))) ->  | O132: =IF(ISERROR(VLOOKUP(K132,'KAYIT LİSTESİ'!$B$4:$H$664,6,0)),"",(VLOOKUP(K132,'KAYIT LİSTESİ'!$B$4:$H$664,6,0))) -> 
A133: 3 | B133: 1500M-4-3 | C133: =IF(ISERROR(VLOOKUP(B133,'KAYIT LİSTESİ'!$B$4:$H$664,2,0)),"",(VLOOKUP(B133,'KAYIT LİSTESİ'!$B$4:$H$664,2,0))) ->  | D133: =IF(ISERROR(VLOOKUP(B133,'KAYIT LİSTESİ'!$B$4:$H$664,4,0)),"",(VLOOKUP(B133,'KAYIT LİSTESİ'!$B$4:$H$664,4,0))) ->  | E133: =IF(ISERROR(VLOOKUP(B133,'KAYIT LİSTESİ'!$B$4:$H$664,5,0)),"",(VLOOKUP(B133,'KAYIT LİSTESİ'!$B$4:$H$664,5,0))) ->  | F133: =IF(ISERROR(VLOOKUP(B133,'KAYIT LİSTESİ'!$B$4:$H$664,6,0)),"",(VLOOKUP(B133,'KAYIT LİSTESİ'!$B$4:$H$664,6,0))) ->  | J133: 15 | K133: Üçadım-15 | L133: =IF(ISERROR(VLOOKUP(K133,'KAYIT LİSTESİ'!$B$4:$H$664,2,0)),"",(VLOOKUP(K133,'KAYIT LİSTESİ'!$B$4:$H$664,2,0))) ->  | M133: =IF(ISERROR(VLOOKUP(K133,'KAYIT LİSTESİ'!$B$4:$H$664,4,0)),"",(VLOOKUP(K133,'KAYIT LİSTESİ'!$B$4:$H$664,4,0))) ->  | N133: =IF(ISERROR(VLOOKUP(K133,'KAYIT LİSTESİ'!$B$4:$H$664,5,0)),"",(VLOOKUP(K133,'KAYIT LİSTESİ'!$B$4:$H$664,5,0))) ->  | O133: =IF(ISERROR(VLOOKUP(K133,'KAYIT LİSTESİ'!$B$4:$H$664,6,0)),"",(VLOOKUP(K133,'KAYIT LİSTESİ'!$B$4:$H$664,6,0))) -> 
A134: 4 | B134: 1500M-4-4 | C134: =IF(ISERROR(VLOOKUP(B134,'KAYIT LİSTESİ'!$B$4:$H$664,2,0)),"",(VLOOKUP(B134,'KAYIT LİSTESİ'!$B$4:$H$664,2,0))) ->  | D134: =IF(ISERROR(VLOOKUP(B134,'KAYIT LİSTESİ'!$B$4:$H$664,4,0)),"",(VLOOKUP(B134,'KAYIT LİSTESİ'!$B$4:$H$664,4,0))) ->  | E134: =IF(ISERROR(VLOOKUP(B134,'KAYIT LİSTESİ'!$B$4:$H$664,5,0)),"",(VLOOKUP(B134,'KAYIT LİSTESİ'!$B$4:$H$664,5,0))) ->  | F134: =IF(ISERROR(VLOOKUP(B134,'KAYIT LİSTESİ'!$B$4:$H$664,6,0)),"",(VLOOKUP(B134,'KAYIT LİSTESİ'!$B$4:$H$664,6,0))) ->  | J134: 16 | K134: Üçadım-16 | L134: =IF(ISERROR(VLOOKUP(K134,'KAYIT LİSTESİ'!$B$4:$H$664,2,0)),"",(VLOOKUP(K134,'KAYIT LİSTESİ'!$B$4:$H$664,2,0))) ->  | M134: =IF(ISERROR(VLOOKUP(K134,'KAYIT LİSTESİ'!$B$4:$H$664,4,0)),"",(VLOOKUP(K134,'KAYIT LİSTESİ'!$B$4:$H$664,4,0))) ->  | N134: =IF(ISERROR(VLOOKUP(K134,'KAYIT LİSTESİ'!$B$4:$H$664,5,0)),"",(VLOOKUP(K134,'KAYIT LİSTESİ'!$B$4:$H$664,5,0))) ->  | O134: =IF(ISERROR(VLOOKUP(K134,'KAYIT LİSTESİ'!$B$4:$H$664,6,0)),"",(VLOOKUP(K134,'KAYIT LİSTESİ'!$B$4:$H$664,6,0))) -> 
A135: 5 | B135: 1500M-4-5 | C135: =IF(ISERROR(VLOOKUP(B135,'KAYIT LİSTESİ'!$B$4:$H$664,2,0)),"",(VLOOKUP(B135,'KAYIT LİSTESİ'!$B$4:$H$664,2,0))) ->  | D135: =IF(ISERROR(VLOOKUP(B135,'KAYIT LİSTESİ'!$B$4:$H$664,4,0)),"",(VLOOKUP(B135,'KAYIT LİSTESİ'!$B$4:$H$664,4,0))) ->  | E135: =IF(ISERROR(VLOOKUP(B135,'KAYIT LİSTESİ'!$B$4:$H$664,5,0)),"",(VLOOKUP(B135,'KAYIT LİSTESİ'!$B$4:$H$664,5,0))) ->  | F135: =IF(ISERROR(VLOOKUP(B135,'KAYIT LİSTESİ'!$B$4:$H$664,6,0)),"",(VLOOKUP(B135,'KAYIT LİSTESİ'!$B$4:$H$664,6,0))) ->  | J135: 17 | K135: Üçadım-17 | L135: =IF(ISERROR(VLOOKUP(K135,'KAYIT LİSTESİ'!$B$4:$H$664,2,0)),"",(VLOOKUP(K135,'KAYIT LİSTESİ'!$B$4:$H$664,2,0))) ->  | M135: =IF(ISERROR(VLOOKUP(K135,'KAYIT LİSTESİ'!$B$4:$H$664,4,0)),"",(VLOOKUP(K135,'KAYIT LİSTESİ'!$B$4:$H$664,4,0))) ->  | N135: =IF(ISERROR(VLOOKUP(K135,'KAYIT LİSTESİ'!$B$4:$H$664,5,0)),"",(VLOOKUP(K135,'KAYIT LİSTESİ'!$B$4:$H$664,5,0))) ->  | O135: =IF(ISERROR(VLOOKUP(K135,'KAYIT LİSTESİ'!$B$4:$H$664,6,0)),"",(VLOOKUP(K135,'KAYIT LİSTESİ'!$B$4:$H$664,6,0))) -> 
A136: 6 | B136: 1500M-4-6 | C136: =IF(ISERROR(VLOOKUP(B136,'KAYIT LİSTESİ'!$B$4:$H$664,2,0)),"",(VLOOKUP(B136,'KAYIT LİSTESİ'!$B$4:$H$664,2,0))) ->  | D136: =IF(ISERROR(VLOOKUP(B136,'KAYIT LİSTESİ'!$B$4:$H$664,4,0)),"",(VLOOKUP(B136,'KAYIT LİSTESİ'!$B$4:$H$664,4,0))) ->  | E136: =IF(ISERROR(VLOOKUP(B136,'KAYIT LİSTESİ'!$B$4:$H$664,5,0)),"",(VLOOKUP(B136,'KAYIT LİSTESİ'!$B$4:$H$664,5,0))) ->  | F136: =IF(ISERROR(VLOOKUP(B136,'KAYIT LİSTESİ'!$B$4:$H$664,6,0)),"",(VLOOKUP(B136,'KAYIT LİSTESİ'!$B$4:$H$664,6,0))) ->  | J136: 18 | K136: Üçadım-18 | L136: =IF(ISERROR(VLOOKUP(K136,'KAYIT LİSTESİ'!$B$4:$H$664,2,0)),"",(VLOOKUP(K136,'KAYIT LİSTESİ'!$B$4:$H$664,2,0))) ->  | M136: =IF(ISERROR(VLOOKUP(K136,'KAYIT LİSTESİ'!$B$4:$H$664,4,0)),"",(VLOOKUP(K136,'KAYIT LİSTESİ'!$B$4:$H$664,4,0))) ->  | N136: =IF(ISERROR(VLOOKUP(K136,'KAYIT LİSTESİ'!$B$4:$H$664,5,0)),"",(VLOOKUP(K136,'KAYIT LİSTESİ'!$B$4:$H$664,5,0))) ->  | O136: =IF(ISERROR(VLOOKUP(K136,'KAYIT LİSTESİ'!$B$4:$H$664,6,0)),"",(VLOOKUP(K136,'KAYIT LİSTESİ'!$B$4:$H$664,6,0))) -> 
A137: 7 | B137: 1500M-4-7 | C137: =IF(ISERROR(VLOOKUP(B137,'KAYIT LİSTESİ'!$B$4:$H$664,2,0)),"",(VLOOKUP(B137,'KAYIT LİSTESİ'!$B$4:$H$664,2,0))) ->  | D137: =IF(ISERROR(VLOOKUP(B137,'KAYIT LİSTESİ'!$B$4:$H$664,4,0)),"",(VLOOKUP(B137,'KAYIT LİSTESİ'!$B$4:$H$664,4,0))) ->  | E137: =IF(ISERROR(VLOOKUP(B137,'KAYIT LİSTESİ'!$B$4:$H$664,5,0)),"",(VLOOKUP(B137,'KAYIT LİSTESİ'!$B$4:$H$664,5,0))) ->  | F137: =IF(ISERROR(VLOOKUP(B137,'KAYIT LİSTESİ'!$B$4:$H$664,6,0)),"",(VLOOKUP(B137,'KAYIT LİSTESİ'!$B$4:$H$664,6,0))) ->  | J137: 19 | K137: Üçadım-19 | L137: =IF(ISERROR(VLOOKUP(K137,'KAYIT LİSTESİ'!$B$4:$H$664,2,0)),"",(VLOOKUP(K137,'KAYIT LİSTESİ'!$B$4:$H$664,2,0))) ->  | M137: =IF(ISERROR(VLOOKUP(K137,'KAYIT LİSTESİ'!$B$4:$H$664,4,0)),"",(VLOOKUP(K137,'KAYIT LİSTESİ'!$B$4:$H$664,4,0))) ->  | N137: =IF(ISERROR(VLOOKUP(K137,'KAYIT LİSTESİ'!$B$4:$H$664,5,0)),"",(VLOOKUP(K137,'KAYIT LİSTESİ'!$B$4:$H$664,5,0))) ->  | O137: =IF(ISERROR(VLOOKUP(K137,'KAYIT LİSTESİ'!$B$4:$H$664,6,0)),"",(VLOOKUP(K137,'KAYIT LİSTESİ'!$B$4:$H$664,6,0))) -> 
A138: 8 | B138: 1500M-4-8 | C138: =IF(ISERROR(VLOOKUP(B138,'KAYIT LİSTESİ'!$B$4:$H$664,2,0)),"",(VLOOKUP(B138,'KAYIT LİSTESİ'!$B$4:$H$664,2,0))) ->  | D138: =IF(ISERROR(VLOOKUP(B138,'KAYIT LİSTESİ'!$B$4:$H$664,4,0)),"",(VLOOKUP(B138,'KAYIT LİSTESİ'!$B$4:$H$664,4,0))) ->  | E138: =IF(ISERROR(VLOOKUP(B138,'KAYIT LİSTESİ'!$B$4:$H$664,5,0)),"",(VLOOKUP(B138,'KAYIT LİSTESİ'!$B$4:$H$664,5,0))) ->  | F138: =IF(ISERROR(VLOOKUP(B138,'KAYIT LİSTESİ'!$B$4:$H$664,6,0)),"",(VLOOKUP(B138,'KAYIT LİSTESİ'!$B$4:$H$664,6,0))) ->  | J138: 20 | K138: Üçadım-20 | L138: =IF(ISERROR(VLOOKUP(K138,'KAYIT LİSTESİ'!$B$4:$H$664,2,0)),"",(VLOOKUP(K138,'KAYIT LİSTESİ'!$B$4:$H$664,2,0))) ->  | M138: =IF(ISERROR(VLOOKUP(K138,'KAYIT LİSTESİ'!$B$4:$H$664,4,0)),"",(VLOOKUP(K138,'KAYIT LİSTESİ'!$B$4:$H$664,4,0))) ->  | N138: =IF(ISERROR(VLOOKUP(K138,'KAYIT LİSTESİ'!$B$4:$H$664,5,0)),"",(VLOOKUP(K138,'KAYIT LİSTESİ'!$B$4:$H$664,5,0))) ->  | O138: =IF(ISERROR(VLOOKUP(K138,'KAYIT LİSTESİ'!$B$4:$H$664,6,0)),"",(VLOOKUP(K138,'KAYIT LİSTESİ'!$B$4:$H$664,6,0))) -> 
A139: 9 | B139: 1500M-4-9 | C139: =IF(ISERROR(VLOOKUP(B139,'KAYIT LİSTESİ'!$B$4:$H$664,2,0)),"",(VLOOKUP(B139,'KAYIT LİSTESİ'!$B$4:$H$664,2,0))) ->  | D139: =IF(ISERROR(VLOOKUP(B139,'KAYIT LİSTESİ'!$B$4:$H$664,4,0)),"",(VLOOKUP(B139,'KAYIT LİSTESİ'!$B$4:$H$664,4,0))) ->  | E139: =IF(ISERROR(VLOOKUP(B139,'KAYIT LİSTESİ'!$B$4:$H$664,5,0)),"",(VLOOKUP(B139,'KAYIT LİSTESİ'!$B$4:$H$664,5,0))) ->  | F139: =IF(ISERROR(VLOOKUP(B139,'KAYIT LİSTESİ'!$B$4:$H$664,6,0)),"",(VLOOKUP(B139,'KAYIT LİSTESİ'!$B$4:$H$664,6,0))) ->  | J139: 21 | K139: Üçadım-21 | L139: =IF(ISERROR(VLOOKUP(K139,'KAYIT LİSTESİ'!$B$4:$H$664,2,0)),"",(VLOOKUP(K139,'KAYIT LİSTESİ'!$B$4:$H$664,2,0))) ->  | M139: =IF(ISERROR(VLOOKUP(K139,'KAYIT LİSTESİ'!$B$4:$H$664,4,0)),"",(VLOOKUP(K139,'KAYIT LİSTESİ'!$B$4:$H$664,4,0))) ->  | N139: =IF(ISERROR(VLOOKUP(K139,'KAYIT LİSTESİ'!$B$4:$H$664,5,0)),"",(VLOOKUP(K139,'KAYIT LİSTESİ'!$B$4:$H$664,5,0))) ->  | O139: =IF(ISERROR(VLOOKUP(K139,'KAYIT LİSTESİ'!$B$4:$H$664,6,0)),"",(VLOOKUP(K139,'KAYIT LİSTESİ'!$B$4:$H$664,6,0))) -> 
A140: 10 | B140: 1500M-4-10 | C140: =IF(ISERROR(VLOOKUP(B140,'KAYIT LİSTESİ'!$B$4:$H$664,2,0)),"",(VLOOKUP(B140,'KAYIT LİSTESİ'!$B$4:$H$664,2,0))) ->  | D140: =IF(ISERROR(VLOOKUP(B140,'KAYIT LİSTESİ'!$B$4:$H$664,4,0)),"",(VLOOKUP(B140,'KAYIT LİSTESİ'!$B$4:$H$664,4,0))) ->  | E140: =IF(ISERROR(VLOOKUP(B140,'KAYIT LİSTESİ'!$B$4:$H$664,5,0)),"",(VLOOKUP(B140,'KAYIT LİSTESİ'!$B$4:$H$664,5,0))) ->  | F140: =IF(ISERROR(VLOOKUP(B140,'KAYIT LİSTESİ'!$B$4:$H$664,6,0)),"",(VLOOKUP(B140,'KAYIT LİSTESİ'!$B$4:$H$664,6,0))) ->  | J140: 22 | K140: Üçadım-22 | L140: =IF(ISERROR(VLOOKUP(K140,'KAYIT LİSTESİ'!$B$4:$H$664,2,0)),"",(VLOOKUP(K140,'KAYIT LİSTESİ'!$B$4:$H$664,2,0))) ->  | M140: =IF(ISERROR(VLOOKUP(K140,'KAYIT LİSTESİ'!$B$4:$H$664,4,0)),"",(VLOOKUP(K140,'KAYIT LİSTESİ'!$B$4:$H$664,4,0))) ->  | N140: =IF(ISERROR(VLOOKUP(K140,'KAYIT LİSTESİ'!$B$4:$H$664,5,0)),"",(VLOOKUP(K140,'KAYIT LİSTESİ'!$B$4:$H$664,5,0))) ->  | O140: =IF(ISERROR(VLOOKUP(K140,'KAYIT LİSTESİ'!$B$4:$H$664,6,0)),"",(VLOOKUP(K140,'KAYIT LİSTESİ'!$B$4:$H$664,6,0))) -> 
A141: 11 | B141: 1500M-4-11 | C141: =IF(ISERROR(VLOOKUP(B141,'KAYIT LİSTESİ'!$B$4:$H$664,2,0)),"",(VLOOKUP(B141,'KAYIT LİSTESİ'!$B$4:$H$664,2,0))) ->  | D141: =IF(ISERROR(VLOOKUP(B141,'KAYIT LİSTESİ'!$B$4:$H$664,4,0)),"",(VLOOKUP(B141,'KAYIT LİSTESİ'!$B$4:$H$664,4,0))) ->  | E141: =IF(ISERROR(VLOOKUP(B141,'KAYIT LİSTESİ'!$B$4:$H$664,5,0)),"",(VLOOKUP(B141,'KAYIT LİSTESİ'!$B$4:$H$664,5,0))) ->  | F141: =IF(ISERROR(VLOOKUP(B141,'KAYIT LİSTESİ'!$B$4:$H$664,6,0)),"",(VLOOKUP(B141,'KAYIT LİSTESİ'!$B$4:$H$664,6,0))) ->  | J141: 23 | K141: Üçadım-23 | L141: =IF(ISERROR(VLOOKUP(K141,'KAYIT LİSTESİ'!$B$4:$H$664,2,0)),"",(VLOOKUP(K141,'KAYIT LİSTESİ'!$B$4:$H$664,2,0))) ->  | M141: =IF(ISERROR(VLOOKUP(K141,'KAYIT LİSTESİ'!$B$4:$H$664,4,0)),"",(VLOOKUP(K141,'KAYIT LİSTESİ'!$B$4:$H$664,4,0))) ->  | N141: =IF(ISERROR(VLOOKUP(K141,'KAYIT LİSTESİ'!$B$4:$H$664,5,0)),"",(VLOOKUP(K141,'KAYIT LİSTESİ'!$B$4:$H$664,5,0))) ->  | O141: =IF(ISERROR(VLOOKUP(K141,'KAYIT LİSTESİ'!$B$4:$H$664,6,0)),"",(VLOOKUP(K141,'KAYIT LİSTESİ'!$B$4:$H$664,6,0))) -> 
A142: 12 | B142: 1500M-4-12 | C142: =IF(ISERROR(VLOOKUP(B142,'KAYIT LİSTESİ'!$B$4:$H$664,2,0)),"",(VLOOKUP(B142,'KAYIT LİSTESİ'!$B$4:$H$664,2,0))) ->  | D142: =IF(ISERROR(VLOOKUP(B142,'KAYIT LİSTESİ'!$B$4:$H$664,4,0)),"",(VLOOKUP(B142,'KAYIT LİSTESİ'!$B$4:$H$664,4,0))) ->  | E142: =IF(ISERROR(VLOOKUP(B142,'KAYIT LİSTESİ'!$B$4:$H$664,5,0)),"",(VLOOKUP(B142,'KAYIT LİSTESİ'!$B$4:$H$664,5,0))) ->  | F142: =IF(ISERROR(VLOOKUP(B142,'KAYIT LİSTESİ'!$B$4:$H$664,6,0)),"",(VLOOKUP(B142,'KAYIT LİSTESİ'!$B$4:$H$664,6,0))) ->  | J142: 24 | K142: Üçadım-24 | L142: =IF(ISERROR(VLOOKUP(K142,'KAYIT LİSTESİ'!$B$4:$H$664,2,0)),"",(VLOOKUP(K142,'KAYIT LİSTESİ'!$B$4:$H$664,2,0))) ->  | M142: =IF(ISERROR(VLOOKUP(K142,'KAYIT LİSTESİ'!$B$4:$H$664,4,0)),"",(VLOOKUP(K142,'KAYIT LİSTESİ'!$B$4:$H$664,4,0))) ->  | N142: =IF(ISERROR(VLOOKUP(K142,'KAYIT LİSTESİ'!$B$4:$H$664,5,0)),"",(VLOOKUP(K142,'KAYIT LİSTESİ'!$B$4:$H$664,5,0))) ->  | O142: =IF(ISERROR(VLOOKUP(K142,'KAYIT LİSTESİ'!$B$4:$H$664,6,0)),"",(VLOOKUP(K142,'KAYIT LİSTESİ'!$B$4:$H$664,6,0))) -> 
J143: 25 | K143: Üçadım-25 | L143: =IF(ISERROR(VLOOKUP(K143,'KAYIT LİSTESİ'!$B$4:$H$664,2,0)),"",(VLOOKUP(K143,'KAYIT LİSTESİ'!$B$4:$H$664,2,0))) ->  | M143: =IF(ISERROR(VLOOKUP(K143,'KAYIT LİSTESİ'!$B$4:$H$664,4,0)),"",(VLOOKUP(K143,'KAYIT LİSTESİ'!$B$4:$H$664,4,0))) ->  | N143: =IF(ISERROR(VLOOKUP(K143,'KAYIT LİSTESİ'!$B$4:$H$664,5,0)),"",(VLOOKUP(K143,'KAYIT LİSTESİ'!$B$4:$H$664,5,0))) ->  | O143: =IF(ISERROR(VLOOKUP(K143,'KAYIT LİSTESİ'!$B$4:$H$664,6,0)),"",(VLOOKUP(K143,'KAYIT LİSTESİ'!$B$4:$H$664,6,0))) -> 

Sheet 100m.
A1: =('YARIŞMA BİLGİLERİ'!A2) -> Türkiye Atletizm Federasyonu Mersin Atletizm İl Temsilciliği
A2: ='YARIŞMA BİLGİLERİ'!F19 -> Olimpik Baraj Yarışmaları
A3: Yarışma : | D3: =#REF! ->  | F3: Baraj Derecesi | H3: : | I3: =#REF! -> 
A4: Kategori : | D4: ='YARIŞMA BİLGİLERİ'!F21 -> Kadınlar | M4: Tarih-Saat : | N4: =#REF! -> 
N5: =NOW() -> 42222.53664
A6: Sıra No | B6: Göğüs No | C6: Doğum Tarihi Gün/Ay/Yıl | D6: Adı ve Soyadı | E6: İli-Okulu | F6: Derece | G6: Puan | I6: 1. SERİ | M6: Rüzgar:
I7: Sıra No | J7: Formül | K7: Göğüs No | L7: Doğum Tarihi | M7: Adı ve Soyadı | N7: İli-Okulu | O7: Elektronik Kronometre | P7: El Kronometre | Q7: Seri Geliş
A8: 1 | G8: =IF(ISTEXT(F8),0,IFERROR(VLOOKUP(SMALL(#REF!,COUNTIF(#REF!,"<"&F8)+1),#REF!, 2,0),"")) ->  | I8: 1 | J8: 100M-1-1 | K8: =IF(ISERROR(VLOOKUP(J8,'KAYIT LİSTESİ'!$B$4:$H$664,2,0)),"",(VLOOKUP(J8,'KAYIT LİSTESİ'!$B$4:$H$664,2,0))) ->  | L8: =IF(ISERROR(VLOOKUP(J8,'KAYIT LİSTESİ'!$B$4:$H$664,4,0)),"",(VLOOKUP(J8,'KAYIT LİSTESİ'!$B$4:$H$664,4,0))) ->  | M8: =IF(ISERROR(VLOOKUP(J8,'KAYIT LİSTESİ'!$B$4:$H$664,5,0)),"",(VLOOKUP(J8,'KAYIT LİSTESİ'!$B$4:$H$664,5,0))) ->  | N8: =IF(ISERROR(VLOOKUP(J8,'KAYIT LİSTESİ'!$B$4:$H$664,6,0)),"",(VLOOKUP(J8,'KAYIT LİSTESİ'!$B$4:$H$664,6,0))) ->  | O8: =IF(IF(OR(P8="NM",P8="DNF",P8="DNS",P8="DQ",P8=""),P8,(ROUNDUP(P8,)+24))=0," ",IF(OR(P8="NM",P8="DNF",P8="DNS",P8="DQ",P8=""),P8,(ROUNDUP(P8,)+24))) -> 
A9: 2 | G9: =IF(ISTEXT(F9),0,IFERROR(VLOOKUP(SMALL(#REF!,COUNTIF(#REF!,"<"&F9)+1),#REF!, 2,0),"")) ->  | I9: 2 | J9: 100M-1-2 | K9: =IF(ISERROR(VLOOKUP(J9,'KAYIT LİSTESİ'!$B$4:$H$664,2,0)),"",(VLOOKUP(J9,'KAYIT LİSTESİ'!$B$4:$H$664,2,0))) -> 626 | L9: =IF(ISERROR(VLOOKUP(J9,'KAYIT LİSTESİ'!$B$4:$H$664,4,0)),"",(VLOOKUP(J9,'KAYIT LİSTESİ'!$B$4:$H$664,4,0))) -> 1999-02-02 | M9: =IF(ISERROR(VLOOKUP(J9,'KAYIT LİSTESİ'!$B$4:$H$664,5,0)),"",(VLOOKUP(J9,'KAYIT LİSTESİ'!$B$4:$H$664,5,0))) -> ESRA KARAKAYA | N9: =IF(ISERROR(VLOOKUP(J9,'KAYIT LİSTESİ'!$B$4:$H$664,6,0)),"",(VLOOKUP(J9,'KAYIT LİSTESİ'!$B$4:$H$664,6,0))) -> AKSARAY | O9: =IF(IF(OR(P9="NM",P9="DNF",P9="DNS",P9="DQ",P9=""),P9,(ROUNDUP(P9,)+24))=0," ",IF(OR(P9="NM",P9="DNF",P9="DNS",P9="DQ",P9=""),P9,(ROUNDUP(P9,)+24))) -> 
A10: 3 | G10: =IF(ISTEXT(F10),0,IFERROR(VLOOKUP(SMALL(#REF!,COUNTIF(#REF!,"<"&F10)+1),#REF!, 2,0),"")) ->  | I10: 3 | J10: 100M-1-3 | K10: =IF(ISERROR(VLOOKUP(J10,'KAYIT LİSTESİ'!$B$4:$H$664,2,0)),"",(VLOOKUP(J10,'KAYIT LİSTESİ'!$B$4:$H$664,2,0))) -> 600 | L10: =IF(ISERROR(VLOOKUP(J10,'KAYIT LİSTESİ'!$B$4:$H$664,4,0)),"",(VLOOKUP(J10,'KAYIT LİSTESİ'!$B$4:$H$664,4,0))) -> 1987-03-30 | M10: =IF(ISERROR(VLOOKUP(J10,'KAYIT LİSTESİ'!$B$4:$H$664,5,0)),"",(VLOOKUP(J10,'KAYIT LİSTESİ'!$B$4:$H$664,5,0))) -> SİBEL İPEK | N10: =IF(ISERROR(VLOOKUP(J10,'KAYIT LİSTESİ'!$B$4:$H$664,6,0)),"",(VLOOKUP(J10,'KAYIT LİSTESİ'!$B$4:$H$664,6,0))) -> DİYARBAKIR
A11: 4 | G11: =IF(ISTEXT(F11),0,IFERROR(VLOOKUP(SMALL(#REF!,COUNTIF(#REF!,"<"&F11)+1),#REF!, 2,0),"")) ->  | I11: 4 | J11: 100M-1-4 | K11: =IF(ISERROR(VLOOKUP(J11,'KAYIT LİSTESİ'!$B$4:$H$664,2,0)),"",(VLOOKUP(J11,'KAYIT LİSTESİ'!$B$4:$H$664,2,0))) -> 618 | L11: =IF(ISERROR(VLOOKUP(J11,'KAYIT LİSTESİ'!$B$4:$H$664,4,0)),"",(VLOOKUP(J11,'KAYIT LİSTESİ'!$B$4:$H$664,4,0))) -> 1994-08-25 | M11: =IF(ISERROR(VLOOKUP(J11,'KAYIT LİSTESİ'!$B$4:$H$664,5,0)),"",(VLOOKUP(J11,'KAYIT LİSTESİ'!$B$4:$H$664,5,0))) -> Tuğba AYDIN | N11: =IF(ISERROR(VLOOKUP(J11,'KAYIT LİSTESİ'!$B$4:$H$664,6,0)),"",(VLOOKUP(J11,'KAYIT LİSTESİ'!$B$4:$H$664,6,0))) -> MERSİN
A12: 5 | G12: =IF(ISTEXT(F12),0,IFERROR(VLOOKUP(SMALL(#REF!,COUNTIF(#REF!,"<"&F12)+1),#REF!, 2,0),"")) ->  | I12: 5 | J12: 100M-1-5 | K12: =IF(ISERROR(VLOOKUP(J12,'KAYIT LİSTESİ'!$B$4:$H$664,2,0)),"",(VLOOKUP(J12,'KAYIT LİSTESİ'!$B$4:$H$664,2,0))) -> 627 | L12: =IF(ISERROR(VLOOKUP(J12,'KAYIT LİSTESİ'!$B$4:$H$664,4,0)),"",(VLOOKUP(J12,'KAYIT LİSTESİ'!$B$4:$H$664,4,0))) -> 1999-05-13 | M12: =IF(ISERROR(VLOOKUP(J12,'KAYIT LİSTESİ'!$B$4:$H$664,5,0)),"",(VLOOKUP(J12,'KAYIT LİSTESİ'!$B$4:$H$664,5,0))) -> BERIVAN KAYA | N12: =IF(ISERROR(VLOOKUP(J12,'KAYIT LİSTESİ'!$B$4:$H$664,6,0)),"",(VLOOKUP(J12,'KAYIT LİSTESİ'!$B$4:$H$664,6,0))) -> AKSARAY
A13: 6 | G13: =IF(ISTEXT(F13),0,IFERROR(VLOOKUP(SMALL(#REF!,COUNTIF(#REF!,"<"&F13)+1),#REF!, 2,0),"")) ->  | I13: 6 | J13: 100M-1-6 | K13: =IF(ISERROR(VLOOKUP(J13,'KAYIT LİSTESİ'!$B$4:$H$664,2,0)),"",(VLOOKUP(J13,'KAYIT LİSTESİ'!$B$4:$H$664,2,0))) -> 611 | L13: =IF(ISERROR(VLOOKUP(J13,'KAYIT LİSTESİ'!$B$4:$H$664,4,0)),"",(VLOOKUP(J13,'KAYIT LİSTESİ'!$B$4:$H$664,4,0))) -> 1999-08-28 | M13: =IF(ISERROR(VLOOKUP(J13,'KAYIT LİSTESİ'!$B$4:$H$664,5,0)),"",(VLOOKUP(J13,'KAYIT LİSTESİ'!$B$4:$H$664,5,0))) -> AYSEL YILMAZ | N13: =IF(ISERROR(VLOOKUP(J13,'KAYIT LİSTESİ'!$B$4:$H$664,6,0)),"",(VLOOKUP(J13,'KAYIT LİSTESİ'!$B$4:$H$664,6,0))) -> GAZİANTEP
A14: 7 | G14: =IF(ISTEXT(F14),0,IFERROR(VLOOKUP(SMALL(#REF!,COUNTIF(#REF!,"<"&F14)+1),#REF!, 2,0),"")) ->  | I14: 7 | J14: 100M-1-7 | K14: =IF(ISERROR(VLOOKUP(J14,'KAYIT LİSTESİ'!$B$4:$H$664,2,0)),"",(VLOOKUP(J14,'KAYIT LİSTESİ'!$B$4:$H$664,2,0))) ->  | L14: =IF(ISERROR(VLOOKUP(J14,'KAYIT LİSTESİ'!$B$4:$H$664,4,0)),"",(VLOOKUP(J14,'KAYIT LİSTESİ'!$B$4:$H$664,4,0))) ->  | M14: =IF(ISERROR(VLOOKUP(J14,'KAYIT LİSTESİ'!$B$4:$H$664,5,0)),"",(VLOOKUP(J14,'KAYIT LİSTESİ'!$B$4:$H$664,5,0))) ->  | N14: =IF(ISERROR(VLOOKUP(J14,'KAYIT LİSTESİ'!$B$4:$H$664,6,0)),"",(VLOOKUP(J14,'KAYIT LİSTESİ'!$B$4:$H$664,6,0))) -> 
A15: 8 | G15: =IF(ISTEXT(F15),0,IFERROR(VLOOKUP(SMALL(#REF!,COUNTIF(#REF!,"<"&F15)+1),#REF!, 2,0),"")) ->  | I15: 8 | J15: 100M-1-8 | K15: =IF(ISERROR(VLOOKUP(J15,'KAYIT LİSTESİ'!$B$4:$H$664,2,0)),"",(VLOOKUP(J15,'KAYIT LİSTESİ'!$B$4:$H$664,2,0))) ->  | L15: =IF(ISERROR(VLOOKUP(J15,'KAYIT LİSTESİ'!$B$4:$H$664,4,0)),"",(VLOOKUP(J15,'KAYIT LİSTESİ'!$B$4:$H$664,4,0))) ->  | M15: =IF(ISERROR(VLOOKUP(J15,'KAYIT LİSTESİ'!$B$4:$H$664,5,0)),"",(VLOOKUP(J15,'KAYIT LİSTESİ'!$B$4:$H$664,5,0))) ->  | N15: =IF(ISERROR(VLOOKUP(J15,'KAYIT LİSTESİ'!$B$4:$H$664,6,0)),"",(VLOOKUP(J15,'KAYIT LİSTESİ'!$B$4:$H$664,6,0))) -> 
A16: 9 | G16: =IF(ISTEXT(F16),0,IFERROR(VLOOKUP(SMALL(#REF!,COUNTIF(#REF!,"<"&F16)+1),#REF!, 2,0),"")) ->  | I16: 2. SERİ | M16: Rüzgar:
A17: 10 | G17: =IF(ISTEXT(F17),0,IFERROR(VLOOKUP(SMALL(#REF!,COUNTIF(#REF!,"<"&F17)+1),#REF!, 2,0),"")) ->  | I17: Sıra No | J17: Formül | K17: Göğüs No | L17: Doğum Tarihi | M17: Adı ve Soyadı | N17: İli-Okulu | O17: Elektronik Kronometre | P17: El Kronometre | Q17: Seri Geliş
A18: 11 | G18: =IF(ISTEXT(F18),0,IFERROR(VLOOKUP(SMALL(#REF!,COUNTIF(#REF!,"<"&F18)+1),#REF!, 2,0),"")) ->  | I18: 1 | J18: 100M-2-1 | K18: =IF(ISERROR(VLOOKUP(J18,'KAYIT LİSTESİ'!$B$4:$H$664,2,0)),"",(VLOOKUP(J18,'KAYIT LİSTESİ'!$B$4:$H$664,2,0))) ->  | L18: =IF(ISERROR(VLOOKUP(J18,'KAYIT LİSTESİ'!$B$4:$H$664,4,0)),"",(VLOOKUP(J18,'KAYIT LİSTESİ'!$B$4:$H$664,4,0))) ->  | M18: =IF(ISERROR(VLOOKUP(J18,'KAYIT LİSTESİ'!$B$4:$H$664,5,0)),"",(VLOOKUP(J18,'KAYIT LİSTESİ'!$B$4:$H$664,5,0))) ->  | N18: =IF(ISERROR(VLOOKUP(J18,'KAYIT LİSTESİ'!$B$4:$H$664,6,0)),"",(VLOOKUP(J18,'KAYIT LİSTESİ'!$B$4:$H$664,6,0))) ->  | O18: =IF(IF(OR(P18="NM",P18="DNF",P18="DNS",P18="DQ",P18=""),P18,(ROUNDUP(P18,)+24))=0," ",IF(OR(P18="NM",P18="DNF",P18="DNS",P18="DQ",P18=""),P18,(ROUNDUP(P18,)+24))) -> 
A19: 12 | G19: =IF(ISTEXT(F19),0,IFERROR(VLOOKUP(SMALL(#REF!,COUNTIF(#REF!,"<"&F19)+1),#REF!, 2,0),"")) ->  | I19: 2 | J19: 100M-2-2 | K19: =IF(ISERROR(VLOOKUP(J19,'KAYIT LİSTESİ'!$B$4:$H$664,2,0)),"",(VLOOKUP(J19,'KAYIT LİSTESİ'!$B$4:$H$664,2,0))) ->  | L19: =IF(ISERROR(VLOOKUP(J19,'KAYIT LİSTESİ'!$B$4:$H$664,4,0)),"",(VLOOKUP(J19,'KAYIT LİSTESİ'!$B$4:$H$664,4,0))) ->  | M19: =IF(ISERROR(VLOOKUP(J19,'KAYIT LİSTESİ'!$B$4:$H$664,5,0)),"",(VLOOKUP(J19,'KAYIT LİSTESİ'!$B$4:$H$664,5,0))) ->  | N19: =IF(ISERROR(VLOOKUP(J19,'KAYIT LİSTESİ'!$B$4:$H$664,6,0)),"",(VLOOKUP(J19,'KAYIT LİSTESİ'!$B$4:$H$664,6,0))) -> 
A20: 13 | G20: =IF(ISTEXT(F20),0,IFERROR(VLOOKUP(SMALL(#REF!,COUNTIF(#REF!,"<"&F20)+1),#REF!, 2,0),"")) ->  | I20: 3 | J20: 100M-2-3 | K20: =IF(ISERROR(VLOOKUP(J20,'KAYIT LİSTESİ'!$B$4:$H$664,2,0)),"",(VLOOKUP(J20,'KAYIT LİSTESİ'!$B$4:$H$664,2,0))) ->  | L20: =IF(ISERROR(VLOOKUP(J20,'KAYIT LİSTESİ'!$B$4:$H$664,4,0)),"",(VLOOKUP(J20,'KAYIT LİSTESİ'!$B$4:$H$664,4,0))) ->  | M20: =IF(ISERROR(VLOOKUP(J20,'KAYIT LİSTESİ'!$B$4:$H$664,5,0)),"",(VLOOKUP(J20,'KAYIT LİSTESİ'!$B$4:$H$664,5,0))) ->  | N20: =IF(ISERROR(VLOOKUP(J20,'KAYIT LİSTESİ'!$B$4:$H$664,6,0)),"",(VLOOKUP(J20,'KAYIT LİSTESİ'!$B$4:$H$664,6,0))) -> 
A21: 14 | G21: =IF(ISTEXT(F21),0,IFERROR(VLOOKUP(SMALL(#REF!,COUNTIF(#REF!,"<"&F21)+1),#REF!, 2,0),"")) ->  | I21: 4 | J21: 100M-2-4 | K21: =IF(ISERROR(VLOOKUP(J21,'KAYIT LİSTESİ'!$B$4:$H$664,2,0)),"",(VLOOKUP(J21,'KAYIT LİSTESİ'!$B$4:$H$664,2,0))) ->  | L21: =IF(ISERROR(VLOOKUP(J21,'KAYIT LİSTESİ'!$B$4:$H$664,4,0)),"",(VLOOKUP(J21,'KAYIT LİSTESİ'!$B$4:$H$664,4,0))) ->  | M21: =IF(ISERROR(VLOOKUP(J21,'KAYIT LİSTESİ'!$B$4:$H$664,5,0)),"",(VLOOKUP(J21,'KAYIT LİSTESİ'!$B$4:$H$664,5,0))) ->  | N21: =IF(ISERROR(VLOOKUP(J21,'KAYIT LİSTESİ'!$B$4:$H$664,6,0)),"",(VLOOKUP(J21,'KAYIT LİSTESİ'!$B$4:$H$664,6,0))) -> 
A22: 15 | G22: =IF(ISTEXT(F22),0,IFERROR(VLOOKUP(SMALL(#REF!,COUNTIF(#REF!,"<"&F22)+1),#REF!, 2,0),"")) ->  | I22: 5 | J22: 100M-2-5 | K22: =IF(ISERROR(VLOOKUP(J22,'KAYIT LİSTESİ'!$B$4:$H$664,2,0)),"",(VLOOKUP(J22,'KAYIT LİSTESİ'!$B$4:$H$664,2,0))) ->  | L22: =IF(ISERROR(VLOOKUP(J22,'KAYIT LİSTESİ'!$B$4:$H$664,4,0)),"",(VLOOKUP(J22,'KAYIT LİSTESİ'!$B$4:$H$664,4,0))) ->  | M22: =IF(ISERROR(VLOOKUP(J22,'KAYIT LİSTESİ'!$B$4:$H$664,5,0)),"",(VLOOKUP(J22,'KAYIT LİSTESİ'!$B$4:$H$664,5,0))) ->  | N22: =IF(ISERROR(VLOOKUP(J22,'KAYIT LİSTESİ'!$B$4:$H$664,6,0)),"",(VLOOKUP(J22,'KAYIT LİSTESİ'!$B$4:$H$664,6,0))) -> 
A23: 16 | G23: =IF(ISTEXT(F23),0,IFERROR(VLOOKUP(SMALL(#REF!,COUNTIF(#REF!,"<"&F23)+1),#REF!, 2,0),"")) ->  | I23: 6 | J23: 100M-2-6 | K23: =IF(ISERROR(VLOOKUP(J23,'KAYIT LİSTESİ'!$B$4:$H$664,2,0)),"",(VLOOKUP(J23,'KAYIT LİSTESİ'!$B$4:$H$664,2,0))) ->  | L23: =IF(ISERROR(VLOOKUP(J23,'KAYIT LİSTESİ'!$B$4:$H$664,4,0)),"",(VLOOKUP(J23,'KAYIT LİSTESİ'!$B$4:$H$664,4,0))) ->  | M23: =IF(ISERROR(VLOOKUP(J23,'KAYIT LİSTESİ'!$B$4:$H$664,5,0)),"",(VLOOKUP(J23,'KAYIT LİSTESİ'!$B$4:$H$664,5,0))) ->  | N23: =IF(ISERROR(VLOOKUP(J23,'KAYIT LİSTESİ'!$B$4:$H$664,6,0)),"",(VLOOKUP(J23,'KAYIT LİSTESİ'!$B$4:$H$664,6,0))) -> 
A24: 17 | G24: =IF(ISTEXT(F24),0,IFERROR(VLOOKUP(SMALL(#REF!,COUNTIF(#REF!,"<"&F24)+1),#REF!, 2,0),"")) ->  | I24: 7 | J24: 100M-2-7 | K24: =IF(ISERROR(VLOOKUP(J24,'KAYIT LİSTESİ'!$B$4:$H$664,2,0)),"",(VLOOKUP(J24,'KAYIT LİSTESİ'!$B$4:$H$664,2,0))) ->  | L24: =IF(ISERROR(VLOOKUP(J24,'KAYIT LİSTESİ'!$B$4:$H$664,4,0)),"",(VLOOKUP(J24,'KAYIT LİSTESİ'!$B$4:$H$664,4,0))) ->  | M24: =IF(ISERROR(VLOOKUP(J24,'KAYIT LİSTESİ'!$B$4:$H$664,5,0)),"",(VLOOKUP(J24,'KAYIT LİSTESİ'!$B$4:$H$664,5,0))) ->  | N24: =IF(ISERROR(VLOOKUP(J24,'KAYIT LİSTESİ'!$B$4:$H$664,6,0)),"",(VLOOKUP(J24,'KAYIT LİSTESİ'!$B$4:$H$664,6,0))) -> 
A25: 18 | G25: =IF(ISTEXT(F25),0,IFERROR(VLOOKUP(SMALL(#REF!,COUNTIF(#REF!,"<"&F25)+1),#REF!, 2,0),"")) ->  | I25: 8 | J25: 100M-2-8 | K25: =IF(ISERROR(VLOOKUP(J25,'KAYIT LİSTESİ'!$B$4:$H$664,2,0)),"",(VLOOKUP(J25,'KAYIT LİSTESİ'!$B$4:$H$664,2,0))) ->  | L25: =IF(ISERROR(VLOOKUP(J25,'KAYIT LİSTESİ'!$B$4:$H$664,4,0)),"",(VLOOKUP(J25,'KAYIT LİSTESİ'!$B$4:$H$664,4,0))) ->  | M25: =IF(ISERROR(VLOOKUP(J25,'KAYIT LİSTESİ'!$B$4:$H$664,5,0)),"",(VLOOKUP(J25,'KAYIT LİSTESİ'!$B$4:$H$664,5,0))) ->  | N25: =IF(ISERROR(VLOOKUP(J25,'KAYIT LİSTESİ'!$B$4:$H$664,6,0)),"",(VLOOKUP(J25,'KAYIT LİSTESİ'!$B$4:$H$664,6,0))) -> 
A26: 19 | G26: =IF(ISTEXT(F26),0,IFERROR(VLOOKUP(SMALL(#REF!,COUNTIF(#REF!,"<"&F26)+1),#REF!, 2,0),"")) ->  | I26: 3. SERİ | M26: Rüzgar:
A27: 20 | G27: =IF(ISTEXT(F27),0,IFERROR(VLOOKUP(SMALL(#REF!,COUNTIF(#REF!,"<"&F27)+1),#REF!, 2,0),"")) ->  | I27: Sıra No | J27: Formül | K27: Göğüs No | L27: Doğum Tarihi | M27: Adı ve Soyadı | N27: İli-Okulu | O27: Elektronik Kronometre | P27: El Kronometre | Q27: Seri Geliş
A28: 21 | G28: =IF(ISTEXT(F28),0,IFERROR(VLOOKUP(SMALL(#REF!,COUNTIF(#REF!,"<"&F28)+1),#REF!, 2,0),"")) ->  | I28: 1 | J28: 100M-3-1 | K28: =IF(ISERROR(VLOOKUP(J28,'KAYIT LİSTESİ'!$B$4:$H$664,2,0)),"",(VLOOKUP(J28,'KAYIT LİSTESİ'!$B$4:$H$664,2,0))) ->  | L28: =IF(ISERROR(VLOOKUP(J28,'KAYIT LİSTESİ'!$B$4:$H$664,4,0)),"",(VLOOKUP(J28,'KAYIT LİSTESİ'!$B$4:$H$664,4,0))) ->  | M28: =IF(ISERROR(VLOOKUP(J28,'KAYIT LİSTESİ'!$B$4:$H$664,5,0)),"",(VLOOKUP(J28,'KAYIT LİSTESİ'!$B$4:$H$664,5,0))) ->  | N28: =IF(ISERROR(VLOOKUP(J28,'KAYIT LİSTESİ'!$B$4:$H$664,6,0)),"",(VLOOKUP(J28,'KAYIT LİSTESİ'!$B$4:$H$664,6,0))) ->  | O28: =IF(IF(OR(P28="NM",P28="DNF",P28="DNS",P28="DQ",P28=""),P28,(ROUNDUP(P28,)+24))=0," ",IF(OR(P28="NM",P28="DNF",P28="DNS",P28="DQ",P28=""),P28,(ROUNDUP(P28,)+24))) -> 
A29: 22 | G29: =IF(ISTEXT(F29),0,IFERROR(VLOOKUP(SMALL(#REF!,COUNTIF(#REF!,"<"&F29)+1),#REF!, 2,0),"")) ->  | I29: 2 | J29: 100M-3-2 | K29: =IF(ISERROR(VLOOKUP(J29,'KAYIT LİSTESİ'!$B$4:$H$664,2,0)),"",(VLOOKUP(J29,'KAYIT LİSTESİ'!$B$4:$H$664,2,0))) ->  | L29: =IF(ISERROR(VLOOKUP(J29,'KAYIT LİSTESİ'!$B$4:$H$664,4,0)),"",(VLOOKUP(J29,'KAYIT LİSTESİ'!$B$4:$H$664,4,0))) ->  | M29: =IF(ISERROR(VLOOKUP(J29,'KAYIT LİSTESİ'!$B$4:$H$664,5,0)),"",(VLOOKUP(J29,'KAYIT LİSTESİ'!$B$4:$H$664,5,0))) ->  | N29: =IF(ISERROR(VLOOKUP(J29,'KAYIT LİSTESİ'!$B$4:$H$664,6,0)),"",(VLOOKUP(J29,'KAYIT LİSTESİ'!$B$4:$H$664,6,0))) -> 
A30: 23 | G30: =IF(ISTEXT(F30),0,IFERROR(VLOOKUP(SMALL(#REF!,COUNTIF(#REF!,"<"&F30)+1),#REF!, 2,0),"")) ->  | I30: 3 | J30: 100M-3-3 | K30: =IF(ISERROR(VLOOKUP(J30,'KAYIT LİSTESİ'!$B$4:$H$664,2,0)),"",(VLOOKUP(J30,'KAYIT LİSTESİ'!$B$4:$H$664,2,0))) ->  | L30: =IF(ISERROR(VLOOKUP(J30,'KAYIT LİSTESİ'!$B$4:$H$664,4,0)),"",(VLOOKUP(J30,'KAYIT LİSTESİ'!$B$4:$H$664,4,0))) ->  | M30: =IF(ISERROR(VLOOKUP(J30,'KAYIT LİSTESİ'!$B$4:$H$664,5,0)),"",(VLOOKUP(J30,'KAYIT LİSTESİ'!$B$4:$H$664,5,0))) ->  | N30: =IF(ISERROR(VLOOKUP(J30,'KAYIT LİSTESİ'!$B$4:$H$664,6,0)),"",(VLOOKUP(J30,'KAYIT LİSTESİ'!$B$4:$H$664,6,0))) -> 
A31: 24 | G31: =IF(ISTEXT(F31),0,IFERROR(VLOOKUP(SMALL(#REF!,COUNTIF(#REF!,"<"&F31)+1),#REF!, 2,0),"")) ->  | I31: 4 | J31: 100M-3-4 | K31: =IF(ISERROR(VLOOKUP(J31,'KAYIT LİSTESİ'!$B$4:$H$664,2,0)),"",(VLOOKUP(J31,'KAYIT LİSTESİ'!$B$4:$H$664,2,0))) ->  | L31: =IF(ISERROR(VLOOKUP(J31,'KAYIT LİSTESİ'!$B$4:$H$664,4,0)),"",(VLOOKUP(J31,'KAYIT LİSTESİ'!$B$4:$H$664,4,0))) ->  | M31: =IF(ISERROR(VLOOKUP(J31,'KAYIT LİSTESİ'!$B$4:$H$664,5,0)),"",(VLOOKUP(J31,'KAYIT LİSTESİ'!$B$4:$H$664,5,0))) ->  | N31: =IF(ISERROR(VLOOKUP(J31,'KAYIT LİSTESİ'!$B$4:$H$664,6,0)),"",(VLOOKUP(J31,'KAYIT LİSTESİ'!$B$4:$H$664,6,0))) -> 
A32: 25 | G32: =IF(ISTEXT(F32),0,IFERROR(VLOOKUP(SMALL(#REF!,COUNTIF(#REF!,"<"&F32)+1),#REF!, 2,0),"")) ->  | I32: 5 | J32: 100M-3-5 | K32: =IF(ISERROR(VLOOKUP(J32,'KAYIT LİSTESİ'!$B$4:$H$664,2,0)),"",(VLOOKUP(J32,'KAYIT LİSTESİ'!$B$4:$H$664,2,0))) ->  | L32: =IF(ISERROR(VLOOKUP(J32,'KAYIT LİSTESİ'!$B$4:$H$664,4,0)),"",(VLOOKUP(J32,'KAYIT LİSTESİ'!$B$4:$H$664,4,0))) ->  | M32: =IF(ISERROR(VLOOKUP(J32,'KAYIT LİSTESİ'!$B$4:$H$664,5,0)),"",(VLOOKUP(J32,'KAYIT LİSTESİ'!$B$4:$H$664,5,0))) ->  | N32: =IF(ISERROR(VLOOKUP(J32,'KAYIT LİSTESİ'!$B$4:$H$664,6,0)),"",(VLOOKUP(J32,'KAYIT LİSTESİ'!$B$4:$H$664,6,0))) -> 
A33: 26 | G33: =IF(ISTEXT(F33),0,IFERROR(VLOOKUP(SMALL(#REF!,COUNTIF(#REF!,"<"&F33)+1),#REF!, 2,0),"")) ->  | I33: 6 | J33: 100M-3-6 | K33: =IF(ISERROR(VLOOKUP(J33,'KAYIT LİSTESİ'!$B$4:$H$664,2,0)),"",(VLOOKUP(J33,'KAYIT LİSTESİ'!$B$4:$H$664,2,0))) ->  | L33: =IF(ISERROR(VLOOKUP(J33,'KAYIT LİSTESİ'!$B$4:$H$664,4,0)),"",(VLOOKUP(J33,'KAYIT LİSTESİ'!$B$4:$H$664,4,0))) ->  | M33: =IF(ISERROR(VLOOKUP(J33,'KAYIT LİSTESİ'!$B$4:$H$664,5,0)),"",(VLOOKUP(J33,'KAYIT LİSTESİ'!$B$4:$H$664,5,0))) ->  | N33: =IF(ISERROR(VLOOKUP(J33,'KAYIT LİSTESİ'!$B$4:$H$664,6,0)),"",(VLOOKUP(J33,'KAYIT LİSTESİ'!$B$4:$H$664,6,0))) -> 
A34: 27 | G34: =IF(ISTEXT(F34),0,IFERROR(VLOOKUP(SMALL(#REF!,COUNTIF(#REF!,"<"&F34)+1),#REF!, 2,0),"")) ->  | I34: 7 | J34: 100M-3-7 | K34: =IF(ISERROR(VLOOKUP(J34,'KAYIT LİSTESİ'!$B$4:$H$664,2,0)),"",(VLOOKUP(J34,'KAYIT LİSTESİ'!$B$4:$H$664,2,0))) ->  | L34: =IF(ISERROR(VLOOKUP(J34,'KAYIT LİSTESİ'!$B$4:$H$664,4,0)),"",(VLOOKUP(J34,'KAYIT LİSTESİ'!$B$4:$H$664,4,0))) ->  | M34: =IF(ISERROR(VLOOKUP(J34,'KAYIT LİSTESİ'!$B$4:$H$664,5,0)),"",(VLOOKUP(J34,'KAYIT LİSTESİ'!$B$4:$H$664,5,0))) ->  | N34: =IF(ISERROR(VLOOKUP(J34,'KAYIT LİSTESİ'!$B$4:$H$664,6,0)),"",(VLOOKUP(J34,'KAYIT LİSTESİ'!$B$4:$H$664,6,0))) -> 
A35: 28 | G35: =IF(ISTEXT(F35),0,IFERROR(VLOOKUP(SMALL(#REF!,COUNTIF(#REF!,"<"&F35)+1),#REF!, 2,0),"")) ->  | I35: 8 | J35: 100M-3-8 | K35: =IF(ISERROR(VLOOKUP(J35,'KAYIT LİSTESİ'!$B$4:$H$664,2,0)),"",(VLOOKUP(J35,'KAYIT LİSTESİ'!$B$4:$H$664,2,0))) ->  | L35: =IF(ISERROR(VLOOKUP(J35,'KAYIT LİSTESİ'!$B$4:$H$664,4,0)),"",(VLOOKUP(J35,'KAYIT LİSTESİ'!$B$4:$H$664,4,0))) ->  | M35: =IF(ISERROR(VLOOKUP(J35,'KAYIT LİSTESİ'!$B$4:$H$664,5,0)),"",(VLOOKUP(J35,'KAYIT LİSTESİ'!$B$4:$H$664,5,0))) ->  | N35: =IF(ISERROR(VLOOKUP(J35,'KAYIT LİSTESİ'!$B$4:$H$664,6,0)),"",(VLOOKUP(J35,'KAYIT LİSTESİ'!$B$4:$H$664,6,0))) -> 
A36: 29 | G36: =IF(ISTEXT(F36),0,IFERROR(VLOOKUP(SMALL(#REF!,COUNTIF(#REF!,"<"&F36)+1),#REF!, 2,0),"")) ->  | I36: 4. SERİ | M36: Rüzgar:
A37: 30 | G37: =IF(ISTEXT(F37),0,IFERROR(VLOOKUP(SMALL(#REF!,COUNTIF(#REF!,"<"&F37)+1),#REF!, 2,0),"")) ->  | I37: Sıra No | J37: Formül | K37: Göğüs No | L37: Doğum Tarihi | M37: Adı ve Soyadı | N37: İli-Okulu | O37: Elektronik Kronometre | P37: El Kronometre | Q37: Seri Geliş
A38: 31 | G38: =IF(ISTEXT(F38),0,IFERROR(VLOOKUP(SMALL(#REF!,COUNTIF(#REF!,"<"&F38)+1),#REF!, 2,0),"")) ->  | I38: 1 | J38: 100M-4-1 | K38: =IF(ISERROR(VLOOKUP(J38,'KAYIT LİSTESİ'!$B$4:$H$664,2,0)),"",(VLOOKUP(J38,'KAYIT LİSTESİ'!$B$4:$H$664,2,0))) ->  | L38: =IF(ISERROR(VLOOKUP(J38,'KAYIT LİSTESİ'!$B$4:$H$664,4,0)),"",(VLOOKUP(J38,'KAYIT LİSTESİ'!$B$4:$H$664,4,0))) ->  | M38: =IF(ISERROR(VLOOKUP(J38,'KAYIT LİSTESİ'!$B$4:$H$664,5,0)),"",(VLOOKUP(J38,'KAYIT LİSTESİ'!$B$4:$H$664,5,0))) ->  | N38: =IF(ISERROR(VLOOKUP(J38,'KAYIT LİSTESİ'!$B$4:$H$664,6,0)),"",(VLOOKUP(J38,'KAYIT LİSTESİ'!$B$4:$H$664,6,0))) -> 
A39: 32 | G39: =IF(ISTEXT(F39),0,IFERROR(VLOOKUP(SMALL(#REF!,COUNTIF(#REF!,"<"&F39)+1),#REF!, 2,0),"")) ->  | I39: 2 | J39: 100M-4-2 | K39: =IF(ISERROR(VLOOKUP(J39,'KAYIT LİSTESİ'!$B$4:$H$664,2,0)),"",(VLOOKUP(J39,'KAYIT LİSTESİ'!$B$4:$H$664,2,0))) ->  | L39: =IF(ISERROR(VLOOKUP(J39,'KAYIT LİSTESİ'!$B$4:$H$664,4,0)),"",(VLOOKUP(J39,'KAYIT LİSTESİ'!$B$4:$H$664,4,0))) ->  | M39: =IF(ISERROR(VLOOKUP(J39,'KAYIT LİSTESİ'!$B$4:$H$664,5,0)),"",(VLOOKUP(J39,'KAYIT LİSTESİ'!$B$4:$H$664,5,0))) ->  | N39: =IF(ISERROR(VLOOKUP(J39,'KAYIT LİSTESİ'!$B$4:$H$664,6,0)),"",(VLOOKUP(J39,'KAYIT LİSTESİ'!$B$4:$H$664,6,0))) -> 
A40: 33 | G40: =IF(ISTEXT(F40),0,IFERROR(VLOOKUP(SMALL(#REF!,COUNTIF(#REF!,"<"&F40)+1),#REF!, 11,0)," ")) ->  | I40: 3 | J40: 100M-4-3 | K40: =IF(ISERROR(VLOOKUP(J40,'KAYIT LİSTESİ'!$B$4:$H$664,2,0)),"",(VLOOKUP(J40,'KAYIT LİSTESİ'!$B$4:$H$664,2,0))) ->  | L40: =IF(ISERROR(VLOOKUP(J40,'KAYIT LİSTESİ'!$B$4:$H$664,4,0)),"",(VLOOKUP(J40,'KAYIT LİSTESİ'!$B$4:$H$664,4,0))) ->  | M40: =IF(ISERROR(VLOOKUP(J40,'KAYIT LİSTESİ'!$B$4:$H$664,5,0)),"",(VLOOKUP(J40,'KAYIT LİSTESİ'!$B$4:$H$664,5,0))) ->  | N40: =IF(ISERROR(VLOOKUP(J40,'KAYIT LİSTESİ'!$B$4:$H$664,6,0)),"",(VLOOKUP(J40,'KAYIT LİSTESİ'!$B$4:$H$664,6,0))) -> 
A41: 34 | G41: =IF(ISTEXT(F41),0,IFERROR(VLOOKUP(SMALL(#REF!,COUNTIF(#REF!,"<"&F41)+1),#REF!, 11,0)," ")) ->  | I41: 4 | J41: 100M-4-4 | K41: =IF(ISERROR(VLOOKUP(J41,'KAYIT LİSTESİ'!$B$4:$H$664,2,0)),"",(VLOOKUP(J41,'KAYIT LİSTESİ'!$B$4:$H$664,2,0))) ->  | L41: =IF(ISERROR(VLOOKUP(J41,'KAYIT LİSTESİ'!$B$4:$H$664,4,0)),"",(VLOOKUP(J41,'KAYIT LİSTESİ'!$B$4:$H$664,4,0))) ->  | M41: =IF(ISERROR(VLOOKUP(J41,'KAYIT LİSTESİ'!$B$4:$H$664,5,0)),"",(VLOOKUP(J41,'KAYIT LİSTESİ'!$B$4:$H$664,5,0))) ->  | N41: =IF(ISERROR(VLOOKUP(J41,'KAYIT LİSTESİ'!$B$4:$H$664,6,0)),"",(VLOOKUP(J41,'KAYIT LİSTESİ'!$B$4:$H$664,6,0))) -> 
A42: 35 | G42: =IF(ISTEXT(F42),0,IFERROR(VLOOKUP(SMALL(#REF!,COUNTIF(#REF!,"<"&F42)+1),#REF!, 11,0)," ")) ->  | I42: 5 | J42: 100M-4-5 | K42: =IF(ISERROR(VLOOKUP(J42,'KAYIT LİSTESİ'!$B$4:$H$664,2,0)),"",(VLOOKUP(J42,'KAYIT LİSTESİ'!$B$4:$H$664,2,0))) ->  | L42: =IF(ISERROR(VLOOKUP(J42,'KAYIT LİSTESİ'!$B$4:$H$664,4,0)),"",(VLOOKUP(J42,'KAYIT LİSTESİ'!$B$4:$H$664,4,0))) ->  | M42: =IF(ISERROR(VLOOKUP(J42,'KAYIT LİSTESİ'!$B$4:$H$664,5,0)),"",(VLOOKUP(J42,'KAYIT LİSTESİ'!$B$4:$H$664,5,0))) ->  | N42: =IF(ISERROR(VLOOKUP(J42,'KAYIT LİSTESİ'!$B$4:$H$664,6,0)),"",(VLOOKUP(J42,'KAYIT LİSTESİ'!$B$4:$H$664,6,0))) -> 
A43: 36 | G43: =IF(ISTEXT(F43),0,IFERROR(VLOOKUP(SMALL(#REF!,COUNTIF(#REF!,"<"&F43)+1),#REF!, 11,0)," ")) ->  | I43: 6 | J43: 100M-4-6 | K43: =IF(ISERROR(VLOOKUP(J43,'KAYIT LİSTESİ'!$B$4:$H$664,2,0)),"",(VLOOKUP(J43,'KAYIT LİSTESİ'!$B$4:$H$664,2,0))) ->  | L43: =IF(ISERROR(VLOOKUP(J43,'KAYIT LİSTESİ'!$B$4:$H$664,4,0)),"",(VLOOKUP(J43,'KAYIT LİSTESİ'!$B$4:$H$664,4,0))) ->  | M43: =IF(ISERROR(VLOOKUP(J43,'KAYIT LİSTESİ'!$B$4:$H$664,5,0)),"",(VLOOKUP(J43,'KAYIT LİSTESİ'!$B$4:$H$664,5,0))) ->  | N43: =IF(ISERROR(VLOOKUP(J43,'KAYIT LİSTESİ'!$B$4:$H$664,6,0)),"",(VLOOKUP(J43,'KAYIT LİSTESİ'!$B$4:$H$664,6,0))) -> 
A44: 37 | G44: =IF(ISTEXT(F44),0,IFERROR(VLOOKUP(SMALL(#REF!,COUNTIF(#REF!,"<"&F44)+1),#REF!, 11,0)," ")) ->  | I44: 7 | J44: 100M-4-7 | K44: =IF(ISERROR(VLOOKUP(J44,'KAYIT LİSTESİ'!$B$4:$H$664,2,0)),"",(VLOOKUP(J44,'KAYIT LİSTESİ'!$B$4:$H$664,2,0))) ->  | L44: =IF(ISERROR(VLOOKUP(J44,'KAYIT LİSTESİ'!$B$4:$H$664,4,0)),"",(VLOOKUP(J44,'KAYIT LİSTESİ'!$B$4:$H$664,4,0))) ->  | M44: =IF(ISERROR(VLOOKUP(J44,'KAYIT LİSTESİ'!$B$4:$H$664,5,0)),"",(VLOOKUP(J44,'KAYIT LİSTESİ'!$B$4:$H$664,5,0))) ->  | N44: =IF(ISERROR(VLOOKUP(J44,'KAYIT LİSTESİ'!$B$4:$H$664,6,0)),"",(VLOOKUP(J44,'KAYIT LİSTESİ'!$B$4:$H$664,6,0))) -> 
A45: 38 | G45: =IF(ISTEXT(F45),0,IFERROR(VLOOKUP(SMALL(#REF!,COUNTIF(#REF!,"<"&F45)+1),#REF!, 11,0)," ")) ->  | I45: 8 | J45: 100M-4-8 | K45: =IF(ISERROR(VLOOKUP(J45,'KAYIT LİSTESİ'!$B$4:$H$664,2,0)),"",(VLOOKUP(J45,'KAYIT LİSTESİ'!$B$4:$H$664,2,0))) ->  | L45: =IF(ISERROR(VLOOKUP(J45,'KAYIT LİSTESİ'!$B$4:$H$664,4,0)),"",(VLOOKUP(J45,'KAYIT LİSTESİ'!$B$4:$H$664,4,0))) ->  | M45: =IF(ISERROR(VLOOKUP(J45,'KAYIT LİSTESİ'!$B$4:$H$664,5,0)),"",(VLOOKUP(J45,'KAYIT LİSTESİ'!$B$4:$H$664,5,0))) ->  | N45: =IF(ISERROR(VLOOKUP(J45,'KAYIT LİSTESİ'!$B$4:$H$664,6,0)),"",(VLOOKUP(J45,'KAYIT LİSTESİ'!$B$4:$H$664,6,0))) -> 
A47: Müsabakalar Direktörü | E47: Baş Hakem | F47: Lider | H47: Sekreter | M47: Hakem | N47: Hakem | P47: Hakem

Sheet 400m.
A1: =('YARIŞMA BİLGİLERİ'!A2) -> Türkiye Atletizm Federasyonu Mersin Atletizm İl Temsilciliği
A2: ='YARIŞMA BİLGİLERİ'!F19 -> Olimpik Baraj Yarışmaları
A3: Yarışma : | D3: =#REF! ->  | F3: Baraj Derecesi | H3: : | I3: =#REF! -> 
A4: Kategori : | D4: ='YARIŞMA BİLGİLERİ'!F21 -> Kadınlar | M4: Tarih-Saat : | N4: =#REF! -> 
N5: =NOW() -> 42222.53664
A6: Sıra No | B6: Göğüs No | C6: Doğum Tarihi Gün/Ay/Yıl | D6: Adı ve Soyadı | E6: İli-Okulu | F6: Derece | G6: Puan | I6: 1. SERİ
I7: Sıra No | J7: Formül | K7: Göğüs No | L7: Doğum Tarihi | M7: Adı ve Soyadı | N7: İli-Okulu | O7: Elektronik Kronometre | P7: El Kronometre | Q7: Seri Geliş
A8: 1 | G8: =IF(ISTEXT(F8),0,IFERROR(VLOOKUP(SMALL(#REF!,COUNTIF(#REF!,"<"&F8)+1),#REF!, 2,0)," ")) ->  | I8: 1 | J8: 400M-1-1 | K8: =IF(ISERROR(VLOOKUP(J8,'KAYIT LİSTESİ'!$B$4:$H$664,2,0)),"",(VLOOKUP(J8,'KAYIT LİSTESİ'!$B$4:$H$664,2,0))) ->  | L8: =IF(ISERROR(VLOOKUP(J8,'KAYIT LİSTESİ'!$B$4:$H$664,4,0)),"",(VLOOKUP(J8,'KAYIT LİSTESİ'!$B$4:$H$664,4,0))) ->  | M8: =IF(ISERROR(VLOOKUP(J8,'KAYIT LİSTESİ'!$B$4:$H$664,5,0)),"",(VLOOKUP(J8,'KAYIT LİSTESİ'!$B$4:$H$664,5,0))) ->  | N8: =IF(ISERROR(VLOOKUP(J8,'KAYIT LİSTESİ'!$B$4:$H$664,6,0)),"",(VLOOKUP(J8,'KAYIT LİSTESİ'!$B$4:$H$664,6,0))) ->  | O8: =IF(IF(OR(P8="NM",P8="DNF",P8="DNS",P8="DQ",P8=""),P8,(ROUNDUP(P8,)+24))=0," ",IF(OR(P8="NM",P8="DNF",P8="DNS",P8="DQ",P8=""),P8,(ROUNDUP(P8,)+24))) -> 
A9: 2 | G9: =IF(ISTEXT(F9),0,IFERROR(VLOOKUP(SMALL(#REF!,COUNTIF(#REF!,"<"&F9)+1),#REF!, 2,0)," ")) ->  | I9: 2 | J9: 400M-1-2 | K9: =IF(ISERROR(VLOOKUP(J9,'KAYIT LİSTESİ'!$B$4:$H$664,2,0)),"",(VLOOKUP(J9,'KAYIT LİSTESİ'!$B$4:$H$664,2,0))) -> 600 | L9: =IF(ISERROR(VLOOKUP(J9,'KAYIT LİSTESİ'!$B$4:$H$664,4,0)),"",(VLOOKUP(J9,'KAYIT LİSTESİ'!$B$4:$H$664,4,0))) -> 1987-03-30 | M9: =IF(ISERROR(VLOOKUP(J9,'KAYIT LİSTESİ'!$B$4:$H$664,5,0)),"",(VLOOKUP(J9,'KAYIT LİSTESİ'!$B$4:$H$664,5,0))) -> SİBEL İPEK | N9: =IF(ISERROR(VLOOKUP(J9,'KAYIT LİSTESİ'!$B$4:$H$664,6,0)),"",(VLOOKUP(J9,'KAYIT LİSTESİ'!$B$4:$H$664,6,0))) -> DİYARBAKIR
A10: 3 | G10: =IF(ISTEXT(F10),0,IFERROR(VLOOKUP(SMALL(#REF!,COUNTIF(#REF!,"<"&F10)+1),#REF!, 2,0)," ")) ->  | I10: 3 | J10: 400M-1-3 | K10: =IF(ISERROR(VLOOKUP(J10,'KAYIT LİSTESİ'!$B$4:$H$664,2,0)),"",(VLOOKUP(J10,'KAYIT LİSTESİ'!$B$4:$H$664,2,0))) -> 609 | L10: =IF(ISERROR(VLOOKUP(J10,'KAYIT LİSTESİ'!$B$4:$H$664,4,0)),"",(VLOOKUP(J10,'KAYIT LİSTESİ'!$B$4:$H$664,4,0))) -> 1989-09-28 | M10: =IF(ISERROR(VLOOKUP(J10,'KAYIT LİSTESİ'!$B$4:$H$664,5,0)),"",(VLOOKUP(J10,'KAYIT LİSTESİ'!$B$4:$H$664,5,0))) -> Nihan Karuk | N10: =IF(ISERROR(VLOOKUP(J10,'KAYIT LİSTESİ'!$B$4:$H$664,6,0)),"",(VLOOKUP(J10,'KAYIT LİSTESİ'!$B$4:$H$664,6,0))) -> karaman
A11: 4 | G11: =IF(ISTEXT(F11),0,IFERROR(VLOOKUP(SMALL(#REF!,COUNTIF(#REF!,"<"&F11)+1),#REF!, 2,0)," ")) ->  | I11: 4 | J11: 400M-1-4 | K11: =IF(ISERROR(VLOOKUP(J11,'KAYIT LİSTESİ'!$B$4:$H$664,2,0)),"",(VLOOKUP(J11,'KAYIT LİSTESİ'!$B$4:$H$664,2,0))) -> 604 | L11: =IF(ISERROR(VLOOKUP(J11,'KAYIT LİSTESİ'!$B$4:$H$664,4,0)),"",(VLOOKUP(J11,'KAYIT LİSTESİ'!$B$4:$H$664,4,0))) -> 1997-03-15 | M11: =IF(ISERROR(VLOOKUP(J11,'KAYIT LİSTESİ'!$B$4:$H$664,5,0)),"",(VLOOKUP(J11,'KAYIT LİSTESİ'!$B$4:$H$664,5,0))) -> RÜYA KAYA | N11: =IF(ISERROR(VLOOKUP(J11,'KAYIT LİSTESİ'!$B$4:$H$664,6,0)),"",(VLOOKUP(J11,'KAYIT LİSTESİ'!$B$4:$H$664,6,0))) -> MERSİN
A12: 5 | G12: =IF(ISTEXT(F12),0,IFERROR(VLOOKUP(SMALL(#REF!,COUNTIF(#REF!,"<"&F12)+1),#REF!, 2,0)," ")) ->  | I12: 5 | J12: 400M-1-5 | K12: =IF(ISERROR(VLOOKUP(J12,'KAYIT LİSTESİ'!$B$4:$H$664,2,0)),"",(VLOOKUP(J12,'KAYIT LİSTESİ'!$B$4:$H$664,2,0))) -> 624 | L12: =IF(ISERROR(VLOOKUP(J12,'KAYIT LİSTESİ'!$B$4:$H$664,4,0)),"",(VLOOKUP(J12,'KAYIT LİSTESİ'!$B$4:$H$664,4,0))) -> 1997-03-17 | M12: =IF(ISERROR(VLOOKUP(J12,'KAYIT LİSTESİ'!$B$4:$H$664,5,0)),"",(VLOOKUP(J12,'KAYIT LİSTESİ'!$B$4:$H$664,5,0))) -> BAHAR ILDIRKAYA | N12: =IF(ISERROR(VLOOKUP(J12,'KAYIT LİSTESİ'!$B$4:$H$664,6,0)),"",(VLOOKUP(J12,'KAYIT LİSTESİ'!$B$4:$H$664,6,0))) -> BURSA
A13: 6 | G13: =IF(ISTEXT(F13),0,IFERROR(VLOOKUP(SMALL(#REF!,COUNTIF(#REF!,"<"&F13)+1),#REF!, 2,0)," ")) ->  | I13: 6 | J13: 400M-1-6 | K13: =IF(ISERROR(VLOOKUP(J13,'KAYIT LİSTESİ'!$B$4:$H$664,2,0)),"",(VLOOKUP(J13,'KAYIT LİSTESİ'!$B$4:$H$664,2,0))) -> 625 | L13: =IF(ISERROR(VLOOKUP(J13,'KAYIT LİSTESİ'!$B$4:$H$664,4,0)),"",(VLOOKUP(J13,'KAYIT LİSTESİ'!$B$4:$H$664,4,0))) -> 1999-11-01 | M13: =IF(ISERROR(VLOOKUP(J13,'KAYIT LİSTESİ'!$B$4:$H$664,5,0)),"",(VLOOKUP(J13,'KAYIT LİSTESİ'!$B$4:$H$664,5,0))) -> KARDELEN YILDIRIM | N13: =IF(ISERROR(VLOOKUP(J13,'KAYIT LİSTESİ'!$B$4:$H$664,6,0)),"",(VLOOKUP(J13,'KAYIT LİSTESİ'!$B$4:$H$664,6,0))) -> ERZİNCAN
A14: 7 | G14: =IF(ISTEXT(F14),0,IFERROR(VLOOKUP(SMALL(#REF!,COUNTIF(#REF!,"<"&F14)+1),#REF!, 2,0)," ")) ->  | I14: 7 | J14: 400M-1-7 | K14: =IF(ISERROR(VLOOKUP(J14,'KAYIT LİSTESİ'!$B$4:$H$664,2,0)),"",(VLOOKUP(J14,'KAYIT LİSTESİ'!$B$4:$H$664,2,0))) -> 615 | L14: =IF(ISERROR(VLOOKUP(J14,'KAYIT LİSTESİ'!$B$4:$H$664,4,0)),"",(VLOOKUP(J14,'KAYIT LİSTESİ'!$B$4:$H$664,4,0))) -> 1997-01-19 | M14: =IF(ISERROR(VLOOKUP(J14,'KAYIT LİSTESİ'!$B$4:$H$664,5,0)),"",(VLOOKUP(J14,'KAYIT LİSTESİ'!$B$4:$H$664,5,0))) -> SEVNUR ALADAĞ | N14: =IF(ISERROR(VLOOKUP(J14,'KAYIT LİSTESİ'!$B$4:$H$664,6,0)),"",(VLOOKUP(J14,'KAYIT LİSTESİ'!$B$4:$H$664,6,0))) -> HATAY
A15: 8 | G15: =IF(ISTEXT(F15),0,IFERROR(VLOOKUP(SMALL(#REF!,COUNTIF(#REF!,"<"&F15)+1),#REF!, 2,0)," ")) ->  | I15: 8 | J15: 400M-1-8 | K15: =IF(ISERROR(VLOOKUP(J15,'KAYIT LİSTESİ'!$B$4:$H$664,2,0)),"",(VLOOKUP(J15,'KAYIT LİSTESİ'!$B$4:$H$664,2,0))) -> 628 | L15: =IF(ISERROR(VLOOKUP(J15,'KAYIT LİSTESİ'!$B$4:$H$664,4,0)),"",(VLOOKUP(J15,'KAYIT LİSTESİ'!$B$4:$H$664,4,0))) -> 1997-08-04 | M15: =IF(ISERROR(VLOOKUP(J15,'KAYIT LİSTESİ'!$B$4:$H$664,5,0)),"",(VLOOKUP(J15,'KAYIT LİSTESİ'!$B$4:$H$664,5,0))) -> HATICE DEDE | N15: =IF(ISERROR(VLOOKUP(J15,'KAYIT LİSTESİ'!$B$4:$H$664,6,0)),"",(VLOOKUP(J15,'KAYIT LİSTESİ'!$B$4:$H$664,6,0))) -> AKSARAY
A16: 9 | G16: =IF(ISTEXT(F16),0,IFERROR(VLOOKUP(SMALL(#REF!,COUNTIF(#REF!,"<"&F16)+1),#REF!, 2,0)," ")) ->  | I16: 2. SERİ
A17: 10 | G17: =IF(ISTEXT(F17),0,IFERROR(VLOOKUP(SMALL(#REF!,COUNTIF(#REF!,"<"&F17)+1),#REF!, 2,0)," ")) ->  | I17: Sıra No | J17: Formül | K17: Göğüs No | L17: Doğum Tarihi | M17: Adı ve Soyadı | N17: İli-Okulu | O17: Elektronik Kronometre | P17: El Kronometre | Q17: Seri Geliş
A18: 11 | G18: =IF(ISTEXT(F18),0,IFERROR(VLOOKUP(SMALL(#REF!,COUNTIF(#REF!,"<"&F18)+1),#REF!, 2,0)," ")) ->  | I18: 1 | J18: 400M-2-1 | K18: =IF(ISERROR(VLOOKUP(J18,'KAYIT LİSTESİ'!$B$4:$H$664,2,0)),"",(VLOOKUP(J18,'KAYIT LİSTESİ'!$B$4:$H$664,2,0))) ->  | L18: =IF(ISERROR(VLOOKUP(J18,'KAYIT LİSTESİ'!$B$4:$H$664,4,0)),"",(VLOOKUP(J18,'KAYIT LİSTESİ'!$B$4:$H$664,4,0))) ->  | M18: =IF(ISERROR(VLOOKUP(J18,'KAYIT LİSTESİ'!$B$4:$H$664,5,0)),"",(VLOOKUP(J18,'KAYIT LİSTESİ'!$B$4:$H$664,5,0))) ->  | N18: =IF(ISERROR(VLOOKUP(J18,'KAYIT LİSTESİ'!$B$4:$H$664,6,0)),"",(VLOOKUP(J18,'KAYIT LİSTESİ'!$B$4:$H$664,6,0))) ->  | O18: =IF(IF(OR(P18="NM",P18="DNF",P18="DNS",P18="DQ",P18=""),P18,(ROUNDUP(P18,)+24))=0," ",IF(OR(P18="NM",P18="DNF",P18="DNS",P18="DQ",P18=""),P18,(ROUNDUP(P18,)+24))) -> 
A19: 12 | G19: =IF(ISTEXT(F19),0,IFERROR(VLOOKUP(SMALL(#REF!,COUNTIF(#REF!,"<"&F19)+1),#REF!, 2,0)," ")) ->  | I19: 2 | J19: 400M-2-2 | K19: =IF(ISERROR(VLOOKUP(J19,'KAYIT LİSTESİ'!$B$4:$H$664,2,0)),"",(VLOOKUP(J19,'KAYIT LİSTESİ'!$B$4:$H$664,2,0))) ->  | L19: =IF(ISERROR(VLOOKUP(J19,'KAYIT LİSTESİ'!$B$4:$H$664,4,0)),"",(VLOOKUP(J19,'KAYIT LİSTESİ'!$B$4:$H$664,4,0))) ->  | M19: =IF(ISERROR(VLOOKUP(J19,'KAYIT LİSTESİ'!$B$4:$H$664,5,0)),"",(VLOOKUP(J19,'KAYIT LİSTESİ'!$B$4:$H$664,5,0))) ->  | N19: =IF(ISERROR(VLOOKUP(J19,'KAYIT LİSTESİ'!$B$4:$H$664,6,0)),"",(VLOOKUP(J19,'KAYIT LİSTESİ'!$B$4:$H$664,6,0))) -> 
A20: 13 | G20: =IF(ISTEXT(F20),0,IFERROR(VLOOKUP(SMALL(#REF!,COUNTIF(#REF!,"<"&F20)+1),#REF!, 2,0)," ")) ->  | I20: 3 | J20: 400M-2-3 | K20: =IF(ISERROR(VLOOKUP(J20,'KAYIT LİSTESİ'!$B$4:$H$664,2,0)),"",(VLOOKUP(J20,'KAYIT LİSTESİ'!$B$4:$H$664,2,0))) ->  | L20: =IF(ISERROR(VLOOKUP(J20,'KAYIT LİSTESİ'!$B$4:$H$664,4,0)),"",(VLOOKUP(J20,'KAYIT LİSTESİ'!$B$4:$H$664,4,0))) ->  | M20: =IF(ISERROR(VLOOKUP(J20,'KAYIT LİSTESİ'!$B$4:$H$664,5,0)),"",(VLOOKUP(J20,'KAYIT LİSTESİ'!$B$4:$H$664,5,0))) ->  | N20: =IF(ISERROR(VLOOKUP(J20,'KAYIT LİSTESİ'!$B$4:$H$664,6,0)),"",(VLOOKUP(J20,'KAYIT LİSTESİ'!$B$4:$H$664,6,0))) -> 
A21: 14 | G21: =IF(ISTEXT(F21),0,IFERROR(VLOOKUP(SMALL(#REF!,COUNTIF(#REF!,"<"&F21)+1),#REF!, 2,0)," ")) ->  | I21: 4 | J21: 400M-2-4 | K21: =IF(ISERROR(VLOOKUP(J21,'KAYIT LİSTESİ'!$B$4:$H$664,2,0)),"",(VLOOKUP(J21,'KAYIT LİSTESİ'!$B$4:$H$664,2,0))) ->  | L21: =IF(ISERROR(VLOOKUP(J21,'KAYIT LİSTESİ'!$B$4:$H$664,4,0)),"",(VLOOKUP(J21,'KAYIT LİSTESİ'!$B$4:$H$664,4,0))) ->  | M21: =IF(ISERROR(VLOOKUP(J21,'KAYIT LİSTESİ'!$B$4:$H$664,5,0)),"",(VLOOKUP(J21,'KAYIT LİSTESİ'!$B$4:$H$664,5,0))) ->  | N21: =IF(ISERROR(VLOOKUP(J21,'KAYIT LİSTESİ'!$B$4:$H$664,6,0)),"",(VLOOKUP(J21,'KAYIT LİSTESİ'!$B$4:$H$664,6,0))) -> 
A22: 15 | G22: =IF(ISTEXT(F22),0,IFERROR(VLOOKUP(SMALL(#REF!,COUNTIF(#REF!,"<"&F22)+1),#REF!, 2,0)," ")) ->  | I22: 5 | J22: 400M-2-5 | K22: =IF(ISERROR(VLOOKUP(J22,'KAYIT LİSTESİ'!$B$4:$H$664,2,0)),"",(VLOOKUP(J22,'KAYIT LİSTESİ'!$B$4:$H$664,2,0))) ->  | L22: =IF(ISERROR(VLOOKUP(J22,'KAYIT LİSTESİ'!$B$4:$H$664,4,0)),"",(VLOOKUP(J22,'KAYIT LİSTESİ'!$B$4:$H$664,4,0))) ->  | M22: =IF(ISERROR(VLOOKUP(J22,'KAYIT LİSTESİ'!$B$4:$H$664,5,0)),"",(VLOOKUP(J22,'KAYIT LİSTESİ'!$B$4:$H$664,5,0))) ->  | N22: =IF(ISERROR(VLOOKUP(J22,'KAYIT LİSTESİ'!$B$4:$H$664,6,0)),"",(VLOOKUP(J22,'KAYIT LİSTESİ'!$B$4:$H$664,6,0))) -> 
A23: 16 | G23: =IF(ISTEXT(F23),0,IFERROR(VLOOKUP(SMALL(#REF!,COUNTIF(#REF!,"<"&F23)+1),#REF!, 2,0)," ")) ->  | I23: 6 | J23: 400M-2-6 | K23: =IF(ISERROR(VLOOKUP(J23,'KAYIT LİSTESİ'!$B$4:$H$664,2,0)),"",(VLOOKUP(J23,'KAYIT LİSTESİ'!$B$4:$H$664,2,0))) ->  | L23: =IF(ISERROR(VLOOKUP(J23,'KAYIT LİSTESİ'!$B$4:$H$664,4,0)),"",(VLOOKUP(J23,'KAYIT LİSTESİ'!$B$4:$H$664,4,0))) ->  | M23: =IF(ISERROR(VLOOKUP(J23,'KAYIT LİSTESİ'!$B$4:$H$664,5,0)),"",(VLOOKUP(J23,'KAYIT LİSTESİ'!$B$4:$H$664,5,0))) ->  | N23: =IF(ISERROR(VLOOKUP(J23,'KAYIT LİSTESİ'!$B$4:$H$664,6,0)),"",(VLOOKUP(J23,'KAYIT LİSTESİ'!$B$4:$H$664,6,0))) -> 
A24: 17 | G24: =IF(ISTEXT(F24),0,IFERROR(VLOOKUP(SMALL(#REF!,COUNTIF(#REF!,"<"&F24)+1),#REF!, 2,0)," ")) ->  | I24: 7 | J24: 400M-2-7 | K24: =IF(ISERROR(VLOOKUP(J24,'KAYIT LİSTESİ'!$B$4:$H$664,2,0)),"",(VLOOKUP(J24,'KAYIT LİSTESİ'!$B$4:$H$664,2,0))) ->  | L24: =IF(ISERROR(VLOOKUP(J24,'KAYIT LİSTESİ'!$B$4:$H$664,4,0)),"",(VLOOKUP(J24,'KAYIT LİSTESİ'!$B$4:$H$664,4,0))) ->  | M24: =IF(ISERROR(VLOOKUP(J24,'KAYIT LİSTESİ'!$B$4:$H$664,5,0)),"",(VLOOKUP(J24,'KAYIT LİSTESİ'!$B$4:$H$664,5,0))) ->  | N24: =IF(ISERROR(VLOOKUP(J24,'KAYIT LİSTESİ'!$B$4:$H$664,6,0)),"",(VLOOKUP(J24,'KAYIT LİSTESİ'!$B$4:$H$664,6,0))) -> 
A25: 18 | G25: =IF(ISTEXT(F25),0,IFERROR(VLOOKUP(SMALL(#REF!,COUNTIF(#REF!,"<"&F25)+1),#REF!, 2,0)," ")) ->  | I25: 8 | J25: 400M-2-8 | K25: =IF(ISERROR(VLOOKUP(J25,'KAYIT LİSTESİ'!$B$4:$H$664,2,0)),"",(VLOOKUP(J25,'KAYIT LİSTESİ'!$B$4:$H$664,2,0))) ->  | L25: =IF(ISERROR(VLOOKUP(J25,'KAYIT LİSTESİ'!$B$4:$H$664,4,0)),"",(VLOOKUP(J25,'KAYIT LİSTESİ'!$B$4:$H$664,4,0))) ->  | M25: =IF(ISERROR(VLOOKUP(J25,'KAYIT LİSTESİ'!$B$4:$H$664,5,0)),"",(VLOOKUP(J25,'KAYIT LİSTESİ'!$B$4:$H$664,5,0))) ->  | N25: =IF(ISERROR(VLOOKUP(J25,'KAYIT LİSTESİ'!$B$4:$H$664,6,0)),"",(VLOOKUP(J25,'KAYIT LİSTESİ'!$B$4:$H$664,6,0))) -> 
A26: 19 | G26: =IF(ISTEXT(F26),0,IFERROR(VLOOKUP(SMALL(#REF!,COUNTIF(#REF!,"<"&F26)+1),#REF!, 2,0)," ")) ->  | I26: 3. SERİ
A27: 20 | G27: =IF(ISTEXT(F27),0,IFERROR(VLOOKUP(SMALL(#REF!,COUNTIF(#REF!,"<"&F27)+1),#REF!, 2,0)," ")) ->  | I27: Sıra No | J27: Formül | K27: Göğüs No | L27: Doğum Tarihi | M27: Adı ve Soyadı | N27: İli-Okulu | O27: Elektronik Kronometre | P27: El Kronometre | Q27: Seri Geliş
A28: 21 | G28: =IF(ISTEXT(F28),0,IFERROR(VLOOKUP(SMALL(#REF!,COUNTIF(#REF!,"<"&F28)+1),#REF!, 2,0)," ")) ->  | I28: 1 | J28: 400M-3-1 | K28: =IF(ISERROR(VLOOKUP(J28,'KAYIT LİSTESİ'!$B$4:$H$664,2,0)),"",(VLOOKUP(J28,'KAYIT LİSTESİ'!$B$4:$H$664,2,0))) ->  | L28: =IF(ISERROR(VLOOKUP(J28,'KAYIT LİSTESİ'!$B$4:$H$664,4,0)),"",(VLOOKUP(J28,'KAYIT LİSTESİ'!$B$4:$H$664,4,0))) ->  | M28: =IF(ISERROR(VLOOKUP(J28,'KAYIT LİSTESİ'!$B$4:$H$664,5,0)),"",(VLOOKUP(J28,'KAYIT LİSTESİ'!$B$4:$H$664,5,0))) ->  | N28: =IF(ISERROR(VLOOKUP(J28,'KAYIT LİSTESİ'!$B$4:$H$664,6,0)),"",(VLOOKUP(J28,'KAYIT LİSTESİ'!$B$4:$H$664,6,0))) ->  | O28: =IF(IF(OR(P28="NM",P28="DNF",P28="DNS",P28="DQ",P28=""),P28,(ROUNDUP(P28,)+24))=0," ",IF(OR(P28="NM",P28="DNF",P28="DNS",P28="DQ",P28=""),P28,(ROUNDUP(P28,)+24))) -> 
A29: 22 | G29: =IF(ISTEXT(F29),0,IFERROR(VLOOKUP(SMALL(#REF!,COUNTIF(#REF!,"<"&F29)+1),#REF!, 2,0)," ")) ->  | I29: 2 | J29: 400M-3-2 | K29: =IF(ISERROR(VLOOKUP(J29,'KAYIT LİSTESİ'!$B$4:$H$664,2,0)),"",(VLOOKUP(J29,'KAYIT LİSTESİ'!$B$4:$H$664,2,0))) ->  | L29: =IF(ISERROR(VLOOKUP(J29,'KAYIT LİSTESİ'!$B$4:$H$664,4,0)),"",(VLOOKUP(J29,'KAYIT LİSTESİ'!$B$4:$H$664,4,0))) ->  | M29: =IF(ISERROR(VLOOKUP(J29,'KAYIT LİSTESİ'!$B$4:$H$664,5,0)),"",(VLOOKUP(J29,'KAYIT LİSTESİ'!$B$4:$H$664,5,0))) ->  | N29: =IF(ISERROR(VLOOKUP(J29,'KAYIT LİSTESİ'!$B$4:$H$664,6,0)),"",(VLOOKUP(J29,'KAYIT LİSTESİ'!$B$4:$H$664,6,0))) -> 
A30: 23 | G30: =IF(ISTEXT(F30),0,IFERROR(VLOOKUP(SMALL(#REF!,COUNTIF(#REF!,"<"&F30)+1),#REF!, 2,0)," ")) ->  | I30: 3 | J30: 400M-3-3 | K30: =IF(ISERROR(VLOOKUP(J30,'KAYIT LİSTESİ'!$B$4:$H$664,2,0)),"",(VLOOKUP(J30,'KAYIT LİSTESİ'!$B$4:$H$664,2,0))) ->  | L30: =IF(ISERROR(VLOOKUP(J30,'KAYIT LİSTESİ'!$B$4:$H$664,4,0)),"",(VLOOKUP(J30,'KAYIT LİSTESİ'!$B$4:$H$664,4,0))) ->  | M30: =IF(ISERROR(VLOOKUP(J30,'KAYIT LİSTESİ'!$B$4:$H$664,5,0)),"",(VLOOKUP(J30,'KAYIT LİSTESİ'!$B$4:$H$664,5,0))) ->  | N30: =IF(ISERROR(VLOOKUP(J30,'KAYIT LİSTESİ'!$B$4:$H$664,6,0)),"",(VLOOKUP(J30,'KAYIT LİSTESİ'!$B$4:$H$664,6,0))) -> 
A31: 24 | G31: =IF(ISTEXT(F31),0,IFERROR(VLOOKUP(SMALL(#REF!,COUNTIF(#REF!,"<"&F31)+1),#REF!, 2,0)," ")) ->  | I31: 4 | J31: 400M-3-4 | K31: =IF(ISERROR(VLOOKUP(J31,'KAYIT LİSTESİ'!$B$4:$H$664,2,0)),"",(VLOOKUP(J31,'KAYIT LİSTESİ'!$B$4:$H$664,2,0))) ->  | L31: =IF(ISERROR(VLOOKUP(J31,'KAYIT LİSTESİ'!$B$4:$H$664,4,0)),"",(VLOOKUP(J31,'KAYIT LİSTESİ'!$B$4:$H$664,4,0))) ->  | M31: =IF(ISERROR(VLOOKUP(J31,'KAYIT LİSTESİ'!$B$4:$H$664,5,0)),"",(VLOOKUP(J31,'KAYIT LİSTESİ'!$B$4:$H$664,5,0))) ->  | N31: =IF(ISERROR(VLOOKUP(J31,'KAYIT LİSTESİ'!$B$4:$H$664,6,0)),"",(VLOOKUP(J31,'KAYIT LİSTESİ'!$B$4:$H$664,6,0))) -> 
A32: 25 | G32: =IF(ISTEXT(F32),0,IFERROR(VLOOKUP(SMALL(#REF!,COUNTIF(#REF!,"<"&F32)+1),#REF!, 2,0)," ")) ->  | I32: 5 | J32: 400M-3-5 | K32: =IF(ISERROR(VLOOKUP(J32,'KAYIT LİSTESİ'!$B$4:$H$664,2,0)),"",(VLOOKUP(J32,'KAYIT LİSTESİ'!$B$4:$H$664,2,0))) ->  | L32: =IF(ISERROR(VLOOKUP(J32,'KAYIT LİSTESİ'!$B$4:$H$664,4,0)),"",(VLOOKUP(J32,'KAYIT LİSTESİ'!$B$4:$H$664,4,0))) ->  | M32: =IF(ISERROR(VLOOKUP(J32,'KAYIT LİSTESİ'!$B$4:$H$664,5,0)),"",(VLOOKUP(J32,'KAYIT LİSTESİ'!$B$4:$H$664,5,0))) ->  | N32: =IF(ISERROR(VLOOKUP(J32,'KAYIT LİSTESİ'!$B$4:$H$664,6,0)),"",(VLOOKUP(J32,'KAYIT LİSTESİ'!$B$4:$H$664,6,0))) -> 
A33: 26 | G33: =IF(ISTEXT(F33),0,IFERROR(VLOOKUP(SMALL(#REF!,COUNTIF(#REF!,"<"&F33)+1),#REF!, 2,0)," ")) ->  | I33: 6 | J33: 400M-3-6 | K33: =IF(ISERROR(VLOOKUP(J33,'KAYIT LİSTESİ'!$B$4:$H$664,2,0)),"",(VLOOKUP(J33,'KAYIT LİSTESİ'!$B$4:$H$664,2,0))) ->  | L33: =IF(ISERROR(VLOOKUP(J33,'KAYIT LİSTESİ'!$B$4:$H$664,4,0)),"",(VLOOKUP(J33,'KAYIT LİSTESİ'!$B$4:$H$664,4,0))) ->  | M33: =IF(ISERROR(VLOOKUP(J33,'KAYIT LİSTESİ'!$B$4:$H$664,5,0)),"",(VLOOKUP(J33,'KAYIT LİSTESİ'!$B$4:$H$664,5,0))) ->  | N33: =IF(ISERROR(VLOOKUP(J33,'KAYIT LİSTESİ'!$B$4:$H$664,6,0)),"",(VLOOKUP(J33,'KAYIT LİSTESİ'!$B$4:$H$664,6,0))) -> 
A34: 27 | G34: =IF(ISTEXT(F34),0,IFERROR(VLOOKUP(SMALL(#REF!,COUNTIF(#REF!,"<"&F34)+1),#REF!, 2,0)," ")) ->  | I34: 7 | J34: 400M-3-7 | K34: =IF(ISERROR(VLOOKUP(J34,'KAYIT LİSTESİ'!$B$4:$H$664,2,0)),"",(VLOOKUP(J34,'KAYIT LİSTESİ'!$B$4:$H$664,2,0))) ->  | L34: =IF(ISERROR(VLOOKUP(J34,'KAYIT LİSTESİ'!$B$4:$H$664,4,0)),"",(VLOOKUP(J34,'KAYIT LİSTESİ'!$B$4:$H$664,4,0))) ->  | M34: =IF(ISERROR(VLOOKUP(J34,'KAYIT LİSTESİ'!$B$4:$H$664,5,0)),"",(VLOOKUP(J34,'KAYIT LİSTESİ'!$B$4:$H$664,5,0))) ->  | N34: =IF(ISERROR(VLOOKUP(J34,'KAYIT LİSTESİ'!$B$4:$H$664,6,0)),"",(VLOOKUP(J34,'KAYIT LİSTESİ'!$B$4:$H$664,6,0))) -> 
A35: 28 | G35: =IF(ISTEXT(F35),0,IFERROR(VLOOKUP(SMALL(#REF!,COUNTIF(#REF!,"<"&F35)+1),#REF!, 2,0)," ")) ->  | I35: 8 | J35: 400M-3-8 | K35: =IF(ISERROR(VLOOKUP(J35,'KAYIT LİSTESİ'!$B$4:$H$664,2,0)),"",(VLOOKUP(J35,'KAYIT LİSTESİ'!$B$4:$H$664,2,0))) ->  | L35: =IF(ISERROR(VLOOKUP(J35,'KAYIT LİSTESİ'!$B$4:$H$664,4,0)),"",(VLOOKUP(J35,'KAYIT LİSTESİ'!$B$4:$H$664,4,0))) ->  | M35: =IF(ISERROR(VLOOKUP(J35,'KAYIT LİSTESİ'!$B$4:$H$664,5,0)),"",(VLOOKUP(J35,'KAYIT LİSTESİ'!$B$4:$H$664,5,0))) ->  | N35: =IF(ISERROR(VLOOKUP(J35,'KAYIT LİSTESİ'!$B$4:$H$664,6,0)),"",(VLOOKUP(J35,'KAYIT LİSTESİ'!$B$4:$H$664,6,0))) -> 
A36: 29 | G36: =IF(ISTEXT(F36),0,IFERROR(VLOOKUP(SMALL(#REF!,COUNTIF(#REF!,"<"&F36)+1),#REF!, 2,0)," ")) ->  | I36: 4. SERİ
A37: 30 | G37: =IF(ISTEXT(F37),0,IFERROR(VLOOKUP(SMALL(#REF!,COUNTIF(#REF!,"<"&F37)+1),#REF!, 2,0)," ")) ->  | I37: Sıra No | J37: Formül | K37: Göğüs No | L37: Doğum Tarihi | M37: Adı ve Soyadı | N37: İli-Okulu | O37: Elektronik Kronometre | P37: El Kronometre | Q37: Seri Geliş
A38: 31 | G38: =IF(ISTEXT(F38),0,IFERROR(VLOOKUP(SMALL(#REF!,COUNTIF(#REF!,"<"&F38)+1),#REF!, 2,0)," ")) ->  | I38: 1 | J38: 400M-4-1 | K38: =IF(ISERROR(VLOOKUP(J38,'KAYIT LİSTESİ'!$B$4:$H$664,2,0)),"",(VLOOKUP(J38,'KAYIT LİSTESİ'!$B$4:$H$664,2,0))) ->  | L38: =IF(ISERROR(VLOOKUP(J38,'KAYIT LİSTESİ'!$B$4:$H$664,4,0)),"",(VLOOKUP(J38,'KAYIT LİSTESİ'!$B$4:$H$664,4,0))) ->  | M38: =IF(ISERROR(VLOOKUP(J38,'KAYIT LİSTESİ'!$B$4:$H$664,5,0)),"",(VLOOKUP(J38,'KAYIT LİSTESİ'!$B$4:$H$664,5,0))) ->  | N38: =IF(ISERROR(VLOOKUP(J38,'KAYIT LİSTESİ'!$B$4:$H$664,6,0)),"",(VLOOKUP(J38,'KAYIT LİSTESİ'!$B$4:$H$664,6,0))) -> 
A39: 32 | G39: =IF(ISTEXT(F39),0,IFERROR(VLOOKUP(SMALL(#REF!,COUNTIF(#REF!,"<"&F39)+1),#REF!, 2,0)," ")) ->  | I39: 2 | J39: 400M-4-2 | K39: =IF(ISERROR(VLOOKUP(J39,'KAYIT LİSTESİ'!$B$4:$H$664,2,0)),"",(VLOOKUP(J39,'KAYIT LİSTESİ'!$B$4:$H$664,2,0))) ->  | L39: =IF(ISERROR(VLOOKUP(J39,'KAYIT LİSTESİ'!$B$4:$H$664,4,0)),"",(VLOOKUP(J39,'KAYIT LİSTESİ'!$B$4:$H$664,4,0))) ->  | M39: =IF(ISERROR(VLOOKUP(J39,'KAYIT LİSTESİ'!$B$4:$H$664,5,0)),"",(VLOOKUP(J39,'KAYIT LİSTESİ'!$B$4:$H$664,5,0))) ->  | N39: =IF(ISERROR(VLOOKUP(J39,'KAYIT LİSTESİ'!$B$4:$H$664,6,0)),"",(VLOOKUP(J39,'KAYIT LİSTESİ'!$B$4:$H$664,6,0))) -> 
A40: 33 | G40: =IF(ISTEXT(F40),0,IFERROR(VLOOKUP(SMALL(#REF!,COUNTIF(#REF!,"<"&F40)+1),#REF!, 2,0)," ")) ->  | I40: 3 | J40: 400M-4-3 | K40: =IF(ISERROR(VLOOKUP(J40,'KAYIT LİSTESİ'!$B$4:$H$664,2,0)),"",(VLOOKUP(J40,'KAYIT LİSTESİ'!$B$4:$H$664,2,0))) ->  | L40: =IF(ISERROR(VLOOKUP(J40,'KAYIT LİSTESİ'!$B$4:$H$664,4,0)),"",(VLOOKUP(J40,'KAYIT LİSTESİ'!$B$4:$H$664,4,0))) ->  | M40: =IF(ISERROR(VLOOKUP(J40,'KAYIT LİSTESİ'!$B$4:$H$664,5,0)),"",(VLOOKUP(J40,'KAYIT LİSTESİ'!$B$4:$H$664,5,0))) ->  | N40: =IF(ISERROR(VLOOKUP(J40,'KAYIT LİSTESİ'!$B$4:$H$664,6,0)),"",(VLOOKUP(J40,'KAYIT LİSTESİ'!$B$4:$H$664,6,0))) -> 
A41: 34 | G41: =IF(ISTEXT(F41),0,IFERROR(VLOOKUP(SMALL(#REF!,COUNTIF(#REF!,"<"&F41)+1),#REF!, 2,0)," ")) ->  | I41: 4 | J41: 400M-4-4 | K41: =IF(ISERROR(VLOOKUP(J41,'KAYIT LİSTESİ'!$B$4:$H$664,2,0)),"",(VLOOKUP(J41,'KAYIT LİSTESİ'!$B$4:$H$664,2,0))) ->  | L41: =IF(ISERROR(VLOOKUP(J41,'KAYIT LİSTESİ'!$B$4:$H$664,4,0)),"",(VLOOKUP(J41,'KAYIT LİSTESİ'!$B$4:$H$664,4,0))) ->  | M41: =IF(ISERROR(VLOOKUP(J41,'KAYIT LİSTESİ'!$B$4:$H$664,5,0)),"",(VLOOKUP(J41,'KAYIT LİSTESİ'!$B$4:$H$664,5,0))) ->  | N41: =IF(ISERROR(VLOOKUP(J41,'KAYIT LİSTESİ'!$B$4:$H$664,6,0)),"",(VLOOKUP(J41,'KAYIT LİSTESİ'!$B$4:$H$664,6,0))) -> 
A42: 35 | G42: =IF(ISTEXT(F42),0,IFERROR(VLOOKUP(SMALL(#REF!,COUNTIF(#REF!,"<"&F42)+1),#REF!, 2,0)," ")) ->  | I42: 5 | J42: 400M-4-5 | K42: =IF(ISERROR(VLOOKUP(J42,'KAYIT LİSTESİ'!$B$4:$H$664,2,0)),"",(VLOOKUP(J42,'KAYIT LİSTESİ'!$B$4:$H$664,2,0))) ->  | L42: =IF(ISERROR(VLOOKUP(J42,'KAYIT LİSTESİ'!$B$4:$H$664,4,0)),"",(VLOOKUP(J42,'KAYIT LİSTESİ'!$B$4:$H$664,4,0))) ->  | M42: =IF(ISERROR(VLOOKUP(J42,'KAYIT LİSTESİ'!$B$4:$H$664,5,0)),"",(VLOOKUP(J42,'KAYIT LİSTESİ'!$B$4:$H$664,5,0))) ->  | N42: =IF(ISERROR(VLOOKUP(J42,'KAYIT LİSTESİ'!$B$4:$H$664,6,0)),"",(VLOOKUP(J42,'KAYIT LİSTESİ'!$B$4:$H$664,6,0))) -> 
A43: 36 | G43: =IF(ISTEXT(F43),0,IFERROR(VLOOKUP(SMALL(#REF!,COUNTIF(#REF!,"<"&F43)+1),#REF!, 2,0)," ")) ->  | I43: 6 | J43: 400M-4-6 | K43: =IF(ISERROR(VLOOKUP(J43,'KAYIT LİSTESİ'!$B$4:$H$664,2,0)),"",(VLOOKUP(J43,'KAYIT LİSTESİ'!$B$4:$H$664,2,0))) ->  | L43: =IF(ISERROR(VLOOKUP(J43,'KAYIT LİSTESİ'!$B$4:$H$664,4,0)),"",(VLOOKUP(J43,'KAYIT LİSTESİ'!$B$4:$H$664,4,0))) ->  | M43: =IF(ISERROR(VLOOKUP(J43,'KAYIT LİSTESİ'!$B$4:$H$664,5,0)),"",(VLOOKUP(J43,'KAYIT LİSTESİ'!$B$4:$H$664,5,0))) ->  | N43: =IF(ISERROR(VLOOKUP(J43,'KAYIT LİSTESİ'!$B$4:$H$664,6,0)),"",(VLOOKUP(J43,'KAYIT LİSTESİ'!$B$4:$H$664,6,0))) -> 
A44: 37 | G44: =IF(ISTEXT(F44),0,IFERROR(VLOOKUP(SMALL(#REF!,COUNTIF(#REF!,"<"&F44)+1),#REF!, 2,0)," ")) ->  | I44: 7 | J44: 400M-4-7 | K44: =IF(ISERROR(VLOOKUP(J44,'KAYIT LİSTESİ'!$B$4:$H$664,2,0)),"",(VLOOKUP(J44,'KAYIT LİSTESİ'!$B$4:$H$664,2,0))) ->  | L44: =IF(ISERROR(VLOOKUP(J44,'KAYIT LİSTESİ'!$B$4:$H$664,4,0)),"",(VLOOKUP(J44,'KAYIT LİSTESİ'!$B$4:$H$664,4,0))) ->  | M44: =IF(ISERROR(VLOOKUP(J44,'KAYIT LİSTESİ'!$B$4:$H$664,5,0)),"",(VLOOKUP(J44,'KAYIT LİSTESİ'!$B$4:$H$664,5,0))) ->  | N44: =IF(ISERROR(VLOOKUP(J44,'KAYIT LİSTESİ'!$B$4:$H$664,6,0)),"",(VLOOKUP(J44,'KAYIT LİSTESİ'!$B$4:$H$664,6,0))) -> 
A45: 38 | G45: =IF(ISTEXT(F45),0,IFERROR(VLOOKUP(SMALL(#REF!,COUNTIF(#REF!,"<"&F45)+1),#REF!, 2,0)," ")) ->  | I45: 8 | J45: 400M-4-8 | K45: =IF(ISERROR(VLOOKUP(J45,'KAYIT LİSTESİ'!$B$4:$H$664,2,0)),"",(VLOOKUP(J45,'KAYIT LİSTESİ'!$B$4:$H$664,2,0))) ->  | L45: =IF(ISERROR(VLOOKUP(J45,'KAYIT LİSTESİ'!$B$4:$H$664,4,0)),"",(VLOOKUP(J45,'KAYIT LİSTESİ'!$B$4:$H$664,4,0))) ->  | M45: =IF(ISERROR(VLOOKUP(J45,'KAYIT LİSTESİ'!$B$4:$H$664,5,0)),"",(VLOOKUP(J45,'KAYIT LİSTESİ'!$B$4:$H$664,5,0))) ->  | N45: =IF(ISERROR(VLOOKUP(J45,'KAYIT LİSTESİ'!$B$4:$H$664,6,0)),"",(VLOOKUP(J45,'KAYIT LİSTESİ'!$B$4:$H$664,6,0))) -> 
A47: Müsabakalar Direktörü | E47: Baş Hakem | F47: Lider | H47: Sekreter | M47: Hakem | N47: Hakem | P47: Hakem

Sheet 1500m.
A1: =('YARIŞMA BİLGİLERİ'!A2) -> Türkiye Atletizm Federasyonu Mersin Atletizm İl Temsilciliği
A2: ='YARIŞMA BİLGİLERİ'!F19 -> Olimpik Baraj Yarışmaları
A3: Yarışma : | D3: =#REF! ->  | F3: Baraj Derecesi | H3: : | I3: =#REF! -> 
A4: Kategori : | D4: ='YARIŞMA BİLGİLERİ'!F21 -> Kadınlar | M4: Tarih-Saat | N4: =#REF! -> 
N5: =NOW() -> 42222.53664
A6: Sıra No | B6: Göğüs No | C6: Doğum Tarihi Gün/Ay/Yıl | D6: Adı ve Soyadı | E6: İli-Okulu | F6: Derece | G6: Puan | I6: 1. SERİ
I7: Sıra No | J7: Formül | K7: Göğüs No | L7: Doğum Tarihi | M7: Adı ve Soyadı | N7: İli-Okulu | O7: Elektronik Kronometre | P7: El Kronometre | Q7: Seri Geliş
A8: 1 | G8: =IF(ISTEXT(F8),0,IFERROR(VLOOKUP(SMALL(#REF!,COUNTIF(#REF!,"<"&F8)+1),#REF!, 2,0)," ")) ->  | I8: 1 | J8: 1500M-1-1 | K8: =IF(ISERROR(VLOOKUP(J8,'KAYIT LİSTESİ'!$B$4:$H$664,2,0)),"",(VLOOKUP(J8,'KAYIT LİSTESİ'!$B$4:$H$664,2,0))) -> 629 | L8: =IF(ISERROR(VLOOKUP(J8,'KAYIT LİSTESİ'!$B$4:$H$664,4,0)),"",(VLOOKUP(J8,'KAYIT LİSTESİ'!$B$4:$H$664,4,0))) -> 1998-01-18 | M8: =IF(ISERROR(VLOOKUP(J8,'KAYIT LİSTESİ'!$B$4:$H$664,5,0)),"",(VLOOKUP(J8,'KAYIT LİSTESİ'!$B$4:$H$664,5,0))) -> SEMRA KARASLAN | N8: =IF(ISERROR(VLOOKUP(J8,'KAYIT LİSTESİ'!$B$4:$H$664,6,0)),"",(VLOOKUP(J8,'KAYIT LİSTESİ'!$B$4:$H$664,6,0))) -> KIRIKKALE | O8: =IF(IF(OR(P8="NM",P8="DNF",P8="DNS",P8="DQ",P8=""),P8,(ROUNDUP(P8,)+24))=0," ",IF(OR(P8="NM",P8="DNF",P8="DNS",P8="DQ",P8=""),P8,(ROUNDUP(P8,)+24))) -> 
A9: 2 | G9: =IF(ISTEXT(F9),0,IFERROR(VLOOKUP(SMALL(#REF!,COUNTIF(#REF!,"<"&F9)+1),#REF!, 2,0)," ")) ->  | I9: 2 | J9: 1500M-1-2 | K9: =IF(ISERROR(VLOOKUP(J9,'KAYIT LİSTESİ'!$B$4:$H$664,2,0)),"",(VLOOKUP(J9,'KAYIT LİSTESİ'!$B$4:$H$664,2,0))) -> 612 | L9: =IF(ISERROR(VLOOKUP(J9,'KAYIT LİSTESİ'!$B$4:$H$664,4,0)),"",(VLOOKUP(J9,'KAYIT LİSTESİ'!$B$4:$H$664,4,0))) -> 1999-06-23 | M9: =IF(ISERROR(VLOOKUP(J9,'KAYIT LİSTESİ'!$B$4:$H$664,5,0)),"",(VLOOKUP(J9,'KAYIT LİSTESİ'!$B$4:$H$664,5,0))) -> FADİME KOŞAR | N9: =IF(ISERROR(VLOOKUP(J9,'KAYIT LİSTESİ'!$B$4:$H$664,6,0)),"",(VLOOKUP(J9,'KAYIT LİSTESİ'!$B$4:$H$664,6,0))) -> KONYA
A10: 3 | G10: =IF(ISTEXT(F10),0,IFERROR(VLOOKUP(SMALL(#REF!,COUNTIF(#REF!,"<"&F10)+1),#REF!, 2,0)," ")) ->  | I10: 3 | J10: 1500M-1-3 | K10: =IF(ISERROR(VLOOKUP(J10,'KAYIT LİSTESİ'!$B$4:$H$664,2,0)),"",(VLOOKUP(J10,'KAYIT LİSTESİ'!$B$4:$H$664,2,0))) -> 614 | L10: =IF(ISERROR(VLOOKUP(J10,'KAYIT LİSTESİ'!$B$4:$H$664,4,0)),"",(VLOOKUP(J10,'KAYIT LİSTESİ'!$B$4:$H$664,4,0))) -> 1999-08-15 | M10: =IF(ISERROR(VLOOKUP(J10,'KAYIT LİSTESİ'!$B$4:$H$664,5,0)),"",(VLOOKUP(J10,'KAYIT LİSTESİ'!$B$4:$H$664,5,0))) -> SELENAY BATİ | N10: =IF(ISERROR(VLOOKUP(J10,'KAYIT LİSTESİ'!$B$4:$H$664,6,0)),"",(VLOOKUP(J10,'KAYIT LİSTESİ'!$B$4:$H$664,6,0))) -> HATAY
A11: 4 | G11: =IF(ISTEXT(F11),0,IFERROR(VLOOKUP(SMALL(#REF!,COUNTIF(#REF!,"<"&F11)+1),#REF!, 2,0)," ")) ->  | I11: 4 | J11: 1500M-1-4 | K11: =IF(ISERROR(VLOOKUP(J11,'KAYIT LİSTESİ'!$B$4:$H$664,2,0)),"",(VLOOKUP(J11,'KAYIT LİSTESİ'!$B$4:$H$664,2,0))) -> 630 | L11: =IF(ISERROR(VLOOKUP(J11,'KAYIT LİSTESİ'!$B$4:$H$664,4,0)),"",(VLOOKUP(J11,'KAYIT LİSTESİ'!$B$4:$H$664,4,0))) -> 1998-12-30 | M11: =IF(ISERROR(VLOOKUP(J11,'KAYIT LİSTESİ'!$B$4:$H$664,5,0)),"",(VLOOKUP(J11,'KAYIT LİSTESİ'!$B$4:$H$664,5,0))) -> BELHUDE SALMANLI | N11: =IF(ISERROR(VLOOKUP(J11,'KAYIT LİSTESİ'!$B$4:$H$664,6,0)),"",(VLOOKUP(J11,'KAYIT LİSTESİ'!$B$4:$H$664,6,0))) -> KIRIKKALE
A12: 5 | G12: =IF(ISTEXT(F12),0,IFERROR(VLOOKUP(SMALL(#REF!,COUNTIF(#REF!,"<"&F12)+1),#REF!, 2,0)," ")) ->  | I12: 5 | J12: 1500M-1-5 | K12: =IF(ISERROR(VLOOKUP(J12,'KAYIT LİSTESİ'!$B$4:$H$664,2,0)),"",(VLOOKUP(J12,'KAYIT LİSTESİ'!$B$4:$H$664,2,0))) -> 617 | L12: =IF(ISERROR(VLOOKUP(J12,'KAYIT LİSTESİ'!$B$4:$H$664,4,0)),"",(VLOOKUP(J12,'KAYIT LİSTESİ'!$B$4:$H$664,4,0))) -> 1999-06-03 | M12: =IF(ISERROR(VLOOKUP(J12,'KAYIT LİSTESİ'!$B$4:$H$664,5,0)),"",(VLOOKUP(J12,'KAYIT LİSTESİ'!$B$4:$H$664,5,0))) -> SEÇİL AKPINAR | N12: =IF(ISERROR(VLOOKUP(J12,'KAYIT LİSTESİ'!$B$4:$H$664,6,0)),"",(VLOOKUP(J12,'KAYIT LİSTESİ'!$B$4:$H$664,6,0))) -> HATAY
A13: 6 | G13: =IF(ISTEXT(F13),0,IFERROR(VLOOKUP(SMALL(#REF!,COUNTIF(#REF!,"<"&F13)+1),#REF!, 2,0)," ")) ->  | I13: 6 | J13: 1500M-1-6 | K13: =IF(ISERROR(VLOOKUP(J13,'KAYIT LİSTESİ'!$B$4:$H$664,2,0)),"",(VLOOKUP(J13,'KAYIT LİSTESİ'!$B$4:$H$664,2,0))) ->  | L13: =IF(ISERROR(VLOOKUP(J13,'KAYIT LİSTESİ'!$B$4:$H$664,4,0)),"",(VLOOKUP(J13,'KAYIT LİSTESİ'!$B$4:$H$664,4,0))) ->  | M13: =IF(ISERROR(VLOOKUP(J13,'KAYIT LİSTESİ'!$B$4:$H$664,5,0)),"",(VLOOKUP(J13,'KAYIT LİSTESİ'!$B$4:$H$664,5,0))) ->  | N13: =IF(ISERROR(VLOOKUP(J13,'KAYIT LİSTESİ'!$B$4:$H$664,6,0)),"",(VLOOKUP(J13,'KAYIT LİSTESİ'!$B$4:$H$664,6,0))) -> 
A14: 7 | G14: =IF(ISTEXT(F14),0,IFERROR(VLOOKUP(SMALL(#REF!,COUNTIF(#REF!,"<"&F14)+1),#REF!, 2,0)," ")) ->  | I14: 7 | J14: 1500M-1-7 | K14: =IF(ISERROR(VLOOKUP(J14,'KAYIT LİSTESİ'!$B$4:$H$664,2,0)),"",(VLOOKUP(J14,'KAYIT LİSTESİ'!$B$4:$H$664,2,0))) ->  | L14: =IF(ISERROR(VLOOKUP(J14,'KAYIT LİSTESİ'!$B$4:$H$664,4,0)),"",(VLOOKUP(J14,'KAYIT LİSTESİ'!$B$4:$H$664,4,0))) ->  | M14: =IF(ISERROR(VLOOKUP(J14,'KAYIT LİSTESİ'!$B$4:$H$664,5,0)),"",(VLOOKUP(J14,'KAYIT LİSTESİ'!$B$4:$H$664,5,0))) ->  | N14: =IF(ISERROR(VLOOKUP(J14,'KAYIT LİSTESİ'!$B$4:$H$664,6,0)),"",(VLOOKUP(J14,'KAYIT LİSTESİ'!$B$4:$H$664,6,0))) -> 
A15: 8 | G15: =IF(ISTEXT(F15),0,IFERROR(VLOOKUP(SMALL(#REF!,COUNTIF(#REF!,"<"&F15)+1),#REF!, 2,0)," ")) ->  | I15: 8 | J15: 1500M-1-8 | K15: =IF(ISERROR(VLOOKUP(J15,'KAYIT LİSTESİ'!$B$4:$H$664,2,0)),"",(VLOOKUP(J15,'KAYIT LİSTESİ'!$B$4:$H$664,2,0))) ->  | L15: =IF(ISERROR(VLOOKUP(J15,'KAYIT LİSTESİ'!$B$4:$H$664,4,0)),"",(VLOOKUP(J15,'KAYIT LİSTESİ'!$B$4:$H$664,4,0))) ->  | M15: =IF(ISERROR(VLOOKUP(J15,'KAYIT LİSTESİ'!$B$4:$H$664,5,0)),"",(VLOOKUP(J15,'KAYIT LİSTESİ'!$B$4:$H$664,5,0))) ->  | N15: =IF(ISERROR(VLOOKUP(J15,'KAYIT LİSTESİ'!$B$4:$H$664,6,0)),"",(VLOOKUP(J15,'KAYIT LİSTESİ'!$B$4:$H$664,6,0))) -> 
A16: 9 | G16: =IF(ISTEXT(F16),0,IFERROR(VLOOKUP(SMALL(#REF!,COUNTIF(#REF!,"<"&F16)+1),#REF!, 2,0)," ")) ->  | I16: 9 | J16: 1500M-1-9 | K16: =IF(ISERROR(VLOOKUP(J16,'KAYIT LİSTESİ'!$B$4:$H$664,2,0)),"",(VLOOKUP(J16,'KAYIT LİSTESİ'!$B$4:$H$664,2,0))) ->  | L16: =IF(ISERROR(VLOOKUP(J16,'KAYIT LİSTESİ'!$B$4:$H$664,4,0)),"",(VLOOKUP(J16,'KAYIT LİSTESİ'!$B$4:$H$664,4,0))) ->  | M16: =IF(ISERROR(VLOOKUP(J16,'KAYIT LİSTESİ'!$B$4:$H$664,5,0)),"",(VLOOKUP(J16,'KAYIT LİSTESİ'!$B$4:$H$664,5,0))) ->  | N16: =IF(ISERROR(VLOOKUP(J16,'KAYIT LİSTESİ'!$B$4:$H$664,6,0)),"",(VLOOKUP(J16,'KAYIT LİSTESİ'!$B$4:$H$664,6,0))) -> 
A17: 10 | G17: =IF(ISTEXT(F17),0,IFERROR(VLOOKUP(SMALL(#REF!,COUNTIF(#REF!,"<"&F17)+1),#REF!, 2,0)," ")) ->  | I17: 10 | J17: 1500M-1-10 | K17: =IF(ISERROR(VLOOKUP(J17,'KAYIT LİSTESİ'!$B$4:$H$664,2,0)),"",(VLOOKUP(J17,'KAYIT LİSTESİ'!$B$4:$H$664,2,0))) ->  | L17: =IF(ISERROR(VLOOKUP(J17,'KAYIT LİSTESİ'!$B$4:$H$664,4,0)),"",(VLOOKUP(J17,'KAYIT LİSTESİ'!$B$4:$H$664,4,0))) ->  | M17: =IF(ISERROR(VLOOKUP(J17,'KAYIT LİSTESİ'!$B$4:$H$664,5,0)),"",(VLOOKUP(J17,'KAYIT LİSTESİ'!$B$4:$H$664,5,0))) ->  | N17: =IF(ISERROR(VLOOKUP(J17,'KAYIT LİSTESİ'!$B$4:$H$664,6,0)),"",(VLOOKUP(J17,'KAYIT LİSTESİ'!$B$4:$H$664,6,0))) -> 
A18: 11 | G18: =IF(ISTEXT(F18),0,IFERROR(VLOOKUP(SMALL(#REF!,COUNTIF(#REF!,"<"&F18)+1),#REF!, 2,0)," ")) ->  | I18: 11 | J18: 1500M-1-11 | K18: =IF(ISERROR(VLOOKUP(J18,'KAYIT LİSTESİ'!$B$4:$H$664,2,0)),"",(VLOOKUP(J18,'KAYIT LİSTESİ'!$B$4:$H$664,2,0))) ->  | L18: =IF(ISERROR(VLOOKUP(J18,'KAYIT LİSTESİ'!$B$4:$H$664,4,0)),"",(VLOOKUP(J18,'KAYIT LİSTESİ'!$B$4:$H$664,4,0))) ->  | M18: =IF(ISERROR(VLOOKUP(J18,'KAYIT LİSTESİ'!$B$4:$H$664,5,0)),"",(VLOOKUP(J18,'KAYIT LİSTESİ'!$B$4:$H$664,5,0))) ->  | N18: =IF(ISERROR(VLOOKUP(J18,'KAYIT LİSTESİ'!$B$4:$H$664,6,0)),"",(VLOOKUP(J18,'KAYIT LİSTESİ'!$B$4:$H$664,6,0))) -> 
A19: 12 | G19: =IF(ISTEXT(F19),0,IFERROR(VLOOKUP(SMALL(#REF!,COUNTIF(#REF!,"<"&F19)+1),#REF!, 2,0)," ")) ->  | I19: 12 | J19: 1500M-1-12 | K19: =IF(ISERROR(VLOOKUP(J19,'KAYIT LİSTESİ'!$B$4:$H$664,2,0)),"",(VLOOKUP(J19,'KAYIT LİSTESİ'!$B$4:$H$664,2,0))) ->  | L19: =IF(ISERROR(VLOOKUP(J19,'KAYIT LİSTESİ'!$B$4:$H$664,4,0)),"",(VLOOKUP(J19,'KAYIT LİSTESİ'!$B$4:$H$664,4,0))) ->  | M19: =IF(ISERROR(VLOOKUP(J19,'KAYIT LİSTESİ'!$B$4:$H$664,5,0)),"",(VLOOKUP(J19,'KAYIT LİSTESİ'!$B$4:$H$664,5,0))) ->  | N19: =IF(ISERROR(VLOOKUP(J19,'KAYIT LİSTESİ'!$B$4:$H$664,6,0)),"",(VLOOKUP(J19,'KAYIT LİSTESİ'!$B$4:$H$664,6,0))) -> 
A20: 13 | G20: =IF(ISTEXT(F20),0,IFERROR(VLOOKUP(SMALL(#REF!,COUNTIF(#REF!,"<"&F20)+1),#REF!, 2,0)," ")) ->  | I20: 2. SERİ
A21: 14 | G21: =IF(ISTEXT(F21),0,IFERROR(VLOOKUP(SMALL(#REF!,COUNTIF(#REF!,"<"&F21)+1),#REF!, 2,0)," ")) ->  | I21: Sıra No | J21: Formül | K21: Göğüs No | L21: Doğum Tarihi | M21: Adı ve Soyadı | N21: İli-Okulu | O21: Elektronik Kronometre | P21: El Kronometre | Q21: Seri Geliş
A22: 15 | G22: =IF(ISTEXT(F22),0,IFERROR(VLOOKUP(SMALL(#REF!,COUNTIF(#REF!,"<"&F22)+1),#REF!, 2,0)," ")) ->  | I22: 1 | J22: 1500M-2-1 | K22: =IF(ISERROR(VLOOKUP(J22,'KAYIT LİSTESİ'!$B$4:$H$664,2,0)),"",(VLOOKUP(J22,'KAYIT LİSTESİ'!$B$4:$H$664,2,0))) ->  | L22: =IF(ISERROR(VLOOKUP(J22,'KAYIT LİSTESİ'!$B$4:$H$664,4,0)),"",(VLOOKUP(J22,'KAYIT LİSTESİ'!$B$4:$H$664,4,0))) ->  | M22: =IF(ISERROR(VLOOKUP(J22,'KAYIT LİSTESİ'!$B$4:$H$664,5,0)),"",(VLOOKUP(J22,'KAYIT LİSTESİ'!$B$4:$H$664,5,0))) ->  | N22: =IF(ISERROR(VLOOKUP(J22,'KAYIT LİSTESİ'!$B$4:$H$664,6,0)),"",(VLOOKUP(J22,'KAYIT LİSTESİ'!$B$4:$H$664,6,0))) ->  | O22: =IF(IF(OR(P22="NM",P22="DNF",P22="DNS",P22="DQ",P22=""),P22,(ROUNDUP(P22,)+24))=0," ",IF(OR(P22="NM",P22="DNF",P22="DNS",P22="DQ",P22=""),P22,(ROUNDUP(P22,)+24))) -> 
A23: 16 | G23: =IF(ISTEXT(F23),0,IFERROR(VLOOKUP(SMALL(#REF!,COUNTIF(#REF!,"<"&F23)+1),#REF!, 2,0)," ")) ->  | I23: 2 | J23: 1500M-2-2 | K23: =IF(ISERROR(VLOOKUP(J23,'KAYIT LİSTESİ'!$B$4:$H$664,2,0)),"",(VLOOKUP(J23,'KAYIT LİSTESİ'!$B$4:$H$664,2,0))) ->  | L23: =IF(ISERROR(VLOOKUP(J23,'KAYIT LİSTESİ'!$B$4:$H$664,4,0)),"",(VLOOKUP(J23,'KAYIT LİSTESİ'!$B$4:$H$664,4,0))) ->  | M23: =IF(ISERROR(VLOOKUP(J23,'KAYIT LİSTESİ'!$B$4:$H$664,5,0)),"",(VLOOKUP(J23,'KAYIT LİSTESİ'!$B$4:$H$664,5,0))) ->  | N23: =IF(ISERROR(VLOOKUP(J23,'KAYIT LİSTESİ'!$B$4:$H$664,6,0)),"",(VLOOKUP(J23,'KAYIT LİSTESİ'!$B$4:$H$664,6,0))) -> 
A24: 17 | G24: =IF(ISTEXT(F24),0,IFERROR(VLOOKUP(SMALL(#REF!,COUNTIF(#REF!,"<"&F24)+1),#REF!, 2,0)," ")) ->  | I24: 3 | J24: 1500M-2-3 | K24: =IF(ISERROR(VLOOKUP(J24,'KAYIT LİSTESİ'!$B$4:$H$664,2,0)),"",(VLOOKUP(J24,'KAYIT LİSTESİ'!$B$4:$H$664,2,0))) ->  | L24: =IF(ISERROR(VLOOKUP(J24,'KAYIT LİSTESİ'!$B$4:$H$664,4,0)),"",(VLOOKUP(J24,'KAYIT LİSTESİ'!$B$4:$H$664,4,0))) ->  | M24: =IF(ISERROR(VLOOKUP(J24,'KAYIT LİSTESİ'!$B$4:$H$664,5,0)),"",(VLOOKUP(J24,'KAYIT LİSTESİ'!$B$4:$H$664,5,0))) ->  | N24: =IF(ISERROR(VLOOKUP(J24,'KAYIT LİSTESİ'!$B$4:$H$664,6,0)),"",(VLOOKUP(J24,'KAYIT LİSTESİ'!$B$4:$H$664,6,0))) -> 
A25: 18 | G25: =IF(ISTEXT(F25),0,IFERROR(VLOOKUP(SMALL(#REF!,COUNTIF(#REF!,"<"&F25)+1),#REF!, 2,0)," ")) ->  | I25: 4 | J25: 1500M-2-4 | K25: =IF(ISERROR(VLOOKUP(J25,'KAYIT LİSTESİ'!$B$4:$H$664,2,0)),"",(VLOOKUP(J25,'KAYIT LİSTESİ'!$B$4:$H$664,2,0))) ->  | L25: =IF(ISERROR(VLOOKUP(J25,'KAYIT LİSTESİ'!$B$4:$H$664,4,0)),"",(VLOOKUP(J25,'KAYIT LİSTESİ'!$B$4:$H$664,4,0))) ->  | M25: =IF(ISERROR(VLOOKUP(J25,'KAYIT LİSTESİ'!$B$4:$H$664,5,0)),"",(VLOOKUP(J25,'KAYIT LİSTESİ'!$B$4:$H$664,5,0))) ->  | N25: =IF(ISERROR(VLOOKUP(J25,'KAYIT LİSTESİ'!$B$4:$H$664,6,0)),"",(VLOOKUP(J25,'KAYIT LİSTESİ'!$B$4:$H$664,6,0))) -> 
A26: 19 | G26: =IF(ISTEXT(F26),0,IFERROR(VLOOKUP(SMALL(#REF!,COUNTIF(#REF!,"<"&F26)+1),#REF!, 2,0)," ")) ->  | I26: 5 | J26: 1500M-2-5 | K26: =IF(ISERROR(VLOOKUP(J26,'KAYIT LİSTESİ'!$B$4:$H$664,2,0)),"",(VLOOKUP(J26,'KAYIT LİSTESİ'!$B$4:$H$664,2,0))) ->  | L26: =IF(ISERROR(VLOOKUP(J26,'KAYIT LİSTESİ'!$B$4:$H$664,4,0)),"",(VLOOKUP(J26,'KAYIT LİSTESİ'!$B$4:$H$664,4,0))) ->  | M26: =IF(ISERROR(VLOOKUP(J26,'KAYIT LİSTESİ'!$B$4:$H$664,5,0)),"",(VLOOKUP(J26,'KAYIT LİSTESİ'!$B$4:$H$664,5,0))) ->  | N26: =IF(ISERROR(VLOOKUP(J26,'KAYIT LİSTESİ'!$B$4:$H$664,6,0)),"",(VLOOKUP(J26,'KAYIT LİSTESİ'!$B$4:$H$664,6,0))) -> 
A27: 20 | G27: =IF(ISTEXT(F27),0,IFERROR(VLOOKUP(SMALL(#REF!,COUNTIF(#REF!,"<"&F27)+1),#REF!, 2,0)," ")) ->  | I27: 6 | J27: 1500M-2-6 | K27: =IF(ISERROR(VLOOKUP(J27,'KAYIT LİSTESİ'!$B$4:$H$664,2,0)),"",(VLOOKUP(J27,'KAYIT LİSTESİ'!$B$4:$H$664,2,0))) ->  | L27: =IF(ISERROR(VLOOKUP(J27,'KAYIT LİSTESİ'!$B$4:$H$664,4,0)),"",(VLOOKUP(J27,'KAYIT LİSTESİ'!$B$4:$H$664,4,0))) ->  | M27: =IF(ISERROR(VLOOKUP(J27,'KAYIT LİSTESİ'!$B$4:$H$664,5,0)),"",(VLOOKUP(J27,'KAYIT LİSTESİ'!$B$4:$H$664,5,0))) ->  | N27: =IF(ISERROR(VLOOKUP(J27,'KAYIT LİSTESİ'!$B$4:$H$664,6,0)),"",(VLOOKUP(J27,'KAYIT LİSTESİ'!$B$4:$H$664,6,0))) -> 
A28: 21 | G28: =IF(ISTEXT(F28),0,IFERROR(VLOOKUP(SMALL(#REF!,COUNTIF(#REF!,"<"&F28)+1),#REF!, 2,0)," ")) ->  | I28: 7 | J28: 1500M-2-7 | K28: =IF(ISERROR(VLOOKUP(J28,'KAYIT LİSTESİ'!$B$4:$H$664,2,0)),"",(VLOOKUP(J28,'KAYIT LİSTESİ'!$B$4:$H$664,2,0))) ->  | L28: =IF(ISERROR(VLOOKUP(J28,'KAYIT LİSTESİ'!$B$4:$H$664,4,0)),"",(VLOOKUP(J28,'KAYIT LİSTESİ'!$B$4:$H$664,4,0))) ->  | M28: =IF(ISERROR(VLOOKUP(J28,'KAYIT LİSTESİ'!$B$4:$H$664,5,0)),"",(VLOOKUP(J28,'KAYIT LİSTESİ'!$B$4:$H$664,5,0))) ->  | N28: =IF(ISERROR(VLOOKUP(J28,'KAYIT LİSTESİ'!$B$4:$H$664,6,0)),"",(VLOOKUP(J28,'KAYIT LİSTESİ'!$B$4:$H$664,6,0))) -> 
A29: 22 | G29: =IF(ISTEXT(F29),0,IFERROR(VLOOKUP(SMALL(#REF!,COUNTIF(#REF!,"<"&F29)+1),#REF!, 2,0)," ")) ->  | I29: 8 | J29: 1500M-2-8 | K29: =IF(ISERROR(VLOOKUP(J29,'KAYIT LİSTESİ'!$B$4:$H$664,2,0)),"",(VLOOKUP(J29,'KAYIT LİSTESİ'!$B$4:$H$664,2,0))) ->  | L29: =IF(ISERROR(VLOOKUP(J29,'KAYIT LİSTESİ'!$B$4:$H$664,4,0)),"",(VLOOKUP(J29,'KAYIT LİSTESİ'!$B$4:$H$664,4,0))) ->  | M29: =IF(ISERROR(VLOOKUP(J29,'KAYIT LİSTESİ'!$B$4:$H$664,5,0)),"",(VLOOKUP(J29,'KAYIT LİSTESİ'!$B$4:$H$664,5,0))) ->  | N29: =IF(ISERROR(VLOOKUP(J29,'KAYIT LİSTESİ'!$B$4:$H$664,6,0)),"",(VLOOKUP(J29,'KAYIT LİSTESİ'!$B$4:$H$664,6,0))) -> 
A30: 23 | G30: =IF(ISTEXT(F30),0,IFERROR(VLOOKUP(SMALL(#REF!,COUNTIF(#REF!,"<"&F30)+1),#REF!, 2,0)," ")) ->  | I30: 9 | J30: 1500M-2-9 | K30: =IF(ISERROR(VLOOKUP(J30,'KAYIT LİSTESİ'!$B$4:$H$664,2,0)),"",(VLOOKUP(J30,'KAYIT LİSTESİ'!$B$4:$H$664,2,0))) ->  | L30: =IF(ISERROR(VLOOKUP(J30,'KAYIT LİSTESİ'!$B$4:$H$664,4,0)),"",(VLOOKUP(J30,'KAYIT LİSTESİ'!$B$4:$H$664,4,0))) ->  | M30: =IF(ISERROR(VLOOKUP(J30,'KAYIT LİSTESİ'!$B$4:$H$664,5,0)),"",(VLOOKUP(J30,'KAYIT LİSTESİ'!$B$4:$H$664,5,0))) ->  | N30: =IF(ISERROR(VLOOKUP(J30,'KAYIT LİSTESİ'!$B$4:$H$664,6,0)),"",(VLOOKUP(J30,'KAYIT LİSTESİ'!$B$4:$H$664,6,0))) -> 
A31: 24 | G31: =IF(ISTEXT(F31),0,IFERROR(VLOOKUP(SMALL(#REF!,COUNTIF(#REF!,"<"&F31)+1),#REF!, 2,0)," ")) ->  | I31: 10 | J31: 1500M-2-10 | K31: =IF(ISERROR(VLOOKUP(J31,'KAYIT LİSTESİ'!$B$4:$H$664,2,0)),"",(VLOOKUP(J31,'KAYIT LİSTESİ'!$B$4:$H$664,2,0))) ->  | L31: =IF(ISERROR(VLOOKUP(J31,'KAYIT LİSTESİ'!$B$4:$H$664,4,0)),"",(VLOOKUP(J31,'KAYIT LİSTESİ'!$B$4:$H$664,4,0))) ->  | M31: =IF(ISERROR(VLOOKUP(J31,'KAYIT LİSTESİ'!$B$4:$H$664,5,0)),"",(VLOOKUP(J31,'KAYIT LİSTESİ'!$B$4:$H$664,5,0))) ->  | N31: =IF(ISERROR(VLOOKUP(J31,'KAYIT LİSTESİ'!$B$4:$H$664,6,0)),"",(VLOOKUP(J31,'KAYIT LİSTESİ'!$B$4:$H$664,6,0))) -> 
A32: 25 | G32: =IF(ISTEXT(F32),0,IFERROR(VLOOKUP(SMALL(#REF!,COUNTIF(#REF!,"<"&F32)+1),#REF!, 2,0)," ")) ->  | I32: 11 | J32: 1500M-2-11 | K32: =IF(ISERROR(VLOOKUP(J32,'KAYIT LİSTESİ'!$B$4:$H$664,2,0)),"",(VLOOKUP(J32,'KAYIT LİSTESİ'!$B$4:$H$664,2,0))) ->  | L32: =IF(ISERROR(VLOOKUP(J32,'KAYIT LİSTESİ'!$B$4:$H$664,4,0)),"",(VLOOKUP(J32,'KAYIT LİSTESİ'!$B$4:$H$664,4,0))) ->  | M32: =IF(ISERROR(VLOOKUP(J32,'KAYIT LİSTESİ'!$B$4:$H$664,5,0)),"",(VLOOKUP(J32,'KAYIT LİSTESİ'!$B$4:$H$664,5,0))) ->  | N32: =IF(ISERROR(VLOOKUP(J32,'KAYIT LİSTESİ'!$B$4:$H$664,6,0)),"",(VLOOKUP(J32,'KAYIT LİSTESİ'!$B$4:$H$664,6,0))) -> 
A33: 26 | G33: =IF(ISTEXT(F33),0,IFERROR(VLOOKUP(SMALL(#REF!,COUNTIF(#REF!,"<"&F33)+1),#REF!, 2,0)," ")) ->  | I33: 12 | J33: 1500M-2-12 | K33: =IF(ISERROR(VLOOKUP(J33,'KAYIT LİSTESİ'!$B$4:$H$664,2,0)),"",(VLOOKUP(J33,'KAYIT LİSTESİ'!$B$4:$H$664,2,0))) ->  | L33: =IF(ISERROR(VLOOKUP(J33,'KAYIT LİSTESİ'!$B$4:$H$664,4,0)),"",(VLOOKUP(J33,'KAYIT LİSTESİ'!$B$4:$H$664,4,0))) ->  | M33: =IF(ISERROR(VLOOKUP(J33,'KAYIT LİSTESİ'!$B$4:$H$664,5,0)),"",(VLOOKUP(J33,'KAYIT LİSTESİ'!$B$4:$H$664,5,0))) ->  | N33: =IF(ISERROR(VLOOKUP(J33,'KAYIT LİSTESİ'!$B$4:$H$664,6,0)),"",(VLOOKUP(J33,'KAYIT LİSTESİ'!$B$4:$H$664,6,0))) -> 
A34: 27 | G34: =IF(ISTEXT(F34),0,IFERROR(VLOOKUP(SMALL(#REF!,COUNTIF(#REF!,"<"&F34)+1),#REF!, 2,0)," ")) ->  | I34: 3. SERİ
A35: 28 | G35: =IF(ISTEXT(F35),0,IFERROR(VLOOKUP(SMALL(#REF!,COUNTIF(#REF!,"<"&F35)+1),#REF!, 2,0)," ")) ->  | I35: Sıra No | J35: Formül | K35: Göğüs No | L35: Doğum Tarihi | M35: Adı ve Soyadı | N35: İli-Okulu | O35: Elektronik Kronometre | P35: El Kronometre | Q35: Seri Geliş
A36: 29 | G36: =IF(ISTEXT(F36),0,IFERROR(VLOOKUP(SMALL(#REF!,COUNTIF(#REF!,"<"&F36)+1),#REF!, 2,0)," ")) ->  | I36: 1 | J36: 1500M-3-1 | K36: =IF(ISERROR(VLOOKUP(J36,'KAYIT LİSTESİ'!$B$4:$H$664,2,0)),"",(VLOOKUP(J36,'KAYIT LİSTESİ'!$B$4:$H$664,2,0))) ->  | L36: =IF(ISERROR(VLOOKUP(J36,'KAYIT LİSTESİ'!$B$4:$H$664,4,0)),"",(VLOOKUP(J36,'KAYIT LİSTESİ'!$B$4:$H$664,4,0))) ->  | M36: =IF(ISERROR(VLOOKUP(J36,'KAYIT LİSTESİ'!$B$4:$H$664,5,0)),"",(VLOOKUP(J36,'KAYIT LİSTESİ'!$B$4:$H$664,5,0))) ->  | N36: =IF(ISERROR(VLOOKUP(J36,'KAYIT LİSTESİ'!$B$4:$H$664,6,0)),"",(VLOOKUP(J36,'KAYIT LİSTESİ'!$B$4:$H$664,6,0))) ->  | O36: =IF(IF(OR(P36="NM",P36="DNF",P36="DNS",P36="DQ",P36=""),P36,(ROUNDUP(P36,)+24))=0," ",IF(OR(P36="NM",P36="DNF",P36="DNS",P36="DQ",P36=""),P36,(ROUNDUP(P36,)+24))) -> 
A37: 30 | G37: =IF(ISTEXT(F37),0,IFERROR(VLOOKUP(SMALL(#REF!,COUNTIF(#REF!,"<"&F37)+1),#REF!, 2,0)," ")) ->  | I37: 2 | J37: 1500M-3-2 | K37: =IF(ISERROR(VLOOKUP(J37,'KAYIT LİSTESİ'!$B$4:$H$664,2,0)),"",(VLOOKUP(J37,'KAYIT LİSTESİ'!$B$4:$H$664,2,0))) ->  | L37: =IF(ISERROR(VLOOKUP(J37,'KAYIT LİSTESİ'!$B$4:$H$664,4,0)),"",(VLOOKUP(J37,'KAYIT LİSTESİ'!$B$4:$H$664,4,0))) ->  | M37: =IF(ISERROR(VLOOKUP(J37,'KAYIT LİSTESİ'!$B$4:$H$664,5,0)),"",(VLOOKUP(J37,'KAYIT LİSTESİ'!$B$4:$H$664,5,0))) ->  | N37: =IF(ISERROR(VLOOKUP(J37,'KAYIT LİSTESİ'!$B$4:$H$664,6,0)),"",(VLOOKUP(J37,'KAYIT LİSTESİ'!$B$4:$H$664,6,0))) -> 
A38: 31 | G38: =IF(ISTEXT(F38),0,IFERROR(VLOOKUP(SMALL(#REF!,COUNTIF(#REF!,"<"&F38)+1),#REF!, 2,0)," ")) ->  | I38: 3 | J38: 1500M-3-3 | K38: =IF(ISERROR(VLOOKUP(J38,'KAYIT LİSTESİ'!$B$4:$H$664,2,0)),"",(VLOOKUP(J38,'KAYIT LİSTESİ'!$B$4:$H$664,2,0))) ->  | L38: =IF(ISERROR(VLOOKUP(J38,'KAYIT LİSTESİ'!$B$4:$H$664,4,0)),"",(VLOOKUP(J38,'KAYIT LİSTESİ'!$B$4:$H$664,4,0))) ->  | M38: =IF(ISERROR(VLOOKUP(J38,'KAYIT LİSTESİ'!$B$4:$H$664,5,0)),"",(VLOOKUP(J38,'KAYIT LİSTESİ'!$B$4:$H$664,5,0))) ->  | N38: =IF(ISERROR(VLOOKUP(J38,'KAYIT LİSTESİ'!$B$4:$H$664,6,0)),"",(VLOOKUP(J38,'KAYIT LİSTESİ'!$B$4:$H$664,6,0))) -> 
A39: 32 | G39: =IF(ISTEXT(F39),0,IFERROR(VLOOKUP(SMALL(#REF!,COUNTIF(#REF!,"<"&F39)+1),#REF!, 2,0)," ")) ->  | I39: 4 | J39: 1500M-3-4 | K39: =IF(ISERROR(VLOOKUP(J39,'KAYIT LİSTESİ'!$B$4:$H$664,2,0)),"",(VLOOKUP(J39,'KAYIT LİSTESİ'!$B$4:$H$664,2,0))) ->  | L39: =IF(ISERROR(VLOOKUP(J39,'KAYIT LİSTESİ'!$B$4:$H$664,4,0)),"",(VLOOKUP(J39,'KAYIT LİSTESİ'!$B$4:$H$664,4,0))) ->  | M39: =IF(ISERROR(VLOOKUP(J39,'KAYIT LİSTESİ'!$B$4:$H$664,5,0)),"",(VLOOKUP(J39,'KAYIT LİSTESİ'!$B$4:$H$664,5,0))) ->  | N39: =IF(ISERROR(VLOOKUP(J39,'KAYIT LİSTESİ'!$B$4:$H$664,6,0)),"",(VLOOKUP(J39,'KAYIT LİSTESİ'!$B$4:$H$664,6,0))) -> 
A40: 33 | G40: =IF(ISTEXT(F40),0,IFERROR(VLOOKUP(SMALL(#REF!,COUNTIF(#REF!,"<"&F40)+1),#REF!, 2,0)," ")) ->  | I40: 5 | J40: 1500M-3-5 | K40: =IF(ISERROR(VLOOKUP(J40,'KAYIT LİSTESİ'!$B$4:$H$664,2,0)),"",(VLOOKUP(J40,'KAYIT LİSTESİ'!$B$4:$H$664,2,0))) ->  | L40: =IF(ISERROR(VLOOKUP(J40,'KAYIT LİSTESİ'!$B$4:$H$664,4,0)),"",(VLOOKUP(J40,'KAYIT LİSTESİ'!$B$4:$H$664,4,0))) ->  | M40: =IF(ISERROR(VLOOKUP(J40,'KAYIT LİSTESİ'!$B$4:$H$664,5,0)),"",(VLOOKUP(J40,'KAYIT LİSTESİ'!$B$4:$H$664,5,0))) ->  | N40: =IF(ISERROR(VLOOKUP(J40,'KAYIT LİSTESİ'!$B$4:$H$664,6,0)),"",(VLOOKUP(J40,'KAYIT LİSTESİ'!$B$4:$H$664,6,0))) -> 
A41: 34 | G41: =IF(ISTEXT(F41),0,IFERROR(VLOOKUP(SMALL(#REF!,COUNTIF(#REF!,"<"&F41)+1),#REF!, 2,0)," ")) ->  | I41: 6 | J41: 1500M-3-6 | K41: =IF(ISERROR(VLOOKUP(J41,'KAYIT LİSTESİ'!$B$4:$H$664,2,0)),"",(VLOOKUP(J41,'KAYIT LİSTESİ'!$B$4:$H$664,2,0))) ->  | L41: =IF(ISERROR(VLOOKUP(J41,'KAYIT LİSTESİ'!$B$4:$H$664,4,0)),"",(VLOOKUP(J41,'KAYIT LİSTESİ'!$B$4:$H$664,4,0))) ->  | M41: =IF(ISERROR(VLOOKUP(J41,'KAYIT LİSTESİ'!$B$4:$H$664,5,0)),"",(VLOOKUP(J41,'KAYIT LİSTESİ'!$B$4:$H$664,5,0))) ->  | N41: =IF(ISERROR(VLOOKUP(J41,'KAYIT LİSTESİ'!$B$4:$H$664,6,0)),"",(VLOOKUP(J41,'KAYIT LİSTESİ'!$B$4:$H$664,6,0))) -> 
A42: 35 | G42: =IF(ISTEXT(F42),0,IFERROR(VLOOKUP(SMALL(#REF!,COUNTIF(#REF!,"<"&F42)+1),#REF!, 2,0)," ")) ->  | I42: 7 | J42: 1500M-3-7 | K42: =IF(ISERROR(VLOOKUP(J42,'KAYIT LİSTESİ'!$B$4:$H$664,2,0)),"",(VLOOKUP(J42,'KAYIT LİSTESİ'!$B$4:$H$664,2,0))) ->  | L42: =IF(ISERROR(VLOOKUP(J42,'KAYIT LİSTESİ'!$B$4:$H$664,4,0)),"",(VLOOKUP(J42,'KAYIT LİSTESİ'!$B$4:$H$664,4,0))) ->  | M42: =IF(ISERROR(VLOOKUP(J42,'KAYIT LİSTESİ'!$B$4:$H$664,5,0)),"",(VLOOKUP(J42,'KAYIT LİSTESİ'!$B$4:$H$664,5,0))) ->  | N42: =IF(ISERROR(VLOOKUP(J42,'KAYIT LİSTESİ'!$B$4:$H$664,6,0)),"",(VLOOKUP(J42,'KAYIT LİSTESİ'!$B$4:$H$664,6,0))) -> 
A43: 36 | G43: =IF(ISTEXT(F43),0,IFERROR(VLOOKUP(SMALL(#REF!,COUNTIF(#REF!,"<"&F43)+1),#REF!, 2,0)," ")) ->  | I43: 8 | J43: 1500M-3-8 | K43: =IF(ISERROR(VLOOKUP(J43,'KAYIT LİSTESİ'!$B$4:$H$664,2,0)),"",(VLOOKUP(J43,'KAYIT LİSTESİ'!$B$4:$H$664,2,0))) ->  | L43: =IF(ISERROR(VLOOKUP(J43,'KAYIT LİSTESİ'!$B$4:$H$664,4,0)),"",(VLOOKUP(J43,'KAYIT LİSTESİ'!$B$4:$H$664,4,0))) ->  | M43: =IF(ISERROR(VLOOKUP(J43,'KAYIT LİSTESİ'!$B$4:$H$664,5,0)),"",(VLOOKUP(J43,'KAYIT LİSTESİ'!$B$4:$H$664,5,0))) ->  | N43: =IF(ISERROR(VLOOKUP(J43,'KAYIT LİSTESİ'!$B$4:$H$664,6,0)),"",(VLOOKUP(J43,'KAYIT LİSTESİ'!$B$4:$H$664,6,0))) -> 
A44: 37 | G44: =IF(ISTEXT(F44),0,IFERROR(VLOOKUP(SMALL(#REF!,COUNTIF(#REF!,"<"&F44)+1),#REF!, 2,0)," ")) ->  | I44: 9 | J44: 1500M-3-9 | K44: =IF(ISERROR(VLOOKUP(J44,'KAYIT LİSTESİ'!$B$4:$H$664,2,0)),"",(VLOOKUP(J44,'KAYIT LİSTESİ'!$B$4:$H$664,2,0))) ->  | L44: =IF(ISERROR(VLOOKUP(J44,'KAYIT LİSTESİ'!$B$4:$H$664,4,0)),"",(VLOOKUP(J44,'KAYIT LİSTESİ'!$B$4:$H$664,4,0))) ->  | M44: =IF(ISERROR(VLOOKUP(J44,'KAYIT LİSTESİ'!$B$4:$H$664,5,0)),"",(VLOOKUP(J44,'KAYIT LİSTESİ'!$B$4:$H$664,5,0))) ->  | N44: =IF(ISERROR(VLOOKUP(J44,'KAYIT LİSTESİ'!$B$4:$H$664,6,0)),"",(VLOOKUP(J44,'KAYIT LİSTESİ'!$B$4:$H$664,6,0))) -> 
A45: 38 | G45: =IF(ISTEXT(F45),0,IFERROR(VLOOKUP(SMALL(#REF!,COUNTIF(#REF!,"<"&F45)+1),#REF!, 2,0)," ")) ->  | I45: 10 | J45: 1500M-3-10 | K45: =IF(ISERROR(VLOOKUP(J45,'KAYIT LİSTESİ'!$B$4:$H$664,2,0)),"",(VLOOKUP(J45,'KAYIT LİSTESİ'!$B$4:$H$664,2,0))) ->  | L45: =IF(ISERROR(VLOOKUP(J45,'KAYIT LİSTESİ'!$B$4:$H$664,4,0)),"",(VLOOKUP(J45,'KAYIT LİSTESİ'!$B$4:$H$664,4,0))) ->  | M45: =IF(ISERROR(VLOOKUP(J45,'KAYIT LİSTESİ'!$B$4:$H$664,5,0)),"",(VLOOKUP(J45,'KAYIT LİSTESİ'!$B$4:$H$664,5,0))) ->  | N45: =IF(ISERROR(VLOOKUP(J45,'KAYIT LİSTESİ'!$B$4:$H$664,6,0)),"",(VLOOKUP(J45,'KAYIT LİSTESİ'!$B$4:$H$664,6,0))) -> 
A46: 39 | G46: =IF(ISTEXT(F46),0,IFERROR(VLOOKUP(SMALL(#REF!,COUNTIF(#REF!,"<"&F46)+1),#REF!, 2,0)," ")) ->  | I46: 11 | J46: 1500M-3-11 | K46: =IF(ISERROR(VLOOKUP(J46,'KAYIT LİSTESİ'!$B$4:$H$664,2,0)),"",(VLOOKUP(J46,'KAYIT LİSTESİ'!$B$4:$H$664,2,0))) ->  | L46: =IF(ISERROR(VLOOKUP(J46,'KAYIT LİSTESİ'!$B$4:$H$664,4,0)),"",(VLOOKUP(J46,'KAYIT LİSTESİ'!$B$4:$H$664,4,0))) ->  | M46: =IF(ISERROR(VLOOKUP(J46,'KAYIT LİSTESİ'!$B$4:$H$664,5,0)),"",(VLOOKUP(J46,'KAYIT LİSTESİ'!$B$4:$H$664,5,0))) ->  | N46: =IF(ISERROR(VLOOKUP(J46,'KAYIT LİSTESİ'!$B$4:$H$664,6,0)),"",(VLOOKUP(J46,'KAYIT LİSTESİ'!$B$4:$H$664,6,0))) -> 
A47: 40 | G47: =IF(ISTEXT(F47),0,IFERROR(VLOOKUP(SMALL(#REF!,COUNTIF(#REF!,"<"&F47)+1),#REF!, 2,0)," ")) ->  | I47: 12 | J47: 1500M-3-12 | K47: =IF(ISERROR(VLOOKUP(J47,'KAYIT LİSTESİ'!$B$4:$H$664,2,0)),"",(VLOOKUP(J47,'KAYIT LİSTESİ'!$B$4:$H$664,2,0))) ->  | L47: =IF(ISERROR(VLOOKUP(J47,'KAYIT LİSTESİ'!$B$4:$H$664,4,0)),"",(VLOOKUP(J47,'KAYIT LİSTESİ'!$B$4:$H$664,4,0))) ->  | M47: =IF(ISERROR(VLOOKUP(J47,'KAYIT LİSTESİ'!$B$4:$H$664,5,0)),"",(VLOOKUP(J47,'KAYIT LİSTESİ'!$B$4:$H$664,5,0))) ->  | N47: =IF(ISERROR(VLOOKUP(J47,'KAYIT LİSTESİ'!$B$4:$H$664,6,0)),"",(VLOOKUP(J47,'KAYIT LİSTESİ'!$B$4:$H$664,6,0))) -> 
A48: 41 | G48: =IF(ISTEXT(F48),0,IFERROR(VLOOKUP(SMALL(#REF!,COUNTIF(#REF!,"<"&F48)+1),#REF!, 2,0)," ")) ->  | I48: 4. SERİ
A49: 42 | G49: =IF(ISTEXT(F49),0,IFERROR(VLOOKUP(SMALL(#REF!,COUNTIF(#REF!,"<"&F49)+1),#REF!, 2,0)," ")) ->  | I49: Sıra No | J49: Formül | K49: Göğüs No | L49: Doğum Tarihi | M49: Adı ve Soyadı | N49: İli-Okulu | O49: Elektronik Kronometre | P49: El Kronometre | Q49: Seri Geliş
A50: 43 | G50: =IF(ISTEXT(F50),0,IFERROR(VLOOKUP(SMALL(#REF!,COUNTIF(#REF!,"<"&F50)+1),#REF!, 2,0)," ")) ->  | I50: 1 | J50: 1500M-4-1 | K50: =IF(ISERROR(VLOOKUP(J50,'KAYIT LİSTESİ'!$B$4:$H$664,2,0)),"",(VLOOKUP(J50,'KAYIT LİSTESİ'!$B$4:$H$664,2,0))) ->  | L50: =IF(ISERROR(VLOOKUP(J50,'KAYIT LİSTESİ'!$B$4:$H$664,4,0)),"",(VLOOKUP(J50,'KAYIT LİSTESİ'!$B$4:$H$664,4,0))) ->  | M50: =IF(ISERROR(VLOOKUP(J50,'KAYIT LİSTESİ'!$B$4:$H$664,5,0)),"",(VLOOKUP(J50,'KAYIT LİSTESİ'!$B$4:$H$664,5,0))) ->  | N50: =IF(ISERROR(VLOOKUP(J50,'KAYIT LİSTESİ'!$B$4:$H$664,6,0)),"",(VLOOKUP(J50,'KAYIT LİSTESİ'!$B$4:$H$664,6,0))) -> 
A51: 44 | G51: =IF(ISTEXT(F51),0,IFERROR(VLOOKUP(SMALL(#REF!,COUNTIF(#REF!,"<"&F51)+1),#REF!, 2,0)," ")) ->  | I51: 2 | J51: 1500M-4-2 | K51: =IF(ISERROR(VLOOKUP(J51,'KAYIT LİSTESİ'!$B$4:$H$664,2,0)),"",(VLOOKUP(J51,'KAYIT LİSTESİ'!$B$4:$H$664,2,0))) ->  | L51: =IF(ISERROR(VLOOKUP(J51,'KAYIT LİSTESİ'!$B$4:$H$664,4,0)),"",(VLOOKUP(J51,'KAYIT LİSTESİ'!$B$4:$H$664,4,0))) ->  | M51: =IF(ISERROR(VLOOKUP(J51,'KAYIT LİSTESİ'!$B$4:$H$664,5,0)),"",(VLOOKUP(J51,'KAYIT LİSTESİ'!$B$4:$H$664,5,0))) ->  | N51: =IF(ISERROR(VLOOKUP(J51,'KAYIT LİSTESİ'!$B$4:$H$664,6,0)),"",(VLOOKUP(J51,'KAYIT LİSTESİ'!$B$4:$H$664,6,0))) -> 
A52: 45 | G52: =IF(ISTEXT(F52),0,IFERROR(VLOOKUP(SMALL(#REF!,COUNTIF(#REF!,"<"&F52)+1),#REF!, 2,0)," ")) ->  | I52: 3 | J52: 1500M-4-3 | K52: =IF(ISERROR(VLOOKUP(J52,'KAYIT LİSTESİ'!$B$4:$H$664,2,0)),"",(VLOOKUP(J52,'KAYIT LİSTESİ'!$B$4:$H$664,2,0))) ->  | L52: =IF(ISERROR(VLOOKUP(J52,'KAYIT LİSTESİ'!$B$4:$H$664,4,0)),"",(VLOOKUP(J52,'KAYIT LİSTESİ'!$B$4:$H$664,4,0))) ->  | M52: =IF(ISERROR(VLOOKUP(J52,'KAYIT LİSTESİ'!$B$4:$H$664,5,0)),"",(VLOOKUP(J52,'KAYIT LİSTESİ'!$B$4:$H$664,5,0))) ->  | N52: =IF(ISERROR(VLOOKUP(J52,'KAYIT LİSTESİ'!$B$4:$H$664,6,0)),"",(VLOOKUP(J52,'KAYIT LİSTESİ'!$B$4:$H$664,6,0))) -> 
A53: 46 | G53: =IF(ISTEXT(F53),0,IFERROR(VLOOKUP(SMALL(#REF!,COUNTIF(#REF!,"<"&F53)+1),#REF!, 2,0)," ")) ->  | I53: 4 | J53: 1500M-4-4 | K53: =IF(ISERROR(VLOOKUP(J53,'KAYIT LİSTESİ'!$B$4:$H$664,2,0)),"",(VLOOKUP(J53,'KAYIT LİSTESİ'!$B$4:$H$664,2,0))) ->  | L53: =IF(ISERROR(VLOOKUP(J53,'KAYIT LİSTESİ'!$B$4:$H$664,4,0)),"",(VLOOKUP(J53,'KAYIT LİSTESİ'!$B$4:$H$664,4,0))) ->  | M53: =IF(ISERROR(VLOOKUP(J53,'KAYIT LİSTESİ'!$B$4:$H$664,5,0)),"",(VLOOKUP(J53,'KAYIT LİSTESİ'!$B$4:$H$664,5,0))) ->  | N53: =IF(ISERROR(VLOOKUP(J53,'KAYIT LİSTESİ'!$B$4:$H$664,6,0)),"",(VLOOKUP(J53,'KAYIT LİSTESİ'!$B$4:$H$664,6,0))) -> 
A54: 47 | G54: =IF(ISTEXT(F54),0,IFERROR(VLOOKUP(SMALL(#REF!,COUNTIF(#REF!,"<"&F54)+1),#REF!, 2,0)," ")) ->  | I54: 5 | J54: 1500M-4-5 | K54: =IF(ISERROR(VLOOKUP(J54,'KAYIT LİSTESİ'!$B$4:$H$664,2,0)),"",(VLOOKUP(J54,'KAYIT LİSTESİ'!$B$4:$H$664,2,0))) ->  | L54: =IF(ISERROR(VLOOKUP(J54,'KAYIT LİSTESİ'!$B$4:$H$664,4,0)),"",(VLOOKUP(J54,'KAYIT LİSTESİ'!$B$4:$H$664,4,0))) ->  | M54: =IF(ISERROR(VLOOKUP(J54,'KAYIT LİSTESİ'!$B$4:$H$664,5,0)),"",(VLOOKUP(J54,'KAYIT LİSTESİ'!$B$4:$H$664,5,0))) ->  | N54: =IF(ISERROR(VLOOKUP(J54,'KAYIT LİSTESİ'!$B$4:$H$664,6,0)),"",(VLOOKUP(J54,'KAYIT LİSTESİ'!$B$4:$H$664,6,0))) -> 
A55: 48 | G55: =IF(ISTEXT(F55),0,IFERROR(VLOOKUP(SMALL(#REF!,COUNTIF(#REF!,"<"&F55)+1),#REF!, 2,0)," ")) ->  | I55: 6 | J55: 1500M-4-6 | K55: =IF(ISERROR(VLOOKUP(J55,'KAYIT LİSTESİ'!$B$4:$H$664,2,0)),"",(VLOOKUP(J55,'KAYIT LİSTESİ'!$B$4:$H$664,2,0))) ->  | L55: =IF(ISERROR(VLOOKUP(J55,'KAYIT LİSTESİ'!$B$4:$H$664,4,0)),"",(VLOOKUP(J55,'KAYIT LİSTESİ'!$B$4:$H$664,4,0))) ->  | M55: =IF(ISERROR(VLOOKUP(J55,'KAYIT LİSTESİ'!$B$4:$H$664,5,0)),"",(VLOOKUP(J55,'KAYIT LİSTESİ'!$B$4:$H$664,5,0))) ->  | N55: =IF(ISERROR(VLOOKUP(J55,'KAYIT LİSTESİ'!$B$4:$H$664,6,0)),"",(VLOOKUP(J55,'KAYIT LİSTESİ'!$B$4:$H$664,6,0))) -> 
A56: 49 | G56: =IF(ISTEXT(F56),0,IFERROR(VLOOKUP(SMALL(#REF!,COUNTIF(#REF!,"<"&F56)+1),#REF!, 2,0)," ")) ->  | I56: 7 | J56: 1500M-4-7 | K56: =IF(ISERROR(VLOOKUP(J56,'KAYIT LİSTESİ'!$B$4:$H$664,2,0)),"",(VLOOKUP(J56,'KAYIT LİSTESİ'!$B$4:$H$664,2,0))) ->  | L56: =IF(ISERROR(VLOOKUP(J56,'KAYIT LİSTESİ'!$B$4:$H$664,4,0)),"",(VLOOKUP(J56,'KAYIT LİSTESİ'!$B$4:$H$664,4,0))) ->  | M56: =IF(ISERROR(VLOOKUP(J56,'KAYIT LİSTESİ'!$B$4:$H$664,5,0)),"",(VLOOKUP(J56,'KAYIT LİSTESİ'!$B$4:$H$664,5,0))) ->  | N56: =IF(ISERROR(VLOOKUP(J56,'KAYIT LİSTESİ'!$B$4:$H$664,6,0)),"",(VLOOKUP(J56,'KAYIT LİSTESİ'!$B$4:$H$664,6,0))) -> 
A57: 50 | G57: =IF(ISTEXT(F57),0,IFERROR(VLOOKUP(SMALL(#REF!,COUNTIF(#REF!,"<"&F57)+1),#REF!, 2,0)," ")) ->  | I57: 8 | J57: 1500M-4-8 | K57: =IF(ISERROR(VLOOKUP(J57,'KAYIT LİSTESİ'!$B$4:$H$664,2,0)),"",(VLOOKUP(J57,'KAYIT LİSTESİ'!$B$4:$H$664,2,0))) ->  | L57: =IF(ISERROR(VLOOKUP(J57,'KAYIT LİSTESİ'!$B$4:$H$664,4,0)),"",(VLOOKUP(J57,'KAYIT LİSTESİ'!$B$4:$H$664,4,0))) ->  | M57: =IF(ISERROR(VLOOKUP(J57,'KAYIT LİSTESİ'!$B$4:$H$664,5,0)),"",(VLOOKUP(J57,'KAYIT LİSTESİ'!$B$4:$H$664,5,0))) ->  | N57: =IF(ISERROR(VLOOKUP(J57,'KAYIT LİSTESİ'!$B$4:$H$664,6,0)),"",(VLOOKUP(J57,'KAYIT LİSTESİ'!$B$4:$H$664,6,0))) -> 
A58: 51 | G58: =IF(ISTEXT(F58),0,IFERROR(VLOOKUP(SMALL(#REF!,COUNTIF(#REF!,"<"&F58)+1),#REF!, 2,0)," ")) ->  | I58: 9 | J58: 1500M-4-9 | K58: =IF(ISERROR(VLOOKUP(J58,'KAYIT LİSTESİ'!$B$4:$H$664,2,0)),"",(VLOOKUP(J58,'KAYIT LİSTESİ'!$B$4:$H$664,2,0))) ->  | L58: =IF(ISERROR(VLOOKUP(J58,'KAYIT LİSTESİ'!$B$4:$H$664,4,0)),"",(VLOOKUP(J58,'KAYIT LİSTESİ'!$B$4:$H$664,4,0))) ->  | M58: =IF(ISERROR(VLOOKUP(J58,'KAYIT LİSTESİ'!$B$4:$H$664,5,0)),"",(VLOOKUP(J58,'KAYIT LİSTESİ'!$B$4:$H$664,5,0))) ->  | N58: =IF(ISERROR(VLOOKUP(J58,'KAYIT LİSTESİ'!$B$4:$H$664,6,0)),"",(VLOOKUP(J58,'KAYIT LİSTESİ'!$B$4:$H$664,6,0))) -> 
A59: 52 | G59: =IF(ISTEXT(F59),0,IFERROR(VLOOKUP(SMALL(#REF!,COUNTIF(#REF!,"<"&F59)+1),#REF!, 2,0)," ")) ->  | I59: 10 | J59: 1500M-4-10 | K59: =IF(ISERROR(VLOOKUP(J59,'KAYIT LİSTESİ'!$B$4:$H$664,2,0)),"",(VLOOKUP(J59,'KAYIT LİSTESİ'!$B$4:$H$664,2,0))) ->  | L59: =IF(ISERROR(VLOOKUP(J59,'KAYIT LİSTESİ'!$B$4:$H$664,4,0)),"",(VLOOKUP(J59,'KAYIT LİSTESİ'!$B$4:$H$664,4,0))) ->  | M59: =IF(ISERROR(VLOOKUP(J59,'KAYIT LİSTESİ'!$B$4:$H$664,5,0)),"",(VLOOKUP(J59,'KAYIT LİSTESİ'!$B$4:$H$664,5,0))) ->  | N59: =IF(ISERROR(VLOOKUP(J59,'KAYIT LİSTESİ'!$B$4:$H$664,6,0)),"",(VLOOKUP(J59,'KAYIT LİSTESİ'!$B$4:$H$664,6,0))) -> 
A60: 53 | G60: =IF(ISTEXT(F60),0,IFERROR(VLOOKUP(SMALL(#REF!,COUNTIF(#REF!,"<"&F60)+1),#REF!, 2,0)," ")) ->  | I60: 11 | J60: 1500M-4-11 | K60: =IF(ISERROR(VLOOKUP(J60,'KAYIT LİSTESİ'!$B$4:$H$664,2,0)),"",(VLOOKUP(J60,'KAYIT LİSTESİ'!$B$4:$H$664,2,0))) ->  | L60: =IF(ISERROR(VLOOKUP(J60,'KAYIT LİSTESİ'!$B$4:$H$664,4,0)),"",(VLOOKUP(J60,'KAYIT LİSTESİ'!$B$4:$H$664,4,0))) ->  | M60: =IF(ISERROR(VLOOKUP(J60,'KAYIT LİSTESİ'!$B$4:$H$664,5,0)),"",(VLOOKUP(J60,'KAYIT LİSTESİ'!$B$4:$H$664,5,0))) ->  | N60: =IF(ISERROR(VLOOKUP(J60,'KAYIT LİSTESİ'!$B$4:$H$664,6,0)),"",(VLOOKUP(J60,'KAYIT LİSTESİ'!$B$4:$H$664,6,0))) -> 
A61: 54 | G61: =IF(ISTEXT(F61),0,IFERROR(VLOOKUP(SMALL(#REF!,COUNTIF(#REF!,"<"&F61)+1),#REF!, 2,0)," ")) ->  | I61: 12 | J61: 1500M-4-12 | K61: =IF(ISERROR(VLOOKUP(J61,'KAYIT LİSTESİ'!$B$4:$H$664,2,0)),"",(VLOOKUP(J61,'KAYIT LİSTESİ'!$B$4:$H$664,2,0))) ->  | L61: =IF(ISERROR(VLOOKUP(J61,'KAYIT LİSTESİ'!$B$4:$H$664,4,0)),"",(VLOOKUP(J61,'KAYIT LİSTESİ'!$B$4:$H$664,4,0))) ->  | M61: =IF(ISERROR(VLOOKUP(J61,'KAYIT LİSTESİ'!$B$4:$H$664,5,0)),"",(VLOOKUP(J61,'KAYIT LİSTESİ'!$B$4:$H$664,5,0))) ->  | N61: =IF(ISERROR(VLOOKUP(J61,'KAYIT LİSTESİ'!$B$4:$H$664,6,0)),"",(VLOOKUP(J61,'KAYIT LİSTESİ'!$B$4:$H$664,6,0))) -> 
A63: Müsabakalar Direktörü | E63: Baş Hakem | F63: Lider | H63: Sekreter | M63: Hakem | N63: Hakem | P63: Hakem

Sheet 100m.Eng
A1: =('YARIŞMA BİLGİLERİ'!A2) -> Türkiye Atletizm Federasyonu Mersin Atletizm İl Temsilciliği
A2: ='YARIŞMA BİLGİLERİ'!F19 -> Olimpik Baraj Yarışmaları
A3: Yarışma : | D3: =#REF! ->  | F3: Baraj Derecesi | H3: : | I3: =#REF! -> 
A4: Kategori : | D4: ='YARIŞMA BİLGİLERİ'!F21 -> Kadınlar | M4: Tarih-Saat : | N4: =#REF! -> 
N5: =NOW() -> 42222.53664
A6: Sıra No | B6: Göğüs No | C6: Doğum Tarihi Gün/Ay/Yıl | D6: Adı ve Soyadı | E6: İli-Okulu | F6: Derece | G6: Puan | I6: 1. SERİ | M6: Rüzgar:
I7: Sıra No | J7: Formül | K7: Göğüs No | L7: Doğum Tarihi | M7: Adı ve Soyadı | N7: İli-Okulu | O7: Elektronik Kronometre | P7: El Kronometre | Q7: Seri Geliş
A8: 1 | G8: =IF(ISTEXT(F8),0,IFERROR(VLOOKUP(SMALL(#REF!,COUNTIF(#REF!,"<"&F8)+1),#REF!, 2,0)," ")) ->  | I8: 1 | J8: 100M.ENG-1-1 | K8: =IF(ISERROR(VLOOKUP(J8,'KAYIT LİSTESİ'!$B$4:$H$664,2,0)),"",(VLOOKUP(J8,'KAYIT LİSTESİ'!$B$4:$H$664,2,0))) ->  | L8: =IF(ISERROR(VLOOKUP(J8,'KAYIT LİSTESİ'!$B$4:$H$664,4,0)),"",(VLOOKUP(J8,'KAYIT LİSTESİ'!$B$4:$H$664,4,0))) ->  | M8: =IF(ISERROR(VLOOKUP(J8,'KAYIT LİSTESİ'!$B$4:$H$664,5,0)),"",(VLOOKUP(J8,'KAYIT LİSTESİ'!$B$4:$H$664,5,0))) ->  | N8: =IF(ISERROR(VLOOKUP(J8,'KAYIT LİSTESİ'!$B$4:$H$664,6,0)),"",(VLOOKUP(J8,'KAYIT LİSTESİ'!$B$4:$H$664,6,0))) ->  | O8: =IF(IF(OR(P8="NM",P8="DNF",P8="DNS",P8="DQ",P8=""),P8,(ROUNDUP(P8,)+24))=0," ",IF(OR(P8="NM",P8="DNF",P8="DNS",P8="DQ",P8=""),P8,(ROUNDUP(P8,)+24))) -> 
A9: 2 | G9: =IF(ISTEXT(F9),0,IFERROR(VLOOKUP(SMALL(#REF!,COUNTIF(#REF!,"<"&F9)+1),#REF!, 2,0)," ")) ->  | I9: 2 | J9: 100M.ENG-1-2 | K9: =IF(ISERROR(VLOOKUP(J9,'KAYIT LİSTESİ'!$B$4:$H$664,2,0)),"",(VLOOKUP(J9,'KAYIT LİSTESİ'!$B$4:$H$664,2,0))) -> 610 | L9: =IF(ISERROR(VLOOKUP(J9,'KAYIT LİSTESİ'!$B$4:$H$664,4,0)),"",(VLOOKUP(J9,'KAYIT LİSTESİ'!$B$4:$H$664,4,0))) -> 1994-01-29 | M9: =IF(ISERROR(VLOOKUP(J9,'KAYIT LİSTESİ'!$B$4:$H$664,5,0)),"",(VLOOKUP(J9,'KAYIT LİSTESİ'!$B$4:$H$664,5,0))) -> Zühre ACERMAN | N9: =IF(ISERROR(VLOOKUP(J9,'KAYIT LİSTESİ'!$B$4:$H$664,6,0)),"",(VLOOKUP(J9,'KAYIT LİSTESİ'!$B$4:$H$664,6,0))) -> KKTC. MAGUSA
A10: 3 | G10: =IF(ISTEXT(F10),0,IFERROR(VLOOKUP(SMALL(#REF!,COUNTIF(#REF!,"<"&F10)+1),#REF!, 2,0)," ")) ->  | I10: 3 | J10: 100M.ENG-1-3 | K10: =IF(ISERROR(VLOOKUP(J10,'KAYIT LİSTESİ'!$B$4:$H$664,2,0)),"",(VLOOKUP(J10,'KAYIT LİSTESİ'!$B$4:$H$664,2,0))) -> 601 | L10: =IF(ISERROR(VLOOKUP(J10,'KAYIT LİSTESİ'!$B$4:$H$664,4,0)),"",(VLOOKUP(J10,'KAYIT LİSTESİ'!$B$4:$H$664,4,0))) -> 15.11.1992 | M10: =IF(ISERROR(VLOOKUP(J10,'KAYIT LİSTESİ'!$B$4:$H$664,5,0)),"",(VLOOKUP(J10,'KAYIT LİSTESİ'!$B$4:$H$664,5,0))) -> İLKAY AVCI | N10: =IF(ISERROR(VLOOKUP(J10,'KAYIT LİSTESİ'!$B$4:$H$664,6,0)),"",(VLOOKUP(J10,'KAYIT LİSTESİ'!$B$4:$H$664,6,0))) -> ESKİŞEHİR
A11: 4 | G11: =IF(ISTEXT(F11),0,IFERROR(VLOOKUP(SMALL(#REF!,COUNTIF(#REF!,"<"&F11)+1),#REF!, 2,0)," ")) ->  | I11: 4 | J11: 100M.ENG-1-4 | K11: =IF(ISERROR(VLOOKUP(J11,'KAYIT LİSTESİ'!$B$4:$H$664,2,0)),"",(VLOOKUP(J11,'KAYIT LİSTESİ'!$B$4:$H$664,2,0))) -> 602 | L11: =IF(ISERROR(VLOOKUP(J11,'KAYIT LİSTESİ'!$B$4:$H$664,4,0)),"",(VLOOKUP(J11,'KAYIT LİSTESİ'!$B$4:$H$664,4,0))) -> 1984-03-28 | M11: =IF(ISERROR(VLOOKUP(J11,'KAYIT LİSTESİ'!$B$4:$H$664,5,0)),"",(VLOOKUP(J11,'KAYIT LİSTESİ'!$B$4:$H$664,5,0))) -> SERPİL KOÇAK | N11: =IF(ISERROR(VLOOKUP(J11,'KAYIT LİSTESİ'!$B$4:$H$664,6,0)),"",(VLOOKUP(J11,'KAYIT LİSTESİ'!$B$4:$H$664,6,0))) -> İSTABUL
A12: 5 | G12: =IF(ISTEXT(F12),0,IFERROR(VLOOKUP(SMALL(#REF!,COUNTIF(#REF!,"<"&F12)+1),#REF!, 2,0)," ")) ->  | I12: 5 | J12: 100M.ENG-1-5 | K12: =IF(ISERROR(VLOOKUP(J12,'KAYIT LİSTESİ'!$B$4:$H$664,2,0)),"",(VLOOKUP(J12,'KAYIT LİSTESİ'!$B$4:$H$664,2,0))) ->  | L12: =IF(ISERROR(VLOOKUP(J12,'KAYIT LİSTESİ'!$B$4:$H$664,4,0)),"",(VLOOKUP(J12,'KAYIT LİSTESİ'!$B$4:$H$664,4,0))) ->  | M12: =IF(ISERROR(VLOOKUP(J12,'KAYIT LİSTESİ'!$B$4:$H$664,5,0)),"",(VLOOKUP(J12,'KAYIT LİSTESİ'!$B$4:$H$664,5,0))) ->  | N12: =IF(ISERROR(VLOOKUP(J12,'KAYIT LİSTESİ'!$B$4:$H$664,6,0)),"",(VLOOKUP(J12,'KAYIT LİSTESİ'!$B$4:$H$664,6,0))) -> 
A13: 6 | G13: =IF(ISTEXT(F13),0,IFERROR(VLOOKUP(SMALL(#REF!,COUNTIF(#REF!,"<"&F13)+1),#REF!, 2,0)," ")) ->  | I13: 6 | J13: 100M.ENG-1-6 | K13: =IF(ISERROR(VLOOKUP(J13,'KAYIT LİSTESİ'!$B$4:$H$664,2,0)),"",(VLOOKUP(J13,'KAYIT LİSTESİ'!$B$4:$H$664,2,0))) ->  | L13: =IF(ISERROR(VLOOKUP(J13,'KAYIT LİSTESİ'!$B$4:$H$664,4,0)),"",(VLOOKUP(J13,'KAYIT LİSTESİ'!$B$4:$H$664,4,0))) ->  | M13: =IF(ISERROR(VLOOKUP(J13,'KAYIT LİSTESİ'!$B$4:$H$664,5,0)),"",(VLOOKUP(J13,'KAYIT LİSTESİ'!$B$4:$H$664,5,0))) ->  | N13: =IF(ISERROR(VLOOKUP(J13,'KAYIT LİSTESİ'!$B$4:$H$664,6,0)),"",(VLOOKUP(J13,'KAYIT LİSTESİ'!$B$4:$H$664,6,0))) -> 
A14: 7 | G14: =IF(ISTEXT(F14),0,IFERROR(VLOOKUP(SMALL(#REF!,COUNTIF(#REF!,"<"&F14)+1),#REF!, 2,0)," ")) ->  | I14: 7 | J14: 100M.ENG-1-7 | K14: =IF(ISERROR(VLOOKUP(J14,'KAYIT LİSTESİ'!$B$4:$H$664,2,0)),"",(VLOOKUP(J14,'KAYIT LİSTESİ'!$B$4:$H$664,2,0))) ->  | L14: =IF(ISERROR(VLOOKUP(J14,'KAYIT LİSTESİ'!$B$4:$H$664,4,0)),"",(VLOOKUP(J14,'KAYIT LİSTESİ'!$B$4:$H$664,4,0))) ->  | M14: =IF(ISERROR(VLOOKUP(J14,'KAYIT LİSTESİ'!$B$4:$H$664,5,0)),"",(VLOOKUP(J14,'KAYIT LİSTESİ'!$B$4:$H$664,5,0))) ->  | N14: =IF(ISERROR(VLOOKUP(J14,'KAYIT LİSTESİ'!$B$4:$H$664,6,0)),"",(VLOOKUP(J14,'KAYIT LİSTESİ'!$B$4:$H$664,6,0))) -> 
A15: 8 | G15: =IF(ISTEXT(F15),0,IFERROR(VLOOKUP(SMALL(#REF!,COUNTIF(#REF!,"<"&F15)+1),#REF!, 2,0)," ")) ->  | I15: 8 | J15: 100M.ENG-1-8 | K15: =IF(ISERROR(VLOOKUP(J15,'KAYIT LİSTESİ'!$B$4:$H$664,2,0)),"",(VLOOKUP(J15,'KAYIT LİSTESİ'!$B$4:$H$664,2,0))) ->  | L15: =IF(ISERROR(VLOOKUP(J15,'KAYIT LİSTESİ'!$B$4:$H$664,4,0)),"",(VLOOKUP(J15,'KAYIT LİSTESİ'!$B$4:$H$664,4,0))) ->  | M15: =IF(ISERROR(VLOOKUP(J15,'KAYIT LİSTESİ'!$B$4:$H$664,5,0)),"",(VLOOKUP(J15,'KAYIT LİSTESİ'!$B$4:$H$664,5,0))) ->  | N15: =IF(ISERROR(VLOOKUP(J15,'KAYIT LİSTESİ'!$B$4:$H$664,6,0)),"",(VLOOKUP(J15,'KAYIT LİSTESİ'!$B$4:$H$664,6,0))) -> 
A16: 9 | G16: =IF(ISTEXT(F16),0,IFERROR(VLOOKUP(SMALL(#REF!,COUNTIF(#REF!,"<"&F16)+1),#REF!, 2,0)," ")) ->  | I16: 2. SERİ | M16: Rüzgar:
A17: 10 | G17: =IF(ISTEXT(F17),0,IFERROR(VLOOKUP(SMALL(#REF!,COUNTIF(#REF!,"<"&F17)+1),#REF!, 2,0)," ")) ->  | I17: Sıra No | J17: Formül | K17: Göğüs No | L17: Doğum Tarihi | M17: Adı ve Soyadı | N17: İli-Okulu | O17: Elektronik Kronometre | P17: El Kronometre | Q17: Seri Geliş
A18: 11 | G18: =IF(ISTEXT(F18),0,IFERROR(VLOOKUP(SMALL(#REF!,COUNTIF(#REF!,"<"&F18)+1),#REF!, 2,0)," ")) ->  | I18: 1 | J18: 100M.ENG-2-1 | K18: =IF(ISERROR(VLOOKUP(J18,'KAYIT LİSTESİ'!$B$4:$H$664,2,0)),"",(VLOOKUP(J18,'KAYIT LİSTESİ'!$B$4:$H$664,2,0))) ->  | L18: =IF(ISERROR(VLOOKUP(J18,'KAYIT LİSTESİ'!$B$4:$H$664,4,0)),"",(VLOOKUP(J18,'KAYIT LİSTESİ'!$B$4:$H$664,4,0))) ->  | M18: =IF(ISERROR(VLOOKUP(J18,'KAYIT LİSTESİ'!$B$4:$H$664,5,0)),"",(VLOOKUP(J18,'KAYIT LİSTESİ'!$B$4:$H$664,5,0))) ->  | N18: =IF(ISERROR(VLOOKUP(J18,'KAYIT LİSTESİ'!$B$4:$H$664,6,0)),"",(VLOOKUP(J18,'KAYIT LİSTESİ'!$B$4:$H$664,6,0))) ->  | O18: =IF(IF(OR(P18="NM",P18="DNF",P18="DNS",P18="DQ",P18=""),P18,(ROUNDUP(P18,)+24))=0," ",IF(OR(P18="NM",P18="DNF",P18="DNS",P18="DQ",P18=""),P18,(ROUNDUP(P18,)+24))) -> 
A19: 12 | G19: =IF(ISTEXT(F19),0,IFERROR(VLOOKUP(SMALL(#REF!,COUNTIF(#REF!,"<"&F19)+1),#REF!, 2,0)," ")) ->  | I19: 2 | J19: 100M.ENG-2-2 | K19: =IF(ISERROR(VLOOKUP(J19,'KAYIT LİSTESİ'!$B$4:$H$664,2,0)),"",(VLOOKUP(J19,'KAYIT LİSTESİ'!$B$4:$H$664,2,0))) ->  | L19: =IF(ISERROR(VLOOKUP(J19,'KAYIT LİSTESİ'!$B$4:$H$664,4,0)),"",(VLOOKUP(J19,'KAYIT LİSTESİ'!$B$4:$H$664,4,0))) ->  | M19: =IF(ISERROR(VLOOKUP(J19,'KAYIT LİSTESİ'!$B$4:$H$664,5,0)),"",(VLOOKUP(J19,'KAYIT LİSTESİ'!$B$4:$H$664,5,0))) ->  | N19: =IF(ISERROR(VLOOKUP(J19,'KAYIT LİSTESİ'!$B$4:$H$664,6,0)),"",(VLOOKUP(J19,'KAYIT LİSTESİ'!$B$4:$H$664,6,0))) -> 
A20: 13 | G20: =IF(ISTEXT(F20),0,IFERROR(VLOOKUP(SMALL(#REF!,COUNTIF(#REF!,"<"&F20)+1),#REF!, 2,0)," ")) ->  | I20: 3 | J20: 100M.ENG-2-3 | K20: =IF(ISERROR(VLOOKUP(J20,'KAYIT LİSTESİ'!$B$4:$H$664,2,0)),"",(VLOOKUP(J20,'KAYIT LİSTESİ'!$B$4:$H$664,2,0))) ->  | L20: =IF(ISERROR(VLOOKUP(J20,'KAYIT LİSTESİ'!$B$4:$H$664,4,0)),"",(VLOOKUP(J20,'KAYIT LİSTESİ'!$B$4:$H$664,4,0))) ->  | M20: =IF(ISERROR(VLOOKUP(J20,'KAYIT LİSTESİ'!$B$4:$H$664,5,0)),"",(VLOOKUP(J20,'KAYIT LİSTESİ'!$B$4:$H$664,5,0))) ->  | N20: =IF(ISERROR(VLOOKUP(J20,'KAYIT LİSTESİ'!$B$4:$H$664,6,0)),"",(VLOOKUP(J20,'KAYIT LİSTESİ'!$B$4:$H$664,6,0))) -> 
A21: 14 | G21: =IF(ISTEXT(F21),0,IFERROR(VLOOKUP(SMALL(#REF!,COUNTIF(#REF!,"<"&F21)+1),#REF!, 2,0)," ")) ->  | I21: 4 | J21: 100M.ENG-2-4 | K21: =IF(ISERROR(VLOOKUP(J21,'KAYIT LİSTESİ'!$B$4:$H$664,2,0)),"",(VLOOKUP(J21,'KAYIT LİSTESİ'!$B$4:$H$664,2,0))) ->  | L21: =IF(ISERROR(VLOOKUP(J21,'KAYIT LİSTESİ'!$B$4:$H$664,4,0)),"",(VLOOKUP(J21,'KAYIT LİSTESİ'!$B$4:$H$664,4,0))) ->  | M21: =IF(ISERROR(VLOOKUP(J21,'KAYIT LİSTESİ'!$B$4:$H$664,5,0)),"",(VLOOKUP(J21,'KAYIT LİSTESİ'!$B$4:$H$664,5,0))) ->  | N21: =IF(ISERROR(VLOOKUP(J21,'KAYIT LİSTESİ'!$B$4:$H$664,6,0)),"",(VLOOKUP(J21,'KAYIT LİSTESİ'!$B$4:$H$664,6,0))) -> 
A22: 15 | G22: =IF(ISTEXT(F22),0,IFERROR(VLOOKUP(SMALL(#REF!,COUNTIF(#REF!,"<"&F22)+1),#REF!, 2,0)," ")) ->  | I22: 5 | J22: 100M.ENG-2-5 | K22: =IF(ISERROR(VLOOKUP(J22,'KAYIT LİSTESİ'!$B$4:$H$664,2,0)),"",(VLOOKUP(J22,'KAYIT LİSTESİ'!$B$4:$H$664,2,0))) ->  | L22: =IF(ISERROR(VLOOKUP(J22,'KAYIT LİSTESİ'!$B$4:$H$664,4,0)),"",(VLOOKUP(J22,'KAYIT LİSTESİ'!$B$4:$H$664,4,0))) ->  | M22: =IF(ISERROR(VLOOKUP(J22,'KAYIT LİSTESİ'!$B$4:$H$664,5,0)),"",(VLOOKUP(J22,'KAYIT LİSTESİ'!$B$4:$H$664,5,0))) ->  | N22: =IF(ISERROR(VLOOKUP(J22,'KAYIT LİSTESİ'!$B$4:$H$664,6,0)),"",(VLOOKUP(J22,'KAYIT LİSTESİ'!$B$4:$H$664,6,0))) -> 
A23: 16 | G23: =IF(ISTEXT(F23),0,IFERROR(VLOOKUP(SMALL(#REF!,COUNTIF(#REF!,"<"&F23)+1),#REF!, 2,0)," ")) ->  | I23: 6 | J23: 100M.ENG-2-6 | K23: =IF(ISERROR(VLOOKUP(J23,'KAYIT LİSTESİ'!$B$4:$H$664,2,0)),"",(VLOOKUP(J23,'KAYIT LİSTESİ'!$B$4:$H$664,2,0))) ->  | L23: =IF(ISERROR(VLOOKUP(J23,'KAYIT LİSTESİ'!$B$4:$H$664,4,0)),"",(VLOOKUP(J23,'KAYIT LİSTESİ'!$B$4:$H$664,4,0))) ->  | M23: =IF(ISERROR(VLOOKUP(J23,'KAYIT LİSTESİ'!$B$4:$H$664,5,0)),"",(VLOOKUP(J23,'KAYIT LİSTESİ'!$B$4:$H$664,5,0))) ->  | N23: =IF(ISERROR(VLOOKUP(J23,'KAYIT LİSTESİ'!$B$4:$H$664,6,0)),"",(VLOOKUP(J23,'KAYIT LİSTESİ'!$B$4:$H$664,6,0))) -> 
A24: 17 | G24: =IF(ISTEXT(F24),0,IFERROR(VLOOKUP(SMALL(#REF!,COUNTIF(#REF!,"<"&F24)+1),#REF!, 2,0)," ")) ->  | I24: 7 | J24: 100M.ENG-2-7 | K24: =IF(ISERROR(VLOOKUP(J24,'KAYIT LİSTESİ'!$B$4:$H$664,2,0)),"",(VLOOKUP(J24,'KAYIT LİSTESİ'!$B$4:$H$664,2,0))) ->  | L24: =IF(ISERROR(VLOOKUP(J24,'KAYIT LİSTESİ'!$B$4:$H$664,4,0)),"",(VLOOKUP(J24,'KAYIT LİSTESİ'!$B$4:$H$664,4,0))) ->  | M24: =IF(ISERROR(VLOOKUP(J24,'KAYIT LİSTESİ'!$B$4:$H$664,5,0)),"",(VLOOKUP(J24,'KAYIT LİSTESİ'!$B$4:$H$664,5,0))) ->  | N24: =IF(ISERROR(VLOOKUP(J24,'KAYIT LİSTESİ'!$B$4:$H$664,6,0)),"",(VLOOKUP(J24,'KAYIT LİSTESİ'!$B$4:$H$664,6,0))) -> 
A25: 18 | G25: =IF(ISTEXT(F25),0,IFERROR(VLOOKUP(SMALL(#REF!,COUNTIF(#REF!,"<"&F25)+1),#REF!, 2,0)," ")) ->  | I25: 8 | J25: 100M.ENG-2-8 | K25: =IF(ISERROR(VLOOKUP(J25,'KAYIT LİSTESİ'!$B$4:$H$664,2,0)),"",(VLOOKUP(J25,'KAYIT LİSTESİ'!$B$4:$H$664,2,0))) ->  | L25: =IF(ISERROR(VLOOKUP(J25,'KAYIT LİSTESİ'!$B$4:$H$664,4,0)),"",(VLOOKUP(J25,'KAYIT LİSTESİ'!$B$4:$H$664,4,0))) ->  | M25: =IF(ISERROR(VLOOKUP(J25,'KAYIT LİSTESİ'!$B$4:$H$664,5,0)),"",(VLOOKUP(J25,'KAYIT LİSTESİ'!$B$4:$H$664,5,0))) ->  | N25: =IF(ISERROR(VLOOKUP(J25,'KAYIT LİSTESİ'!$B$4:$H$664,6,0)),"",(VLOOKUP(J25,'KAYIT LİSTESİ'!$B$4:$H$664,6,0))) -> 
A26: 19 | G26: =IF(ISTEXT(F26),0,IFERROR(VLOOKUP(SMALL(#REF!,COUNTIF(#REF!,"<"&F26)+1),#REF!, 2,0)," ")) ->  | I26: 3. SERİ | M26: Rüzgar:
A27: 20 | G27: =IF(ISTEXT(F27),0,IFERROR(VLOOKUP(SMALL(#REF!,COUNTIF(#REF!,"<"&F27)+1),#REF!, 2,0)," ")) ->  | I27: Sıra No | J27: Formül | K27: Göğüs No | L27: Doğum Tarihi | M27: Adı ve Soyadı | N27: İli-Okulu | O27: Elektronik Kronometre | P27: El Kronometre | Q27: Seri Geliş
A28: 21 | G28: =IF(ISTEXT(F28),0,IFERROR(VLOOKUP(SMALL(#REF!,COUNTIF(#REF!,"<"&F28)+1),#REF!, 2,0)," ")) ->  | I28: 1 | J28: 100M.ENG-3-1 | K28: =IF(ISERROR(VLOOKUP(J28,'KAYIT LİSTESİ'!$B$4:$H$664,2,0)),"",(VLOOKUP(J28,'KAYIT LİSTESİ'!$B$4:$H$664,2,0))) ->  | L28: =IF(ISERROR(VLOOKUP(J28,'KAYIT LİSTESİ'!$B$4:$H$664,4,0)),"",(VLOOKUP(J28,'KAYIT LİSTESİ'!$B$4:$H$664,4,0))) ->  | M28: =IF(ISERROR(VLOOKUP(J28,'KAYIT LİSTESİ'!$B$4:$H$664,5,0)),"",(VLOOKUP(J28,'KAYIT LİSTESİ'!$B$4:$H$664,5,0))) ->  | N28: =IF(ISERROR(VLOOKUP(J28,'KAYIT LİSTESİ'!$B$4:$H$664,6,0)),"",(VLOOKUP(J28,'KAYIT LİSTESİ'!$B$4:$H$664,6,0))) ->  | O28: =IF(IF(OR(P28="NM",P28="DNF",P28="DNS",P28="DQ",P28=""),P28,(ROUNDUP(P28,)+24))=0," ",IF(OR(P28="NM",P28="DNF",P28="DNS",P28="DQ",P28=""),P28,(ROUNDUP(P28,)+24))) -> 
A29: 22 | G29: =IF(ISTEXT(F29),0,IFERROR(VLOOKUP(SMALL(#REF!,COUNTIF(#REF!,"<"&F29)+1),#REF!, 2,0)," ")) ->  | I29: 2 | J29: 100M.ENG-3-2 | K29: =IF(ISERROR(VLOOKUP(J29,'KAYIT LİSTESİ'!$B$4:$H$664,2,0)),"",(VLOOKUP(J29,'KAYIT LİSTESİ'!$B$4:$H$664,2,0))) ->  | L29: =IF(ISERROR(VLOOKUP(J29,'KAYIT LİSTESİ'!$B$4:$H$664,4,0)),"",(VLOOKUP(J29,'KAYIT LİSTESİ'!$B$4:$H$664,4,0))) ->  | M29: =IF(ISERROR(VLOOKUP(J29,'KAYIT LİSTESİ'!$B$4:$H$664,5,0)),"",(VLOOKUP(J29,'KAYIT LİSTESİ'!$B$4:$H$664,5,0))) ->  | N29: =IF(ISERROR(VLOOKUP(J29,'KAYIT LİSTESİ'!$B$4:$H$664,6,0)),"",(VLOOKUP(J29,'KAYIT LİSTESİ'!$B$4:$H$664,6,0))) -> 
A30: 23 | G30: =IF(ISTEXT(F30),0,IFERROR(VLOOKUP(SMALL(#REF!,COUNTIF(#REF!,"<"&F30)+1),#REF!, 2,0)," ")) ->  | I30: 3 | J30: 100M.ENG-3-3 | K30: =IF(ISERROR(VLOOKUP(J30,'KAYIT LİSTESİ'!$B$4:$H$664,2,0)),"",(VLOOKUP(J30,'KAYIT LİSTESİ'!$B$4:$H$664,2,0))) ->  | L30: =IF(ISERROR(VLOOKUP(J30,'KAYIT LİSTESİ'!$B$4:$H$664,4,0)),"",(VLOOKUP(J30,'KAYIT LİSTESİ'!$B$4:$H$664,4,0))) ->  | M30: =IF(ISERROR(VLOOKUP(J30,'KAYIT LİSTESİ'!$B$4:$H$664,5,0)),"",(VLOOKUP(J30,'KAYIT LİSTESİ'!$B$4:$H$664,5,0))) ->  | N30: =IF(ISERROR(VLOOKUP(J30,'KAYIT LİSTESİ'!$B$4:$H$664,6,0)),"",(VLOOKUP(J30,'KAYIT LİSTESİ'!$B$4:$H$664,6,0))) -> 
A31: 24 | G31: =IF(ISTEXT(F31),0,IFERROR(VLOOKUP(SMALL(#REF!,COUNTIF(#REF!,"<"&F31)+1),#REF!, 2,0)," ")) ->  | I31: 4 | J31: 100M.ENG-3-4 | K31: =IF(ISERROR(VLOOKUP(J31,'KAYIT LİSTESİ'!$B$4:$H$664,2,0)),"",(VLOOKUP(J31,'KAYIT LİSTESİ'!$B$4:$H$664,2,0))) ->  | L31: =IF(ISERROR(VLOOKUP(J31,'KAYIT LİSTESİ'!$B$4:$H$664,4,0)),"",(VLOOKUP(J31,'KAYIT LİSTESİ'!$B$4:$H$664,4,0))) ->  | M31: =IF(ISERROR(VLOOKUP(J31,'KAYIT LİSTESİ'!$B$4:$H$664,5,0)),"",(VLOOKUP(J31,'KAYIT LİSTESİ'!$B$4:$H$664,5,0))) ->  | N31: =IF(ISERROR(VLOOKUP(J31,'KAYIT LİSTESİ'!$B$4:$H$664,6,0)),"",(VLOOKUP(J31,'KAYIT LİSTESİ'!$B$4:$H$664,6,0))) -> 
A32: 25 | G32: =IF(ISTEXT(F32),0,IFERROR(VLOOKUP(SMALL(#REF!,COUNTIF(#REF!,"<"&F32)+1),#REF!, 2,0)," ")) ->  | I32: 5 | J32: 100M.ENG-3-5 | K32: =IF(ISERROR(VLOOKUP(J32,'KAYIT LİSTESİ'!$B$4:$H$664,2,0)),"",(VLOOKUP(J32,'KAYIT LİSTESİ'!$B$4:$H$664,2,0))) ->  | L32: =IF(ISERROR(VLOOKUP(J32,'KAYIT LİSTESİ'!$B$4:$H$664,4,0)),"",(VLOOKUP(J32,'KAYIT LİSTESİ'!$B$4:$H$664,4,0))) ->  | M32: =IF(ISERROR(VLOOKUP(J32,'KAYIT LİSTESİ'!$B$4:$H$664,5,0)),"",(VLOOKUP(J32,'KAYIT LİSTESİ'!$B$4:$H$664,5,0))) ->  | N32: =IF(ISERROR(VLOOKUP(J32,'KAYIT LİSTESİ'!$B$4:$H$664,6,0)),"",(VLOOKUP(J32,'KAYIT LİSTESİ'!$B$4:$H$664,6,0))) -> 
A33: 26 | G33: =IF(ISTEXT(F33),0,IFERROR(VLOOKUP(SMALL(#REF!,COUNTIF(#REF!,"<"&F33)+1),#REF!, 2,0)," ")) ->  | I33: 6 | J33: 100M.ENG-3-6 | K33: =IF(ISERROR(VLOOKUP(J33,'KAYIT LİSTESİ'!$B$4:$H$664,2,0)),"",(VLOOKUP(J33,'KAYIT LİSTESİ'!$B$4:$H$664,2,0))) ->  | L33: =IF(ISERROR(VLOOKUP(J33,'KAYIT LİSTESİ'!$B$4:$H$664,4,0)),"",(VLOOKUP(J33,'KAYIT LİSTESİ'!$B$4:$H$664,4,0))) ->  | M33: =IF(ISERROR(VLOOKUP(J33,'KAYIT LİSTESİ'!$B$4:$H$664,5,0)),"",(VLOOKUP(J33,'KAYIT LİSTESİ'!$B$4:$H$664,5,0))) ->  | N33: =IF(ISERROR(VLOOKUP(J33,'KAYIT LİSTESİ'!$B$4:$H$664,6,0)),"",(VLOOKUP(J33,'KAYIT LİSTESİ'!$B$4:$H$664,6,0))) -> 
A34: 27 | G34: =IF(ISTEXT(F34),0,IFERROR(VLOOKUP(SMALL(#REF!,COUNTIF(#REF!,"<"&F34)+1),#REF!, 2,0)," ")) ->  | I34: 7 | J34: 100M.ENG-3-7 | K34: =IF(ISERROR(VLOOKUP(J34,'KAYIT LİSTESİ'!$B$4:$H$664,2,0)),"",(VLOOKUP(J34,'KAYIT LİSTESİ'!$B$4:$H$664,2,0))) ->  | L34: =IF(ISERROR(VLOOKUP(J34,'KAYIT LİSTESİ'!$B$4:$H$664,4,0)),"",(VLOOKUP(J34,'KAYIT LİSTESİ'!$B$4:$H$664,4,0))) ->  | M34: =IF(ISERROR(VLOOKUP(J34,'KAYIT LİSTESİ'!$B$4:$H$664,5,0)),"",(VLOOKUP(J34,'KAYIT LİSTESİ'!$B$4:$H$664,5,0))) ->  | N34: =IF(ISERROR(VLOOKUP(J34,'KAYIT LİSTESİ'!$B$4:$H$664,6,0)),"",(VLOOKUP(J34,'KAYIT LİSTESİ'!$B$4:$H$664,6,0))) -> 
A35: 28 | G35: =IF(ISTEXT(F35),0,IFERROR(VLOOKUP(SMALL(#REF!,COUNTIF(#REF!,"<"&F35)+1),#REF!, 2,0)," ")) ->  | I35: 8 | J35: 100M.ENG-3-8 | K35: =IF(ISERROR(VLOOKUP(J35,'KAYIT LİSTESİ'!$B$4:$H$664,2,0)),"",(VLOOKUP(J35,'KAYIT LİSTESİ'!$B$4:$H$664,2,0))) ->  | L35: =IF(ISERROR(VLOOKUP(J35,'KAYIT LİSTESİ'!$B$4:$H$664,4,0)),"",(VLOOKUP(J35,'KAYIT LİSTESİ'!$B$4:$H$664,4,0))) ->  | M35: =IF(ISERROR(VLOOKUP(J35,'KAYIT LİSTESİ'!$B$4:$H$664,5,0)),"",(VLOOKUP(J35,'KAYIT LİSTESİ'!$B$4:$H$664,5,0))) ->  | N35: =IF(ISERROR(VLOOKUP(J35,'KAYIT LİSTESİ'!$B$4:$H$664,6,0)),"",(VLOOKUP(J35,'KAYIT LİSTESİ'!$B$4:$H$664,6,0))) -> 
A36: 29 | G36: =IF(ISTEXT(F36),0,IFERROR(VLOOKUP(SMALL(#REF!,COUNTIF(#REF!,"<"&F36)+1),#REF!, 2,0)," ")) ->  | I36: 4. SERİ | M36: Rüzgar:
A37: 30 | G37: =IF(ISTEXT(F37),0,IFERROR(VLOOKUP(SMALL(#REF!,COUNTIF(#REF!,"<"&F37)+1),#REF!, 2,0)," ")) ->  | I37: Sıra No | J37: Formül | K37: Göğüs No | L37: Doğum Tarihi | M37: Adı ve Soyadı | N37: İli-Okulu | O37: Elektronik Kronometre | P37: El Kronometre | Q37: Seri Geliş
A38: 31 | G38: =IF(ISTEXT(F38),0,IFERROR(VLOOKUP(SMALL(#REF!,COUNTIF(#REF!,"<"&F38)+1),#REF!, 2,0)," ")) ->  | I38: 1 | J38: 100M.ENG-4-1 | K38: =IF(ISERROR(VLOOKUP(J38,'KAYIT LİSTESİ'!$B$4:$H$664,2,0)),"",(VLOOKUP(J38,'KAYIT LİSTESİ'!$B$4:$H$664,2,0))) ->  | L38: =IF(ISERROR(VLOOKUP(J38,'KAYIT LİSTESİ'!$B$4:$H$664,4,0)),"",(VLOOKUP(J38,'KAYIT LİSTESİ'!$B$4:$H$664,4,0))) ->  | M38: =IF(ISERROR(VLOOKUP(J38,'KAYIT LİSTESİ'!$B$4:$H$664,5,0)),"",(VLOOKUP(J38,'KAYIT LİSTESİ'!$B$4:$H$664,5,0))) ->  | N38: =IF(ISERROR(VLOOKUP(J38,'KAYIT LİSTESİ'!$B$4:$H$664,6,0)),"",(VLOOKUP(J38,'KAYIT LİSTESİ'!$B$4:$H$664,6,0))) -> 
A39: 32 | G39: =IF(ISTEXT(F39),0,IFERROR(VLOOKUP(SMALL(#REF!,COUNTIF(#REF!,"<"&F39)+1),#REF!, 2,0)," ")) ->  | I39: 2 | J39: 100M.ENG-4-2 | K39: =IF(ISERROR(VLOOKUP(J39,'KAYIT LİSTESİ'!$B$4:$H$664,2,0)),"",(VLOOKUP(J39,'KAYIT LİSTESİ'!$B$4:$H$664,2,0))) ->  | L39: =IF(ISERROR(VLOOKUP(J39,'KAYIT LİSTESİ'!$B$4:$H$664,4,0)),"",(VLOOKUP(J39,'KAYIT LİSTESİ'!$B$4:$H$664,4,0))) ->  | M39: =IF(ISERROR(VLOOKUP(J39,'KAYIT LİSTESİ'!$B$4:$H$664,5,0)),"",(VLOOKUP(J39,'KAYIT LİSTESİ'!$B$4:$H$664,5,0))) ->  | N39: =IF(ISERROR(VLOOKUP(J39,'KAYIT LİSTESİ'!$B$4:$H$664,6,0)),"",(VLOOKUP(J39,'KAYIT LİSTESİ'!$B$4:$H$664,6,0))) -> 
A40: 33 | G40: =IF(ISTEXT(F40),0,IFERROR(VLOOKUP(SMALL(#REF!,COUNTIF(#REF!,"<"&F40)+1),#REF!, 2,0)," ")) ->  | I40: 3 | J40: 100M.ENG-4-3 | K40: =IF(ISERROR(VLOOKUP(J40,'KAYIT LİSTESİ'!$B$4:$H$664,2,0)),"",(VLOOKUP(J40,'KAYIT LİSTESİ'!$B$4:$H$664,2,0))) ->  | L40: =IF(ISERROR(VLOOKUP(J40,'KAYIT LİSTESİ'!$B$4:$H$664,4,0)),"",(VLOOKUP(J40,'KAYIT LİSTESİ'!$B$4:$H$664,4,0))) ->  | M40: =IF(ISERROR(VLOOKUP(J40,'KAYIT LİSTESİ'!$B$4:$H$664,5,0)),"",(VLOOKUP(J40,'KAYIT LİSTESİ'!$B$4:$H$664,5,0))) ->  | N40: =IF(ISERROR(VLOOKUP(J40,'KAYIT LİSTESİ'!$B$4:$H$664,6,0)),"",(VLOOKUP(J40,'KAYIT LİSTESİ'!$B$4:$H$664,6,0))) -> 
A41: 34 | G41: =IF(ISTEXT(F41),0,IFERROR(VLOOKUP(SMALL(#REF!,COUNTIF(#REF!,"<"&F41)+1),#REF!, 2,0)," ")) ->  | I41: 4 | J41: 100M.ENG-4-4 | K41: =IF(ISERROR(VLOOKUP(J41,'KAYIT LİSTESİ'!$B$4:$H$664,2,0)),"",(VLOOKUP(J41,'KAYIT LİSTESİ'!$B$4:$H$664,2,0))) ->  | L41: =IF(ISERROR(VLOOKUP(J41,'KAYIT LİSTESİ'!$B$4:$H$664,4,0)),"",(VLOOKUP(J41,'KAYIT LİSTESİ'!$B$4:$H$664,4,0))) ->  | M41: =IF(ISERROR(VLOOKUP(J41,'KAYIT LİSTESİ'!$B$4:$H$664,5,0)),"",(VLOOKUP(J41,'KAYIT LİSTESİ'!$B$4:$H$664,5,0))) ->  | N41: =IF(ISERROR(VLOOKUP(J41,'KAYIT LİSTESİ'!$B$4:$H$664,6,0)),"",(VLOOKUP(J41,'KAYIT LİSTESİ'!$B$4:$H$664,6,0))) -> 
A42: 35 | G42: =IF(ISTEXT(F42),0,IFERROR(VLOOKUP(SMALL(#REF!,COUNTIF(#REF!,"<"&F42)+1),#REF!, 2,0)," ")) ->  | I42: 5 | J42: 100M.ENG-4-5 | K42: =IF(ISERROR(VLOOKUP(J42,'KAYIT LİSTESİ'!$B$4:$H$664,2,0)),"",(VLOOKUP(J42,'KAYIT LİSTESİ'!$B$4:$H$664,2,0))) ->  | L42: =IF(ISERROR(VLOOKUP(J42,'KAYIT LİSTESİ'!$B$4:$H$664,4,0)),"",(VLOOKUP(J42,'KAYIT LİSTESİ'!$B$4:$H$664,4,0))) ->  | M42: =IF(ISERROR(VLOOKUP(J42,'KAYIT LİSTESİ'!$B$4:$H$664,5,0)),"",(VLOOKUP(J42,'KAYIT LİSTESİ'!$B$4:$H$664,5,0))) ->  | N42: =IF(ISERROR(VLOOKUP(J42,'KAYIT LİSTESİ'!$B$4:$H$664,6,0)),"",(VLOOKUP(J42,'KAYIT LİSTESİ'!$B$4:$H$664,6,0))) -> 
A43: 36 | G43: =IF(ISTEXT(F43),0,IFERROR(VLOOKUP(SMALL(#REF!,COUNTIF(#REF!,"<"&F43)+1),#REF!, 2,0)," ")) ->  | I43: 6 | J43: 100M.ENG-4-6 | K43: =IF(ISERROR(VLOOKUP(J43,'KAYIT LİSTESİ'!$B$4:$H$664,2,0)),"",(VLOOKUP(J43,'KAYIT LİSTESİ'!$B$4:$H$664,2,0))) ->  | L43: =IF(ISERROR(VLOOKUP(J43,'KAYIT LİSTESİ'!$B$4:$H$664,4,0)),"",(VLOOKUP(J43,'KAYIT LİSTESİ'!$B$4:$H$664,4,0))) ->  | M43: =IF(ISERROR(VLOOKUP(J43,'KAYIT LİSTESİ'!$B$4:$H$664,5,0)),"",(VLOOKUP(J43,'KAYIT LİSTESİ'!$B$4:$H$664,5,0))) ->  | N43: =IF(ISERROR(VLOOKUP(J43,'KAYIT LİSTESİ'!$B$4:$H$664,6,0)),"",(VLOOKUP(J43,'KAYIT LİSTESİ'!$B$4:$H$664,6,0))) -> 
A44: 37 | G44: =IF(ISTEXT(F44),0,IFERROR(VLOOKUP(SMALL(#REF!,COUNTIF(#REF!,"<"&F44)+1),#REF!, 2,0)," ")) ->  | I44: 7 | J44: 100M.ENG-4-7 | K44: =IF(ISERROR(VLOOKUP(J44,'KAYIT LİSTESİ'!$B$4:$H$664,2,0)),"",(VLOOKUP(J44,'KAYIT LİSTESİ'!$B$4:$H$664,2,0))) ->  | L44: =IF(ISERROR(VLOOKUP(J44,'KAYIT LİSTESİ'!$B$4:$H$664,4,0)),"",(VLOOKUP(J44,'KAYIT LİSTESİ'!$B$4:$H$664,4,0))) ->  | M44: =IF(ISERROR(VLOOKUP(J44,'KAYIT LİSTESİ'!$B$4:$H$664,5,0)),"",(VLOOKUP(J44,'KAYIT LİSTESİ'!$B$4:$H$664,5,0))) ->  | N44: =IF(ISERROR(VLOOKUP(J44,'KAYIT LİSTESİ'!$B$4:$H$664,6,0)),"",(VLOOKUP(J44,'KAYIT LİSTESİ'!$B$4:$H$664,6,0))) -> 
A45: 38 | G45: =IF(ISTEXT(F45),0,IFERROR(VLOOKUP(SMALL(#REF!,COUNTIF(#REF!,"<"&F45)+1),#REF!, 2,0)," ")) ->  | I45: 8 | J45: 100M.ENG-4-8 | K45: =IF(ISERROR(VLOOKUP(J45,'KAYIT LİSTESİ'!$B$4:$H$664,2,0)),"",(VLOOKUP(J45,'KAYIT LİSTESİ'!$B$4:$H$664,2,0))) ->  | L45: =IF(ISERROR(VLOOKUP(J45,'KAYIT LİSTESİ'!$B$4:$H$664,4,0)),"",(VLOOKUP(J45,'KAYIT LİSTESİ'!$B$4:$H$664,4,0))) ->  | M45: =IF(ISERROR(VLOOKUP(J45,'KAYIT LİSTESİ'!$B$4:$H$664,5,0)),"",(VLOOKUP(J45,'KAYIT LİSTESİ'!$B$4:$H$664,5,0))) ->  | N45: =IF(ISERROR(VLOOKUP(J45,'KAYIT LİSTESİ'!$B$4:$H$664,6,0)),"",(VLOOKUP(J45,'KAYIT LİSTESİ'!$B$4:$H$664,6,0))) -> 
A47: Müsabakalar Direktörü | E47: Baş Hakem | F47: Lider | H47: Sekreter | M47: Hakem | N47: Hakem | P47: Hakem

Sheet 10000M.
A1: =('YARIŞMA BİLGİLERİ'!A2) -> Türkiye Atletizm Federasyonu Mersin Atletizm İl Temsilciliği
A2: ='YARIŞMA BİLGİLERİ'!F19 -> Olimpik Baraj Yarışmaları
A3: Yarışma : | D3: =#REF! ->  | F3: Baraj Derecesi | H3: : | I3: =#REF! -> 
A4: Kategori : | D4: ='YARIŞMA BİLGİLERİ'!F21 -> Kadınlar | M4: Tarih-Saat : | N4: =#REF! -> 
N5: =NOW() -> 42222.53664
A6: Sıra No | B6: Göğüs No | C6: Doğum Tarihi Gün/Ay/Yıl | D6: Adı ve Soyadı | E6: İli-Okulu | F6: Derece | G6: Puan | I6: 1. SERİ
I7: Sıra No | J7: Formül | K7: Göğüs No | L7: Doğum Tarihi | M7: Adı ve Soyadı | N7: İli-Okulu | O7: Elektronik Kronometre | P7: El Kronometre | Q7: Seri Geliş
A8: 1 | G8: =IF(ISTEXT(F8),0,IFERROR(VLOOKUP(SMALL(#REF!,COUNTIF(#REF!,"<"&F8)+1),#REF!, 2,0)," ")) ->  | I8: 1 | J8: 10000M-1-1 | K8: =IF(ISERROR(VLOOKUP(J8,'KAYIT LİSTESİ'!$B$4:$H$664,2,0)),"",(VLOOKUP(J8,'KAYIT LİSTESİ'!$B$4:$H$664,2,0))) ->  | L8: =IF(ISERROR(VLOOKUP(J8,'KAYIT LİSTESİ'!$B$4:$H$664,4,0)),"",(VLOOKUP(J8,'KAYIT LİSTESİ'!$B$4:$H$664,4,0))) ->  | M8: =IF(ISERROR(VLOOKUP(J8,'KAYIT LİSTESİ'!$B$4:$H$664,5,0)),"",(VLOOKUP(J8,'KAYIT LİSTESİ'!$B$4:$H$664,5,0))) ->  | N8: =IF(ISERROR(VLOOKUP(J8,'KAYIT LİSTESİ'!$B$4:$H$664,6,0)),"",(VLOOKUP(J8,'KAYIT LİSTESİ'!$B$4:$H$664,6,0))) ->  | O8: =IF(IF(OR(P8="NM",P8="DNF",P8="DNS",P8="DQ",P8=""),P8,(ROUNDUP(P8,)+24))=0," ",IF(OR(P8="NM",P8="DNF",P8="DNS",P8="DQ",P8=""),P8,(ROUNDUP(P8,)+24))) -> 
A9: 2 | G9: =IF(ISTEXT(F9),0,IFERROR(VLOOKUP(SMALL(#REF!,COUNTIF(#REF!,"<"&F9)+1),#REF!, 2,0)," ")) ->  | I9: 2 | J9: 10000M-1-2 | K9: =IF(ISERROR(VLOOKUP(J9,'KAYIT LİSTESİ'!$B$4:$H$664,2,0)),"",(VLOOKUP(J9,'KAYIT LİSTESİ'!$B$4:$H$664,2,0))) -> 616 | L9: =IF(ISERROR(VLOOKUP(J9,'KAYIT LİSTESİ'!$B$4:$H$664,4,0)),"",(VLOOKUP(J9,'KAYIT LİSTESİ'!$B$4:$H$664,4,0))) -> 1995-12-06 | M9: =IF(ISERROR(VLOOKUP(J9,'KAYIT LİSTESİ'!$B$4:$H$664,5,0)),"",(VLOOKUP(J9,'KAYIT LİSTESİ'!$B$4:$H$664,5,0))) -> SABAHAT AKPINAR | N9: =IF(ISERROR(VLOOKUP(J9,'KAYIT LİSTESİ'!$B$4:$H$664,6,0)),"",(VLOOKUP(J9,'KAYIT LİSTESİ'!$B$4:$H$664,6,0))) -> HATAY
A10: 3 | G10: =IF(ISTEXT(F10),0,IFERROR(VLOOKUP(SMALL(#REF!,COUNTIF(#REF!,"<"&F10)+1),#REF!, 2,0)," ")) ->  | I10: 3 | J10: 10000M-1-3 | K10: =IF(ISERROR(VLOOKUP(J10,'KAYIT LİSTESİ'!$B$4:$H$664,2,0)),"",(VLOOKUP(J10,'KAYIT LİSTESİ'!$B$4:$H$664,2,0))) ->  | L10: =IF(ISERROR(VLOOKUP(J10,'KAYIT LİSTESİ'!$B$4:$H$664,4,0)),"",(VLOOKUP(J10,'KAYIT LİSTESİ'!$B$4:$H$664,4,0))) ->  | M10: =IF(ISERROR(VLOOKUP(J10,'KAYIT LİSTESİ'!$B$4:$H$664,5,0)),"",(VLOOKUP(J10,'KAYIT LİSTESİ'!$B$4:$H$664,5,0))) ->  | N10: =IF(ISERROR(VLOOKUP(J10,'KAYIT LİSTESİ'!$B$4:$H$664,6,0)),"",(VLOOKUP(J10,'KAYIT LİSTESİ'!$B$4:$H$664,6,0))) -> 
A11: 4 | G11: =IF(ISTEXT(F11),0,IFERROR(VLOOKUP(SMALL(#REF!,COUNTIF(#REF!,"<"&F11)+1),#REF!, 2,0)," ")) ->  | I11: 4 | J11: 10000M-1-4 | K11: =IF(ISERROR(VLOOKUP(J11,'KAYIT LİSTESİ'!$B$4:$H$664,2,0)),"",(VLOOKUP(J11,'KAYIT LİSTESİ'!$B$4:$H$664,2,0))) ->  | L11: =IF(ISERROR(VLOOKUP(J11,'KAYIT LİSTESİ'!$B$4:$H$664,4,0)),"",(VLOOKUP(J11,'KAYIT LİSTESİ'!$B$4:$H$664,4,0))) ->  | M11: =IF(ISERROR(VLOOKUP(J11,'KAYIT LİSTESİ'!$B$4:$H$664,5,0)),"",(VLOOKUP(J11,'KAYIT LİSTESİ'!$B$4:$H$664,5,0))) ->  | N11: =IF(ISERROR(VLOOKUP(J11,'KAYIT LİSTESİ'!$B$4:$H$664,6,0)),"",(VLOOKUP(J11,'KAYIT LİSTESİ'!$B$4:$H$664,6,0))) -> 
A12: 5 | G12: =IF(ISTEXT(F12),0,IFERROR(VLOOKUP(SMALL(#REF!,COUNTIF(#REF!,"<"&F12)+1),#REF!, 2,0)," ")) ->  | I12: 5 | J12: 10000M-1-5 | K12: =IF(ISERROR(VLOOKUP(J12,'KAYIT LİSTESİ'!$B$4:$H$664,2,0)),"",(VLOOKUP(J12,'KAYIT LİSTESİ'!$B$4:$H$664,2,0))) ->  | L12: =IF(ISERROR(VLOOKUP(J12,'KAYIT LİSTESİ'!$B$4:$H$664,4,0)),"",(VLOOKUP(J12,'KAYIT LİSTESİ'!$B$4:$H$664,4,0))) ->  | M12: =IF(ISERROR(VLOOKUP(J12,'KAYIT LİSTESİ'!$B$4:$H$664,5,0)),"",(VLOOKUP(J12,'KAYIT LİSTESİ'!$B$4:$H$664,5,0))) ->  | N12: =IF(ISERROR(VLOOKUP(J12,'KAYIT LİSTESİ'!$B$4:$H$664,6,0)),"",(VLOOKUP(J12,'KAYIT LİSTESİ'!$B$4:$H$664,6,0))) -> 
A13: 6 | G13: =IF(ISTEXT(F13),0,IFERROR(VLOOKUP(SMALL(#REF!,COUNTIF(#REF!,"<"&F13)+1),#REF!, 2,0)," ")) ->  | I13: 6 | J13: 10000M-1-6 | K13: =IF(ISERROR(VLOOKUP(J13,'KAYIT LİSTESİ'!$B$4:$H$664,2,0)),"",(VLOOKUP(J13,'KAYIT LİSTESİ'!$B$4:$H$664,2,0))) ->  | L13: =IF(ISERROR(VLOOKUP(J13,'KAYIT LİSTESİ'!$B$4:$H$664,4,0)),"",(VLOOKUP(J13,'KAYIT LİSTESİ'!$B$4:$H$664,4,0))) ->  | M13: =IF(ISERROR(VLOOKUP(J13,'KAYIT LİSTESİ'!$B$4:$H$664,5,0)),"",(VLOOKUP(J13,'KAYIT LİSTESİ'!$B$4:$H$664,5,0))) ->  | N13: =IF(ISERROR(VLOOKUP(J13,'KAYIT LİSTESİ'!$B$4:$H$664,6,0)),"",(VLOOKUP(J13,'KAYIT LİSTESİ'!$B$4:$H$664,6,0))) -> 
A14: 7 | G14: =IF(ISTEXT(F14),0,IFERROR(VLOOKUP(SMALL(#REF!,COUNTIF(#REF!,"<"&F14)+1),#REF!, 2,0)," ")) ->  | I14: 7 | J14: 10000M-1-7 | K14: =IF(ISERROR(VLOOKUP(J14,'KAYIT LİSTESİ'!$B$4:$H$664,2,0)),"",(VLOOKUP(J14,'KAYIT LİSTESİ'!$B$4:$H$664,2,0))) ->  | L14: =IF(ISERROR(VLOOKUP(J14,'KAYIT LİSTESİ'!$B$4:$H$664,4,0)),"",(VLOOKUP(J14,'KAYIT LİSTESİ'!$B$4:$H$664,4,0))) ->  | M14: =IF(ISERROR(VLOOKUP(J14,'KAYIT LİSTESİ'!$B$4:$H$664,5,0)),"",(VLOOKUP(J14,'KAYIT LİSTESİ'!$B$4:$H$664,5,0))) ->  | N14: =IF(ISERROR(VLOOKUP(J14,'KAYIT LİSTESİ'!$B$4:$H$664,6,0)),"",(VLOOKUP(J14,'KAYIT LİSTESİ'!$B$4:$H$664,6,0))) -> 
A15: 8 | G15: =IF(ISTEXT(F15),0,IFERROR(VLOOKUP(SMALL(#REF!,COUNTIF(#REF!,"<"&F15)+1),#REF!, 2,0)," ")) ->  | I15: 8 | J15: 10000M-1-8 | K15: =IF(ISERROR(VLOOKUP(J15,'KAYIT LİSTESİ'!$B$4:$H$664,2,0)),"",(VLOOKUP(J15,'KAYIT LİSTESİ'!$B$4:$H$664,2,0))) ->  | L15: =IF(ISERROR(VLOOKUP(J15,'KAYIT LİSTESİ'!$B$4:$H$664,4,0)),"",(VLOOKUP(J15,'KAYIT LİSTESİ'!$B$4:$H$664,4,0))) ->  | M15: =IF(ISERROR(VLOOKUP(J15,'KAYIT LİSTESİ'!$B$4:$H$664,5,0)),"",(VLOOKUP(J15,'KAYIT LİSTESİ'!$B$4:$H$664,5,0))) ->  | N15: =IF(ISERROR(VLOOKUP(J15,'KAYIT LİSTESİ'!$B$4:$H$664,6,0)),"",(VLOOKUP(J15,'KAYIT LİSTESİ'!$B$4:$H$664,6,0))) -> 
A16: 9 | G16: =IF(ISTEXT(F16),0,IFERROR(VLOOKUP(SMALL(#REF!,COUNTIF(#REF!,"<"&F16)+1),#REF!, 2,0)," ")) ->  | I16: 2. SERİ
A17: 10 | G17: =IF(ISTEXT(F17),0,IFERROR(VLOOKUP(SMALL(#REF!,COUNTIF(#REF!,"<"&F17)+1),#REF!, 2,0)," ")) ->  | I17: Sıra No | J17: Formül | K17: Göğüs No | L17: Doğum Tarihi | M17: Adı ve Soyadı | N17: İli-Okulu | O17: Elektronik Kronometre | P17: El Kronometre | Q17: Seri Geliş
A18: 11 | G18: =IF(ISTEXT(F18),0,IFERROR(VLOOKUP(SMALL(#REF!,COUNTIF(#REF!,"<"&F18)+1),#REF!, 2,0)," ")) ->  | I18: 1 | J18: 400M-2-1 | K18: =IF(ISERROR(VLOOKUP(J18,'KAYIT LİSTESİ'!$B$4:$H$664,2,0)),"",(VLOOKUP(J18,'KAYIT LİSTESİ'!$B$4:$H$664,2,0))) ->  | L18: =IF(ISERROR(VLOOKUP(J18,'KAYIT LİSTESİ'!$B$4:$H$664,4,0)),"",(VLOOKUP(J18,'KAYIT LİSTESİ'!$B$4:$H$664,4,0))) ->  | M18: =IF(ISERROR(VLOOKUP(J18,'KAYIT LİSTESİ'!$B$4:$H$664,5,0)),"",(VLOOKUP(J18,'KAYIT LİSTESİ'!$B$4:$H$664,5,0))) ->  | N18: =IF(ISERROR(VLOOKUP(J18,'KAYIT LİSTESİ'!$B$4:$H$664,6,0)),"",(VLOOKUP(J18,'KAYIT LİSTESİ'!$B$4:$H$664,6,0))) ->  | O18: =IF(IF(OR(P18="NM",P18="DNF",P18="DNS",P18="DQ",P18=""),P18,(ROUNDUP(P18,)+24))=0," ",IF(OR(P18="NM",P18="DNF",P18="DNS",P18="DQ",P18=""),P18,(ROUNDUP(P18,)+24))) -> 
A19: 12 | G19: =IF(ISTEXT(F19),0,IFERROR(VLOOKUP(SMALL(#REF!,COUNTIF(#REF!,"<"&F19)+1),#REF!, 2,0)," ")) ->  | I19: 2 | J19: 400M-2-2 | K19: =IF(ISERROR(VLOOKUP(J19,'KAYIT LİSTESİ'!$B$4:$H$664,2,0)),"",(VLOOKUP(J19,'KAYIT LİSTESİ'!$B$4:$H$664,2,0))) ->  | L19: =IF(ISERROR(VLOOKUP(J19,'KAYIT LİSTESİ'!$B$4:$H$664,4,0)),"",(VLOOKUP(J19,'KAYIT LİSTESİ'!$B$4:$H$664,4,0))) ->  | M19: =IF(ISERROR(VLOOKUP(J19,'KAYIT LİSTESİ'!$B$4:$H$664,5,0)),"",(VLOOKUP(J19,'KAYIT LİSTESİ'!$B$4:$H$664,5,0))) ->  | N19: =IF(ISERROR(VLOOKUP(J19,'KAYIT LİSTESİ'!$B$4:$H$664,6,0)),"",(VLOOKUP(J19,'KAYIT LİSTESİ'!$B$4:$H$664,6,0))) -> 
A20: 13 | G20: =IF(ISTEXT(F20),0,IFERROR(VLOOKUP(SMALL(#REF!,COUNTIF(#REF!,"<"&F20)+1),#REF!, 2,0)," ")) ->  | I20: 3 | J20: 400M-2-3 | K20: =IF(ISERROR(VLOOKUP(J20,'KAYIT LİSTESİ'!$B$4:$H$664,2,0)),"",(VLOOKUP(J20,'KAYIT LİSTESİ'!$B$4:$H$664,2,0))) ->  | L20: =IF(ISERROR(VLOOKUP(J20,'KAYIT LİSTESİ'!$B$4:$H$664,4,0)),"",(VLOOKUP(J20,'KAYIT LİSTESİ'!$B$4:$H$664,4,0))) ->  | M20: =IF(ISERROR(VLOOKUP(J20,'KAYIT LİSTESİ'!$B$4:$H$664,5,0)),"",(VLOOKUP(J20,'KAYIT LİSTESİ'!$B$4:$H$664,5,0))) ->  | N20: =IF(ISERROR(VLOOKUP(J20,'KAYIT LİSTESİ'!$B$4:$H$664,6,0)),"",(VLOOKUP(J20,'KAYIT LİSTESİ'!$B$4:$H$664,6,0))) -> 
A21: 14 | G21: =IF(ISTEXT(F21),0,IFERROR(VLOOKUP(SMALL(#REF!,COUNTIF(#REF!,"<"&F21)+1),#REF!, 2,0)," ")) ->  | I21: 4 | J21: 400M-2-4 | K21: =IF(ISERROR(VLOOKUP(J21,'KAYIT LİSTESİ'!$B$4:$H$664,2,0)),"",(VLOOKUP(J21,'KAYIT LİSTESİ'!$B$4:$H$664,2,0))) ->  | L21: =IF(ISERROR(VLOOKUP(J21,'KAYIT LİSTESİ'!$B$4:$H$664,4,0)),"",(VLOOKUP(J21,'KAYIT LİSTESİ'!$B$4:$H$664,4,0))) ->  | M21: =IF(ISERROR(VLOOKUP(J21,'KAYIT LİSTESİ'!$B$4:$H$664,5,0)),"",(VLOOKUP(J21,'KAYIT LİSTESİ'!$B$4:$H$664,5,0))) ->  | N21: =IF(ISERROR(VLOOKUP(J21,'KAYIT LİSTESİ'!$B$4:$H$664,6,0)),"",(VLOOKUP(J21,'KAYIT LİSTESİ'!$B$4:$H$664,6,0))) -> 
A22: 15 | G22: =IF(ISTEXT(F22),0,IFERROR(VLOOKUP(SMALL(#REF!,COUNTIF(#REF!,"<"&F22)+1),#REF!, 2,0)," ")) ->  | I22: 5 | J22: 400M-2-5 | K22: =IF(ISERROR(VLOOKUP(J22,'KAYIT LİSTESİ'!$B$4:$H$664,2,0)),"",(VLOOKUP(J22,'KAYIT LİSTESİ'!$B$4:$H$664,2,0))) ->  | L22: =IF(ISERROR(VLOOKUP(J22,'KAYIT LİSTESİ'!$B$4:$H$664,4,0)),"",(VLOOKUP(J22,'KAYIT LİSTESİ'!$B$4:$H$664,4,0))) ->  | M22: =IF(ISERROR(VLOOKUP(J22,'KAYIT LİSTESİ'!$B$4:$H$664,5,0)),"",(VLOOKUP(J22,'KAYIT LİSTESİ'!$B$4:$H$664,5,0))) ->  | N22: =IF(ISERROR(VLOOKUP(J22,'KAYIT LİSTESİ'!$B$4:$H$664,6,0)),"",(VLOOKUP(J22,'KAYIT LİSTESİ'!$B$4:$H$664,6,0))) -> 
A23: 16 | G23: =IF(ISTEXT(F23),0,IFERROR(VLOOKUP(SMALL(#REF!,COUNTIF(#REF!,"<"&F23)+1),#REF!, 2,0)," ")) ->  | I23: 6 | J23: 400M-2-6 | K23: =IF(ISERROR(VLOOKUP(J23,'KAYIT LİSTESİ'!$B$4:$H$664,2,0)),"",(VLOOKUP(J23,'KAYIT LİSTESİ'!$B$4:$H$664,2,0))) ->  | L23: =IF(ISERROR(VLOOKUP(J23,'KAYIT LİSTESİ'!$B$4:$H$664,4,0)),"",(VLOOKUP(J23,'KAYIT LİSTESİ'!$B$4:$H$664,4,0))) ->  | M23: =IF(ISERROR(VLOOKUP(J23,'KAYIT LİSTESİ'!$B$4:$H$664,5,0)),"",(VLOOKUP(J23,'KAYIT LİSTESİ'!$B$4:$H$664,5,0))) ->  | N23: =IF(ISERROR(VLOOKUP(J23,'KAYIT LİSTESİ'!$B$4:$H$664,6,0)),"",(VLOOKUP(J23,'KAYIT LİSTESİ'!$B$4:$H$664,6,0))) -> 
A24: 17 | G24: =IF(ISTEXT(F24),0,IFERROR(VLOOKUP(SMALL(#REF!,COUNTIF(#REF!,"<"&F24)+1),#REF!, 2,0)," ")) ->  | I24: 7 | J24: 400M-2-7 | K24: =IF(ISERROR(VLOOKUP(J24,'KAYIT LİSTESİ'!$B$4:$H$664,2,0)),"",(VLOOKUP(J24,'KAYIT LİSTESİ'!$B$4:$H$664,2,0))) ->  | L24: =IF(ISERROR(VLOOKUP(J24,'KAYIT LİSTESİ'!$B$4:$H$664,4,0)),"",(VLOOKUP(J24,'KAYIT LİSTESİ'!$B$4:$H$664,4,0))) ->  | M24: =IF(ISERROR(VLOOKUP(J24,'KAYIT LİSTESİ'!$B$4:$H$664,5,0)),"",(VLOOKUP(J24,'KAYIT LİSTESİ'!$B$4:$H$664,5,0))) ->  | N24: =IF(ISERROR(VLOOKUP(J24,'KAYIT LİSTESİ'!$B$4:$H$664,6,0)),"",(VLOOKUP(J24,'KAYIT LİSTESİ'!$B$4:$H$664,6,0))) -> 
A25: 18 | G25: =IF(ISTEXT(F25),0,IFERROR(VLOOKUP(SMALL(#REF!,COUNTIF(#REF!,"<"&F25)+1),#REF!, 2,0)," ")) ->  | I25: 8 | J25: 400M-2-8 | K25: =IF(ISERROR(VLOOKUP(J25,'KAYIT LİSTESİ'!$B$4:$H$664,2,0)),"",(VLOOKUP(J25,'KAYIT LİSTESİ'!$B$4:$H$664,2,0))) ->  | L25: =IF(ISERROR(VLOOKUP(J25,'KAYIT LİSTESİ'!$B$4:$H$664,4,0)),"",(VLOOKUP(J25,'KAYIT LİSTESİ'!$B$4:$H$664,4,0))) ->  | M25: =IF(ISERROR(VLOOKUP(J25,'KAYIT LİSTESİ'!$B$4:$H$664,5,0)),"",(VLOOKUP(J25,'KAYIT LİSTESİ'!$B$4:$H$664,5,0))) ->  | N25: =IF(ISERROR(VLOOKUP(J25,'KAYIT LİSTESİ'!$B$4:$H$664,6,0)),"",(VLOOKUP(J25,'KAYIT LİSTESİ'!$B$4:$H$664,6,0))) -> 
A26: 19 | G26: =IF(ISTEXT(F26),0,IFERROR(VLOOKUP(SMALL(#REF!,COUNTIF(#REF!,"<"&F26)+1),#REF!, 2,0)," ")) ->  | I26: 3. SERİ
A27: 20 | G27: =IF(ISTEXT(F27),0,IFERROR(VLOOKUP(SMALL(#REF!,COUNTIF(#REF!,"<"&F27)+1),#REF!, 2,0)," ")) ->  | I27: Sıra No | J27: Formül | K27: Göğüs No | L27: Doğum Tarihi | M27: Adı ve Soyadı | N27: İli-Okulu | O27: Elektronik Kronometre | P27: El Kronometre | Q27: Seri Geliş
A28: 21 | G28: =IF(ISTEXT(F28),0,IFERROR(VLOOKUP(SMALL(#REF!,COUNTIF(#REF!,"<"&F28)+1),#REF!, 2,0)," ")) ->  | I28: 1 | J28: 400M-3-1 | K28: =IF(ISERROR(VLOOKUP(J28,'KAYIT LİSTESİ'!$B$4:$H$664,2,0)),"",(VLOOKUP(J28,'KAYIT LİSTESİ'!$B$4:$H$664,2,0))) ->  | L28: =IF(ISERROR(VLOOKUP(J28,'KAYIT LİSTESİ'!$B$4:$H$664,4,0)),"",(VLOOKUP(J28,'KAYIT LİSTESİ'!$B$4:$H$664,4,0))) ->  | M28: =IF(ISERROR(VLOOKUP(J28,'KAYIT LİSTESİ'!$B$4:$H$664,5,0)),"",(VLOOKUP(J28,'KAYIT LİSTESİ'!$B$4:$H$664,5,0))) ->  | N28: =IF(ISERROR(VLOOKUP(J28,'KAYIT LİSTESİ'!$B$4:$H$664,6,0)),"",(VLOOKUP(J28,'KAYIT LİSTESİ'!$B$4:$H$664,6,0))) ->  | O28: =IF(IF(OR(P28="NM",P28="DNF",P28="DNS",P28="DQ",P28=""),P28,(ROUNDUP(P28,)+24))=0," ",IF(OR(P28="NM",P28="DNF",P28="DNS",P28="DQ",P28=""),P28,(ROUNDUP(P28,)+24))) -> 
A29: 22 | G29: =IF(ISTEXT(F29),0,IFERROR(VLOOKUP(SMALL(#REF!,COUNTIF(#REF!,"<"&F29)+1),#REF!, 2,0)," ")) ->  | I29: 2 | J29: 400M-3-2 | K29: =IF(ISERROR(VLOOKUP(J29,'KAYIT LİSTESİ'!$B$4:$H$664,2,0)),"",(VLOOKUP(J29,'KAYIT LİSTESİ'!$B$4:$H$664,2,0))) ->  | L29: =IF(ISERROR(VLOOKUP(J29,'KAYIT LİSTESİ'!$B$4:$H$664,4,0)),"",(VLOOKUP(J29,'KAYIT LİSTESİ'!$B$4:$H$664,4,0))) ->  | M29: =IF(ISERROR(VLOOKUP(J29,'KAYIT LİSTESİ'!$B$4:$H$664,5,0)),"",(VLOOKUP(J29,'KAYIT LİSTESİ'!$B$4:$H$664,5,0))) ->  | N29: =IF(ISERROR(VLOOKUP(J29,'KAYIT LİSTESİ'!$B$4:$H$664,6,0)),"",(VLOOKUP(J29,'KAYIT LİSTESİ'!$B$4:$H$664,6,0))) -> 
A30: 23 | G30: =IF(ISTEXT(F30),0,IFERROR(VLOOKUP(SMALL(#REF!,COUNTIF(#REF!,"<"&F30)+1),#REF!, 2,0)," ")) ->  | I30: 3 | J30: 400M-3-3 | K30: =IF(ISERROR(VLOOKUP(J30,'KAYIT LİSTESİ'!$B$4:$H$664,2,0)),"",(VLOOKUP(J30,'KAYIT LİSTESİ'!$B$4:$H$664,2,0))) ->  | L30: =IF(ISERROR(VLOOKUP(J30,'KAYIT LİSTESİ'!$B$4:$H$664,4,0)),"",(VLOOKUP(J30,'KAYIT LİSTESİ'!$B$4:$H$664,4,0))) ->  | M30: =IF(ISERROR(VLOOKUP(J30,'KAYIT LİSTESİ'!$B$4:$H$664,5,0)),"",(VLOOKUP(J30,'KAYIT LİSTESİ'!$B$4:$H$664,5,0))) ->  | N30: =IF(ISERROR(VLOOKUP(J30,'KAYIT LİSTESİ'!$B$4:$H$664,6,0)),"",(VLOOKUP(J30,'KAYIT LİSTESİ'!$B$4:$H$664,6,0))) -> 
A31: 24 | G31: =IF(ISTEXT(F31),0,IFERROR(VLOOKUP(SMALL(#REF!,COUNTIF(#REF!,"<"&F31)+1),#REF!, 2,0)," ")) ->  | I31: 4 | J31: 400M-3-4 | K31: =IF(ISERROR(VLOOKUP(J31,'KAYIT LİSTESİ'!$B$4:$H$664,2,0)),"",(VLOOKUP(J31,'KAYIT LİSTESİ'!$B$4:$H$664,2,0))) ->  | L31: =IF(ISERROR(VLOOKUP(J31,'KAYIT LİSTESİ'!$B$4:$H$664,4,0)),"",(VLOOKUP(J31,'KAYIT LİSTESİ'!$B$4:$H$664,4,0))) ->  | M31: =IF(ISERROR(VLOOKUP(J31,'KAYIT LİSTESİ'!$B$4:$H$664,5,0)),"",(VLOOKUP(J31,'KAYIT LİSTESİ'!$B$4:$H$664,5,0))) ->  | N31: =IF(ISERROR(VLOOKUP(J31,'KAYIT LİSTESİ'!$B$4:$H$664,6,0)),"",(VLOOKUP(J31,'KAYIT LİSTESİ'!$B$4:$H$664,6,0))) -> 
A32: 25 | G32: =IF(ISTEXT(F32),0,IFERROR(VLOOKUP(SMALL(#REF!,COUNTIF(#REF!,"<"&F32)+1),#REF!, 2,0)," ")) ->  | I32: 5 | J32: 400M-3-5 | K32: =IF(ISERROR(VLOOKUP(J32,'KAYIT LİSTESİ'!$B$4:$H$664,2,0)),"",(VLOOKUP(J32,'KAYIT LİSTESİ'!$B$4:$H$664,2,0))) ->  | L32: =IF(ISERROR(VLOOKUP(J32,'KAYIT LİSTESİ'!$B$4:$H$664,4,0)),"",(VLOOKUP(J32,'KAYIT LİSTESİ'!$B$4:$H$664,4,0))) ->  | M32: =IF(ISERROR(VLOOKUP(J32,'KAYIT LİSTESİ'!$B$4:$H$664,5,0)),"",(VLOOKUP(J32,'KAYIT LİSTESİ'!$B$4:$H$664,5,0))) ->  | N32: =IF(ISERROR(VLOOKUP(J32,'KAYIT LİSTESİ'!$B$4:$H$664,6,0)),"",(VLOOKUP(J32,'KAYIT LİSTESİ'!$B$4:$H$664,6,0))) -> 
A33: 26 | G33: =IF(ISTEXT(F33),0,IFERROR(VLOOKUP(SMALL(#REF!,COUNTIF(#REF!,"<"&F33)+1),#REF!, 2,0)," ")) ->  | I33: 6 | J33: 400M-3-6 | K33: =IF(ISERROR(VLOOKUP(J33,'KAYIT LİSTESİ'!$B$4:$H$664,2,0)),"",(VLOOKUP(J33,'KAYIT LİSTESİ'!$B$4:$H$664,2,0))) ->  | L33: =IF(ISERROR(VLOOKUP(J33,'KAYIT LİSTESİ'!$B$4:$H$664,4,0)),"",(VLOOKUP(J33,'KAYIT LİSTESİ'!$B$4:$H$664,4,0))) ->  | M33: =IF(ISERROR(VLOOKUP(J33,'KAYIT LİSTESİ'!$B$4:$H$664,5,0)),"",(VLOOKUP(J33,'KAYIT LİSTESİ'!$B$4:$H$664,5,0))) ->  | N33: =IF(ISERROR(VLOOKUP(J33,'KAYIT LİSTESİ'!$B$4:$H$664,6,0)),"",(VLOOKUP(J33,'KAYIT LİSTESİ'!$B$4:$H$664,6,0))) -> 
A34: 27 | G34: =IF(ISTEXT(F34),0,IFERROR(VLOOKUP(SMALL(#REF!,COUNTIF(#REF!,"<"&F34)+1),#REF!, 2,0)," ")) ->  | I34: 7 | J34: 400M-3-7 | K34: =IF(ISERROR(VLOOKUP(J34,'KAYIT LİSTESİ'!$B$4:$H$664,2,0)),"",(VLOOKUP(J34,'KAYIT LİSTESİ'!$B$4:$H$664,2,0))) ->  | L34: =IF(ISERROR(VLOOKUP(J34,'KAYIT LİSTESİ'!$B$4:$H$664,4,0)),"",(VLOOKUP(J34,'KAYIT LİSTESİ'!$B$4:$H$664,4,0))) ->  | M34: =IF(ISERROR(VLOOKUP(J34,'KAYIT LİSTESİ'!$B$4:$H$664,5,0)),"",(VLOOKUP(J34,'KAYIT LİSTESİ'!$B$4:$H$664,5,0))) ->  | N34: =IF(ISERROR(VLOOKUP(J34,'KAYIT LİSTESİ'!$B$4:$H$664,6,0)),"",(VLOOKUP(J34,'KAYIT LİSTESİ'!$B$4:$H$664,6,0))) -> 
A35: 28 | G35: =IF(ISTEXT(F35),0,IFERROR(VLOOKUP(SMALL(#REF!,COUNTIF(#REF!,"<"&F35)+1),#REF!, 2,0)," ")) ->  | I35: 8 | J35: 400M-3-8 | K35: =IF(ISERROR(VLOOKUP(J35,'KAYIT LİSTESİ'!$B$4:$H$664,2,0)),"",(VLOOKUP(J35,'KAYIT LİSTESİ'!$B$4:$H$664,2,0))) ->  | L35: =IF(ISERROR(VLOOKUP(J35,'KAYIT LİSTESİ'!$B$4:$H$664,4,0)),"",(VLOOKUP(J35,'KAYIT LİSTESİ'!$B$4:$H$664,4,0))) ->  | M35: =IF(ISERROR(VLOOKUP(J35,'KAYIT LİSTESİ'!$B$4:$H$664,5,0)),"",(VLOOKUP(J35,'KAYIT LİSTESİ'!$B$4:$H$664,5,0))) ->  | N35: =IF(ISERROR(VLOOKUP(J35,'KAYIT LİSTESİ'!$B$4:$H$664,6,0)),"",(VLOOKUP(J35,'KAYIT LİSTESİ'!$B$4:$H$664,6,0))) -> 
A36: 29 | G36: =IF(ISTEXT(F36),0,IFERROR(VLOOKUP(SMALL(#REF!,COUNTIF(#REF!,"<"&F36)+1),#REF!, 2,0)," ")) ->  | I36: 4. SERİ
A37: 30 | G37: =IF(ISTEXT(F37),0,IFERROR(VLOOKUP(SMALL(#REF!,COUNTIF(#REF!,"<"&F37)+1),#REF!, 2,0)," ")) ->  | I37: Sıra No | J37: Formül | K37: Göğüs No | L37: Doğum Tarihi | M37: Adı ve Soyadı | N37: İli-Okulu | O37: Elektronik Kronometre | P37: El Kronometre | Q37: Seri Geliş
A38: 31 | G38: =IF(ISTEXT(F38),0,IFERROR(VLOOKUP(SMALL(#REF!,COUNTIF(#REF!,"<"&F38)+1),#REF!, 2,0)," ")) ->  | I38: 1 | J38: 400M-4-1 | K38: =IF(ISERROR(VLOOKUP(J38,'KAYIT LİSTESİ'!$B$4:$H$664,2,0)),"",(VLOOKUP(J38,'KAYIT LİSTESİ'!$B$4:$H$664,2,0))) ->  | L38: =IF(ISERROR(VLOOKUP(J38,'KAYIT LİSTESİ'!$B$4:$H$664,4,0)),"",(VLOOKUP(J38,'KAYIT LİSTESİ'!$B$4:$H$664,4,0))) ->  | M38: =IF(ISERROR(VLOOKUP(J38,'KAYIT LİSTESİ'!$B$4:$H$664,5,0)),"",(VLOOKUP(J38,'KAYIT LİSTESİ'!$B$4:$H$664,5,0))) ->  | N38: =IF(ISERROR(VLOOKUP(J38,'KAYIT LİSTESİ'!$B$4:$H$664,6,0)),"",(VLOOKUP(J38,'KAYIT LİSTESİ'!$B$4:$H$664,6,0))) -> 
A39: 32 | G39: =IF(ISTEXT(F39),0,IFERROR(VLOOKUP(SMALL(#REF!,COUNTIF(#REF!,"<"&F39)+1),#REF!, 2,0)," ")) ->  | I39: 2 | J39: 400M-4-2 | K39: =IF(ISERROR(VLOOKUP(J39,'KAYIT LİSTESİ'!$B$4:$H$664,2,0)),"",(VLOOKUP(J39,'KAYIT LİSTESİ'!$B$4:$H$664,2,0))) ->  | L39: =IF(ISERROR(VLOOKUP(J39,'KAYIT LİSTESİ'!$B$4:$H$664,4,0)),"",(VLOOKUP(J39,'KAYIT LİSTESİ'!$B$4:$H$664,4,0))) ->  | M39: =IF(ISERROR(VLOOKUP(J39,'KAYIT LİSTESİ'!$B$4:$H$664,5,0)),"",(VLOOKUP(J39,'KAYIT LİSTESİ'!$B$4:$H$664,5,0))) ->  | N39: =IF(ISERROR(VLOOKUP(J39,'KAYIT LİSTESİ'!$B$4:$H$664,6,0)),"",(VLOOKUP(J39,'KAYIT LİSTESİ'!$B$4:$H$664,6,0))) -> 
A40: 33 | G40: =IF(ISTEXT(F40),0,IFERROR(VLOOKUP(SMALL(#REF!,COUNTIF(#REF!,"<"&F40)+1),#REF!, 2,0)," ")) ->  | I40: 3 | J40: 400M-4-3 | K40: =IF(ISERROR(VLOOKUP(J40,'KAYIT LİSTESİ'!$B$4:$H$664,2,0)),"",(VLOOKUP(J40,'KAYIT LİSTESİ'!$B$4:$H$664,2,0))) ->  | L40: =IF(ISERROR(VLOOKUP(J40,'KAYIT LİSTESİ'!$B$4:$H$664,4,0)),"",(VLOOKUP(J40,'KAYIT LİSTESİ'!$B$4:$H$664,4,0))) ->  | M40: =IF(ISERROR(VLOOKUP(J40,'KAYIT LİSTESİ'!$B$4:$H$664,5,0)),"",(VLOOKUP(J40,'KAYIT LİSTESİ'!$B$4:$H$664,5,0))) ->  | N40: =IF(ISERROR(VLOOKUP(J40,'KAYIT LİSTESİ'!$B$4:$H$664,6,0)),"",(VLOOKUP(J40,'KAYIT LİSTESİ'!$B$4:$H$664,6,0))) -> 
A41: 34 | G41: =IF(ISTEXT(F41),0,IFERROR(VLOOKUP(SMALL(#REF!,COUNTIF(#REF!,"<"&F41)+1),#REF!, 2,0)," ")) ->  | I41: 4 | J41: 400M-4-4 | K41: =IF(ISERROR(VLOOKUP(J41,'KAYIT LİSTESİ'!$B$4:$H$664,2,0)),"",(VLOOKUP(J41,'KAYIT LİSTESİ'!$B$4:$H$664,2,0))) ->  | L41: =IF(ISERROR(VLOOKUP(J41,'KAYIT LİSTESİ'!$B$4:$H$664,4,0)),"",(VLOOKUP(J41,'KAYIT LİSTESİ'!$B$4:$H$664,4,0))) ->  | M41: =IF(ISERROR(VLOOKUP(J41,'KAYIT LİSTESİ'!$B$4:$H$664,5,0)),"",(VLOOKUP(J41,'KAYIT LİSTESİ'!$B$4:$H$664,5,0))) ->  | N41: =IF(ISERROR(VLOOKUP(J41,'KAYIT LİSTESİ'!$B$4:$H$664,6,0)),"",(VLOOKUP(J41,'KAYIT LİSTESİ'!$B$4:$H$664,6,0))) -> 
A42: 35 | G42: =IF(ISTEXT(F42),0,IFERROR(VLOOKUP(SMALL(#REF!,COUNTIF(#REF!,"<"&F42)+1),#REF!, 2,0)," ")) ->  | I42: 5 | J42: 400M-4-5 | K42: =IF(ISERROR(VLOOKUP(J42,'KAYIT LİSTESİ'!$B$4:$H$664,2,0)),"",(VLOOKUP(J42,'KAYIT LİSTESİ'!$B$4:$H$664,2,0))) ->  | L42: =IF(ISERROR(VLOOKUP(J42,'KAYIT LİSTESİ'!$B$4:$H$664,4,0)),"",(VLOOKUP(J42,'KAYIT LİSTESİ'!$B$4:$H$664,4,0))) ->  | M42: =IF(ISERROR(VLOOKUP(J42,'KAYIT LİSTESİ'!$B$4:$H$664,5,0)),"",(VLOOKUP(J42,'KAYIT LİSTESİ'!$B$4:$H$664,5,0))) ->  | N42: =IF(ISERROR(VLOOKUP(J42,'KAYIT LİSTESİ'!$B$4:$H$664,6,0)),"",(VLOOKUP(J42,'KAYIT LİSTESİ'!$B$4:$H$664,6,0))) -> 
A43: 36 | G43: =IF(ISTEXT(F43),0,IFERROR(VLOOKUP(SMALL(#REF!,COUNTIF(#REF!,"<"&F43)+1),#REF!, 2,0)," ")) ->  | I43: 6 | J43: 400M-4-6 | K43: =IF(ISERROR(VLOOKUP(J43,'KAYIT LİSTESİ'!$B$4:$H$664,2,0)),"",(VLOOKUP(J43,'KAYIT LİSTESİ'!$B$4:$H$664,2,0))) ->  | L43: =IF(ISERROR(VLOOKUP(J43,'KAYIT LİSTESİ'!$B$4:$H$664,4,0)),"",(VLOOKUP(J43,'KAYIT LİSTESİ'!$B$4:$H$664,4,0))) ->  | M43: =IF(ISERROR(VLOOKUP(J43,'KAYIT LİSTESİ'!$B$4:$H$664,5,0)),"",(VLOOKUP(J43,'KAYIT LİSTESİ'!$B$4:$H$664,5,0))) ->  | N43: =IF(ISERROR(VLOOKUP(J43,'KAYIT LİSTESİ'!$B$4:$H$664,6,0)),"",(VLOOKUP(J43,'KAYIT LİSTESİ'!$B$4:$H$664,6,0))) -> 
A44: 37 | G44: =IF(ISTEXT(F44),0,IFERROR(VLOOKUP(SMALL(#REF!,COUNTIF(#REF!,"<"&F44)+1),#REF!, 2,0)," ")) ->  | I44: 7 | J44: 400M-4-7 | K44: =IF(ISERROR(VLOOKUP(J44,'KAYIT LİSTESİ'!$B$4:$H$664,2,0)),"",(VLOOKUP(J44,'KAYIT LİSTESİ'!$B$4:$H$664,2,0))) ->  | L44: =IF(ISERROR(VLOOKUP(J44,'KAYIT LİSTESİ'!$B$4:$H$664,4,0)),"",(VLOOKUP(J44,'KAYIT LİSTESİ'!$B$4:$H$664,4,0))) ->  | M44: =IF(ISERROR(VLOOKUP(J44,'KAYIT LİSTESİ'!$B$4:$H$664,5,0)),"",(VLOOKUP(J44,'KAYIT LİSTESİ'!$B$4:$H$664,5,0))) ->  | N44: =IF(ISERROR(VLOOKUP(J44,'KAYIT LİSTESİ'!$B$4:$H$664,6,0)),"",(VLOOKUP(J44,'KAYIT LİSTESİ'!$B$4:$H$664,6,0))) -> 
A45: 38 | G45: =IF(ISTEXT(F45),0,IFERROR(VLOOKUP(SMALL(#REF!,COUNTIF(#REF!,"<"&F45)+1),#REF!, 2,0)," ")) ->  | I45: 8 | J45: 400M-4-8 | K45: =IF(ISERROR(VLOOKUP(J45,'KAYIT LİSTESİ'!$B$4:$H$664,2,0)),"",(VLOOKUP(J45,'KAYIT LİSTESİ'!$B$4:$H$664,2,0))) ->  | L45: =IF(ISERROR(VLOOKUP(J45,'KAYIT LİSTESİ'!$B$4:$H$664,4,0)),"",(VLOOKUP(J45,'KAYIT LİSTESİ'!$B$4:$H$664,4,0))) ->  | M45: =IF(ISERROR(VLOOKUP(J45,'KAYIT LİSTESİ'!$B$4:$H$664,5,0)),"",(VLOOKUP(J45,'KAYIT LİSTESİ'!$B$4:$H$664,5,0))) ->  | N45: =IF(ISERROR(VLOOKUP(J45,'KAYIT LİSTESİ'!$B$4:$H$664,6,0)),"",(VLOOKUP(J45,'KAYIT LİSTESİ'!$B$4:$H$664,6,0))) -> 
A47: Müsabakalar Direktörü | E47: Baş Hakem | F47: Lider | H47: Sekreter | M47: Hakem | N47: Hakem | P47: Hakem

Sheet Gülle
A1: ='YARIŞMA BİLGİLERİ'!A2:K2 -> Türkiye Atletizm Federasyonu Mersin Atletizm İl Temsilciliği | Q1: DERECE
A2: ='YARIŞMA BİLGİLERİ'!A14:K14 -> Olimpik Baraj Yarışmaları | Q2: 100 | R2: 0
A3: Yarışma : | D3: =#REF! ->  | F3: Baraj Derecesi : | G3: =#REF! ->  | Q3: 1100 | R3: 1
A4: Kategori : | D4: ='YARIŞMA BİLGİLERİ'!F21 -> Kadınlar | F4: Ağırlık: | G4: 3 Kg. | L4: Tarih-Saat : | M4: =#REF! ->  | Q4: 1150 | R4: 2
N5: =NOW() -> 42222.53664 | Q5: 1200 | R5: 3
A6: SIRA NO | C6: GÖĞÜS NO | D6: DOĞUM TARİHİ Gün/Ay/Yıl | E6: ADI VE SOYADI | F6: İli-Okulu | G6: A T M A L A R | N6: SONUÇ | O6: PUAN | P6: KLASMAN | Q6: 1250 | R6: 4
G7: 1 | H7: 2 | I7: 3 | J7: ARA DERECE | K7: 4 | L7: 5 | M7: 6 | Q7: 1300 | R7: 5
A8: 1 | B8: Gülle-1 | C8: =IF(ISERROR(VLOOKUP(B8,'KAYIT LİSTESİ'!$B$4:$H$664,2,0)),"",(VLOOKUP(B8,'KAYIT LİSTESİ'!$B$4:$H$664,2,0))) -> 623 | D8: =IF(ISERROR(VLOOKUP(B8,'KAYIT LİSTESİ'!$B$4:$H$664,4,0)),"",(VLOOKUP(B8,'KAYIT LİSTESİ'!$B$4:$H$664,4,0))) -> 1999-02-09 | E8: =IF(ISERROR(VLOOKUP(B8,'KAYIT LİSTESİ'!$B$4:$H$664,5,0)),"",(VLOOKUP(B8,'KAYIT LİSTESİ'!$B$4:$H$664,5,0))) -> SİMGE ALTIOK | F8: =IF(ISERROR(VLOOKUP(B8,'KAYIT LİSTESİ'!$B$4:$H$664,6,0)),"",(VLOOKUP(B8,'KAYIT LİSTESİ'!$B$4:$H$664,6,0))) -> KAYSERİ | J8: =IF(COUNT(G8:I8)=0,"",MAX(G8:I8)) ->  | N8: =MAX(G8:M8) -> 0 | O8: =IF(LEN(N8)>0,VLOOKUP(N8,#REF!,4)-IF(COUNTIF(#REF!,N8)=0,0,0)," ") ->  | Q8: 1350 | R8: 6
A9: 2 | B9: Gülle-2 | C9: =IF(ISERROR(VLOOKUP(B9,'KAYIT LİSTESİ'!$B$4:$H$664,2,0)),"",(VLOOKUP(B9,'KAYIT LİSTESİ'!$B$4:$H$664,2,0))) ->  | D9: =IF(ISERROR(VLOOKUP(B9,'KAYIT LİSTESİ'!$B$4:$H$664,4,0)),"",(VLOOKUP(B9,'KAYIT LİSTESİ'!$B$4:$H$664,4,0))) ->  | E9: =IF(ISERROR(VLOOKUP(B9,'KAYIT LİSTESİ'!$B$4:$H$664,5,0)),"",(VLOOKUP(B9,'KAYIT LİSTESİ'!$B$4:$H$664,5,0))) ->  | F9: =IF(ISERROR(VLOOKUP(B9,'KAYIT LİSTESİ'!$B$4:$H$664,6,0)),"",(VLOOKUP(B9,'KAYIT LİSTESİ'!$B$4:$H$664,6,0))) ->  | J9: =IF(COUNT(G9:I9)=0,"",MAX(G9:I9)) ->  | N9: =MAX(G9:M9) -> 0 | O9: =IF(LEN(N9)>0,VLOOKUP(N9,#REF!,4)-IF(COUNTIF(#REF!,N9)=0,0,0)," ") ->  | Q9: 1400 | R9: 7
A10: 3 | B10: Gülle-3 | C10: =IF(ISERROR(VLOOKUP(B10,'KAYIT LİSTESİ'!$B$4:$H$664,2,0)),"",(VLOOKUP(B10,'KAYIT LİSTESİ'!$B$4:$H$664,2,0))) ->  | D10: =IF(ISERROR(VLOOKUP(B10,'KAYIT LİSTESİ'!$B$4:$H$664,4,0)),"",(VLOOKUP(B10,'KAYIT LİSTESİ'!$B$4:$H$664,4,0))) ->  | E10: =IF(ISERROR(VLOOKUP(B10,'KAYIT LİSTESİ'!$B$4:$H$664,5,0)),"",(VLOOKUP(B10,'KAYIT LİSTESİ'!$B$4:$H$664,5,0))) ->  | F10: =IF(ISERROR(VLOOKUP(B10,'KAYIT LİSTESİ'!$B$4:$H$664,6,0)),"",(VLOOKUP(B10,'KAYIT LİSTESİ'!$B$4:$H$664,6,0))) ->  | N10: 0 | O10: =IF(LEN(N10)>0,VLOOKUP(N10,#REF!,4)-IF(COUNTIF(#REF!,N10)=0,0,0)," ") ->  | Q10: 1450 | R10: 8
A11: 4 | B11: Gülle-4 | C11: =IF(ISERROR(VLOOKUP(B11,'KAYIT LİSTESİ'!$B$4:$H$664,2,0)),"",(VLOOKUP(B11,'KAYIT LİSTESİ'!$B$4:$H$664,2,0))) ->  | D11: =IF(ISERROR(VLOOKUP(B11,'KAYIT LİSTESİ'!$B$4:$H$664,4,0)),"",(VLOOKUP(B11,'KAYIT LİSTESİ'!$B$4:$H$664,4,0))) ->  | E11: =IF(ISERROR(VLOOKUP(B11,'KAYIT LİSTESİ'!$B$4:$H$664,5,0)),"",(VLOOKUP(B11,'KAYIT LİSTESİ'!$B$4:$H$664,5,0))) ->  | F11: =IF(ISERROR(VLOOKUP(B11,'KAYIT LİSTESİ'!$B$4:$H$664,6,0)),"",(VLOOKUP(B11,'KAYIT LİSTESİ'!$B$4:$H$664,6,0))) ->  | N11: 0 | O11: =IF(LEN(N11)>0,VLOOKUP(N11,#REF!,4)-IF(COUNTIF(#REF!,N11)=0,0,0)," ") ->  | Q11: 1500 | R11: 9
A12: 5 | B12: Gülle-5 | C12: =IF(ISERROR(VLOOKUP(B12,'KAYIT LİSTESİ'!$B$4:$H$664,2,0)),"",(VLOOKUP(B12,'KAYIT LİSTESİ'!$B$4:$H$664,2,0))) ->  | D12: =IF(ISERROR(VLOOKUP(B12,'KAYIT LİSTESİ'!$B$4:$H$664,4,0)),"",(VLOOKUP(B12,'KAYIT LİSTESİ'!$B$4:$H$664,4,0))) ->  | E12: =IF(ISERROR(VLOOKUP(B12,'KAYIT LİSTESİ'!$B$4:$H$664,5,0)),"",(VLOOKUP(B12,'KAYIT LİSTESİ'!$B$4:$H$664,5,0))) ->  | F12: =IF(ISERROR(VLOOKUP(B12,'KAYIT LİSTESİ'!$B$4:$H$664,6,0)),"",(VLOOKUP(B12,'KAYIT LİSTESİ'!$B$4:$H$664,6,0))) ->  | N12: 0 | O12: =IF(LEN(N12)>0,VLOOKUP(N12,#REF!,4)-IF(COUNTIF(#REF!,N12)=0,0,0)," ") ->  | Q12: 1550 | R12: 10
A13: 6 | B13: Gülle-6 | C13: =IF(ISERROR(VLOOKUP(B13,'KAYIT LİSTESİ'!$B$4:$H$664,2,0)),"",(VLOOKUP(B13,'KAYIT LİSTESİ'!$B$4:$H$664,2,0))) ->  | D13: =IF(ISERROR(VLOOKUP(B13,'KAYIT LİSTESİ'!$B$4:$H$664,4,0)),"",(VLOOKUP(B13,'KAYIT LİSTESİ'!$B$4:$H$664,4,0))) ->  | E13: =IF(ISERROR(VLOOKUP(B13,'KAYIT LİSTESİ'!$B$4:$H$664,5,0)),"",(VLOOKUP(B13,'KAYIT LİSTESİ'!$B$4:$H$664,5,0))) ->  | F13: =IF(ISERROR(VLOOKUP(B13,'KAYIT LİSTESİ'!$B$4:$H$664,6,0)),"",(VLOOKUP(B13,'KAYIT LİSTESİ'!$B$4:$H$664,6,0))) ->  | N13: 0 | O13: =IF(LEN(N13)>0,VLOOKUP(N13,#REF!,4)-IF(COUNTIF(#REF!,N13)=0,0,0)," ") ->  | Q13: 1600 | R13: 11
A14: 7 | B14: Gülle-7 | C14: =IF(ISERROR(VLOOKUP(B14,'KAYIT LİSTESİ'!$B$4:$H$664,2,0)),"",(VLOOKUP(B14,'KAYIT LİSTESİ'!$B$4:$H$664,2,0))) ->  | D14: =IF(ISERROR(VLOOKUP(B14,'KAYIT LİSTESİ'!$B$4:$H$664,4,0)),"",(VLOOKUP(B14,'KAYIT LİSTESİ'!$B$4:$H$664,4,0))) ->  | E14: =IF(ISERROR(VLOOKUP(B14,'KAYIT LİSTESİ'!$B$4:$H$664,5,0)),"",(VLOOKUP(B14,'KAYIT LİSTESİ'!$B$4:$H$664,5,0))) ->  | F14: =IF(ISERROR(VLOOKUP(B14,'KAYIT LİSTESİ'!$B$4:$H$664,6,0)),"",(VLOOKUP(B14,'KAYIT LİSTESİ'!$B$4:$H$664,6,0))) ->  | N14: 0 | O14: =IF(LEN(N14)>0,VLOOKUP(N14,#REF!,4)-IF(COUNTIF(#REF!,N14)=0,0,0)," ") ->  | Q14: 1650 | R14: 12
A15: 8 | B15: Gülle-8 | C15: =IF(ISERROR(VLOOKUP(B15,'KAYIT LİSTESİ'!$B$4:$H$664,2,0)),"",(VLOOKUP(B15,'KAYIT LİSTESİ'!$B$4:$H$664,2,0))) ->  | D15: =IF(ISERROR(VLOOKUP(B15,'KAYIT LİSTESİ'!$B$4:$H$664,4,0)),"",(VLOOKUP(B15,'KAYIT LİSTESİ'!$B$4:$H$664,4,0))) ->  | E15: =IF(ISERROR(VLOOKUP(B15,'KAYIT LİSTESİ'!$B$4:$H$664,5,0)),"",(VLOOKUP(B15,'KAYIT LİSTESİ'!$B$4:$H$664,5,0))) ->  | F15: =IF(ISERROR(VLOOKUP(B15,'KAYIT LİSTESİ'!$B$4:$H$664,6,0)),"",(VLOOKUP(B15,'KAYIT LİSTESİ'!$B$4:$H$664,6,0))) ->  | N15: 0 | O15: =IF(LEN(N15)>0,VLOOKUP(N15,#REF!,4)-IF(COUNTIF(#REF!,N15)=0,0,0)," ") ->  | Q15: 1700 | R15: 13
A16: 9 | B16: Gülle-9 | C16: =IF(ISERROR(VLOOKUP(B16,'KAYIT LİSTESİ'!$B$4:$H$664,2,0)),"",(VLOOKUP(B16,'KAYIT LİSTESİ'!$B$4:$H$664,2,0))) ->  | D16: =IF(ISERROR(VLOOKUP(B16,'KAYIT LİSTESİ'!$B$4:$H$664,4,0)),"",(VLOOKUP(B16,'KAYIT LİSTESİ'!$B$4:$H$664,4,0))) ->  | E16: =IF(ISERROR(VLOOKUP(B16,'KAYIT LİSTESİ'!$B$4:$H$664,5,0)),"",(VLOOKUP(B16,'KAYIT LİSTESİ'!$B$4:$H$664,5,0))) ->  | F16: =IF(ISERROR(VLOOKUP(B16,'KAYIT LİSTESİ'!$B$4:$H$664,6,0)),"",(VLOOKUP(B16,'KAYIT LİSTESİ'!$B$4:$H$664,6,0))) ->  | N16: 0 | O16: =IF(LEN(N16)>0,VLOOKUP(N16,#REF!,4)-IF(COUNTIF(#REF!,N16)=0,0,0)," ") ->  | Q16: 1750 | R16: 14
A17: 10 | B17: Gülle-10 | C17: =IF(ISERROR(VLOOKUP(B17,'KAYIT LİSTESİ'!$B$4:$H$664,2,0)),"",(VLOOKUP(B17,'KAYIT LİSTESİ'!$B$4:$H$664,2,0))) ->  | D17: =IF(ISERROR(VLOOKUP(B17,'KAYIT LİSTESİ'!$B$4:$H$664,4,0)),"",(VLOOKUP(B17,'KAYIT LİSTESİ'!$B$4:$H$664,4,0))) ->  | E17: =IF(ISERROR(VLOOKUP(B17,'KAYIT LİSTESİ'!$B$4:$H$664,5,0)),"",(VLOOKUP(B17,'KAYIT LİSTESİ'!$B$4:$H$664,5,0))) ->  | F17: =IF(ISERROR(VLOOKUP(B17,'KAYIT LİSTESİ'!$B$4:$H$664,6,0)),"",(VLOOKUP(B17,'KAYIT LİSTESİ'!$B$4:$H$664,6,0))) ->  | N17: 0 | O17: =IF(LEN(N17)>0,VLOOKUP(N17,#REF!,4)-IF(COUNTIF(#REF!,N17)=0,0,0)," ") ->  | Q17: 1800 | R17: 15
A18: 11 | B18: Gülle-11 | C18: =IF(ISERROR(VLOOKUP(B18,'KAYIT LİSTESİ'!$B$4:$H$664,2,0)),"",(VLOOKUP(B18,'KAYIT LİSTESİ'!$B$4:$H$664,2,0))) ->  | D18: =IF(ISERROR(VLOOKUP(B18,'KAYIT LİSTESİ'!$B$4:$H$664,4,0)),"",(VLOOKUP(B18,'KAYIT LİSTESİ'!$B$4:$H$664,4,0))) ->  | E18: =IF(ISERROR(VLOOKUP(B18,'KAYIT LİSTESİ'!$B$4:$H$664,5,0)),"",(VLOOKUP(B18,'KAYIT LİSTESİ'!$B$4:$H$664,5,0))) ->  | F18: =IF(ISERROR(VLOOKUP(B18,'KAYIT LİSTESİ'!$B$4:$H$664,6,0)),"",(VLOOKUP(B18,'KAYIT LİSTESİ'!$B$4:$H$664,6,0))) ->  | N18: 0 | O18: =IF(LEN(N18)>0,VLOOKUP(N18,#REF!,4)-IF(COUNTIF(#REF!,N18)=0,0,0)," ") ->  | Q18: 1850 | R18: 16
A19: 12 | B19: Gülle-12 | C19: =IF(ISERROR(VLOOKUP(B19,'KAYIT LİSTESİ'!$B$4:$H$664,2,0)),"",(VLOOKUP(B19,'KAYIT LİSTESİ'!$B$4:$H$664,2,0))) ->  | D19: =IF(ISERROR(VLOOKUP(B19,'KAYIT LİSTESİ'!$B$4:$H$664,4,0)),"",(VLOOKUP(B19,'KAYIT LİSTESİ'!$B$4:$H$664,4,0))) ->  | E19: =IF(ISERROR(VLOOKUP(B19,'KAYIT LİSTESİ'!$B$4:$H$664,5,0)),"",(VLOOKUP(B19,'KAYIT LİSTESİ'!$B$4:$H$664,5,0))) ->  | F19: =IF(ISERROR(VLOOKUP(B19,'KAYIT LİSTESİ'!$B$4:$H$664,6,0)),"",(VLOOKUP(B19,'KAYIT LİSTESİ'!$B$4:$H$664,6,0))) ->  | N19: 0 | O19: =IF(LEN(N19)>0,VLOOKUP(N19,#REF!,4)-IF(COUNTIF(#REF!,N19)=0,0,0)," ") ->  | Q19: 1900 | R19: 17
A20: 13 | B20: Gülle-13 | C20: =IF(ISERROR(VLOOKUP(B20,'KAYIT LİSTESİ'!$B$4:$H$664,2,0)),"",(VLOOKUP(B20,'KAYIT LİSTESİ'!$B$4:$H$664,2,0))) ->  | D20: =IF(ISERROR(VLOOKUP(B20,'KAYIT LİSTESİ'!$B$4:$H$664,4,0)),"",(VLOOKUP(B20,'KAYIT LİSTESİ'!$B$4:$H$664,4,0))) ->  | E20: =IF(ISERROR(VLOOKUP(B20,'KAYIT LİSTESİ'!$B$4:$H$664,5,0)),"",(VLOOKUP(B20,'KAYIT LİSTESİ'!$B$4:$H$664,5,0))) ->  | F20: =IF(ISERROR(VLOOKUP(B20,'KAYIT LİSTESİ'!$B$4:$H$664,6,0)),"",(VLOOKUP(B20,'KAYIT LİSTESİ'!$B$4:$H$664,6,0))) ->  | N20: 0 | O20: =IF(LEN(N20)>0,VLOOKUP(N20,#REF!,4)-IF(COUNTIF(#REF!,N20)=0,0,0)," ") ->  | Q20: 1950 | R20: 18
A21: 14 | B21: Gülle-14 | C21: =IF(ISERROR(VLOOKUP(B21,'KAYIT LİSTESİ'!$B$4:$H$664,2,0)),"",(VLOOKUP(B21,'KAYIT LİSTESİ'!$B$4:$H$664,2,0))) ->  | D21: =IF(ISERROR(VLOOKUP(B21,'KAYIT LİSTESİ'!$B$4:$H$664,4,0)),"",(VLOOKUP(B21,'KAYIT LİSTESİ'!$B$4:$H$664,4,0))) ->  | E21: =IF(ISERROR(VLOOKUP(B21,'KAYIT LİSTESİ'!$B$4:$H$664,5,0)),"",(VLOOKUP(B21,'KAYIT LİSTESİ'!$B$4:$H$664,5,0))) ->  | F21: =IF(ISERROR(VLOOKUP(B21,'KAYIT LİSTESİ'!$B$4:$H$664,6,0)),"",(VLOOKUP(B21,'KAYIT LİSTESİ'!$B$4:$H$664,6,0))) ->  | N21: 0 | O21: =IF(LEN(N21)>0,VLOOKUP(N21,#REF!,4)-IF(COUNTIF(#REF!,N21)=0,0,0)," ") ->  | Q21: 2000 | R21: 19
A22: 15 | B22: Gülle-15 | C22: =IF(ISERROR(VLOOKUP(B22,'KAYIT LİSTESİ'!$B$4:$H$664,2,0)),"",(VLOOKUP(B22,'KAYIT LİSTESİ'!$B$4:$H$664,2,0))) ->  | D22: =IF(ISERROR(VLOOKUP(B22,'KAYIT LİSTESİ'!$B$4:$H$664,4,0)),"",(VLOOKUP(B22,'KAYIT LİSTESİ'!$B$4:$H$664,4,0))) ->  | E22: =IF(ISERROR(VLOOKUP(B22,'KAYIT LİSTESİ'!$B$4:$H$664,5,0)),"",(VLOOKUP(B22,'KAYIT LİSTESİ'!$B$4:$H$664,5,0))) ->  | F22: =IF(ISERROR(VLOOKUP(B22,'KAYIT LİSTESİ'!$B$4:$H$664,6,0)),"",(VLOOKUP(B22,'KAYIT LİSTESİ'!$B$4:$H$664,6,0))) ->  | N22: 0 | O22: =IF(LEN(N22)>0,VLOOKUP(N22,#REF!,4)-IF(COUNTIF(#REF!,N22)=0,0,0)," ") ->  | Q22: 2050 | R22: 20
A23: 16 | B23: Gülle-16 | C23: =IF(ISERROR(VLOOKUP(B23,'KAYIT LİSTESİ'!$B$4:$H$664,2,0)),"",(VLOOKUP(B23,'KAYIT LİSTESİ'!$B$4:$H$664,2,0))) ->  | D23: =IF(ISERROR(VLOOKUP(B23,'KAYIT LİSTESİ'!$B$4:$H$664,4,0)),"",(VLOOKUP(B23,'KAYIT LİSTESİ'!$B$4:$H$664,4,0))) ->  | E23: =IF(ISERROR(VLOOKUP(B23,'KAYIT LİSTESİ'!$B$4:$H$664,5,0)),"",(VLOOKUP(B23,'KAYIT LİSTESİ'!$B$4:$H$664,5,0))) ->  | F23: =IF(ISERROR(VLOOKUP(B23,'KAYIT LİSTESİ'!$B$4:$H$664,6,0)),"",(VLOOKUP(B23,'KAYIT LİSTESİ'!$B$4:$H$664,6,0))) ->  | N23: 0 | O23: =IF(LEN(N23)>0,VLOOKUP(N23,#REF!,4)-IF(COUNTIF(#REF!,N23)=0,0,0)," ") ->  | Q23: 2100 | R23: 21
B24: Gülle-17 | C24: =IF(ISERROR(VLOOKUP(B24,'KAYIT LİSTESİ'!$B$4:$H$664,2,0)),"",(VLOOKUP(B24,'KAYIT LİSTESİ'!$B$4:$H$664,2,0))) ->  | D24: =IF(ISERROR(VLOOKUP(B24,'KAYIT LİSTESİ'!$B$4:$H$664,4,0)),"",(VLOOKUP(B24,'KAYIT LİSTESİ'!$B$4:$H$664,4,0))) ->  | E24: =IF(ISERROR(VLOOKUP(B24,'KAYIT LİSTESİ'!$B$4:$H$664,5,0)),"",(VLOOKUP(B24,'KAYIT LİSTESİ'!$B$4:$H$664,5,0))) ->  | F24: =IF(ISERROR(VLOOKUP(B24,'KAYIT LİSTESİ'!$B$4:$H$664,6,0)),"",(VLOOKUP(B24,'KAYIT LİSTESİ'!$B$4:$H$664,6,0))) ->  | N24: 0 | O24: =IF(LEN(N24)>0,VLOOKUP(N24,#REF!,4)-IF(COUNTIF(#REF!,N24)=0,0,0)," ") ->  | Q24: 2150 | R24: 22
B25: Gülle-18 | C25: =IF(ISERROR(VLOOKUP(B25,'KAYIT LİSTESİ'!$B$4:$H$664,2,0)),"",(VLOOKUP(B25,'KAYIT LİSTESİ'!$B$4:$H$664,2,0))) ->  | D25: =IF(ISERROR(VLOOKUP(B25,'KAYIT LİSTESİ'!$B$4:$H$664,4,0)),"",(VLOOKUP(B25,'KAYIT LİSTESİ'!$B$4:$H$664,4,0))) ->  | E25: =IF(ISERROR(VLOOKUP(B25,'KAYIT LİSTESİ'!$B$4:$H$664,5,0)),"",(VLOOKUP(B25,'KAYIT LİSTESİ'!$B$4:$H$664,5,0))) ->  | F25: =IF(ISERROR(VLOOKUP(B25,'KAYIT LİSTESİ'!$B$4:$H$664,6,0)),"",(VLOOKUP(B25,'KAYIT LİSTESİ'!$B$4:$H$664,6,0))) ->  | N25: 0 | O25: =IF(LEN(N25)>0,VLOOKUP(N25,#REF!,4)-IF(COUNTIF(#REF!,N25)=0,0,0)," ") ->  | Q25: 2200 | R25: 23
B26: Gülle-19 | C26: =IF(ISERROR(VLOOKUP(B26,'KAYIT LİSTESİ'!$B$4:$H$664,2,0)),"",(VLOOKUP(B26,'KAYIT LİSTESİ'!$B$4:$H$664,2,0))) ->  | D26: =IF(ISERROR(VLOOKUP(B26,'KAYIT LİSTESİ'!$B$4:$H$664,4,0)),"",(VLOOKUP(B26,'KAYIT LİSTESİ'!$B$4:$H$664,4,0))) ->  | E26: =IF(ISERROR(VLOOKUP(B26,'KAYIT LİSTESİ'!$B$4:$H$664,5,0)),"",(VLOOKUP(B26,'KAYIT LİSTESİ'!$B$4:$H$664,5,0))) ->  | F26: =IF(ISERROR(VLOOKUP(B26,'KAYIT LİSTESİ'!$B$4:$H$664,6,0)),"",(VLOOKUP(B26,'KAYIT LİSTESİ'!$B$4:$H$664,6,0))) ->  | N26: 0 | O26: =IF(LEN(N26)>0,VLOOKUP(N26,#REF!,4)-IF(COUNTIF(#REF!,N26)=0,0,0)," ") ->  | Q26: 2250 | R26: 24
B27: Gülle-20 | C27: =IF(ISERROR(VLOOKUP(B27,'KAYIT LİSTESİ'!$B$4:$H$664,2,0)),"",(VLOOKUP(B27,'KAYIT LİSTESİ'!$B$4:$H$664,2,0))) ->  | D27: =IF(ISERROR(VLOOKUP(B27,'KAYIT LİSTESİ'!$B$4:$H$664,4,0)),"",(VLOOKUP(B27,'KAYIT LİSTESİ'!$B$4:$H$664,4,0))) ->  | E27: =IF(ISERROR(VLOOKUP(B27,'KAYIT LİSTESİ'!$B$4:$H$664,5,0)),"",(VLOOKUP(B27,'KAYIT LİSTESİ'!$B$4:$H$664,5,0))) ->  | F27: =IF(ISERROR(VLOOKUP(B27,'KAYIT LİSTESİ'!$B$4:$H$664,6,0)),"",(VLOOKUP(B27,'KAYIT LİSTESİ'!$B$4:$H$664,6,0))) ->  | N27: 0 | O27: =IF(LEN(N27)>0,VLOOKUP(N27,#REF!,4)-IF(COUNTIF(#REF!,N27)=0,0,0)," ") ->  | Q27: 2300 | R27: 25
B28: Gülle-21 | C28: =IF(ISERROR(VLOOKUP(B28,'KAYIT LİSTESİ'!$B$4:$H$664,2,0)),"",(VLOOKUP(B28,'KAYIT LİSTESİ'!$B$4:$H$664,2,0))) ->  | D28: =IF(ISERROR(VLOOKUP(B28,'KAYIT LİSTESİ'!$B$4:$H$664,4,0)),"",(VLOOKUP(B28,'KAYIT LİSTESİ'!$B$4:$H$664,4,0))) ->  | E28: =IF(ISERROR(VLOOKUP(B28,'KAYIT LİSTESİ'!$B$4:$H$664,5,0)),"",(VLOOKUP(B28,'KAYIT LİSTESİ'!$B$4:$H$664,5,0))) ->  | F28: =IF(ISERROR(VLOOKUP(B28,'KAYIT LİSTESİ'!$B$4:$H$664,6,0)),"",(VLOOKUP(B28,'KAYIT LİSTESİ'!$B$4:$H$664,6,0))) ->  | N28: 0 | O28: =IF(LEN(N28)>0,VLOOKUP(N28,#REF!,4)-IF(COUNTIF(#REF!,N28)=0,0,0)," ") ->  | Q28: 2346 | R28: 26
B29: Gülle-22 | C29: =IF(ISERROR(VLOOKUP(B29,'KAYIT LİSTESİ'!$B$4:$H$664,2,0)),"",(VLOOKUP(B29,'KAYIT LİSTESİ'!$B$4:$H$664,2,0))) ->  | D29: =IF(ISERROR(VLOOKUP(B29,'KAYIT LİSTESİ'!$B$4:$H$664,4,0)),"",(VLOOKUP(B29,'KAYIT LİSTESİ'!$B$4:$H$664,4,0))) ->  | E29: =IF(ISERROR(VLOOKUP(B29,'KAYIT LİSTESİ'!$B$4:$H$664,5,0)),"",(VLOOKUP(B29,'KAYIT LİSTESİ'!$B$4:$H$664,5,0))) ->  | F29: =IF(ISERROR(VLOOKUP(B29,'KAYIT LİSTESİ'!$B$4:$H$664,6,0)),"",(VLOOKUP(B29,'KAYIT LİSTESİ'!$B$4:$H$664,6,0))) ->  | N29: 0 | O29: =IF(LEN(N29)>0,VLOOKUP(N29,#REF!,4)-IF(COUNTIF(#REF!,N29)=0,0,0)," ") ->  | Q29: 2392 | R29: 27
B30: Gülle-23 | C30: =IF(ISERROR(VLOOKUP(B30,'KAYIT LİSTESİ'!$B$4:$H$664,2,0)),"",(VLOOKUP(B30,'KAYIT LİSTESİ'!$B$4:$H$664,2,0))) ->  | D30: =IF(ISERROR(VLOOKUP(B30,'KAYIT LİSTESİ'!$B$4:$H$664,4,0)),"",(VLOOKUP(B30,'KAYIT LİSTESİ'!$B$4:$H$664,4,0))) ->  | E30: =IF(ISERROR(VLOOKUP(B30,'KAYIT LİSTESİ'!$B$4:$H$664,5,0)),"",(VLOOKUP(B30,'KAYIT LİSTESİ'!$B$4:$H$664,5,0))) ->  | F30: =IF(ISERROR(VLOOKUP(B30,'KAYIT LİSTESİ'!$B$4:$H$664,6,0)),"",(VLOOKUP(B30,'KAYIT LİSTESİ'!$B$4:$H$664,6,0))) ->  | N30: 0 | O30: =IF(LEN(N30)>0,VLOOKUP(N30,#REF!,4)-IF(COUNTIF(#REF!,N30)=0,0,0)," ") ->  | Q30: 2438 | R30: 28
B31: Gülle-24 | C31: =IF(ISERROR(VLOOKUP(B31,'KAYIT LİSTESİ'!$B$4:$H$664,2,0)),"",(VLOOKUP(B31,'KAYIT LİSTESİ'!$B$4:$H$664,2,0))) ->  | D31: =IF(ISERROR(VLOOKUP(B31,'KAYIT LİSTESİ'!$B$4:$H$664,4,0)),"",(VLOOKUP(B31,'KAYIT LİSTESİ'!$B$4:$H$664,4,0))) ->  | E31: =IF(ISERROR(VLOOKUP(B31,'KAYIT LİSTESİ'!$B$4:$H$664,5,0)),"",(VLOOKUP(B31,'KAYIT LİSTESİ'!$B$4:$H$664,5,0))) ->  | F31: =IF(ISERROR(VLOOKUP(B31,'KAYIT LİSTESİ'!$B$4:$H$664,6,0)),"",(VLOOKUP(B31,'KAYIT LİSTESİ'!$B$4:$H$664,6,0))) ->  | N31: 0 | O31: =IF(LEN(N31)>0,VLOOKUP(N31,#REF!,4)-IF(COUNTIF(#REF!,N31)=0,0,0)," ") ->  | Q31: 2484 | R31: 29
B32: Gülle-25 | C32: =IF(ISERROR(VLOOKUP(B32,'KAYIT LİSTESİ'!$B$4:$H$664,2,0)),"",(VLOOKUP(B32,'KAYIT LİSTESİ'!$B$4:$H$664,2,0))) ->  | D32: =IF(ISERROR(VLOOKUP(B32,'KAYIT LİSTESİ'!$B$4:$H$664,4,0)),"",(VLOOKUP(B32,'KAYIT LİSTESİ'!$B$4:$H$664,4,0))) ->  | E32: =IF(ISERROR(VLOOKUP(B32,'KAYIT LİSTESİ'!$B$4:$H$664,5,0)),"",(VLOOKUP(B32,'KAYIT LİSTESİ'!$B$4:$H$664,5,0))) ->  | F32: =IF(ISERROR(VLOOKUP(B32,'KAYIT LİSTESİ'!$B$4:$H$664,6,0)),"",(VLOOKUP(B32,'KAYIT LİSTESİ'!$B$4:$H$664,6,0))) ->  | N32: 0 | O32: =IF(LEN(N32)>0,VLOOKUP(N32,#REF!,4)-IF(COUNTIF(#REF!,N32)=0,0,0)," ") ->  | Q32: 2530 | R32: 30
B33: Gülle-26 | C33: =IF(ISERROR(VLOOKUP(B33,'KAYIT LİSTESİ'!$B$4:$H$664,2,0)),"",(VLOOKUP(B33,'KAYIT LİSTESİ'!$B$4:$H$664,2,0))) ->  | D33: =IF(ISERROR(VLOOKUP(B33,'KAYIT LİSTESİ'!$B$4:$H$664,4,0)),"",(VLOOKUP(B33,'KAYIT LİSTESİ'!$B$4:$H$664,4,0))) ->  | E33: =IF(ISERROR(VLOOKUP(B33,'KAYIT LİSTESİ'!$B$4:$H$664,5,0)),"",(VLOOKUP(B33,'KAYIT LİSTESİ'!$B$4:$H$664,5,0))) ->  | F33: =IF(ISERROR(VLOOKUP(B33,'KAYIT LİSTESİ'!$B$4:$H$664,6,0)),"",(VLOOKUP(B33,'KAYIT LİSTESİ'!$B$4:$H$664,6,0))) ->  | N33: 0 | O33: =IF(LEN(N33)>0,VLOOKUP(N33,#REF!,4)-IF(COUNTIF(#REF!,N33)=0,0,0)," ") ->  | Q33: 2576 | R33: 31
B34: Gülle-27 | C34: =IF(ISERROR(VLOOKUP(B34,'KAYIT LİSTESİ'!$B$4:$H$664,2,0)),"",(VLOOKUP(B34,'KAYIT LİSTESİ'!$B$4:$H$664,2,0))) ->  | D34: =IF(ISERROR(VLOOKUP(B34,'KAYIT LİSTESİ'!$B$4:$H$664,4,0)),"",(VLOOKUP(B34,'KAYIT LİSTESİ'!$B$4:$H$664,4,0))) ->  | E34: =IF(ISERROR(VLOOKUP(B34,'KAYIT LİSTESİ'!$B$4:$H$664,5,0)),"",(VLOOKUP(B34,'KAYIT LİSTESİ'!$B$4:$H$664,5,0))) ->  | F34: =IF(ISERROR(VLOOKUP(B34,'KAYIT LİSTESİ'!$B$4:$H$664,6,0)),"",(VLOOKUP(B34,'KAYIT LİSTESİ'!$B$4:$H$664,6,0))) ->  | N34: 0 | O34: =IF(LEN(N34)>0,VLOOKUP(N34,#REF!,4)-IF(COUNTIF(#REF!,N34)=0,0,0)," ") ->  | Q34: 2622 | R34: 32
B35: Gülle-28 | C35: =IF(ISERROR(VLOOKUP(B35,'KAYIT LİSTESİ'!$B$4:$H$664,2,0)),"",(VLOOKUP(B35,'KAYIT LİSTESİ'!$B$4:$H$664,2,0))) ->  | D35: =IF(ISERROR(VLOOKUP(B35,'KAYIT LİSTESİ'!$B$4:$H$664,4,0)),"",(VLOOKUP(B35,'KAYIT LİSTESİ'!$B$4:$H$664,4,0))) ->  | E35: =IF(ISERROR(VLOOKUP(B35,'KAYIT LİSTESİ'!$B$4:$H$664,5,0)),"",(VLOOKUP(B35,'KAYIT LİSTESİ'!$B$4:$H$664,5,0))) ->  | F35: =IF(ISERROR(VLOOKUP(B35,'KAYIT LİSTESİ'!$B$4:$H$664,6,0)),"",(VLOOKUP(B35,'KAYIT LİSTESİ'!$B$4:$H$664,6,0))) ->  | N35: 0 | O35: =IF(LEN(N35)>0,VLOOKUP(N35,#REF!,4)-IF(COUNTIF(#REF!,N35)=0,0,0)," ") ->  | Q35: 2668 | R35: 33
B36: Gülle-29 | C36: =IF(ISERROR(VLOOKUP(B36,'KAYIT LİSTESİ'!$B$4:$H$664,2,0)),"",(VLOOKUP(B36,'KAYIT LİSTESİ'!$B$4:$H$664,2,0))) ->  | D36: =IF(ISERROR(VLOOKUP(B36,'KAYIT LİSTESİ'!$B$4:$H$664,4,0)),"",(VLOOKUP(B36,'KAYIT LİSTESİ'!$B$4:$H$664,4,0))) ->  | E36: =IF(ISERROR(VLOOKUP(B36,'KAYIT LİSTESİ'!$B$4:$H$664,5,0)),"",(VLOOKUP(B36,'KAYIT LİSTESİ'!$B$4:$H$664,5,0))) ->  | F36: =IF(ISERROR(VLOOKUP(B36,'KAYIT LİSTESİ'!$B$4:$H$664,6,0)),"",(VLOOKUP(B36,'KAYIT LİSTESİ'!$B$4:$H$664,6,0))) ->  | N36: 0 | O36: =IF(LEN(N36)>0,VLOOKUP(N36,#REF!,4)-IF(COUNTIF(#REF!,N36)=0,0,0)," ") ->  | Q36: 2712 | R36: 34
B37: Gülle-30 | C37: =IF(ISERROR(VLOOKUP(B37,'KAYIT LİSTESİ'!$B$4:$H$664,2,0)),"",(VLOOKUP(B37,'KAYIT LİSTESİ'!$B$4:$H$664,2,0))) ->  | D37: =IF(ISERROR(VLOOKUP(B37,'KAYIT LİSTESİ'!$B$4:$H$664,4,0)),"",(VLOOKUP(B37,'KAYIT LİSTESİ'!$B$4:$H$664,4,0))) ->  | E37: =IF(ISERROR(VLOOKUP(B37,'KAYIT LİSTESİ'!$B$4:$H$664,5,0)),"",(VLOOKUP(B37,'KAYIT LİSTESİ'!$B$4:$H$664,5,0))) ->  | F37: =IF(ISERROR(VLOOKUP(B37,'KAYIT LİSTESİ'!$B$4:$H$664,6,0)),"",(VLOOKUP(B37,'KAYIT LİSTESİ'!$B$4:$H$664,6,0))) ->  | N37: 0 | O37: =IF(LEN(N37)>0,VLOOKUP(N37,#REF!,4)-IF(COUNTIF(#REF!,N37)=0,0,0)," ") ->  | Q37: 2756 | R37: 35
B38: Gülle-31 | C38: =IF(ISERROR(VLOOKUP(B38,'KAYIT LİSTESİ'!$B$4:$H$664,2,0)),"",(VLOOKUP(B38,'KAYIT LİSTESİ'!$B$4:$H$664,2,0))) ->  | D38: =IF(ISERROR(VLOOKUP(B38,'KAYIT LİSTESİ'!$B$4:$H$664,4,0)),"",(VLOOKUP(B38,'KAYIT LİSTESİ'!$B$4:$H$664,4,0))) ->  | E38: =IF(ISERROR(VLOOKUP(B38,'KAYIT LİSTESİ'!$B$4:$H$664,5,0)),"",(VLOOKUP(B38,'KAYIT LİSTESİ'!$B$4:$H$664,5,0))) ->  | F38: =IF(ISERROR(VLOOKUP(B38,'KAYIT LİSTESİ'!$B$4:$H$664,6,0)),"",(VLOOKUP(B38,'KAYIT LİSTESİ'!$B$4:$H$664,6,0))) ->  | N38: 0 | O38: =IF(LEN(N38)>0,VLOOKUP(N38,#REF!,4)-IF(COUNTIF(#REF!,N38)=0,0,0)," ") ->  | Q38: 2800 | R38: 36
B39: Gülle-32 | C39: =IF(ISERROR(VLOOKUP(B39,'KAYIT LİSTESİ'!$B$4:$H$664,2,0)),"",(VLOOKUP(B39,'KAYIT LİSTESİ'!$B$4:$H$664,2,0))) ->  | D39: =IF(ISERROR(VLOOKUP(B39,'KAYIT LİSTESİ'!$B$4:$H$664,4,0)),"",(VLOOKUP(B39,'KAYIT LİSTESİ'!$B$4:$H$664,4,0))) ->  | E39: =IF(ISERROR(VLOOKUP(B39,'KAYIT LİSTESİ'!$B$4:$H$664,5,0)),"",(VLOOKUP(B39,'KAYIT LİSTESİ'!$B$4:$H$664,5,0))) ->  | F39: =IF(ISERROR(VLOOKUP(B39,'KAYIT LİSTESİ'!$B$4:$H$664,6,0)),"",(VLOOKUP(B39,'KAYIT LİSTESİ'!$B$4:$H$664,6,0))) ->  | N39: 0 | O39: =IF(LEN(N39)>0,VLOOKUP(N39,#REF!,4)-IF(COUNTIF(#REF!,N39)=0,0,0)," ") ->  | Q39: 2844 | R39: 37
B40: Gülle-33 | C40: =IF(ISERROR(VLOOKUP(B40,'KAYIT LİSTESİ'!$B$4:$H$664,2,0)),"",(VLOOKUP(B40,'KAYIT LİSTESİ'!$B$4:$H$664,2,0))) ->  | D40: =IF(ISERROR(VLOOKUP(B40,'KAYIT LİSTESİ'!$B$4:$H$664,4,0)),"",(VLOOKUP(B40,'KAYIT LİSTESİ'!$B$4:$H$664,4,0))) ->  | E40: =IF(ISERROR(VLOOKUP(B40,'KAYIT LİSTESİ'!$B$4:$H$664,5,0)),"",(VLOOKUP(B40,'KAYIT LİSTESİ'!$B$4:$H$664,5,0))) ->  | F40: =IF(ISERROR(VLOOKUP(B40,'KAYIT LİSTESİ'!$B$4:$H$664,6,0)),"",(VLOOKUP(B40,'KAYIT LİSTESİ'!$B$4:$H$664,6,0))) ->  | N40: 0 | O40: =IF(LEN(N40)>0,VLOOKUP(N40,#REF!,4)-IF(COUNTIF(#REF!,N40)=0,0,0)," ") ->  | Q40: 2888 | R40: 38
B41: Gülle-34 | C41: =IF(ISERROR(VLOOKUP(B41,'KAYIT LİSTESİ'!$B$4:$H$664,2,0)),"",(VLOOKUP(B41,'KAYIT LİSTESİ'!$B$4:$H$664,2,0))) ->  | D41: =IF(ISERROR(VLOOKUP(B41,'KAYIT LİSTESİ'!$B$4:$H$664,4,0)),"",(VLOOKUP(B41,'KAYIT LİSTESİ'!$B$4:$H$664,4,0))) ->  | E41: =IF(ISERROR(VLOOKUP(B41,'KAYIT LİSTESİ'!$B$4:$H$664,5,0)),"",(VLOOKUP(B41,'KAYIT LİSTESİ'!$B$4:$H$664,5,0))) ->  | F41: =IF(ISERROR(VLOOKUP(B41,'KAYIT LİSTESİ'!$B$4:$H$664,6,0)),"",(VLOOKUP(B41,'KAYIT LİSTESİ'!$B$4:$H$664,6,0))) ->  | N41: 0 | O41: =IF(LEN(N41)>0,VLOOKUP(N41,#REF!,4)-IF(COUNTIF(#REF!,N41)=0,0,0)," ") ->  | Q41: 2932 | R41: 39
B42: Gülle-35 | C42: =IF(ISERROR(VLOOKUP(B42,'KAYIT LİSTESİ'!$B$4:$H$664,2,0)),"",(VLOOKUP(B42,'KAYIT LİSTESİ'!$B$4:$H$664,2,0))) ->  | D42: =IF(ISERROR(VLOOKUP(B42,'KAYIT LİSTESİ'!$B$4:$H$664,4,0)),"",(VLOOKUP(B42,'KAYIT LİSTESİ'!$B$4:$H$664,4,0))) ->  | E42: =IF(ISERROR(VLOOKUP(B42,'KAYIT LİSTESİ'!$B$4:$H$664,5,0)),"",(VLOOKUP(B42,'KAYIT LİSTESİ'!$B$4:$H$664,5,0))) ->  | F42: =IF(ISERROR(VLOOKUP(B42,'KAYIT LİSTESİ'!$B$4:$H$664,6,0)),"",(VLOOKUP(B42,'KAYIT LİSTESİ'!$B$4:$H$664,6,0))) ->  | N42: 0 | O42: =IF(LEN(N42)>0,VLOOKUP(N42,#REF!,4)-IF(COUNTIF(#REF!,N42)=0,0,0)," ") ->  | Q42: 2976 | R42: 40
B43: Gülle-36 | C43: =IF(ISERROR(VLOOKUP(B43,'KAYIT LİSTESİ'!$B$4:$H$664,2,0)),"",(VLOOKUP(B43,'KAYIT LİSTESİ'!$B$4:$H$664,2,0))) ->  | D43: =IF(ISERROR(VLOOKUP(B43,'KAYIT LİSTESİ'!$B$4:$H$664,4,0)),"",(VLOOKUP(B43,'KAYIT LİSTESİ'!$B$4:$H$664,4,0))) ->  | E43: =IF(ISERROR(VLOOKUP(B43,'KAYIT LİSTESİ'!$B$4:$H$664,5,0)),"",(VLOOKUP(B43,'KAYIT LİSTESİ'!$B$4:$H$664,5,0))) ->  | F43: =IF(ISERROR(VLOOKUP(B43,'KAYIT LİSTESİ'!$B$4:$H$664,6,0)),"",(VLOOKUP(B43,'KAYIT LİSTESİ'!$B$4:$H$664,6,0))) ->  | N43: 0 | O43: =IF(LEN(N43)>0,VLOOKUP(N43,#REF!,4)-IF(COUNTIF(#REF!,N43)=0,0,0)," ") ->  | Q43: 3020 | R43: 41
B44: Gülle-37 | C44: =IF(ISERROR(VLOOKUP(B44,'KAYIT LİSTESİ'!$B$4:$H$664,2,0)),"",(VLOOKUP(B44,'KAYIT LİSTESİ'!$B$4:$H$664,2,0))) ->  | D44: =IF(ISERROR(VLOOKUP(B44,'KAYIT LİSTESİ'!$B$4:$H$664,4,0)),"",(VLOOKUP(B44,'KAYIT LİSTESİ'!$B$4:$H$664,4,0))) ->  | E44: =IF(ISERROR(VLOOKUP(B44,'KAYIT LİSTESİ'!$B$4:$H$664,5,0)),"",(VLOOKUP(B44,'KAYIT LİSTESİ'!$B$4:$H$664,5,0))) ->  | F44: =IF(ISERROR(VLOOKUP(B44,'KAYIT LİSTESİ'!$B$4:$H$664,6,0)),"",(VLOOKUP(B44,'KAYIT LİSTESİ'!$B$4:$H$664,6,0))) ->  | N44: 0 | O44: =IF(LEN(N44)>0,VLOOKUP(N44,#REF!,4)-IF(COUNTIF(#REF!,N44)=0,0,0)," ") ->  | Q44: 3064 | R44: 42
B45: Gülle-38 | C45: =IF(ISERROR(VLOOKUP(B45,'KAYIT LİSTESİ'!$B$4:$H$664,2,0)),"",(VLOOKUP(B45,'KAYIT LİSTESİ'!$B$4:$H$664,2,0))) ->  | D45: =IF(ISERROR(VLOOKUP(B45,'KAYIT LİSTESİ'!$B$4:$H$664,4,0)),"",(VLOOKUP(B45,'KAYIT LİSTESİ'!$B$4:$H$664,4,0))) ->  | E45: =IF(ISERROR(VLOOKUP(B45,'KAYIT LİSTESİ'!$B$4:$H$664,5,0)),"",(VLOOKUP(B45,'KAYIT LİSTESİ'!$B$4:$H$664,5,0))) ->  | F45: =IF(ISERROR(VLOOKUP(B45,'KAYIT LİSTESİ'!$B$4:$H$664,6,0)),"",(VLOOKUP(B45,'KAYIT LİSTESİ'!$B$4:$H$664,6,0))) ->  | N45: 0 | O45: =IF(LEN(N45)>0,VLOOKUP(N45,#REF!,4)-IF(COUNTIF(#REF!,N45)=0,0,0)," ") ->  | Q45: 3106 | R45: 43
B46: Gülle-39 | C46: =IF(ISERROR(VLOOKUP(B46,'KAYIT LİSTESİ'!$B$4:$H$664,2,0)),"",(VLOOKUP(B46,'KAYIT LİSTESİ'!$B$4:$H$664,2,0))) ->  | D46: =IF(ISERROR(VLOOKUP(B46,'KAYIT LİSTESİ'!$B$4:$H$664,4,0)),"",(VLOOKUP(B46,'KAYIT LİSTESİ'!$B$4:$H$664,4,0))) ->  | E46: =IF(ISERROR(VLOOKUP(B46,'KAYIT LİSTESİ'!$B$4:$H$664,5,0)),"",(VLOOKUP(B46,'KAYIT LİSTESİ'!$B$4:$H$664,5,0))) ->  | F46: =IF(ISERROR(VLOOKUP(B46,'KAYIT LİSTESİ'!$B$4:$H$664,6,0)),"",(VLOOKUP(B46,'KAYIT LİSTESİ'!$B$4:$H$664,6,0))) ->  | N46: 0 | O46: =IF(LEN(N46)>0,VLOOKUP(N46,#REF!,4)-IF(COUNTIF(#REF!,N46)=0,0,0)," ") ->  | Q46: 3148 | R46: 44
B47: Gülle-40 | C47: =IF(ISERROR(VLOOKUP(B47,'KAYIT LİSTESİ'!$B$4:$H$664,2,0)),"",(VLOOKUP(B47,'KAYIT LİSTESİ'!$B$4:$H$664,2,0))) ->  | D47: =IF(ISERROR(VLOOKUP(B47,'KAYIT LİSTESİ'!$B$4:$H$664,4,0)),"",(VLOOKUP(B47,'KAYIT LİSTESİ'!$B$4:$H$664,4,0))) ->  | E47: =IF(ISERROR(VLOOKUP(B47,'KAYIT LİSTESİ'!$B$4:$H$664,5,0)),"",(VLOOKUP(B47,'KAYIT LİSTESİ'!$B$4:$H$664,5,0))) ->  | F47: =IF(ISERROR(VLOOKUP(B47,'KAYIT LİSTESİ'!$B$4:$H$664,6,0)),"",(VLOOKUP(B47,'KAYIT LİSTESİ'!$B$4:$H$664,6,0))) ->  | N47: 0 | O47: =IF(LEN(N47)>0,VLOOKUP(N47,#REF!,4)-IF(COUNTIF(#REF!,N47)=0,0,0)," ") ->  | Q47: 3190 | R47: 45
Q48: 3232 | R48: 46
A49: Müsabaka Direktörü | E49: Baş Hakem | F49: Lider | G49: Sekreter | N49: Hakem | Q49: 3274 | R49: 47
Q50: 3316 | R50: 48
Q51: 3358 | R51: 49
Q52: 3400 | R52: 50
Q53: 3442 | R53: 51
Q54: 3484 | R54: 52
Q55: 3526 | R55: 53
Q56: 3568 | R56: 54
Q57: 3610 | R57: 55
Q58: 3652 | R58: 56
Q59: 3694 | R59: 57
Q60: 3736 | R60: 58
Q61: 3776 | R61: 59
Q62: 3816 | R62: 60
Q63: 3856 | R63: 61
Q64: 3896 | R64: 62
Q65: 3936 | R65: 63
Q66: 3976 | R66: 64
Q67: 4016 | R67: 65
Q68: 4056 | R68: 66
Q69: 4096 | R69: 67
Q70: 4134 | R70: 68
Q71: 4172 | R71: 69
Q72: 4210 | R72: 70
Q73: 4248 | R73: 71
Q74: 4286 | R74: 72
Q75: 4324 | R75: 73
Q76: 4362 | R76: 74
Q77: 4400 | R77: 75
Q78: 4438 | R78: 76
Q79: 4476 | R79: 77
Q80: 4514 | R80: 78
Q81: 4552 | R81: 79
Q82: 4590 | R82: 80
Q83: 4628 | R83: 81
Q84: 4666 | R84: 82
Q85: 4704 | R85: 83
Q86: 4740 | R86: 84
Q87: 4776 | R87: 85
Q88: 4812 | R88: 86
Q89: 4848 | R89: 87
Q90: 4884 | R90: 88
Q91: 4920 | R91: 89
Q92: 4956 | R92: 90
Q93: 4992 | R93: 91
Q94: 5028 | R94: 92
Q95: 5062 | R95: 93
Q96: 5096 | R96: 94
Q97: 5130 | R97: 95
Q98: 5164 | R98: 96
Q99: 5198 | R99: 97
Q100: 5232 | R100: 98
Q101: 5266 | R101: 99
Q102: 5300 | R102: 100

Sheet Çekiç
A1: ='YARIŞMA BİLGİLERİ'!A2:K2 -> Türkiye Atletizm Federasyonu Mersin Atletizm İl Temsilciliği | Q1: DERECE
A2: ='YARIŞMA BİLGİLERİ'!A14:K14 -> Olimpik Baraj Yarışmaları | Q2: 100 | R2: 0
A3: Yarışma : | D3: =#REF! ->  | F3: Baraj Derecesi : | G3: =#REF! ->  | Q3: 1100 | R3: 1
A4: Kategori : | D4: ='YARIŞMA BİLGİLERİ'!F21 -> Kadınlar | F4: Ağırlık: | G4: 3 Kg. | L4: Tarih-Saat : | M4: =#REF! ->  | Q4: 1150 | R4: 2
N5: =NOW() -> 42222.53664 | Q5: 1200 | R5: 3
A6: SIRA NO | C6: GÖĞÜS NO | D6: DOĞUM TARİHİ Gün/Ay/Yıl | E6: ADI VE SOYADI | F6: İli-Okulu | G6: A T M A L A R | N6: SONUÇ | O6: PUAN | P6: KLASMAN | Q6: 1250 | R6: 4
G7: 1 | H7: 2 | I7: 3 | J7: ARA DERECE | K7: 4 | L7: 5 | M7: 6 | Q7: 1300 | R7: 5
A8: 1 | B8: Çekiç-1 | C8: =IF(ISERROR(VLOOKUP(B8,'KAYIT LİSTESİ'!$B$4:$H$664,2,0)),"",(VLOOKUP(B8,'KAYIT LİSTESİ'!$B$4:$H$664,2,0))) -> 603 | D8: =IF(ISERROR(VLOOKUP(B8,'KAYIT LİSTESİ'!$B$4:$H$664,4,0)),"",(VLOOKUP(B8,'KAYIT LİSTESİ'!$B$4:$H$664,4,0))) -> 1988-05-01 | E8: =IF(ISERROR(VLOOKUP(B8,'KAYIT LİSTESİ'!$B$4:$H$664,5,0)),"",(VLOOKUP(B8,'KAYIT LİSTESİ'!$B$4:$H$664,5,0))) -> TUĞÇE ŞAHUTOĞLU | F8: =IF(ISERROR(VLOOKUP(B8,'KAYIT LİSTESİ'!$B$4:$H$664,6,0)),"",(VLOOKUP(B8,'KAYIT LİSTESİ'!$B$4:$H$664,6,0))) -> MERSİN | J8: =IF(COUNT(G8:I8)=0,"",MAX(G8:I8)) ->  | N8: =MAX(G8:M8) -> 0 | O8: =IF(LEN(N8)>0,VLOOKUP(N8,#REF!,4)-IF(COUNTIF(#REF!,N8)=0,0,0)," ") ->  | Q8: 1350 | R8: 6
A9: 2 | B9: Çekiç-2 | C9: =IF(ISERROR(VLOOKUP(B9,'KAYIT LİSTESİ'!$B$4:$H$664,2,0)),"",(VLOOKUP(B9,'KAYIT LİSTESİ'!$B$4:$H$664,2,0))) ->  | D9: =IF(ISERROR(VLOOKUP(B9,'KAYIT LİSTESİ'!$B$4:$H$664,4,0)),"",(VLOOKUP(B9,'KAYIT LİSTESİ'!$B$4:$H$664,4,0))) ->  | E9: =IF(ISERROR(VLOOKUP(B9,'KAYIT LİSTESİ'!$B$4:$H$664,5,0)),"",(VLOOKUP(B9,'KAYIT LİSTESİ'!$B$4:$H$664,5,0))) ->  | F9: =IF(ISERROR(VLOOKUP(B9,'KAYIT LİSTESİ'!$B$4:$H$664,6,0)),"",(VLOOKUP(B9,'KAYIT LİSTESİ'!$B$4:$H$664,6,0))) ->  | J9: =IF(COUNT(G9:I9)=0,"",MAX(G9:I9)) ->  | N9: =MAX(G9:M9) -> 0 | O9: =IF(LEN(N9)>0,VLOOKUP(N9,#REF!,4)-IF(COUNTIF(#REF!,N9)=0,0,0)," ") ->  | Q9: 1400 | R9: 7
A10: 3 | B10: Çekiç-3 | C10: =IF(ISERROR(VLOOKUP(B10,'KAYIT LİSTESİ'!$B$4:$H$664,2,0)),"",(VLOOKUP(B10,'KAYIT LİSTESİ'!$B$4:$H$664,2,0))) ->  | D10: =IF(ISERROR(VLOOKUP(B10,'KAYIT LİSTESİ'!$B$4:$H$664,4,0)),"",(VLOOKUP(B10,'KAYIT LİSTESİ'!$B$4:$H$664,4,0))) ->  | E10: =IF(ISERROR(VLOOKUP(B10,'KAYIT LİSTESİ'!$B$4:$H$664,5,0)),"",(VLOOKUP(B10,'KAYIT LİSTESİ'!$B$4:$H$664,5,0))) ->  | F10: =IF(ISERROR(VLOOKUP(B10,'KAYIT LİSTESİ'!$B$4:$H$664,6,0)),"",(VLOOKUP(B10,'KAYIT LİSTESİ'!$B$4:$H$664,6,0))) ->  | N10: 0 | O10: =IF(LEN(N10)>0,VLOOKUP(N10,#REF!,4)-IF(COUNTIF(#REF!,N10)=0,0,0)," ") ->  | Q10: 1450 | R10: 8
A11: 4 | B11: Çekiç-4 | C11: =IF(ISERROR(VLOOKUP(B11,'KAYIT LİSTESİ'!$B$4:$H$664,2,0)),"",(VLOOKUP(B11,'KAYIT LİSTESİ'!$B$4:$H$664,2,0))) ->  | D11: =IF(ISERROR(VLOOKUP(B11,'KAYIT LİSTESİ'!$B$4:$H$664,4,0)),"",(VLOOKUP(B11,'KAYIT LİSTESİ'!$B$4:$H$664,4,0))) ->  | E11: =IF(ISERROR(VLOOKUP(B11,'KAYIT LİSTESİ'!$B$4:$H$664,5,0)),"",(VLOOKUP(B11,'KAYIT LİSTESİ'!$B$4:$H$664,5,0))) ->  | F11: =IF(ISERROR(VLOOKUP(B11,'KAYIT LİSTESİ'!$B$4:$H$664,6,0)),"",(VLOOKUP(B11,'KAYIT LİSTESİ'!$B$4:$H$664,6,0))) ->  | N11: 0 | O11: =IF(LEN(N11)>0,VLOOKUP(N11,#REF!,4)-IF(COUNTIF(#REF!,N11)=0,0,0)," ") ->  | Q11: 1500 | R11: 9
A12: 5 | B12: Çekiç-5 | C12: =IF(ISERROR(VLOOKUP(B12,'KAYIT LİSTESİ'!$B$4:$H$664,2,0)),"",(VLOOKUP(B12,'KAYIT LİSTESİ'!$B$4:$H$664,2,0))) ->  | D12: =IF(ISERROR(VLOOKUP(B12,'KAYIT LİSTESİ'!$B$4:$H$664,4,0)),"",(VLOOKUP(B12,'KAYIT LİSTESİ'!$B$4:$H$664,4,0))) ->  | E12: =IF(ISERROR(VLOOKUP(B12,'KAYIT LİSTESİ'!$B$4:$H$664,5,0)),"",(VLOOKUP(B12,'KAYIT LİSTESİ'!$B$4:$H$664,5,0))) ->  | F12: =IF(ISERROR(VLOOKUP(B12,'KAYIT LİSTESİ'!$B$4:$H$664,6,0)),"",(VLOOKUP(B12,'KAYIT LİSTESİ'!$B$4:$H$664,6,0))) ->  | N12: 0 | O12: =IF(LEN(N12)>0,VLOOKUP(N12,#REF!,4)-IF(COUNTIF(#REF!,N12)=0,0,0)," ") ->  | Q12: 1550 | R12: 10
A13: 6 | B13: Çekiç-6 | C13: =IF(ISERROR(VLOOKUP(B13,'KAYIT LİSTESİ'!$B$4:$H$664,2,0)),"",(VLOOKUP(B13,'KAYIT LİSTESİ'!$B$4:$H$664,2,0))) ->  | D13: =IF(ISERROR(VLOOKUP(B13,'KAYIT LİSTESİ'!$B$4:$H$664,4,0)),"",(VLOOKUP(B13,'KAYIT LİSTESİ'!$B$4:$H$664,4,0))) ->  | E13: =IF(ISERROR(VLOOKUP(B13,'KAYIT LİSTESİ'!$B$4:$H$664,5,0)),"",(VLOOKUP(B13,'KAYIT LİSTESİ'!$B$4:$H$664,5,0))) ->  | F13: =IF(ISERROR(VLOOKUP(B13,'KAYIT LİSTESİ'!$B$4:$H$664,6,0)),"",(VLOOKUP(B13,'KAYIT LİSTESİ'!$B$4:$H$664,6,0))) ->  | N13: 0 | O13: =IF(LEN(N13)>0,VLOOKUP(N13,#REF!,4)-IF(COUNTIF(#REF!,N13)=0,0,0)," ") ->  | Q13: 1600 | R13: 11
A14: 7 | B14: Çekiç-7 | C14: =IF(ISERROR(VLOOKUP(B14,'KAYIT LİSTESİ'!$B$4:$H$664,2,0)),"",(VLOOKUP(B14,'KAYIT LİSTESİ'!$B$4:$H$664,2,0))) ->  | D14: =IF(ISERROR(VLOOKUP(B14,'KAYIT LİSTESİ'!$B$4:$H$664,4,0)),"",(VLOOKUP(B14,'KAYIT LİSTESİ'!$B$4:$H$664,4,0))) ->  | E14: =IF(ISERROR(VLOOKUP(B14,'KAYIT LİSTESİ'!$B$4:$H$664,5,0)),"",(VLOOKUP(B14,'KAYIT LİSTESİ'!$B$4:$H$664,5,0))) ->  | F14: =IF(ISERROR(VLOOKUP(B14,'KAYIT LİSTESİ'!$B$4:$H$664,6,0)),"",(VLOOKUP(B14,'KAYIT LİSTESİ'!$B$4:$H$664,6,0))) ->  | N14: 0 | O14: =IF(LEN(N14)>0,VLOOKUP(N14,#REF!,4)-IF(COUNTIF(#REF!,N14)=0,0,0)," ") ->  | Q14: 1650 | R14: 12
A15: 8 | B15: Çekiç-8 | C15: =IF(ISERROR(VLOOKUP(B15,'KAYIT LİSTESİ'!$B$4:$H$664,2,0)),"",(VLOOKUP(B15,'KAYIT LİSTESİ'!$B$4:$H$664,2,0))) ->  | D15: =IF(ISERROR(VLOOKUP(B15,'KAYIT LİSTESİ'!$B$4:$H$664,4,0)),"",(VLOOKUP(B15,'KAYIT LİSTESİ'!$B$4:$H$664,4,0))) ->  | E15: =IF(ISERROR(VLOOKUP(B15,'KAYIT LİSTESİ'!$B$4:$H$664,5,0)),"",(VLOOKUP(B15,'KAYIT LİSTESİ'!$B$4:$H$664,5,0))) ->  | F15: =IF(ISERROR(VLOOKUP(B15,'KAYIT LİSTESİ'!$B$4:$H$664,6,0)),"",(VLOOKUP(B15,'KAYIT LİSTESİ'!$B$4:$H$664,6,0))) ->  | N15: 0 | O15: =IF(LEN(N15)>0,VLOOKUP(N15,#REF!,4)-IF(COUNTIF(#REF!,N15)=0,0,0)," ") ->  | Q15: 1700 | R15: 13
A16: 9 | B16: Çekiç-9 | C16: =IF(ISERROR(VLOOKUP(B16,'KAYIT LİSTESİ'!$B$4:$H$664,2,0)),"",(VLOOKUP(B16,'KAYIT LİSTESİ'!$B$4:$H$664,2,0))) ->  | D16: =IF(ISERROR(VLOOKUP(B16,'KAYIT LİSTESİ'!$B$4:$H$664,4,0)),"",(VLOOKUP(B16,'KAYIT LİSTESİ'!$B$4:$H$664,4,0))) ->  | E16: =IF(ISERROR(VLOOKUP(B16,'KAYIT LİSTESİ'!$B$4:$H$664,5,0)),"",(VLOOKUP(B16,'KAYIT LİSTESİ'!$B$4:$H$664,5,0))) ->  | F16: =IF(ISERROR(VLOOKUP(B16,'KAYIT LİSTESİ'!$B$4:$H$664,6,0)),"",(VLOOKUP(B16,'KAYIT LİSTESİ'!$B$4:$H$664,6,0))) ->  | N16: 0 | O16: =IF(LEN(N16)>0,VLOOKUP(N16,#REF!,4)-IF(COUNTIF(#REF!,N16)=0,0,0)," ") ->  | Q16: 1750 | R16: 14
A17: 10 | B17: Çekiç-10 | C17: =IF(ISERROR(VLOOKUP(B17,'KAYIT LİSTESİ'!$B$4:$H$664,2,0)),"",(VLOOKUP(B17,'KAYIT LİSTESİ'!$B$4:$H$664,2,0))) ->  | D17: =IF(ISERROR(VLOOKUP(B17,'KAYIT LİSTESİ'!$B$4:$H$664,4,0)),"",(VLOOKUP(B17,'KAYIT LİSTESİ'!$B$4:$H$664,4,0))) ->  | E17: =IF(ISERROR(VLOOKUP(B17,'KAYIT LİSTESİ'!$B$4:$H$664,5,0)),"",(VLOOKUP(B17,'KAYIT LİSTESİ'!$B$4:$H$664,5,0))) ->  | F17: =IF(ISERROR(VLOOKUP(B17,'KAYIT LİSTESİ'!$B$4:$H$664,6,0)),"",(VLOOKUP(B17,'KAYIT LİSTESİ'!$B$4:$H$664,6,0))) ->  | N17: 0 | O17: =IF(LEN(N17)>0,VLOOKUP(N17,#REF!,4)-IF(COUNTIF(#REF!,N17)=0,0,0)," ") ->  | Q17: 1800 | R17: 15
A18: 11 | B18: Çekiç-11 | C18: =IF(ISERROR(VLOOKUP(B18,'KAYIT LİSTESİ'!$B$4:$H$664,2,0)),"",(VLOOKUP(B18,'KAYIT LİSTESİ'!$B$4:$H$664,2,0))) ->  | D18: =IF(ISERROR(VLOOKUP(B18,'KAYIT LİSTESİ'!$B$4:$H$664,4,0)),"",(VLOOKUP(B18,'KAYIT LİSTESİ'!$B$4:$H$664,4,0))) ->  | E18: =IF(ISERROR(VLOOKUP(B18,'KAYIT LİSTESİ'!$B$4:$H$664,5,0)),"",(VLOOKUP(B18,'KAYIT LİSTESİ'!$B$4:$H$664,5,0))) ->  | F18: =IF(ISERROR(VLOOKUP(B18,'KAYIT LİSTESİ'!$B$4:$H$664,6,0)),"",(VLOOKUP(B18,'KAYIT LİSTESİ'!$B$4:$H$664,6,0))) ->  | N18: 0 | O18: =IF(LEN(N18)>0,VLOOKUP(N18,#REF!,4)-IF(COUNTIF(#REF!,N18)=0,0,0)," ") ->  | Q18: 1850 | R18: 16
A19: 12 | B19: Çekiç-12 | C19: =IF(ISERROR(VLOOKUP(B19,'KAYIT LİSTESİ'!$B$4:$H$664,2,0)),"",(VLOOKUP(B19,'KAYIT LİSTESİ'!$B$4:$H$664,2,0))) ->  | D19: =IF(ISERROR(VLOOKUP(B19,'KAYIT LİSTESİ'!$B$4:$H$664,4,0)),"",(VLOOKUP(B19,'KAYIT LİSTESİ'!$B$4:$H$664,4,0))) ->  | E19: =IF(ISERROR(VLOOKUP(B19,'KAYIT LİSTESİ'!$B$4:$H$664,5,0)),"",(VLOOKUP(B19,'KAYIT LİSTESİ'!$B$4:$H$664,5,0))) ->  | F19: =IF(ISERROR(VLOOKUP(B19,'KAYIT LİSTESİ'!$B$4:$H$664,6,0)),"",(VLOOKUP(B19,'KAYIT LİSTESİ'!$B$4:$H$664,6,0))) ->  | N19: 0 | O19: =IF(LEN(N19)>0,VLOOKUP(N19,#REF!,4)-IF(COUNTIF(#REF!,N19)=0,0,0)," ") ->  | Q19: 1900 | R19: 17
A20: 13 | B20: Çekiç-13 | C20: =IF(ISERROR(VLOOKUP(B20,'KAYIT LİSTESİ'!$B$4:$H$664,2,0)),"",(VLOOKUP(B20,'KAYIT LİSTESİ'!$B$4:$H$664,2,0))) ->  | D20: =IF(ISERROR(VLOOKUP(B20,'KAYIT LİSTESİ'!$B$4:$H$664,4,0)),"",(VLOOKUP(B20,'KAYIT LİSTESİ'!$B$4:$H$664,4,0))) ->  | E20: =IF(ISERROR(VLOOKUP(B20,'KAYIT LİSTESİ'!$B$4:$H$664,5,0)),"",(VLOOKUP(B20,'KAYIT LİSTESİ'!$B$4:$H$664,5,0))) ->  | F20: =IF(ISERROR(VLOOKUP(B20,'KAYIT LİSTESİ'!$B$4:$H$664,6,0)),"",(VLOOKUP(B20,'KAYIT LİSTESİ'!$B$4:$H$664,6,0))) ->  | N20: 0 | O20: =IF(LEN(N20)>0,VLOOKUP(N20,#REF!,4)-IF(COUNTIF(#REF!,N20)=0,0,0)," ") ->  | Q20: 1950 | R20: 18
A21: 14 | B21: Çekiç-14 | C21: =IF(ISERROR(VLOOKUP(B21,'KAYIT LİSTESİ'!$B$4:$H$664,2,0)),"",(VLOOKUP(B21,'KAYIT LİSTESİ'!$B$4:$H$664,2,0))) ->  | D21: =IF(ISERROR(VLOOKUP(B21,'KAYIT LİSTESİ'!$B$4:$H$664,4,0)),"",(VLOOKUP(B21,'KAYIT LİSTESİ'!$B$4:$H$664,4,0))) ->  | E21: =IF(ISERROR(VLOOKUP(B21,'KAYIT LİSTESİ'!$B$4:$H$664,5,0)),"",(VLOOKUP(B21,'KAYIT LİSTESİ'!$B$4:$H$664,5,0))) ->  | F21: =IF(ISERROR(VLOOKUP(B21,'KAYIT LİSTESİ'!$B$4:$H$664,6,0)),"",(VLOOKUP(B21,'KAYIT LİSTESİ'!$B$4:$H$664,6,0))) ->  | N21: 0 | O21: =IF(LEN(N21)>0,VLOOKUP(N21,#REF!,4)-IF(COUNTIF(#REF!,N21)=0,0,0)," ") ->  | Q21: 2000 | R21: 19
A22: 15 | B22: Çekiç-15 | C22: =IF(ISERROR(VLOOKUP(B22,'KAYIT LİSTESİ'!$B$4:$H$664,2,0)),"",(VLOOKUP(B22,'KAYIT LİSTESİ'!$B$4:$H$664,2,0))) ->  | D22: =IF(ISERROR(VLOOKUP(B22,'KAYIT LİSTESİ'!$B$4:$H$664,4,0)),"",(VLOOKUP(B22,'KAYIT LİSTESİ'!$B$4:$H$664,4,0))) ->  | E22: =IF(ISERROR(VLOOKUP(B22,'KAYIT LİSTESİ'!$B$4:$H$664,5,0)),"",(VLOOKUP(B22,'KAYIT LİSTESİ'!$B$4:$H$664,5,0))) ->  | F22: =IF(ISERROR(VLOOKUP(B22,'KAYIT LİSTESİ'!$B$4:$H$664,6,0)),"",(VLOOKUP(B22,'KAYIT LİSTESİ'!$B$4:$H$664,6,0))) ->  | N22: 0 | O22: =IF(LEN(N22)>0,VLOOKUP(N22,#REF!,4)-IF(COUNTIF(#REF!,N22)=0,0,0)," ") ->  | Q22: 2050 | R22: 20
A23: 16 | B23: Çekiç-16 | C23: =IF(ISERROR(VLOOKUP(B23,'KAYIT LİSTESİ'!$B$4:$H$664,2,0)),"",(VLOOKUP(B23,'KAYIT LİSTESİ'!$B$4:$H$664,2,0))) ->  | D23: =IF(ISERROR(VLOOKUP(B23,'KAYIT LİSTESİ'!$B$4:$H$664,4,0)),"",(VLOOKUP(B23,'KAYIT LİSTESİ'!$B$4:$H$664,4,0))) ->  | E23: =IF(ISERROR(VLOOKUP(B23,'KAYIT LİSTESİ'!$B$4:$H$664,5,0)),"",(VLOOKUP(B23,'KAYIT LİSTESİ'!$B$4:$H$664,5,0))) ->  | F23: =IF(ISERROR(VLOOKUP(B23,'KAYIT LİSTESİ'!$B$4:$H$664,6,0)),"",(VLOOKUP(B23,'KAYIT LİSTESİ'!$B$4:$H$664,6,0))) ->  | N23: 0 | O23: =IF(LEN(N23)>0,VLOOKUP(N23,#REF!,4)-IF(COUNTIF(#REF!,N23)=0,0,0)," ") ->  | Q23: 2100 | R23: 21
B24: Çekiç-17 | C24: =IF(ISERROR(VLOOKUP(B24,'KAYIT LİSTESİ'!$B$4:$H$664,2,0)),"",(VLOOKUP(B24,'KAYIT LİSTESİ'!$B$4:$H$664,2,0))) ->  | D24: =IF(ISERROR(VLOOKUP(B24,'KAYIT LİSTESİ'!$B$4:$H$664,4,0)),"",(VLOOKUP(B24,'KAYIT LİSTESİ'!$B$4:$H$664,4,0))) ->  | E24: =IF(ISERROR(VLOOKUP(B24,'KAYIT LİSTESİ'!$B$4:$H$664,5,0)),"",(VLOOKUP(B24,'KAYIT LİSTESİ'!$B$4:$H$664,5,0))) ->  | F24: =IF(ISERROR(VLOOKUP(B24,'KAYIT LİSTESİ'!$B$4:$H$664,6,0)),"",(VLOOKUP(B24,'KAYIT LİSTESİ'!$B$4:$H$664,6,0))) ->  | N24: 0 | O24: =IF(LEN(N24)>0,VLOOKUP(N24,#REF!,4)-IF(COUNTIF(#REF!,N24)=0,0,0)," ") ->  | Q24: 2150 | R24: 22
B25: Çekiç-18 | C25: =IF(ISERROR(VLOOKUP(B25,'KAYIT LİSTESİ'!$B$4:$H$664,2,0)),"",(VLOOKUP(B25,'KAYIT LİSTESİ'!$B$4:$H$664,2,0))) ->  | D25: =IF(ISERROR(VLOOKUP(B25,'KAYIT LİSTESİ'!$B$4:$H$664,4,0)),"",(VLOOKUP(B25,'KAYIT LİSTESİ'!$B$4:$H$664,4,0))) ->  | E25: =IF(ISERROR(VLOOKUP(B25,'KAYIT LİSTESİ'!$B$4:$H$664,5,0)),"",(VLOOKUP(B25,'KAYIT LİSTESİ'!$B$4:$H$664,5,0))) ->  | F25: =IF(ISERROR(VLOOKUP(B25,'KAYIT LİSTESİ'!$B$4:$H$664,6,0)),"",(VLOOKUP(B25,'KAYIT LİSTESİ'!$B$4:$H$664,6,0))) ->  | N25: 0 | O25: =IF(LEN(N25)>0,VLOOKUP(N25,#REF!,4)-IF(COUNTIF(#REF!,N25)=0,0,0)," ") ->  | Q25: 2200 | R25: 23
B26: Çekiç-19 | C26: =IF(ISERROR(VLOOKUP(B26,'KAYIT LİSTESİ'!$B$4:$H$664,2,0)),"",(VLOOKUP(B26,'KAYIT LİSTESİ'!$B$4:$H$664,2,0))) ->  | D26: =IF(ISERROR(VLOOKUP(B26,'KAYIT LİSTESİ'!$B$4:$H$664,4,0)),"",(VLOOKUP(B26,'KAYIT LİSTESİ'!$B$4:$H$664,4,0))) ->  | E26: =IF(ISERROR(VLOOKUP(B26,'KAYIT LİSTESİ'!$B$4:$H$664,5,0)),"",(VLOOKUP(B26,'KAYIT LİSTESİ'!$B$4:$H$664,5,0))) ->  | F26: =IF(ISERROR(VLOOKUP(B26,'KAYIT LİSTESİ'!$B$4:$H$664,6,0)),"",(VLOOKUP(B26,'KAYIT LİSTESİ'!$B$4:$H$664,6,0))) ->  | N26: 0 | O26: =IF(LEN(N26)>0,VLOOKUP(N26,#REF!,4)-IF(COUNTIF(#REF!,N26)=0,0,0)," ") ->  | Q26: 2250 | R26: 24
B27: Çekiç-20 | C27: =IF(ISERROR(VLOOKUP(B27,'KAYIT LİSTESİ'!$B$4:$H$664,2,0)),"",(VLOOKUP(B27,'KAYIT LİSTESİ'!$B$4:$H$664,2,0))) ->  | D27: =IF(ISERROR(VLOOKUP(B27,'KAYIT LİSTESİ'!$B$4:$H$664,4,0)),"",(VLOOKUP(B27,'KAYIT LİSTESİ'!$B$4:$H$664,4,0))) ->  | E27: =IF(ISERROR(VLOOKUP(B27,'KAYIT LİSTESİ'!$B$4:$H$664,5,0)),"",(VLOOKUP(B27,'KAYIT LİSTESİ'!$B$4:$H$664,5,0))) ->  | F27: =IF(ISERROR(VLOOKUP(B27,'KAYIT LİSTESİ'!$B$4:$H$664,6,0)),"",(VLOOKUP(B27,'KAYIT LİSTESİ'!$B$4:$H$664,6,0))) ->  | N27: 0 | O27: =IF(LEN(N27)>0,VLOOKUP(N27,#REF!,4)-IF(COUNTIF(#REF!,N27)=0,0,0)," ") ->  | Q27: 2300 | R27: 25
B28: Çekiç-21 | C28: =IF(ISERROR(VLOOKUP(B28,'KAYIT LİSTESİ'!$B$4:$H$664,2,0)),"",(VLOOKUP(B28,'KAYIT LİSTESİ'!$B$4:$H$664,2,0))) ->  | D28: =IF(ISERROR(VLOOKUP(B28,'KAYIT LİSTESİ'!$B$4:$H$664,4,0)),"",(VLOOKUP(B28,'KAYIT LİSTESİ'!$B$4:$H$664,4,0))) ->  | E28: =IF(ISERROR(VLOOKUP(B28,'KAYIT LİSTESİ'!$B$4:$H$664,5,0)),"",(VLOOKUP(B28,'KAYIT LİSTESİ'!$B$4:$H$664,5,0))) ->  | F28: =IF(ISERROR(VLOOKUP(B28,'KAYIT LİSTESİ'!$B$4:$H$664,6,0)),"",(VLOOKUP(B28,'KAYIT LİSTESİ'!$B$4:$H$664,6,0))) ->  | N28: 0 | O28: =IF(LEN(N28)>0,VLOOKUP(N28,#REF!,4)-IF(COUNTIF(#REF!,N28)=0,0,0)," ") ->  | Q28: 2346 | R28: 26
B29: Çekiç-22 | C29: =IF(ISERROR(VLOOKUP(B29,'KAYIT LİSTESİ'!$B$4:$H$664,2,0)),"",(VLOOKUP(B29,'KAYIT LİSTESİ'!$B$4:$H$664,2,0))) ->  | D29: =IF(ISERROR(VLOOKUP(B29,'KAYIT LİSTESİ'!$B$4:$H$664,4,0)),"",(VLOOKUP(B29,'KAYIT LİSTESİ'!$B$4:$H$664,4,0))) ->  | E29: =IF(ISERROR(VLOOKUP(B29,'KAYIT LİSTESİ'!$B$4:$H$664,5,0)),"",(VLOOKUP(B29,'KAYIT LİSTESİ'!$B$4:$H$664,5,0))) ->  | F29: =IF(ISERROR(VLOOKUP(B29,'KAYIT LİSTESİ'!$B$4:$H$664,6,0)),"",(VLOOKUP(B29,'KAYIT LİSTESİ'!$B$4:$H$664,6,0))) ->  | N29: 0 | O29: =IF(LEN(N29)>0,VLOOKUP(N29,#REF!,4)-IF(COUNTIF(#REF!,N29)=0,0,0)," ") ->  | Q29: 2392 | R29: 27
B30: Çekiç-23 | C30: =IF(ISERROR(VLOOKUP(B30,'KAYIT LİSTESİ'!$B$4:$H$664,2,0)),"",(VLOOKUP(B30,'KAYIT LİSTESİ'!$B$4:$H$664,2,0))) ->  | D30: =IF(ISERROR(VLOOKUP(B30,'KAYIT LİSTESİ'!$B$4:$H$664,4,0)),"",(VLOOKUP(B30,'KAYIT LİSTESİ'!$B$4:$H$664,4,0))) ->  | E30: =IF(ISERROR(VLOOKUP(B30,'KAYIT LİSTESİ'!$B$4:$H$664,5,0)),"",(VLOOKUP(B30,'KAYIT LİSTESİ'!$B$4:$H$664,5,0))) ->  | F30: =IF(ISERROR(VLOOKUP(B30,'KAYIT LİSTESİ'!$B$4:$H$664,6,0)),"",(VLOOKUP(B30,'KAYIT LİSTESİ'!$B$4:$H$664,6,0))) ->  | N30: 0 | O30: =IF(LEN(N30)>0,VLOOKUP(N30,#REF!,4)-IF(COUNTIF(#REF!,N30)=0,0,0)," ") ->  | Q30: 2438 | R30: 28
B31: Çekiç-24 | C31: =IF(ISERROR(VLOOKUP(B31,'KAYIT LİSTESİ'!$B$4:$H$664,2,0)),"",(VLOOKUP(B31,'KAYIT LİSTESİ'!$B$4:$H$664,2,0))) ->  | D31: =IF(ISERROR(VLOOKUP(B31,'KAYIT LİSTESİ'!$B$4:$H$664,4,0)),"",(VLOOKUP(B31,'KAYIT LİSTESİ'!$B$4:$H$664,4,0))) ->  | E31: =IF(ISERROR(VLOOKUP(B31,'KAYIT LİSTESİ'!$B$4:$H$664,5,0)),"",(VLOOKUP(B31,'KAYIT LİSTESİ'!$B$4:$H$664,5,0))) ->  | F31: =IF(ISERROR(VLOOKUP(B31,'KAYIT LİSTESİ'!$B$4:$H$664,6,0)),"",(VLOOKUP(B31,'KAYIT LİSTESİ'!$B$4:$H$664,6,0))) ->  | N31: 0 | O31: =IF(LEN(N31)>0,VLOOKUP(N31,#REF!,4)-IF(COUNTIF(#REF!,N31)=0,0,0)," ") ->  | Q31: 2484 | R31: 29
B32: Çekiç-25 | C32: =IF(ISERROR(VLOOKUP(B32,'KAYIT LİSTESİ'!$B$4:$H$664,2,0)),"",(VLOOKUP(B32,'KAYIT LİSTESİ'!$B$4:$H$664,2,0))) ->  | D32: =IF(ISERROR(VLOOKUP(B32,'KAYIT LİSTESİ'!$B$4:$H$664,4,0)),"",(VLOOKUP(B32,'KAYIT LİSTESİ'!$B$4:$H$664,4,0))) ->  | E32: =IF(ISERROR(VLOOKUP(B32,'KAYIT LİSTESİ'!$B$4:$H$664,5,0)),"",(VLOOKUP(B32,'KAYIT LİSTESİ'!$B$4:$H$664,5,0))) ->  | F32: =IF(ISERROR(VLOOKUP(B32,'KAYIT LİSTESİ'!$B$4:$H$664,6,0)),"",(VLOOKUP(B32,'KAYIT LİSTESİ'!$B$4:$H$664,6,0))) ->  | N32: 0 | O32: =IF(LEN(N32)>0,VLOOKUP(N32,#REF!,4)-IF(COUNTIF(#REF!,N32)=0,0,0)," ") ->  | Q32: 2530 | R32: 30
B33: Çekiç-26 | C33: =IF(ISERROR(VLOOKUP(B33,'KAYIT LİSTESİ'!$B$4:$H$664,2,0)),"",(VLOOKUP(B33,'KAYIT LİSTESİ'!$B$4:$H$664,2,0))) ->  | D33: =IF(ISERROR(VLOOKUP(B33,'KAYIT LİSTESİ'!$B$4:$H$664,4,0)),"",(VLOOKUP(B33,'KAYIT LİSTESİ'!$B$4:$H$664,4,0))) ->  | E33: =IF(ISERROR(VLOOKUP(B33,'KAYIT LİSTESİ'!$B$4:$H$664,5,0)),"",(VLOOKUP(B33,'KAYIT LİSTESİ'!$B$4:$H$664,5,0))) ->  | F33: =IF(ISERROR(VLOOKUP(B33,'KAYIT LİSTESİ'!$B$4:$H$664,6,0)),"",(VLOOKUP(B33,'KAYIT LİSTESİ'!$B$4:$H$664,6,0))) ->  | N33: 0 | O33: =IF(LEN(N33)>0,VLOOKUP(N33,#REF!,4)-IF(COUNTIF(#REF!,N33)=0,0,0)," ") ->  | Q33: 2576 | R33: 31
B34: Çekiç-27 | C34: =IF(ISERROR(VLOOKUP(B34,'KAYIT LİSTESİ'!$B$4:$H$664,2,0)),"",(VLOOKUP(B34,'KAYIT LİSTESİ'!$B$4:$H$664,2,0))) ->  | D34: =IF(ISERROR(VLOOKUP(B34,'KAYIT LİSTESİ'!$B$4:$H$664,4,0)),"",(VLOOKUP(B34,'KAYIT LİSTESİ'!$B$4:$H$664,4,0))) ->  | E34: =IF(ISERROR(VLOOKUP(B34,'KAYIT LİSTESİ'!$B$4:$H$664,5,0)),"",(VLOOKUP(B34,'KAYIT LİSTESİ'!$B$4:$H$664,5,0))) ->  | F34: =IF(ISERROR(VLOOKUP(B34,'KAYIT LİSTESİ'!$B$4:$H$664,6,0)),"",(VLOOKUP(B34,'KAYIT LİSTESİ'!$B$4:$H$664,6,0))) ->  | N34: 0 | O34: =IF(LEN(N34)>0,VLOOKUP(N34,#REF!,4)-IF(COUNTIF(#REF!,N34)=0,0,0)," ") ->  | Q34: 2622 | R34: 32
B35: Çekiç-28 | C35: =IF(ISERROR(VLOOKUP(B35,'KAYIT LİSTESİ'!$B$4:$H$664,2,0)),"",(VLOOKUP(B35,'KAYIT LİSTESİ'!$B$4:$H$664,2,0))) ->  | D35: =IF(ISERROR(VLOOKUP(B35,'KAYIT LİSTESİ'!$B$4:$H$664,4,0)),"",(VLOOKUP(B35,'KAYIT LİSTESİ'!$B$4:$H$664,4,0))) ->  | E35: =IF(ISERROR(VLOOKUP(B35,'KAYIT LİSTESİ'!$B$4:$H$664,5,0)),"",(VLOOKUP(B35,'KAYIT LİSTESİ'!$B$4:$H$664,5,0))) ->  | F35: =IF(ISERROR(VLOOKUP(B35,'KAYIT LİSTESİ'!$B$4:$H$664,6,0)),"",(VLOOKUP(B35,'KAYIT LİSTESİ'!$B$4:$H$664,6,0))) ->  | N35: 0 | O35: =IF(LEN(N35)>0,VLOOKUP(N35,#REF!,4)-IF(COUNTIF(#REF!,N35)=0,0,0)," ") ->  | Q35: 2668 | R35: 33
B36: Çekiç-29 | C36: =IF(ISERROR(VLOOKUP(B36,'KAYIT LİSTESİ'!$B$4:$H$664,2,0)),"",(VLOOKUP(B36,'KAYIT LİSTESİ'!$B$4:$H$664,2,0))) ->  | D36: =IF(ISERROR(VLOOKUP(B36,'KAYIT LİSTESİ'!$B$4:$H$664,4,0)),"",(VLOOKUP(B36,'KAYIT LİSTESİ'!$B$4:$H$664,4,0))) ->  | E36: =IF(ISERROR(VLOOKUP(B36,'KAYIT LİSTESİ'!$B$4:$H$664,5,0)),"",(VLOOKUP(B36,'KAYIT LİSTESİ'!$B$4:$H$664,5,0))) ->  | F36: =IF(ISERROR(VLOOKUP(B36,'KAYIT LİSTESİ'!$B$4:$H$664,6,0)),"",(VLOOKUP(B36,'KAYIT LİSTESİ'!$B$4:$H$664,6,0))) ->  | N36: 0 | O36: =IF(LEN(N36)>0,VLOOKUP(N36,#REF!,4)-IF(COUNTIF(#REF!,N36)=0,0,0)," ") ->  | Q36: 2712 | R36: 34
B37: Çekiç-30 | C37: =IF(ISERROR(VLOOKUP(B37,'KAYIT LİSTESİ'!$B$4:$H$664,2,0)),"",(VLOOKUP(B37,'KAYIT LİSTESİ'!$B$4:$H$664,2,0))) ->  | D37: =IF(ISERROR(VLOOKUP(B37,'KAYIT LİSTESİ'!$B$4:$H$664,4,0)),"",(VLOOKUP(B37,'KAYIT LİSTESİ'!$B$4:$H$664,4,0))) ->  | E37: =IF(ISERROR(VLOOKUP(B37,'KAYIT LİSTESİ'!$B$4:$H$664,5,0)),"",(VLOOKUP(B37,'KAYIT LİSTESİ'!$B$4:$H$664,5,0))) ->  | F37: =IF(ISERROR(VLOOKUP(B37,'KAYIT LİSTESİ'!$B$4:$H$664,6,0)),"",(VLOOKUP(B37,'KAYIT LİSTESİ'!$B$4:$H$664,6,0))) ->  | N37: 0 | O37: =IF(LEN(N37)>0,VLOOKUP(N37,#REF!,4)-IF(COUNTIF(#REF!,N37)=0,0,0)," ") ->  | Q37: 2756 | R37: 35
B38: Çekiç-31 | C38: =IF(ISERROR(VLOOKUP(B38,'KAYIT LİSTESİ'!$B$4:$H$664,2,0)),"",(VLOOKUP(B38,'KAYIT LİSTESİ'!$B$4:$H$664,2,0))) ->  | D38: =IF(ISERROR(VLOOKUP(B38,'KAYIT LİSTESİ'!$B$4:$H$664,4,0)),"",(VLOOKUP(B38,'KAYIT LİSTESİ'!$B$4:$H$664,4,0))) ->  | E38: =IF(ISERROR(VLOOKUP(B38,'KAYIT LİSTESİ'!$B$4:$H$664,5,0)),"",(VLOOKUP(B38,'KAYIT LİSTESİ'!$B$4:$H$664,5,0))) ->  | F38: =IF(ISERROR(VLOOKUP(B38,'KAYIT LİSTESİ'!$B$4:$H$664,6,0)),"",(VLOOKUP(B38,'KAYIT LİSTESİ'!$B$4:$H$664,6,0))) ->  | N38: 0 | O38: =IF(LEN(N38)>0,VLOOKUP(N38,#REF!,4)-IF(COUNTIF(#REF!,N38)=0,0,0)," ") ->  | Q38: 2800 | R38: 36
B39: Çekiç-32 | C39: =IF(ISERROR(VLOOKUP(B39,'KAYIT LİSTESİ'!$B$4:$H$664,2,0)),"",(VLOOKUP(B39,'KAYIT LİSTESİ'!$B$4:$H$664,2,0))) ->  | D39: =IF(ISERROR(VLOOKUP(B39,'KAYIT LİSTESİ'!$B$4:$H$664,4,0)),"",(VLOOKUP(B39,'KAYIT LİSTESİ'!$B$4:$H$664,4,0))) ->  | E39: =IF(ISERROR(VLOOKUP(B39,'KAYIT LİSTESİ'!$B$4:$H$664,5,0)),"",(VLOOKUP(B39,'KAYIT LİSTESİ'!$B$4:$H$664,5,0))) ->  | F39: =IF(ISERROR(VLOOKUP(B39,'KAYIT LİSTESİ'!$B$4:$H$664,6,0)),"",(VLOOKUP(B39,'KAYIT LİSTESİ'!$B$4:$H$664,6,0))) ->  | N39: 0 | O39: =IF(LEN(N39)>0,VLOOKUP(N39,#REF!,4)-IF(COUNTIF(#REF!,N39)=0,0,0)," ") ->  | Q39: 2844 | R39: 37
